Workbook

Sheet Input
H1: 1 | I1: 2 | J1: 3 | K1: 4 | L1: 5 | M1: 6 | N1: 7
B2: Time | H2: P50 | I2: P99 | J2: Debt/Cap Min | K2: Debt/Cap LLCR | L2: Debt/Cap Curved | M2: Base Case Fixed | N2: Low Case Fixed
C3: Start Date | D3: Date | E3: 2023-01-01
C4: Construction | D4: Months | E4: 12
C5: COD | D5: Date | E5: =EDATE(E3, E4) -> 2024-01-01
C6: Operation | D6: Years | E6: 25
C7: End of the Life | D7: Date | E7: =EDATE(E5, E6 * 12) -> 2049-01-01
C8: Months in Period - Construction | D8: Months | E8: 1
C9: Months in Period - Operation | D9: Months | E9: 3
B11: Resource
C12: Capacity | D12: kWp | E12: 100000
C13: P50 Yield | D13: kWH / kWp | E13: =Production!O20 -> 1707.83
C14: Probability Level | D14: % | E14: 0.5
C15: Standard Deviation | D15: % | E15: 0.06
C16: Yield Applied | D16: kWH / kWp | E16: =_xlfn.NORM.INV( E14, E13, E15 * E13) -> 1707.83
C17: Degradation | D17: % | E17: 0
B19: Operations | D19: <Pvinsights website
C20: Cost / kWp | D20: $ / KWp | E20: 800
C21: PPA Price | D21: $ / KWH | E21: 0.045
C22: PPA Inflation | D22: % | E22: 0.025
C23: O&M Cost | D23: $/kW/year | E23: 15
B25: Financing
C26: Debt Size
D27: DSCR | E27: 1.3 | H27: 1.3 | I27: 1 | J27: 1.3 | K27: 1.3 | L27: 1.3
D28: Max Debt-to-Capital | E28: 0.85
D29: DSCR Method | E29: 1 | H29: 1 | I29: 1 | J29: 1 | K29: 2 | L29: 3
D30: Fix Debt | E30: FALSE | H30: FALSE | I30: FALSE | J30: FALSE | K30: FALSE | L30: FALSE | M30: TRUE | N30: TRUE
D31: Fix Debt Selection | E31: 1
D32: Computed Debt
C34: Repayment
D35: Tenor | E35: 20
D36: End of repayment | E36: =EDATE(E5, E35 * 12) -> 2044-01-01
C37: Interst and Fees
D38: SOFR | E38: 0.035
D39: Spread | E39: 0.0175
C40: Option for Negative Repayment
D41: Allow Negative Repayment | E41: TRUE
D42: Reduce Debt Size | E42: FALSE
D43: Allow DSCR of 1.0 | E43: FALSE
D44: Create Cash Account | E44: FALSE
D45: Revolving Credit | E45: FALSE
C50: Constants
D51: Quarter | E51: 4

Sheet Model
E1: Units | F1: Constant 1 | G1: Constant 2 | H1: Sum | I1: Initial | J1: Project IRR | K1: =F42 -> 0.08348071873 | L1: Equity IRR | M1: =F102 -> 0.08348071873
D2: Period | E2: Period | J2: 1 | K2: 2 | L2: 3 | M2: 4 | N2: 5 | O2: 6 | P2: 7 | Q2: 8 | R2: 9 | S2: 10 | T2: 11 | U2: 12 | V2: 13 | W2: 14 | X2: 15 | Y2: 16 | Z2: 17 | AA2: 18 | AB2: 19 | AC2: 20 | AD2: 21 | AE2: 22 | AF2: 23 | AG2: 24 | AH2: 25 | AI2: 26 | AJ2: 27 | AK2: 28 | AL2: 29 | AM2: 30 | AN2: 31 | AO2: 32 | AP2: 33 | AQ2: 34 | AR2: 35 | AS2: 36 | AT2: 37 | AU2: 38 | AV2: 39 | AW2: 40 | AX2: 41 | AY2: 42 | AZ2: 43 | BA2: 44 | BB2: 45 | BC2: 46 | BD2: 47 | BE2: 48 | BF2: 49 | BG2: 50 | BH2: 51 | BI2: 52 | BJ2: 53 | BK2: 54 | BL2: 55 | BM2: 56 | BN2: 57 | BO2: 58 | BP2: 59 | BQ2: 60 | BR2: 61 | BS2: 62 | BT2: 63 | BU2: 64 | BV2: 65 | BW2: 66 | BX2: 67 | BY2: 68 | BZ2: 69 | CA2: 70 | CB2: 71 | CC2: 72 | CD2: 73 | CE2: 74 | CF2: 75 | CG2: 76 | CH2: 77 | CI2: 78 | CJ2: 79 | CK2: 80 | CL2: 81 | CM2: 82 | CN2: 83 | CO2: 84 | CP2: 85 | CQ2: 86 | CR2: 87 | CS2: 88 | CT2: 89 | CU2: 90 | CV2: 91 | CW2: 92 | CX2: 93 | CY2: 94 | CZ2: 95 | DA2: 96 | DB2: 97 | DC2: 98 | DD2: 99 | DE2: 100 | DF2: 101 | DG2: 102 | DH2: 103 | DI2: 104 | DJ2: 105 | DK2: 106 | DL2: 107 | DM2: 108 | DN2: 109 | DO2: 110 | DP2: 111 | DQ2: 112 | DR2: 113 | DS2: 114 | DT2: 115 | DU2: 116 | DV2: 117 | DW2: 118 | DX2: 119 | DY2: 120 | DZ2: 121 | EA2: 122 | EB2: 123 | EC2: 124 | ED2: 125 | EE2: 126 | EF2: 127 | EG2: 128 | EH2: 129 | EI2: 130 | EJ2: 131 | EK2: 132 | EL2: 133 | EM2: 134 | EN2: 135 | EO2: 136 | EP2: 137 | EQ2: 138 | ER2: 139 | ES2: 140 | ET2: 141 | EU2: 142 | EV2: 143 | EW2: 144 | EX2: 145 | EY2: 146 | EZ2: 147 | FA2: 148 | FB2: 149 | FC2: 150
D3: Pre-COD Period | E3: Flag | F3: =Input!E4 -> 12 | I3: =SUM(J3:FC3) -> 12 | J3: =( J2 <=$F$3)*1 -> 1 | K3: 1 | L3: 1 | M3: 1 | N3: 1 | O3: 1 | P3: 1 | Q3: 1 | R3: 1 | S3: 1 | T3: 1 | U3: 1 | V3: 0 | W3: 0 | X3: 0 | Y3: 0 | Z3: 0 | AA3: 0 | AB3: 0 | AC3: 0 | AD3: 0 | AE3: 0 | AF3: 0 | AG3: 0 | AH3: 0 | AI3: 0 | AJ3: 0 | AK3: 0 | AL3: 0 | AM3: 0 | AN3: 0 | AO3: 0 | AP3: =( AP2 <=$F$3)*1 -> 0 | AQ3: 0 | AR3: 0 | AS3: 0 | AT3: 0 | AU3: 0 | AV3: 0 | AW3: 0 | AX3: 0 | AY3: 0 | AZ3: 0 | BA3: 0 | BB3: 0 | BC3: 0 | BD3: 0 | BE3: 0 | BF3: 0 | BG3: 0 | BH3: 0 | BI3: 0 | BJ3: 0 | BK3: 0 | BL3: 0 | BM3: 0 | BN3: 0 | BO3: 0 | BP3: 0 | BQ3: 0 | BR3: 0 | BS3: 0 | BT3: 0 | BU3: 0 | BV3: =( BV2 <=$F$3)*1 -> 0 | BW3: 0 | BX3: 0 | BY3: 0 | BZ3: 0 | CA3: 0 | CB3: 0 | CC3: 0 | CD3: 0 | CE3: 0 | CF3: 0 | CG3: 0 | CH3: 0 | CI3: 0 | CJ3: 0 | CK3: 0 | CL3: 0 | CM3: 0 | CN3: 0 | CO3: 0 | CP3: 0 | CQ3: 0 | CR3: 0 | CS3: 0 | CT3: 0 | CU3: 0 | CV3: 0 | CW3: 0 | CX3: 0 | CY3: 0 | CZ3: 0 | DA3: 0 | DB3: =( DB2 <=$F$3)*1 -> 0 | DC3: 0 | DD3: 0 | DE3: 0 | DF3: 0 | DG3: 0 | DH3: 0 | DI3: 0 | DJ3: 0 | DK3: 0 | DL3: 0 | DM3: 0 | DN3: 0 | DO3: 0 | DP3: 0 | DQ3: 0 | DR3: 0 | DS3: 0 | DT3: 0 | DU3: 0 | DV3: 0 | DW3: 0 | DX3: 0 | DY3: 0 | DZ3: 0 | EA3: 0 | EB3: 0 | EC3: 0 | ED3: 0 | EE3: 0 | EF3: 0 | EG3: 0 | EH3: =( EH2 <=$F$3)*1 -> 0 | EI3: 0 | EJ3: 0 | EK3: 0 | EL3: 0 | EM3: 0 | EN3: 0 | EO3: 0 | EP3: 0 | EQ3: 0 | ER3: 0 | ES3: 0 | ET3: 0 | EU3: 0 | EV3: 0 | EW3: 0 | EX3: 0 | EY3: 0 | EZ3: 0 | FA3: 0 | FB3: 0 | FC3: 0
D4: Months in Period | E4: Flag | F4: =Input!E8 -> 1 | G4: =Input!E9 -> 3 | J4: =IF( J3, $F$4, $G$4) -> 1 | K4: 1 | L4: 1 | M4: 1 | N4: 1 | O4: 1 | P4: 1 | Q4: 1 | R4: 1 | S4: 1 | T4: 1 | U4: 1 | V4: 3 | W4: 3 | X4: 3 | Y4: 3 | Z4: 3 | AA4: 3 | AB4: 3 | AC4: 3 | AD4: 3 | AE4: 3 | AF4: 3 | AG4: 3 | AH4: 3 | AI4: 3 | AJ4: 3 | AK4: 3 | AL4: 3 | AM4: 3 | AN4: 3 | AO4: 3 | AP4: =IF( AP3, $F$4, $G$4) -> 3 | AQ4: 3 | AR4: 3 | AS4: 3 | AT4: 3 | AU4: 3 | AV4: 3 | AW4: 3 | AX4: 3 | AY4: 3 | AZ4: 3 | BA4: 3 | BB4: 3 | BC4: 3 | BD4: 3 | BE4: 3 | BF4: 3 | BG4: 3 | BH4: 3 | BI4: 3 | BJ4: 3 | BK4: 3 | BL4: 3 | BM4: 3 | BN4: 3 | BO4: 3 | BP4: 3 | BQ4: 3 | BR4: 3 | BS4: 3 | BT4: 3 | BU4: 3 | BV4: =IF( BV3, $F$4, $G$4) -> 3 | BW4: 3 | BX4: 3 | BY4: 3 | BZ4: 3 | CA4: 3 | CB4: 3 | CC4: 3 | CD4: 3 | CE4: 3 | CF4: 3 | CG4: 3 | CH4: 3 | CI4: 3 | CJ4: 3 | CK4: 3 | CL4: 3 | CM4: 3 | CN4: 3 | CO4: 3 | CP4: 3 | CQ4: 3 | CR4: 3 | CS4: 3 | CT4: 3 | CU4: 3 | CV4: 3 | CW4: 3 | CX4: 3 | CY4: 3 | CZ4: 3 | DA4: 3 | DB4: =IF( DB3, $F$4, $G$4) -> 3 | DC4: 3 | DD4: 3 | DE4: 3 | DF4: 3 | DG4: 3 | DH4: 3 | DI4: 3 | DJ4: 3 | DK4: 3 | DL4: 3 | DM4: 3 | DN4: 3 | DO4: 3 | DP4: 3 | DQ4: 3 | DR4: 3 | DS4: 3 | DT4: 3 | DU4: 3 | DV4: 3 | DW4: 3 | DX4: 3 | DY4: 3 | DZ4: 3 | EA4: 3 | EB4: 3 | EC4: 3 | ED4: 3 | EE4: 3 | EF4: 3 | EG4: 3 | EH4: =IF( EH3, $F$4, $G$4) -> 3 | EI4: 3 | EJ4: 3 | EK4: 3 | EL4: 3 | EM4: 3 | EN4: 3 | EO4: 3 | EP4: 3 | EQ4: 3 | ER4: 3 | ES4: 3 | ET4: 3 | EU4: 3 | EV4: 3 | EW4: 3 | EX4: 3 | EY4: 3 | EZ4: 3 | FA4: 3 | FB4: 3 | FC4: 3
D5: Start Date | E5: Date | J5: =I6 + 1 -> 2023-01-01 | K5: 2023-02-01 | L5: 2023-03-01 | M5: 2023-04-01 | N5: 2023-05-01 | O5: 2023-06-01 | P5: 2023-07-01 | Q5: 2023-08-01 | R5: 2023-09-01 | S5: 2023-10-01 | T5: 2023-11-01 | U5: 2023-12-01 | V5: 2024-01-01 | W5: 2024-04-01 | X5: 2024-07-01 | Y5: 2024-10-01 | Z5: 2025-01-01 | AA5: 2025-04-01 | AB5: 2025-07-01 | AC5: 2025-10-01 | AD5: 2026-01-01 | AE5: 2026-04-01 | AF5: 2026-07-01 | AG5: 2026-10-01 | AH5: 2027-01-01 | AI5: 2027-04-01 | AJ5: 2027-07-01 | AK5: 2027-10-01 | AL5: 2028-01-01 | AM5: 2028-04-01 | AN5: 2028-07-01 | AO5: 2028-10-01 | AP5: =AO6 + 1 -> 2029-01-01 | AQ5: 2029-04-01 | AR5: 2029-07-01 | AS5: 2029-10-01 | AT5: 2030-01-01 | AU5: 2030-04-01 | AV5: 2030-07-01 | AW5: 2030-10-01 | AX5: 2031-01-01 | AY5: 2031-04-01 | AZ5: 2031-07-01 | BA5: 2031-10-01 | BB5: 2032-01-01 | BC5: 2032-04-01 | BD5: 2032-07-01 | BE5: 2032-10-01 | BF5: 2033-01-01 | BG5: 2033-04-01 | BH5: 2033-07-01 | BI5: 2033-10-01 | BJ5: 2034-01-01 | BK5: 2034-04-01 | BL5: 2034-07-01 | BM5: 2034-10-01 | BN5: 2035-01-01 | BO5: 2035-04-01 | BP5: 2035-07-01 | BQ5: 2035-10-01 | BR5: 2036-01-01 | BS5: 2036-04-01 | BT5: 2036-07-01 | BU5: 2036-10-01 | BV5: =BU6 + 1 -> 2037-01-01 | BW5: 2037-04-01 | BX5: 2037-07-01 | BY5: 2037-10-01 | BZ5: 2038-01-01 | CA5: 2038-04-01 | CB5: 2038-07-01 | CC5: 2038-10-01 | CD5: 2039-01-01 | CE5: 2039-04-01 | CF5: 2039-07-01 | CG5: 2039-10-01 | CH5: 2040-01-01 | CI5: 2040-04-01 | CJ5: 2040-07-01 | CK5: 2040-10-01 | CL5: 2041-01-01 | CM5: 2041-04-01 | CN5: 2041-07-01 | CO5: 2041-10-01 | CP5: 2042-01-01 | CQ5: 2042-04-01 | CR5: 2042-07-01 | CS5: 2042-10-01 | CT5: 2043-01-01 | CU5: 2043-04-01 | CV5: 2043-07-01 | CW5: 2043-10-01 | CX5: 2044-01-01 | CY5: 2044-04-01 | CZ5: 2044-07-01 | DA5: 2044-10-01 | DB5: =DA6 + 1 -> 2045-01-01 | DC5: 2045-04-01 | DD5: 2045-07-01 | DE5: 2045-10-01 | DF5: 2046-01-01 | DG5: 2046-04-01 | DH5: 2046-07-01 | DI5: 2046-10-01 | DJ5: 2047-01-01 | DK5: 2047-04-01 | DL5: 2047-07-01 | DM5: 2047-10-01 | DN5: 2048-01-01 | DO5: 2048-04-01 | DP5: 2048-07-01 | DQ5: 2048-10-01 | DR5: 2049-01-01 | DS5: 2049-04-01 | DT5: 2049-07-01 | DU5: 2049-10-01 | DV5: 2050-01-01 | DW5: 2050-04-01 | DX5: 2050-07-01 | DY5: 2050-10-01 | DZ5: 2051-01-01 | EA5: 2051-04-01 | EB5: 2051-07-01 | EC5: 2051-10-01 | ED5: 2052-01-01 | EE5: 2052-04-01 | EF5: 2052-07-01 | EG5: 2052-10-01 | EH5: =EG6 + 1 -> 2053-01-01 | EI5: 2053-04-01 | EJ5: 2053-07-01 | EK5: 2053-10-01 | EL5: 2054-01-01 | EM5: 2054-04-01 | EN5: 2054-07-01 | EO5: 2054-10-01 | EP5: 2055-01-01 | EQ5: 2055-04-01 | ER5: 2055-07-01 | ES5: 2055-10-01 | ET5: 2056-01-01 | EU5: 2056-04-01 | EV5: 2056-07-01 | EW5: 2056-10-01 | EX5: 2057-01-01 | EY5: 2057-04-01 | EZ5: 2057-07-01 | FA5: 2057-10-01 | FB5: 2058-01-01 | FC5: 2058-04-01
D6: End Date | E6: Date | I6: =Input!E3 - 1 -> 2022-12-31 | J6: =EDATE(J5, J4) - 1 -> 2023-01-31 | K6: 2023-02-28 | L6: 2023-03-31 | M6: 2023-04-30 | N6: 2023-05-31 | O6: 2023-06-30 | P6: 2023-07-31 | Q6: 2023-08-31 | R6: 2023-09-30 | S6: 2023-10-31 | T6: 2023-11-30 | U6: 2023-12-31 | V6: 2024-03-31 | W6: 2024-06-30 | X6: 2024-09-30 | Y6: 2024-12-31 | Z6: 2025-03-31 | AA6: 2025-06-30 | AB6: 2025-09-30 | AC6: 2025-12-31 | AD6: 2026-03-31 | AE6: 2026-06-30 | AF6: 2026-09-30 | AG6: 2026-12-31 | AH6: 2027-03-31 | AI6: 2027-06-30 | AJ6: 2027-09-30 | AK6: 2027-12-31 | AL6: 2028-03-31 | AM6: 2028-06-30 | AN6: 2028-09-30 | AO6: 2028-12-31 | AP6: =EDATE(AP5, AP4) - 1 -> 2029-03-31 | AQ6: 2029-06-30 | AR6: 2029-09-30 | AS6: 2029-12-31 | AT6: 2030-03-31 | AU6: 2030-06-30 | AV6: 2030-09-30 | AW6: 2030-12-31 | AX6: 2031-03-31 | AY6: 2031-06-30 | AZ6: 2031-09-30 | BA6: 2031-12-31 | BB6: 2032-03-31 | BC6: 2032-06-30 | BD6: 2032-09-30 | BE6: 2032-12-31 | BF6: 2033-03-31 | BG6: 2033-06-30 | BH6: 2033-09-30 | BI6: 2033-12-31 | BJ6: 2034-03-31 | BK6: 2034-06-30 | BL6: 2034-09-30 | BM6: 2034-12-31 | BN6: 2035-03-31 | BO6: 2035-06-30 | BP6: 2035-09-30 | BQ6: 2035-12-31 | BR6: 2036-03-31 | BS6: 2036-06-30 | BT6: 2036-09-30 | BU6: 2036-12-31 | BV6: =EDATE(BV5, BV4) - 1 -> 2037-03-31 | BW6: 2037-06-30 | BX6: 2037-09-30 | BY6: 2037-12-31 | BZ6: 2038-03-31 | CA6: 2038-06-30 | CB6: 2038-09-30 | CC6: 2038-12-31 | CD6: 2039-03-31 | CE6: 2039-06-30 | CF6: 2039-09-30 | CG6: 2039-12-31 | CH6: 2040-03-31 | CI6: 2040-06-30 | CJ6: 2040-09-30 | CK6: 2040-12-31 | CL6: 2041-03-31 | CM6: 2041-06-30 | CN6: 2041-09-30 | CO6: 2041-12-31 | CP6: 2042-03-31 | CQ6: 2042-06-30 | CR6: 2042-09-30 | CS6: 2042-12-31 | CT6: 2043-03-31 | CU6: 2043-06-30 | CV6: 2043-09-30 | CW6: 2043-12-31 | CX6: 2044-03-31 | CY6: 2044-06-30 | CZ6: 2044-09-30 | DA6: 2044-12-31 | DB6: =EDATE(DB5, DB4) - 1 -> 2045-03-31 | DC6: 2045-06-30 | DD6: 2045-09-30 | DE6: 2045-12-31 | DF6: 2046-03-31 | DG6: 2046-06-30 | DH6: 2046-09-30 | DI6: 2046-12-31 | DJ6: 2047-03-31 | DK6: 2047-06-30 | DL6: 2047-09-30 | DM6: 2047-12-31 | DN6: 2048-03-31 | DO6: 2048-06-30 | DP6: 2048-09-30 | DQ6: 2048-12-31 | DR6: 2049-03-31 | DS6: 2049-06-30 | DT6: 2049-09-30 | DU6: 2049-12-31 | DV6: 2050-03-31 | DW6: 2050-06-30 | DX6: 2050-09-30 | DY6: 2050-12-31 | DZ6: 2051-03-31 | EA6: 2051-06-30 | EB6: 2051-09-30 | EC6: 2051-12-31 | ED6: 2052-03-31 | EE6: 2052-06-30 | EF6: 2052-09-30 | EG6: 2052-12-31 | EH6: =EDATE(EH5, EH4) - 1 -> 2053-03-31 | EI6: 2053-06-30 | EJ6: 2053-09-30 | EK6: 2053-12-31 | EL6: 2054-03-31 | EM6: 2054-06-30 | EN6: 2054-09-30 | EO6: 2054-12-31 | EP6: 2055-03-31 | EQ6: 2055-06-30 | ER6: 2055-09-30 | ES6: 2055-12-31 | ET6: 2056-03-31 | EU6: 2056-06-30 | EV6: 2056-09-30 | EW6: 2056-12-31 | EX6: 2057-03-31 | EY6: 2057-06-30 | EZ6: 2057-09-30 | FA6: 2057-12-31 | FB6: 2058-03-31 | FC6: 2058-06-30
D7: Operating Period | E7: Flag | F7: =Input!E5 -> 2024-01-01 | G7: =Input!E7 -> 2049-01-01 | H7: =SUM(J7:FC7) -> 100 | J7: =(AND(J$5>=$F7,J$5<$G7))*1 -> 0 | K7: =(AND(K$5>=$F7,K$5<$G7))*1 -> 0 | L7: 0 | M7: 0 | N7: 0 | O7: 0 | P7: 0 | Q7: 0 | R7: 0 | S7: 0 | T7: 0 | U7: 0 | V7: 1 | W7: 1 | X7: 1 | Y7: 1 | Z7: 1 | AA7: 1 | AB7: 1 | AC7: 1 | AD7: 1 | AE7: 1 | AF7: 1 | AG7: 1 | AH7: 1 | AI7: 1 | AJ7: 1 | AK7: 1 | AL7: 1 | AM7: 1 | AN7: 1 | AO7: 1 | AP7: 1 | AQ7: 1 | AR7: 1 | AS7: 1 | AT7: 1 | AU7: 1 | AV7: 1 | AW7: 1 | AX7: 1 | AY7: 1 | AZ7: 1 | BA7: 1 | BB7: 1 | BC7: 1 | BD7: 1 | BE7: 1 | BF7: 1 | BG7: 1 | BH7: 1 | BI7: 1 | BJ7: 1 | BK7: 1 | BL7: 1 | BM7: 1 | BN7: 1 | BO7: 1 | BP7: 1 | BQ7: 1 | BR7: 1 | BS7: 1 | BT7: 1 | BU7: 1 | BV7: 1 | BW7: =(AND(BW$5>=$F7,BW$5<$G7))*1 -> 1 | BX7: 1 | BY7: 1 | BZ7: 1 | CA7: 1 | CB7: 1 | CC7: 1 | CD7: 1 | CE7: 1 | CF7: 1 | CG7: 1 | CH7: 1 | CI7: 1 | CJ7: 1 | CK7: 1 | CL7: 1 | CM7: 1 | CN7: 1 | CO7: 1 | CP7: 1 | CQ7: 1 | CR7: 1 | CS7: 1 | CT7: 1 | CU7: 1 | CV7: 1 | CW7: 1 | CX7: 1 | CY7: 1 | CZ7: 1 | DA7: 1 | DB7: 1 | DC7: 1 | DD7: 1 | DE7: 1 | DF7: 1 | DG7: 1 | DH7: 1 | DI7: 1 | DJ7: 1 | DK7: 1 | DL7: 1 | DM7: 1 | DN7: 1 | DO7: 1 | DP7: 1 | DQ7: 1 | DR7: 0 | DS7: 0 | DT7: 0 | DU7: 0 | DV7: 0 | DW7: 0 | DX7: 0 | DY7: 0 | DZ7: 0 | EA7: 0 | EB7: 0 | EC7: 0 | ED7: 0 | EE7: 0 | EF7: 0 | EG7: 0 | EH7: 0 | EI7: =(AND(EI$5>=$F7,EI$5<$G7))*1 -> 0 | EJ7: 0 | EK7: 0 | EL7: 0 | EM7: 0 | EN7: 0 | EO7: 0 | EP7: 0 | EQ7: 0 | ER7: 0 | ES7: 0 | ET7: 0 | EU7: 0 | EV7: 0 | EW7: 0 | EX7: 0 | EY7: 0 | EZ7: 0 | FA7: 0 | FB7: 0 | FC7: 0
D8: Year | E8: Year | J8: =YEAR( J5) -> 2023 | K8: 2023 | L8: 2023 | M8: 2023 | N8: 2023 | O8: 2023 | P8: 2023 | Q8: 2023 | R8: 2023 | S8: 2023 | T8: 2023 | U8: 2023 | V8: 2024 | W8: 2024 | X8: 2024 | Y8: 2024 | Z8: 2025 | AA8: 2025 | AB8: 2025 | AC8: 2025 | AD8: 2026 | AE8: 2026 | AF8: 2026 | AG8: 2026 | AH8: 2027 | AI8: 2027 | AJ8: 2027 | AK8: 2027 | AL8: 2028 | AM8: 2028 | AN8: 2028 | AO8: 2028 | AP8: =YEAR( AP5) -> 2029 | AQ8: 2029 | AR8: 2029 | AS8: 2029 | AT8: 2030 | AU8: 2030 | AV8: 2030 | AW8: 2030 | AX8: 2031 | AY8: 2031 | AZ8: 2031 | BA8: 2031 | BB8: 2032 | BC8: 2032 | BD8: 2032 | BE8: 2032 | BF8: 2033 | BG8: 2033 | BH8: 2033 | BI8: 2033 | BJ8: 2034 | BK8: 2034 | BL8: 2034 | BM8: 2034 | BN8: 2035 | BO8: 2035 | BP8: 2035 | BQ8: 2035 | BR8: 2036 | BS8: 2036 | BT8: 2036 | BU8: 2036 | BV8: =YEAR( BV5) -> 2037 | BW8: 2037 | BX8: 2037 | BY8: 2037 | BZ8: 2038 | CA8: 2038 | CB8: 2038 | CC8: 2038 | CD8: 2039 | CE8: 2039 | CF8: 2039 | CG8: 2039 | CH8: 2040 | CI8: 2040 | CJ8: 2040 | CK8: 2040 | CL8: 2041 | CM8: 2041 | CN8: 2041 | CO8: 2041 | CP8: 2042 | CQ8: 2042 | CR8: 2042 | CS8: 2042 | CT8: 2043 | CU8: 2043 | CV8: 2043 | CW8: 2043 | CX8: 2044 | CY8: 2044 | CZ8: 2044 | DA8: 2044 | DB8: =YEAR( DB5) -> 2045 | DC8: 2045 | DD8: 2045 | DE8: 2045 | DF8: 2046 | DG8: 2046 | DH8: 2046 | DI8: 2046 | DJ8: 2047 | DK8: 2047 | DL8: 2047 | DM8: 2047 | DN8: 2048 | DO8: 2048 | DP8: 2048 | DQ8: 2048 | DR8: 2049 | DS8: 2049 | DT8: 2049 | DU8: 2049 | DV8: 2050 | DW8: 2050 | DX8: 2050 | DY8: 2050 | DZ8: 2051 | EA8: 2051 | EB8: 2051 | EC8: 2051 | ED8: 2052 | EE8: 2052 | EF8: 2052 | EG8: 2052 | EH8: =YEAR( EH5) -> 2053 | EI8: 2053 | EJ8: 2053 | EK8: 2053 | EL8: 2054 | EM8: 2054 | EN8: 2054 | EO8: 2054 | EP8: 2055 | EQ8: 2055 | ER8: 2055 | ES8: 2055 | ET8: 2056 | EU8: 2056 | EV8: 2056 | EW8: 2056 | EX8: 2057 | EY8: 2057 | EZ8: 2057 | FA8: 2057 | FB8: 2058 | FC8: 2058
D9: New Year Flag | E9: Flag | J9: =J8 <> I8 -> TRUE | K9: FALSE | L9: FALSE | M9: FALSE | N9: FALSE | O9: FALSE | P9: FALSE | Q9: FALSE | R9: FALSE | S9: FALSE | T9: FALSE | U9: FALSE | V9: TRUE | W9: FALSE | X9: FALSE | Y9: FALSE | Z9: TRUE | AA9: FALSE | AB9: FALSE | AC9: FALSE | AD9: TRUE | AE9: FALSE | AF9: FALSE | AG9: FALSE | AH9: TRUE | AI9: FALSE | AJ9: FALSE | AK9: FALSE | AL9: TRUE | AM9: FALSE | AN9: FALSE | AO9: FALSE | AP9: =AP8 <> AO8 -> TRUE | AQ9: FALSE | AR9: FALSE | AS9: FALSE | AT9: TRUE | AU9: FALSE | AV9: FALSE | AW9: FALSE | AX9: TRUE | AY9: FALSE | AZ9: FALSE | BA9: FALSE | BB9: TRUE | BC9: FALSE | BD9: FALSE | BE9: FALSE | BF9: TRUE | BG9: FALSE | BH9: FALSE | BI9: FALSE | BJ9: TRUE | BK9: FALSE | BL9: FALSE | BM9: FALSE | BN9: TRUE | BO9: FALSE | BP9: FALSE | BQ9: FALSE | BR9: TRUE | BS9: FALSE | BT9: FALSE | BU9: FALSE | BV9: =BV8 <> BU8 -> TRUE | BW9: FALSE | BX9: FALSE | BY9: FALSE | BZ9: TRUE | CA9: FALSE | CB9: FALSE | CC9: FALSE | CD9: TRUE | CE9: FALSE | CF9: FALSE | CG9: FALSE | CH9: TRUE | CI9: FALSE | CJ9: FALSE | CK9: FALSE | CL9: TRUE | CM9: FALSE | CN9: FALSE | CO9: FALSE | CP9: TRUE | CQ9: FALSE | CR9: FALSE | CS9: FALSE | CT9: TRUE | CU9: FALSE | CV9: FALSE | CW9: FALSE | CX9: TRUE | CY9: FALSE | CZ9: FALSE | DA9: FALSE | DB9: =DB8 <> DA8 -> TRUE | DC9: FALSE | DD9: FALSE | DE9: FALSE | DF9: TRUE | DG9: FALSE | DH9: FALSE | DI9: FALSE | DJ9: TRUE | DK9: FALSE | DL9: FALSE | DM9: FALSE | DN9: TRUE | DO9: FALSE | DP9: FALSE | DQ9: FALSE | DR9: TRUE | DS9: FALSE | DT9: FALSE | DU9: FALSE | DV9: TRUE | DW9: FALSE | DX9: FALSE | DY9: FALSE | DZ9: TRUE | EA9: FALSE | EB9: FALSE | EC9: FALSE | ED9: TRUE | EE9: FALSE | EF9: FALSE | EG9: FALSE | EH9: =EH8 <> EG8 -> TRUE | EI9: FALSE | EJ9: FALSE | EK9: FALSE | EL9: TRUE | EM9: FALSE | EN9: FALSE | EO9: FALSE | EP9: TRUE | EQ9: FALSE | ER9: FALSE | ES9: FALSE | ET9: TRUE | EU9: FALSE | EV9: FALSE | EW9: FALSE | EX9: TRUE | EY9: FALSE | EZ9: FALSE | FA9: FALSE | FB9: TRUE | FC9: FALSE
D10: Month | E10: Month | G10: 1 | J10: =MONTH(J5) -> 1 | K10: =MONTH(K5) -> 2 | L10: 3 | M10: 4 | N10: 5 | O10: 6 | P10: 7 | Q10: 8 | R10: 9 | S10: 10 | T10: 11 | U10: 12 | V10: 1 | W10: 4 | X10: 7 | Y10: 10 | Z10: 1 | AA10: 4 | AB10: 7 | AC10: 10 | AD10: 1 | AE10: 4 | AF10: 7 | AG10: 10 | AH10: 1 | AI10: 4 | AJ10: 7 | AK10: 10 | AL10: 1 | AM10: 4 | AN10: 7 | AO10: 10 | AP10: 1 | AQ10: 4 | AR10: 7 | AS10: 10 | AT10: 1 | AU10: 4 | AV10: 7 | AW10: 10 | AX10: 1 | AY10: 4 | AZ10: 7 | BA10: 10 | BB10: 1 | BC10: 4 | BD10: 7 | BE10: 10 | BF10: 1 | BG10: 4 | BH10: 7 | BI10: 10 | BJ10: 1 | BK10: 4 | BL10: 7 | BM10: 10 | BN10: 1 | BO10: 4 | BP10: 7 | BQ10: 10 | BR10: 1 | BS10: 4 | BT10: 7 | BU10: 10 | BV10: 1 | BW10: =MONTH(BW5) -> 4 | BX10: 7 | BY10: 10 | BZ10: 1 | CA10: 4 | CB10: 7 | CC10: 10 | CD10: 1 | CE10: 4 | CF10: 7 | CG10: 10 | CH10: 1 | CI10: 4 | CJ10: 7 | CK10: 10 | CL10: 1 | CM10: 4 | CN10: 7 | CO10: 10 | CP10: 1 | CQ10: 4 | CR10: 7 | CS10: 10 | CT10: 1 | CU10: 4 | CV10: 7 | CW10: 10 | CX10: 1 | CY10: 4 | CZ10: 7 | DA10: 10 | DB10: 1 | DC10: 4 | DD10: 7 | DE10: 10 | DF10: 1 | DG10: 4 | DH10: 7 | DI10: 10 | DJ10: 1 | DK10: 4 | DL10: 7 | DM10: 10 | DN10: 1 | DO10: 4 | DP10: 7 | DQ10: 10 | DR10: 1 | DS10: 4 | DT10: 7 | DU10: 10 | DV10: 1 | DW10: 4 | DX10: 7 | DY10: 10 | DZ10: 1 | EA10: 4 | EB10: 7 | EC10: 10 | ED10: 1 | EE10: 4 | EF10: 7 | EG10: 10 | EH10: 1 | EI10: =MONTH(EI5) -> 4 | EJ10: 7 | EK10: 10 | EL10: 1 | EM10: 4 | EN10: 7 | EO10: 10 | EP10: 1 | EQ10: 4 | ER10: 7 | ES10: 10 | ET10: 1 | EU10: 4 | EV10: 7 | EW10: 10 | EX10: 1 | EY10: 4 | EZ10: 7 | FA10: 10 | FB10: 1 | FC10: 4
D11: Quarter | E11: Quarter | J11: =IF( J9, 1, I11 + 1) * J7 -> 0 | K11: 0 | L11: 0 | M11: 0 | N11: 0 | O11: 0 | P11: 0 | Q11: 0 | R11: 0 | S11: 0 | T11: 0 | U11: 0 | V11: 1 | W11: 2 | X11: 3 | Y11: 4 | Z11: 1 | AA11: 2 | AB11: 3 | AC11: 4 | AD11: 1 | AE11: 2 | AF11: 3 | AG11: 4 | AH11: 1 | AI11: 2 | AJ11: 3 | AK11: 4 | AL11: 1 | AM11: 2 | AN11: 3 | AO11: 4 | AP11: =IF( AP9, 1, AO11 + 1) * AP7 -> 1 | AQ11: 2 | AR11: 3 | AS11: 4 | AT11: 1 | AU11: 2 | AV11: 3 | AW11: 4 | AX11: 1 | AY11: 2 | AZ11: 3 | BA11: 4 | BB11: 1 | BC11: 2 | BD11: 3 | BE11: 4 | BF11: 1 | BG11: 2 | BH11: 3 | BI11: 4 | BJ11: 1 | BK11: 2 | BL11: 3 | BM11: 4 | BN11: 1 | BO11: 2 | BP11: 3 | BQ11: 4 | BR11: 1 | BS11: 2 | BT11: 3 | BU11: 4 | BV11: =IF( BV9, 1, BU11 + 1) * BV7 -> 1 | BW11: 2 | BX11: 3 | BY11: 4 | BZ11: 1 | CA11: 2 | CB11: 3 | CC11: 4 | CD11: 1 | CE11: 2 | CF11: 3 | CG11: 4 | CH11: 1 | CI11: 2 | CJ11: 3 | CK11: 4 | CL11: 1 | CM11: 2 | CN11: 3 | CO11: 4 | CP11: 1 | CQ11: 2 | CR11: 3 | CS11: 4 | CT11: 1 | CU11: 2 | CV11: 3 | CW11: 4 | CX11: 1 | CY11: 2 | CZ11: 3 | DA11: 4 | DB11: =IF( DB9, 1, DA11 + 1) * DB7 -> 1 | DC11: 2 | DD11: 3 | DE11: 4 | DF11: 1 | DG11: 2 | DH11: 3 | DI11: 4 | DJ11: 1 | DK11: 2 | DL11: 3 | DM11: 4 | DN11: 1 | DO11: 2 | DP11: 3 | DQ11: 4 | DR11: 0 | DS11: 0 | DT11: 0 | DU11: 0 | DV11: 0 | DW11: 0 | DX11: 0 | DY11: 0 | DZ11: 0 | EA11: 0 | EB11: 0 | EC11: 0 | ED11: 0 | EE11: 0 | EF11: 0 | EG11: 0 | EH11: =IF( EH9, 1, EG11 + 1) * EH7 -> 0 | EI11: 0 | EJ11: 0 | EK11: 0 | EL11: 0 | EM11: 0 | EN11: 0 | EO11: 0 | EP11: 0 | EQ11: 0 | ER11: 0 | ES11: 0 | ET11: 0 | EU11: 0 | EV11: 0 | EW11: 0 | EX11: 0 | EY11: 0 | EZ11: 0 | FA11: 0 | FB11: 0 | FC11: 0
C13: Resource
D14: Capacity | E14: kWp | F14: =Input!E12 -> 100000 | J14: =$F14 * J$7 -> 0 | K14: 0 | L14: 0 | M14: 0 | N14: 0 | O14: 0 | P14: 0 | Q14: 0 | R14: 0 | S14: 0 | T14: =$F14 * T$7 -> 0 | U14: 0 | V14: 100000 | W14: 100000 | X14: 100000 | Y14: 100000 | Z14: 100000 | AA14: 100000 | AB14: 100000 | AC14: 100000 | AD14: =$F14 * AD$7 -> 100000 | AE14: 100000 | AF14: 100000 | AG14: 100000 | AH14: 100000 | AI14: 100000 | AJ14: 100000 | AK14: 100000 | AL14: 100000 | AM14: 100000 | AN14: =$F14 * AN$7 -> 100000 | AO14: 100000 | AP14: 100000 | AQ14: 100000 | AR14: 100000 | AS14: 100000 | AT14: 100000 | AU14: 100000 | AV14: 100000 | AW14: 100000 | AX14: =$F14 * AX$7 -> 100000 | AY14: 100000 | AZ14: 100000 | BA14: 100000 | BB14: 100000 | BC14: 100000 | BD14: 100000 | BE14: 100000 | BF14: 100000 | BG14: 100000 | BH14: =$F14 * BH$7 -> 100000 | BI14: 100000 | BJ14: 100000 | BK14: 100000 | BL14: 100000 | BM14: 100000 | BN14: 100000 | BO14: 100000 | BP14: 100000 | BQ14: 100000 | BR14: =$F14 * BR$7 -> 100000 | BS14: 100000 | BT14: 100000 | BU14: 100000 | BV14: 100000 | BW14: 100000 | BX14: 100000 | BY14: 100000 | BZ14: 100000 | CA14: 100000 | CB14: =$F14 * CB$7 -> 100000 | CC14: 100000 | CD14: 100000 | CE14: 100000 | CF14: 100000 | CG14: 100000 | CH14: 100000 | CI14: 100000 | CJ14: 100000 | CK14: 100000 | CL14: =$F14 * CL$7 -> 100000 | CM14: 100000 | CN14: 100000 | CO14: 100000 | CP14: 100000 | CQ14: 100000 | CR14: 100000 | CS14: 100000 | CT14: 100000 | CU14: 100000 | CV14: =$F14 * CV$7 -> 100000 | CW14: 100000 | CX14: 100000 | CY14: 100000 | CZ14: 100000 | DA14: 100000 | DB14: 100000 | DC14: 100000 | DD14: 100000 | DE14: 100000 | DF14: =$F14 * DF$7 -> 100000 | DG14: 100000 | DH14: 100000 | DI14: 100000 | DJ14: 100000 | DK14: 100000 | DL14: 100000 | DM14: 100000 | DN14: 100000 | DO14: 100000 | DP14: =$F14 * DP$7 -> 100000 | DQ14: 100000 | DR14: 0 | DS14: 0 | DT14: 0 | DU14: 0 | DV14: 0 | DW14: 0 | DX14: 0 | DY14: 0 | DZ14: =$F14 * DZ$7 -> 0 | EA14: 0 | EB14: 0 | EC14: 0 | ED14: 0 | EE14: 0 | EF14: 0 | EG14: 0 | EH14: 0 | EI14: 0 | EJ14: =$F14 * EJ$7 -> 0 | EK14: 0 | EL14: 0 | EM14: 0 | EN14: 0 | EO14: 0 | EP14: 0 | EQ14: 0 | ER14: 0 | ES14: 0 | ET14: =$F14 * ET$7 -> 0 | EU14: 0 | EV14: 0 | EW14: 0 | EX14: 0 | EY14: 0 | EZ14: 0 | FA14: 0 | FB14: 0 | FC14: 0
D15: Annual Yield | E15: kWh/kWp | F15: =Input!E16 -> 1707.83 | J15: 0 | K15: 0 | L15: 0 | M15: 0 | N15: 0 | O15: 0 | P15: 0 | Q15: 0 | R15: 0 | S15: 0 | T15: 0 | U15: 0 | V15: 1707.83 | W15: 1707.83 | X15: 1707.83 | Y15: 1707.83 | Z15: 1707.83 | AA15: 1707.83 | AB15: 1707.83 | AC15: 1707.83 | AD15: 1707.83 | AE15: 1707.83 | AF15: 1707.83 | AG15: 1707.83 | AH15: 1707.83 | AI15: 1707.83 | AJ15: 1707.83 | AK15: 1707.83 | AL15: 1707.83 | AM15: 1707.83 | AN15: 1707.83 | AO15: 1707.83 | AP15: 1707.83 | AQ15: 1707.83 | AR15: 1707.83 | AS15: 1707.83 | AT15: 1707.83 | AU15: 1707.83 | AV15: 1707.83 | AW15: 1707.83 | AX15: 1707.83 | AY15: 1707.83 | AZ15: 1707.83 | BA15: 1707.83 | BB15: 1707.83 | BC15: 1707.83 | BD15: 1707.83 | BE15: 1707.83 | BF15: 1707.83 | BG15: 1707.83 | BH15: 1707.83 | BI15: 1707.83 | BJ15: 1707.83 | BK15: 1707.83 | BL15: 1707.83 | BM15: 1707.83 | BN15: 1707.83 | BO15: 1707.83 | BP15: 1707.83 | BQ15: 1707.83 | BR15: 1707.83 | BS15: 1707.83 | BT15: 1707.83 | BU15: 1707.83 | BV15: 1707.83 | BW15: 1707.83 | BX15: 1707.83 | BY15: 1707.83 | BZ15: 1707.83 | CA15: 1707.83 | CB15: 1707.83 | CC15: 1707.83 | CD15: 1707.83 | CE15: 1707.83 | CF15: 1707.83 | CG15: 1707.83 | CH15: 1707.83 | CI15: 1707.83 | CJ15: 1707.83 | CK15: 1707.83 | CL15: 1707.83 | CM15: 1707.83 | CN15: 1707.83 | CO15: 1707.83 | CP15: 1707.83 | CQ15: 1707.83 | CR15: 1707.83 | CS15: 1707.83 | CT15: 1707.83 | CU15: 1707.83 | CV15: 1707.83 | CW15: 1707.83 | CX15: 1707.83 | CY15: 1707.83 | CZ15: 1707.83 | DA15: 1707.83 | DB15: 1707.83 | DC15: 1707.83 | DD15: 1707.83 | DE15: 1707.83 | DF15: 1707.83 | DG15: 1707.83 | DH15: 1707.83 | DI15: 1707.83 | DJ15: 1707.83 | DK15: 1707.83 | DL15: 1707.83 | DM15: 1707.83 | DN15: 1707.83 | DO15: 1707.83 | DP15: 1707.83 | DQ15: 1707.83 | DR15: 0 | DS15: 0 | DT15: 0 | DU15: 0 | DV15: 0 | DW15: 0 | DX15: 0 | DY15: 0 | DZ15: 0 | EA15: 0 | EB15: 0 | EC15: 0 | ED15: 0 | EE15: 0 | EF15: 0 | EG15: 0 | EH15: 0 | EI15: 0 | EJ15: 0 | EK15: 0 | EL15: 0 | EM15: 0 | EN15: 0 | EO15: 0 | EP15: 0 | EQ15: 0 | ER15: 0 | ES15: 0 | ET15: 0 | EU15: 0 | EV15: 0 | EW15: 0 | EX15: 0 | EY15: 0 | EZ15: 0 | FA15: 0 | FB15: 0 | FC15: 0
D16: Degradation | E16: % | F16: =(1+Input!E17)^(1/4)-1 -> 0 | J16: =$F$16*J7 -> 0 | K16: 0 | L16: 0 | M16: 0 | N16: 0 | O16: 0 | P16: 0 | Q16: 0 | R16: 0 | S16: 0 | T16: 0 | U16: 0 | V16: 0 | W16: 0 | X16: 0 | Y16: 0 | Z16: 0 | AA16: 0 | AB16: 0 | AC16: 0 | AD16: 0 | AE16: 0 | AF16: 0 | AG16: 0 | AH16: 0 | AI16: 0 | AJ16: 0 | AK16: 0 | AL16: 0 | AM16: 0 | AN16: 0 | AO16: 0 | AP16: =$F$16*AP7 -> 0 | AQ16: 0 | AR16: 0 | AS16: 0 | AT16: 0 | AU16: 0 | AV16: 0 | AW16: 0 | AX16: 0 | AY16: 0 | AZ16: 0 | BA16: 0 | BB16: 0 | BC16: 0 | BD16: 0 | BE16: 0 | BF16: 0 | BG16: 0 | BH16: 0 | BI16: 0 | BJ16: 0 | BK16: 0 | BL16: 0 | BM16: 0 | BN16: 0 | BO16: 0 | BP16: 0 | BQ16: 0 | BR16: 0 | BS16: 0 | BT16: 0 | BU16: 0 | BV16: =$F$16*BV7 -> 0 | BW16: 0 | BX16: 0 | BY16: 0 | BZ16: 0 | CA16: 0 | CB16: 0 | CC16: 0 | CD16: 0 | CE16: 0 | CF16: 0 | CG16: 0 | CH16: 0 | CI16: 0 | CJ16: 0 | CK16: 0 | CL16: 0 | CM16: 0 | CN16: 0 | CO16: 0 | CP16: 0 | CQ16: 0 | CR16: 0 | CS16: 0 | CT16: 0 | CU16: 0 | CV16: 0 | CW16: 0 | CX16: 0 | CY16: 0 | CZ16: 0 | DA16: 0 | DB16: =$F$16*DB7 -> 0 | DC16: 0 | DD16: 0 | DE16: 0 | DF16: 0 | DG16: 0 | DH16: 0 | DI16: 0 | DJ16: 0 | DK16: 0 | DL16: 0 | DM16: 0 | DN16: 0 | DO16: 0 | DP16: 0 | DQ16: 0 | DR16: 0 | DS16: 0 | DT16: 0 | DU16: 0 | DV16: 0 | DW16: 0 | DX16: 0 | DY16: 0 | DZ16: 0 | EA16: 0 | EB16: 0 | EC16: 0 | ED16: 0 | EE16: 0 | EF16: 0 | EG16: 0 | EH16: =$F$16*EH7 -> 0 | EI16: 0 | EJ16: 0 | EK16: 0 | EL16: 0 | EM16: 0 | EN16: 0 | EO16: 0 | EP16: 0 | EQ16: 0 | ER16: 0 | ES16: 0 | ET16: 0 | EU16: 0 | EV16: 0 | EW16: 0 | EX16: 0 | EY16: 0 | EZ16: 0 | FA16: 0 | FB16: 0 | FC16: 0
D17: Degradation Index | E17: Index | I17: 1 | J17: =I17*(1-J16) -> 1 | K17: =J17*(1-K16) -> 1 | L17: 1 | M17: 1 | N17: 1 | O17: 1 | P17: 1 | Q17: 1 | R17: 1 | S17: 1 | T17: 1 | U17: 1 | V17: 1 | W17: 1 | X17: 1 | Y17: 1 | Z17: 1 | AA17: 1 | AB17: 1 | AC17: 1 | AD17: 1 | AE17: 1 | AF17: 1 | AG17: 1 | AH17: 1 | AI17: 1 | AJ17: 1 | AK17: 1 | AL17: 1 | AM17: 1 | AN17: 1 | AO17: 1 | AP17: 1 | AQ17: 1 | AR17: 1 | AS17: 1 | AT17: 1 | AU17: 1 | AV17: 1 | AW17: 1 | AX17: 1 | AY17: 1 | AZ17: 1 | BA17: 1 | BB17: 1 | BC17: 1 | BD17: 1 | BE17: 1 | BF17: 1 | BG17: 1 | BH17: 1 | BI17: 1 | BJ17: 1 | BK17: 1 | BL17: 1 | BM17: 1 | BN17: 1 | BO17: 1 | BP17: 1 | BQ17: 1 | BR17: 1 | BS17: 1 | BT17: 1 | BU17: 1 | BV17: 1 | BW17: =BV17*(1-BW16) -> 1 | BX17: 1 | BY17: 1 | BZ17: 1 | CA17: 1 | CB17: 1 | CC17: 1 | CD17: 1 | CE17: 1 | CF17: 1 | CG17: 1 | CH17: 1 | CI17: 1 | CJ17: 1 | CK17: 1 | CL17: 1 | CM17: 1 | CN17: 1 | CO17: 1 | CP17: 1 | CQ17: 1 | CR17: 1 | CS17: 1 | CT17: 1 | CU17: 1 | CV17: 1 | CW17: 1 | CX17: 1 | CY17: 1 | CZ17: 1 | DA17: 1 | DB17: 1 | DC17: 1 | DD17: 1 | DE17: 1 | DF17: 1 | DG17: 1 | DH17: 1 | DI17: 1 | DJ17: 1 | DK17: 1 | DL17: 1 | DM17: 1 | DN17: 1 | DO17: 1 | DP17: 1 | DQ17: 1 | DR17: 1 | DS17: 1 | DT17: 1 | DU17: 1 | DV17: 1 | DW17: 1 | DX17: 1 | DY17: 1 | DZ17: 1 | EA17: 1 | EB17: 1 | EC17: 1 | ED17: 1 | EE17: 1 | EF17: 1 | EG17: 1 | EH17: 1 | EI17: =EH17*(1-EI16) -> 1 | EJ17: 1 | EK17: 1 | EL17: 1 | EM17: 1 | EN17: 1 | EO17: 1 | EP17: 1 | EQ17: 1 | ER17: 1 | ES17: 1 | ET17: 1 | EU17: 1 | EV17: 1 | EW17: 1 | EX17: 1 | EY17: 1 | EZ17: 1 | FA17: 1 | FB17: 1 | FC17: 1
D18: Annual Generation | E18: kWh p.a. | J18: =J14 * J15*J17 -> 0 | K18: 0 | L18: 0 | M18: 0 | N18: 0 | O18: 0 | P18: 0 | Q18: 0 | R18: 0 | S18: 0 | T18: 0 | U18: 0 | V18: 170783000 | W18: 170783000 | X18: 170783000 | Y18: 170783000 | Z18: 170783000 | AA18: 170783000 | AB18: 170783000 | AC18: 170783000 | AD18: 170783000 | AE18: 170783000 | AF18: 170783000 | AG18: 170783000 | AH18: 170783000 | AI18: 170783000 | AJ18: 170783000 | AK18: 170783000 | AL18: 170783000 | AM18: 170783000 | AN18: 170783000 | AO18: 170783000 | AP18: =AP14 * AP15*AP17 -> 170783000 | AQ18: 170783000 | AR18: 170783000 | AS18: 170783000 | AT18: 170783000 | AU18: 170783000 | AV18: 170783000 | AW18: 170783000 | AX18: 170783000 | AY18: 170783000 | AZ18: 170783000 | BA18: 170783000 | BB18: 170783000 | BC18: 170783000 | BD18: 170783000 | BE18: 170783000 | BF18: 170783000 | BG18: 170783000 | BH18: 170783000 | BI18: 170783000 | BJ18: 170783000 | BK18: 170783000 | BL18: 170783000 | BM18: 170783000 | BN18: 170783000 | BO18: 170783000 | BP18: 170783000 | BQ18: 170783000 | BR18: 170783000 | BS18: 170783000 | BT18: 170783000 | BU18: 170783000 | BV18: =BV14 * BV15*BV17 -> 170783000 | BW18: 170783000 | BX18: 170783000 | BY18: 170783000 | BZ18: 170783000 | CA18: 170783000 | CB18: 170783000 | CC18: 170783000 | CD18: 170783000 | CE18: 170783000 | CF18: 170783000 | CG18: 170783000 | CH18: 170783000 | CI18: 170783000 | CJ18: 170783000 | CK18: 170783000 | CL18: 170783000 | CM18: 170783000 | CN18: 170783000 | CO18: 170783000 | CP18: 170783000 | CQ18: 170783000 | CR18: 170783000 | CS18: 170783000 | CT18: 170783000 | CU18: 170783000 | CV18: 170783000 | CW18: 170783000 | CX18: 170783000 | CY18: 170783000 | CZ18: 170783000 | DA18: 170783000 | DB18: =DB14 * DB15*DB17 -> 170783000 | DC18: 170783000 | DD18: 170783000 | DE18: 170783000 | DF18: 170783000 | DG18: 170783000 | DH18: 170783000 | DI18: 170783000 | DJ18: 170783000 | DK18: 170783000 | DL18: 170783000 | DM18: 170783000 | DN18: 170783000 | DO18: 170783000 | DP18: 170783000 | DQ18: 170783000 | DR18: 0 | DS18: 0 | DT18: 0 | DU18: 0 | DV18: 0 | DW18: 0 | DX18: 0 | DY18: 0 | DZ18: 0 | EA18: 0 | EB18: 0 | EC18: 0 | ED18: 0 | EE18: 0 | EF18: 0 | EG18: 0 | EH18: =EH14 * EH15*EH17 -> 0 | EI18: 0 | EJ18: 0 | EK18: 0 | EL18: 0 | EM18: 0 | EN18: 0 | EO18: 0 | EP18: 0 | EQ18: 0 | ER18: 0 | ES18: 0 | ET18: 0 | EU18: 0 | EV18: 0 | EW18: 0 | EX18: 0 | EY18: 0 | EZ18: 0 | FA18: 0 | FB18: 0 | FC18: 0
D19: Seasonality Factor | E19: % | J19: =LOOKUP( J$11, Production!25:25, Production!26:26) -> 0 | K19: =LOOKUP( K$11, Production!25:25, Production!26:26) -> 0 | L19: =LOOKUP( L$11, Production!25:25, Production!26:26) -> 0 | M19: =LOOKUP( M$11, Production!25:25, Production!26:26) -> 0 | N19: =LOOKUP( N$11, Production!25:25, Production!26:26) -> 0 | O19: =LOOKUP( O$11, Production!25:25, Production!26:26) -> 0 | P19: =LOOKUP( P$11, Production!25:25, Production!26:26) -> 0 | Q19: =LOOKUP( Q$11, Production!25:25, Production!26:26) -> 0 | R19: =LOOKUP( R$11, Production!25:25, Production!26:26) -> 0 | S19: =LOOKUP( S$11, Production!25:25, Production!26:26) -> 0 | T19: =LOOKUP( T$11, Production!25:25, Production!26:26) -> 0 | U19: =LOOKUP( U$11, Production!25:25, Production!26:26) -> 0 | V19: =LOOKUP( V$11, Production!25:25, Production!26:26) -> 0.1893440799 | W19: =LOOKUP( W$11, Production!25:25, Production!26:26) -> 0.313763299 | X19: =LOOKUP( X$11, Production!25:25, Production!26:26) -> 0.318105798 | Y19: =LOOKUP( Y$11, Production!25:25, Production!26:26) -> 0.178786823 | Z19: =LOOKUP( Z$11, Production!25:25, Production!26:26) -> 0.1893440799 | AA19: =LOOKUP( AA$11, Production!25:25, Production!26:26) -> 0.313763299 | AB19: =LOOKUP( AB$11, Production!25:25, Production!26:26) -> 0.318105798 | AC19: =LOOKUP( AC$11, Production!25:25, Production!26:26) -> 0.178786823 | AD19: =LOOKUP( AD$11, Production!25:25, Production!26:26) -> 0.1893440799 | AE19: =LOOKUP( AE$11, Production!25:25, Production!26:26) -> 0.313763299 | AF19: =LOOKUP( AF$11, Production!25:25, Production!26:26) -> 0.318105798 | AG19: =LOOKUP( AG$11, Production!25:25, Production!26:26) -> 0.178786823 | AH19: =LOOKUP( AH$11, Production!25:25, Production!26:26) -> 0.1893440799 | AI19: =LOOKUP( AI$11, Production!25:25, Production!26:26) -> 0.313763299 | AJ19: =LOOKUP( AJ$11, Production!25:25, Production!26:26) -> 0.318105798 | AK19: =LOOKUP( AK$11, Production!25:25, Production!26:26) -> 0.178786823 | AL19: =LOOKUP( AL$11, Production!25:25, Production!26:26) -> 0.1893440799 | AM19: =LOOKUP( AM$11, Production!25:25, Production!26:26) -> 0.313763299 | AN19: =LOOKUP( AN$11, Production!25:25, Production!26:26) -> 0.318105798 | AO19: =LOOKUP( AO$11, Production!25:25, Production!26:26) -> 0.178786823 | AP19: =LOOKUP( AP$11, Production!25:25, Production!26:26) -> 0.1893440799 | AQ19: =LOOKUP( AQ$11, Production!25:25, Production!26:26) -> 0.313763299 | AR19: =LOOKUP( AR$11, Production!25:25, Production!26:26) -> 0.318105798 | AS19: =LOOKUP( AS$11, Production!25:25, Production!26:26) -> 0.178786823 | AT19: =LOOKUP( AT$11, Production!25:25, Production!26:26) -> 0.1893440799 | AU19: =LOOKUP( AU$11, Production!25:25, Production!26:26) -> 0.313763299 | AV19: =LOOKUP( AV$11, Production!25:25, Production!26:26) -> 0.318105798 | AW19: =LOOKUP( AW$11, Production!25:25, Production!26:26) -> 0.178786823 | AX19: =LOOKUP( AX$11, Production!25:25, Production!26:26) -> 0.1893440799 | AY19: =LOOKUP( AY$11, Production!25:25, Production!26:26) -> 0.313763299 | AZ19: =LOOKUP( AZ$11, Production!25:25, Production!26:26) -> 0.318105798 | BA19: =LOOKUP( BA$11, Production!25:25, Production!26:26) -> 0.178786823 | BB19: =LOOKUP( BB$11, Production!25:25, Production!26:26) -> 0.1893440799 | BC19: =LOOKUP( BC$11, Production!25:25, Production!26:26) -> 0.313763299 | BD19: =LOOKUP( BD$11, Production!25:25, Production!26:26) -> 0.318105798 | BE19: =LOOKUP( BE$11, Production!25:25, Production!26:26) -> 0.178786823 | BF19: =LOOKUP( BF$11, Production!25:25, Production!26:26) -> 0.1893440799 | BG19: =LOOKUP( BG$11, Production!25:25, Production!26:26) -> 0.313763299 | BH19: =LOOKUP( BH$11, Production!25:25, Production!26:26) -> 0.318105798 | BI19: =LOOKUP( BI$11, Production!25:25, Production!26:26) -> 0.178786823 | BJ19: =LOOKUP( BJ$11, Production!25:25, Production!26:26) -> 0.1893440799 | BK19: =LOOKUP( BK$11, Production!25:25, Production!26:26) -> 0.313763299 | BL19: =LOOKUP( BL$11, Production!25:25, Production!26:26) -> 0.318105798 | BM19: =LOOKUP( BM$11, Production!25:25, Production!26:26) -> 0.178786823 | BN19: =LOOKUP( BN$11, Production!25:25, Production!26:26) -> 0.1893440799 | BO19: =LOOKUP( BO$11, Production!25:25, Production!26:26) -> 0.313763299 | BP19: =LOOKUP( BP$11, Production!25:25, Production!26:26) -> 0.318105798 | BQ19: =LOOKUP( BQ$11, Production!25:25, Production!26:26) -> 0.178786823 | BR19: =LOOKUP( BR$11, Production!25:25, Production!26:26) -> 0.1893440799 | BS19: =LOOKUP( BS$11, Production!25:25, Production!26:26) -> 0.313763299 | BT19: =LOOKUP( BT$11, Production!25:25, Production!26:26) -> 0.318105798 | BU19: =LOOKUP( BU$11, Production!25:25, Production!26:26) -> 0.178786823 | BV19: =LOOKUP( BV$11, Production!25:25, Production!26:26) -> 0.1893440799 | BW19: =LOOKUP( BW$11, Production!25:25, Production!26:26) -> 0.313763299 | BX19: =LOOKUP( BX$11, Production!25:25, Production!26:26) -> 0.318105798 | BY19: =LOOKUP( BY$11, Production!25:25, Production!26:26) -> 0.178786823 | BZ19: =LOOKUP( BZ$11, Production!25:25, Production!26:26) -> 0.1893440799 | CA19: =LOOKUP( CA$11, Production!25:25, Production!26:26) -> 0.313763299 | CB19: =LOOKUP( CB$11, Production!25:25, Production!26:26) -> 0.318105798 | CC19: =LOOKUP( CC$11, Production!25:25, Production!26:26) -> 0.178786823 | CD19: =LOOKUP( CD$11, Production!25:25, Production!26:26) -> 0.1893440799 | CE19: =LOOKUP( CE$11, Production!25:25, Production!26:26) -> 0.313763299 | CF19: =LOOKUP( CF$11, Production!25:25, Production!26:26) -> 0.318105798 | CG19: =LOOKUP( CG$11, Production!25:25, Production!26:26) -> 0.178786823 | CH19: =LOOKUP( CH$11, Production!25:25, Production!26:26) -> 0.1893440799 | CI19: =LOOKUP( CI$11, Production!25:25, Production!26:26) -> 0.313763299 | CJ19: =LOOKUP( CJ$11, Production!25:25, Production!26:26) -> 0.318105798 | CK19: =LOOKUP( CK$11, Production!25:25, Production!26:26) -> 0.178786823 | CL19: =LOOKUP( CL$11, Production!25:25, Production!26:26) -> 0.1893440799 | CM19: =LOOKUP( CM$11, Production!25:25, Production!26:26) -> 0.313763299 | CN19: =LOOKUP( CN$11, Production!25:25, Production!26:26) -> 0.318105798 | CO19: =LOOKUP( CO$11, Production!25:25, Production!26:26) -> 0.178786823 | CP19: =LOOKUP( CP$11, Production!25:25, Production!26:26) -> 0.1893440799 | CQ19: =LOOKUP( CQ$11, Production!25:25, Production!26:26) -> 0.313763299 | CR19: =LOOKUP( CR$11, Production!25:25, Production!26:26) -> 0.318105798 | CS19: =LOOKUP( CS$11, Production!25:25, Production!26:26) -> 0.178786823 | CT19: =LOOKUP( CT$11, Production!25:25, Production!26:26) -> 0.1893440799 | CU19: =LOOKUP( CU$11, Production!25:25, Production!26:26) -> 0.313763299 | CV19: =LOOKUP( CV$11, Production!25:25, Production!26:26) -> 0.318105798 | CW19: =LOOKUP( CW$11, Production!25:25, Production!26:26) -> 0.178786823 | CX19: =LOOKUP( CX$11, Production!25:25, Production!26:26) -> 0.1893440799 | CY19: =LOOKUP( CY$11, Production!25:25, Production!26:26) -> 0.313763299 | CZ19: =LOOKUP( CZ$11, Production!25:25, Production!26:26) -> 0.318105798 | DA19: =LOOKUP( DA$11, Production!25:25, Production!26:26) -> 0.178786823 | DB19: =LOOKUP( DB$11, Production!25:25, Production!26:26) -> 0.1893440799 | DC19: =LOOKUP( DC$11, Production!25:25, Production!26:26) -> 0.313763299 | DD19: =LOOKUP( DD$11, Production!25:25, Production!26:26) -> 0.318105798 | DE19: =LOOKUP( DE$11, Production!25:25, Production!26:26) -> 0.178786823 | DF19: =LOOKUP( DF$11, Production!25:25, Production!26:26) -> 0.1893440799 | DG19: =LOOKUP( DG$11, Production!25:25, Production!26:26) -> 0.313763299 | DH19: =LOOKUP( DH$11, Production!25:25, Production!26:26) -> 0.318105798 | DI19: =LOOKUP( DI$11, Production!25:25, Production!26:26) -> 0.178786823 | DJ19: =LOOKUP( DJ$11, Production!25:25, Production!26:26) -> 0.1893440799 | DK19: =LOOKUP( DK$11, Production!25:25, Production!26:26) -> 0.313763299 | DL19: =LOOKUP( DL$11, Production!25:25, Production!26:26) -> 0.318105798 | DM19: =LOOKUP( DM$11, Production!25:25, Production!26:26) -> 0.178786823 | DN19: =LOOKUP( DN$11, Production!25:25, Production!26:26) -> 0.1893440799 | DO19: =LOOKUP( DO$11, Production!25:25, Production!26:26) -> 0.313763299 | DP19: =LOOKUP( DP$11, Production!25:25, Production!26:26) -> 0.318105798 | DQ19: =LOOKUP( DQ$11, Production!25:25, Production!26:26) -> 0.178786823 | DR19: =LOOKUP( DR$11, Production!25:25, Production!26:26) -> 0 | DS19: =LOOKUP( DS$11, Production!25:25, Production!26:26) -> 0 | DT19: =LOOKUP( DT$11, Production!25:25, Production!26:26) -> 0 | DU19: =LOOKUP( DU$11, Production!25:25, Production!26:26) -> 0 | DV19: =LOOKUP( DV$11, Production!25:25, Production!26:26) -> 0 | DW19: =LOOKUP( DW$11, Production!25:25, Production!26:26) -> 0 | DX19: =LOOKUP( DX$11, Production!25:25, Production!26:26) -> 0 | DY19: =LOOKUP( DY$11, Production!25:25, Production!26:26) -> 0 | DZ19: =LOOKUP( DZ$11, Production!25:25, Production!26:26) -> 0 | EA19: =LOOKUP( EA$11, Production!25:25, Production!26:26) -> 0 | EB19: =LOOKUP( EB$11, Production!25:25, Production!26:26) -> 0 | EC19: =LOOKUP( EC$11, Production!25:25, Production!26:26) -> 0 | ED19: =LOOKUP( ED$11, Production!25:25, Production!26:26) -> 0 | EE19: =LOOKUP( EE$11, Production!25:25, Production!26:26) -> 0 | EF19: =LOOKUP( EF$11, Production!25:25, Production!26:26) -> 0 | EG19: =LOOKUP( EG$11, Production!25:25, Production!26:26) -> 0 | EH19: =LOOKUP( EH$11, Production!25:25, Production!26:26) -> 0 | EI19: =LOOKUP( EI$11, Production!25:25, Production!26:26) -> 0 | EJ19: =LOOKUP( EJ$11, Production!25:25, Production!26:26) -> 0 | EK19: =LOOKUP( EK$11, Production!25:25, Production!26:26) -> 0 | EL19: =LOOKUP( EL$11, Production!25:25, Production!26:26) -> 0 | EM19: =LOOKUP( EM$11, Production!25:25, Production!26:26) -> 0 | EN19: =LOOKUP( EN$11, Production!25:25, Production!26:26) -> 0 | EO19: =LOOKUP( EO$11, Production!25:25, Production!26:26) -> 0 | EP19: =LOOKUP( EP$11, Production!25:25, Production!26:26) -> 0 | EQ19: =LOOKUP( EQ$11, Production!25:25, Production!26:26) -> 0 | ER19: =LOOKUP( ER$11, Production!25:25, Production!26:26) -> 0 | ES19: =LOOKUP( ES$11, Production!25:25, Production!26:26) -> 0 | ET19: =LOOKUP( ET$11, Production!25:25, Production!26:26) -> 0 | EU19: =LOOKUP( EU$11, Production!25:25, Production!26:26) -> 0 | EV19: =LOOKUP( EV$11, Production!25:25, Production!26:26) -> 0 | EW19: =LOOKUP( EW$11, Production!25:25, Production!26:26) -> 0 | EX19: =LOOKUP( EX$11, Production!25:25, Production!26:26) -> 0 | EY19: =LOOKUP( EY$11, Production!25:25, Production!26:26) -> 0 | EZ19: =LOOKUP( EZ$11, Production!25:25, Production!26:26) -> 0 | FA19: =LOOKUP( FA$11, Production!25:25, Production!26:26) -> 0 | FB19: =LOOKUP( FB$11, Production!25:25, Production!26:26) -> 0 | FC19: =LOOKUP( FC$11, Production!25:25, Production!26:26) -> 0
D20: Seasonal Generation | E20: kWh p.p. | J20: =J18 * J19 -> 0 | K20: 0 | L20: 0 | M20: 0 | N20: 0 | O20: 0 | P20: 0 | Q20: 0 | R20: 0 | S20: 0 | T20: 0 | U20: 0 | V20: 32336750 | W20: 53585437.5 | X20: 54327062.5 | Y20: 30533750 | Z20: 32336750 | AA20: 53585437.5 | AB20: 54327062.5 | AC20: 30533750 | AD20: 32336750 | AE20: 53585437.5 | AF20: 54327062.5 | AG20: 30533750 | AH20: 32336750 | AI20: 53585437.5 | AJ20: 54327062.5 | AK20: 30533750 | AL20: 32336750 | AM20: 53585437.5 | AN20: 54327062.5 | AO20: 30533750 | AP20: =AP18 * AP19 -> 32336750 | AQ20: 53585437.5 | AR20: 54327062.5 | AS20: 30533750 | AT20: 32336750 | AU20: 53585437.5 | AV20: 54327062.5 | AW20: 30533750 | AX20: 32336750 | AY20: 53585437.5 | AZ20: 54327062.5 | BA20: 30533750 | BB20: 32336750 | BC20: 53585437.5 | BD20: 54327062.5 | BE20: 30533750 | BF20: 32336750 | BG20: 53585437.5 | BH20: 54327062.5 | BI20: 30533750 | BJ20: 32336750 | BK20: 53585437.5 | BL20: 54327062.5 | BM20: 30533750 | BN20: 32336750 | BO20: 53585437.5 | BP20: 54327062.5 | BQ20: 30533750 | BR20: 32336750 | BS20: 53585437.5 | BT20: 54327062.5 | BU20: 30533750 | BV20: =BV18 * BV19 -> 32336750 | BW20: 53585437.5 | BX20: 54327062.5 | BY20: 30533750 | BZ20: 32336750 | CA20: 53585437.5 | CB20: 54327062.5 | CC20: 30533750 | CD20: 32336750 | CE20: 53585437.5 | CF20: 54327062.5 | CG20: 30533750 | CH20: 32336750 | CI20: 53585437.5 | CJ20: 54327062.5 | CK20: 30533750 | CL20: 32336750 | CM20: 53585437.5 | CN20: 54327062.5 | CO20: 30533750 | CP20: 32336750 | CQ20: 53585437.5 | CR20: 54327062.5 | CS20: 30533750 | CT20: 32336750 | CU20: 53585437.5 | CV20: 54327062.5 | CW20: 30533750 | CX20: 32336750 | CY20: 53585437.5 | CZ20: 54327062.5 | DA20: 30533750 | DB20: =DB18 * DB19 -> 32336750 | DC20: 53585437.5 | DD20: 54327062.5 | DE20: 30533750 | DF20: 32336750 | DG20: 53585437.5 | DH20: 54327062.5 | DI20: 30533750 | DJ20: 32336750 | DK20: 53585437.5 | DL20: 54327062.5 | DM20: 30533750 | DN20: 32336750 | DO20: 53585437.5 | DP20: 54327062.5 | DQ20: 30533750 | DR20: 0 | DS20: 0 | DT20: 0 | DU20: 0 | DV20: 0 | DW20: 0 | DX20: 0 | DY20: 0 | DZ20: 0 | EA20: 0 | EB20: 0 | EC20: 0 | ED20: 0 | EE20: 0 | EF20: 0 | EG20: 0 | EH20: =EH18 * EH19 -> 0 | EI20: 0 | EJ20: 0 | EK20: 0 | EL20: 0 | EM20: 0 | EN20: 0 | EO20: 0 | EP20: 0 | EQ20: 0 | ER20: 0 | ES20: 0 | ET20: 0 | EU20: 0 | EV20: 0 | EW20: 0 | EX20: 0 | EY20: 0 | EZ20: 0 | FA20: 0 | FB20: 0 | FC20: 0
C22: Capital Expenditures
D23: Total Project Cost | E23: USD | F23: =Input!E20 -> 800 | G23: =F14 * F23 -> 80000000 | J23: =$G$23 * J$3 -> 80000000 | K23: 80000000 | L23: 80000000 | M23: 80000000 | N23: 80000000 | O23: 80000000 | P23: 80000000 | Q23: 80000000 | R23: 80000000 | S23: 80000000 | T23: 80000000 | U23: 80000000 | V23: 0 | W23: 0 | X23: 0 | Y23: 0 | Z23: 0 | AA23: 0 | AB23: 0 | AC23: 0 | AD23: 0 | AE23: 0 | AF23: 0 | AG23: 0 | AH23: 0 | AI23: 0 | AJ23: 0 | AK23: 0 | AL23: 0 | AM23: 0 | AN23: 0 | AO23: 0 | AP23: =$G$23 * AP$3 -> 0 | AQ23: 0 | AR23: 0 | AS23: 0 | AT23: 0 | AU23: 0 | AV23: 0 | AW23: 0 | AX23: 0 | AY23: 0 | AZ23: 0 | BA23: 0 | BB23: 0 | BC23: 0 | BD23: 0 | BE23: 0 | BF23: 0 | BG23: 0 | BH23: 0 | BI23: 0 | BJ23: 0 | BK23: 0 | BL23: 0 | BM23: 0 | BN23: 0 | BO23: 0 | BP23: 0 | BQ23: 0 | BR23: 0 | BS23: 0 | BT23: 0 | BU23: 0 | BV23: =$G$23 * BV$3 -> 0 | BW23: 0 | BX23: 0 | BY23: 0 | BZ23: 0 | CA23: 0 | CB23: 0 | CC23: 0 | CD23: 0 | CE23: 0 | CF23: 0 | CG23: 0 | CH23: 0 | CI23: 0 | CJ23: 0 | CK23: 0 | CL23: 0 | CM23: 0 | CN23: 0 | CO23: 0 | CP23: 0 | CQ23: 0 | CR23: 0 | CS23: 0 | CT23: 0 | CU23: 0 | CV23: 0 | CW23: 0 | CX23: 0 | CY23: 0 | CZ23: 0 | DA23: 0 | DB23: =$G$23 * DB$3 -> 0 | DC23: 0 | DD23: 0 | DE23: 0 | DF23: 0 | DG23: 0 | DH23: 0 | DI23: 0 | DJ23: 0 | DK23: 0 | DL23: 0 | DM23: 0 | DN23: 0 | DO23: 0 | DP23: 0 | DQ23: 0 | DR23: 0 | DS23: 0 | DT23: 0 | DU23: 0 | DV23: 0 | DW23: 0 | DX23: 0 | DY23: 0 | DZ23: 0 | EA23: 0 | EB23: 0 | EC23: 0 | ED23: 0 | EE23: 0 | EF23: 0 | EG23: 0 | EH23: =$G$23 * EH$3 -> 0 | EI23: 0 | EJ23: 0 | EK23: 0 | EL23: 0 | EM23: 0 | EN23: 0 | EO23: 0 | EP23: 0 | EQ23: 0 | ER23: 0 | ES23: 0 | ET23: 0 | EU23: 0 | EV23: 0 | EW23: 0 | EX23: 0 | EY23: 0 | EZ23: 0 | FA23: 0 | FB23: 0 | FC23: 0
D24: S-Curve | E24: % | F24: =1 / $F$3 -> 0.08333333333 | J24: =$F24 * J3 -> 0.08333333333 | K24: 0.08333333333 | L24: 0.08333333333 | M24: 0.08333333333 | N24: 0.08333333333 | O24: 0.08333333333 | P24: 0.08333333333 | Q24: 0.08333333333 | R24: 0.08333333333 | S24: 0.08333333333 | T24: 0.08333333333 | U24: 0.08333333333 | V24: 0 | W24: 0 | X24: 0 | Y24: 0 | Z24: 0 | AA24: 0 | AB24: 0 | AC24: 0 | AD24: 0 | AE24: 0 | AF24: 0 | AG24: 0 | AH24: 0 | AI24: 0 | AJ24: 0 | AK24: 0 | AL24: 0 | AM24: 0 | AN24: 0 | AO24: 0 | AP24: =$F24 * AP3 -> 0 | AQ24: 0 | AR24: 0 | AS24: 0 | AT24: 0 | AU24: 0 | AV24: 0 | AW24: 0 | AX24: 0 | AY24: 0 | AZ24: 0 | BA24: 0 | BB24: 0 | BC24: 0 | BD24: 0 | BE24: 0 | BF24: 0 | BG24: 0 | BH24: 0 | BI24: 0 | BJ24: 0 | BK24: 0 | BL24: 0 | BM24: 0 | BN24: 0 | BO24: 0 | BP24: 0 | BQ24: 0 | BR24: 0 | BS24: 0 | BT24: 0 | BU24: 0 | BV24: =$F24 * BV3 -> 0 | BW24: 0 | BX24: 0 | BY24: 0 | BZ24: 0 | CA24: 0 | CB24: 0 | CC24: 0 | CD24: 0 | CE24: 0 | CF24: 0 | CG24: 0 | CH24: 0 | CI24: 0 | CJ24: 0 | CK24: 0 | CL24: 0 | CM24: 0 | CN24: 0 | CO24: 0 | CP24: 0 | CQ24: 0 | CR24: 0 | CS24: 0 | CT24: 0 | CU24: 0 | CV24: 0 | CW24: 0 | CX24: 0 | CY24: 0 | CZ24: 0 | DA24: 0 | DB24: =$F24 * DB3 -> 0 | DC24: 0 | DD24: 0 | DE24: 0 | DF24: 0 | DG24: 0 | DH24: 0 | DI24: 0 | DJ24: 0 | DK24: 0 | DL24: 0 | DM24: 0 | DN24: 0 | DO24: 0 | DP24: 0 | DQ24: 0 | DR24: 0 | DS24: 0 | DT24: 0 | DU24: 0 | DV24: 0 | DW24: 0 | DX24: 0 | DY24: 0 | DZ24: 0 | EA24: 0 | EB24: 0 | EC24: 0 | ED24: 0 | EE24: 0 | EF24: 0 | EG24: 0 | EH24: =$F24 * EH3 -> 0 | EI24: 0 | EJ24: 0 | EK24: 0 | EL24: 0 | EM24: 0 | EN24: 0 | EO24: 0 | EP24: 0 | EQ24: 0 | ER24: 0 | ES24: 0 | ET24: 0 | EU24: 0 | EV24: 0 | EW24: 0 | EX24: 0 | EY24: 0 | EZ24: 0 | FA24: 0 | FB24: 0 | FC24: 0
D25: Capital Expenditues | E25: USD | H25: =SUM(J25:FC25) -> 80000000 | J25: =J23 * J24 -> 6666666.667 | K25: 6666666.667 | L25: 6666666.667 | M25: 6666666.667 | N25: 6666666.667 | O25: 6666666.667 | P25: 6666666.667 | Q25: 6666666.667 | R25: 6666666.667 | S25: 6666666.667 | T25: 6666666.667 | U25: 6666666.667 | V25: 0 | W25: 0 | X25: 0 | Y25: 0 | Z25: 0 | AA25: 0 | AB25: 0 | AC25: 0 | AD25: 0 | AE25: 0 | AF25: 0 | AG25: 0 | AH25: 0 | AI25: 0 | AJ25: 0 | AK25: 0 | AL25: 0 | AM25: 0 | AN25: 0 | AO25: 0 | AP25: =AP23 * AP24 -> 0 | AQ25: 0 | AR25: 0 | AS25: 0 | AT25: 0 | AU25: 0 | AV25: 0 | AW25: 0 | AX25: 0 | AY25: 0 | AZ25: 0 | BA25: 0 | BB25: 0 | BC25: 0 | BD25: 0 | BE25: 0 | BF25: 0 | BG25: 0 | BH25: 0 | BI25: 0 | BJ25: 0 | BK25: 0 | BL25: 0 | BM25: 0 | BN25: 0 | BO25: 0 | BP25: 0 | BQ25: 0 | BR25: 0 | BS25: 0 | BT25: 0 | BU25: 0 | BV25: =BV23 * BV24 -> 0 | BW25: 0 | BX25: 0 | BY25: 0 | BZ25: 0 | CA25: 0 | CB25: 0 | CC25: 0 | CD25: 0 | CE25: 0 | CF25: 0 | CG25: 0 | CH25: 0 | CI25: 0 | CJ25: 0 | CK25: 0 | CL25: 0 | CM25: 0 | CN25: 0 | CO25: 0 | CP25: 0 | CQ25: 0 | CR25: 0 | CS25: 0 | CT25: 0 | CU25: 0 | CV25: 0 | CW25: 0 | CX25: 0 | CY25: 0 | CZ25: 0 | DA25: 0 | DB25: =DB23 * DB24 -> 0 | DC25: 0 | DD25: 0 | DE25: 0 | DF25: 0 | DG25: 0 | DH25: 0 | DI25: 0 | DJ25: 0 | DK25: 0 | DL25: 0 | DM25: 0 | DN25: 0 | DO25: 0 | DP25: 0 | DQ25: 0 | DR25: 0 | DS25: 0 | DT25: 0 | DU25: 0 | DV25: 0 | DW25: 0 | DX25: 0 | DY25: 0 | DZ25: 0 | EA25: 0 | EB25: 0 | EC25: 0 | ED25: 0 | EE25: 0 | EF25: 0 | EG25: 0 | EH25: =EH23 * EH24 -> 0 | EI25: 0 | EJ25: 0 | EK25: 0 | EL25: 0 | EM25: 0 | EN25: 0 | EO25: 0 | EP25: 0 | EQ25: 0 | ER25: 0 | ES25: 0 | ET25: 0 | EU25: 0 | EV25: 0 | EW25: 0 | EX25: 0 | EY25: 0 | EZ25: 0 | FA25: 0 | FB25: 0 | FC25: 0
C27: Revenues
D28: Base PPA Price | E28: USD/kWh | F28: =Input!E21 -> 0.045 | J28: =$F$28 -> 0.045 | K28: 0.045 | L28: 0.045 | M28: 0.045 | N28: 0.045 | O28: 0.045 | P28: 0.045 | Q28: 0.045 | R28: 0.045 | S28: 0.045 | T28: 0.045 | U28: 0.045 | V28: 0.045 | W28: 0.045 | X28: 0.045 | Y28: 0.045 | Z28: 0.045 | AA28: 0.045 | AB28: 0.045 | AC28: 0.045 | AD28: 0.045 | AE28: 0.045 | AF28: 0.045 | AG28: 0.045 | AH28: 0.045 | AI28: 0.045 | AJ28: 0.045 | AK28: 0.045 | AL28: 0.045 | AM28: 0.045 | AN28: 0.045 | AO28: 0.045 | AP28: =$F$28 -> 0.045 | AQ28: 0.045 | AR28: 0.045 | AS28: 0.045 | AT28: 0.045 | AU28: 0.045 | AV28: 0.045 | AW28: 0.045 | AX28: 0.045 | AY28: 0.045 | AZ28: 0.045 | BA28: 0.045 | BB28: 0.045 | BC28: 0.045 | BD28: 0.045 | BE28: 0.045 | BF28: 0.045 | BG28: 0.045 | BH28: 0.045 | BI28: 0.045 | BJ28: 0.045 | BK28: 0.045 | BL28: 0.045 | BM28: 0.045 | BN28: 0.045 | BO28: 0.045 | BP28: 0.045 | BQ28: 0.045 | BR28: 0.045 | BS28: 0.045 | BT28: 0.045 | BU28: 0.045 | BV28: =$F$28 -> 0.045 | BW28: 0.045 | BX28: 0.045 | BY28: 0.045 | BZ28: 0.045 | CA28: 0.045 | CB28: 0.045 | CC28: 0.045 | CD28: 0.045 | CE28: 0.045 | CF28: 0.045 | CG28: 0.045 | CH28: 0.045 | CI28: 0.045 | CJ28: 0.045 | CK28: 0.045 | CL28: 0.045 | CM28: 0.045 | CN28: 0.045 | CO28: 0.045 | CP28: 0.045 | CQ28: 0.045 | CR28: 0.045 | CS28: 0.045 | CT28: 0.045 | CU28: 0.045 | CV28: 0.045 | CW28: 0.045 | CX28: 0.045 | CY28: 0.045 | CZ28: 0.045 | DA28: 0.045 | DB28: =$F$28 -> 0.045 | DC28: 0.045 | DD28: 0.045 | DE28: 0.045 | DF28: 0.045 | DG28: 0.045 | DH28: 0.045 | DI28: 0.045 | DJ28: 0.045 | DK28: 0.045 | DL28: 0.045 | DM28: 0.045 | DN28: 0.045 | DO28: 0.045 | DP28: 0.045 | DQ28: 0.045 | DR28: 0.045 | DS28: 0.045 | DT28: 0.045 | DU28: 0.045 | DV28: 0.045 | DW28: 0.045 | DX28: 0.045 | DY28: 0.045 | DZ28: 0.045 | EA28: 0.045 | EB28: 0.045 | EC28: 0.045 | ED28: 0.045 | EE28: 0.045 | EF28: 0.045 | EG28: 0.045 | EH28: =$F$28 -> 0.045 | EI28: 0.045 | EJ28: 0.045 | EK28: 0.045 | EL28: 0.045 | EM28: 0.045 | EN28: 0.045 | EO28: 0.045 | EP28: 0.045 | EQ28: 0.045 | ER28: 0.045 | ES28: 0.045 | ET28: 0.045 | EU28: 0.045 | EV28: 0.045 | EW28: 0.045 | EX28: 0.045 | EY28: 0.045 | EZ28: 0.045 | FA28: 0.045 | FB28: 0.045 | FC28: 0.045
D29: Annual Inflation Rate | E29: % p.a. | F29: =Input!E22 -> 0.025 | J29: =$F$29 -> 0.025 | K29: =$F$29 -> 0.025 | L29: 0.025 | M29: 0.025 | N29: 0.025 | O29: 0.025 | P29: 0.025 | Q29: 0.025 | R29: 0.025 | S29: 0.025 | T29: 0.025 | U29: 0.025 | V29: 0.025 | W29: 0.025 | X29: 0.025 | Y29: 0.025 | Z29: 0.025 | AA29: 0.025 | AB29: 0.025 | AC29: 0.025 | AD29: 0.025 | AE29: 0.025 | AF29: 0.025 | AG29: 0.025 | AH29: 0.025 | AI29: 0.025 | AJ29: 0.025 | AK29: 0.025 | AL29: 0.025 | AM29: 0.025 | AN29: 0.025 | AO29: 0.025 | AP29: 0.025 | AQ29: 0.025 | AR29: 0.025 | AS29: 0.025 | AT29: 0.025 | AU29: 0.025 | AV29: 0.025 | AW29: 0.025 | AX29: 0.025 | AY29: 0.025 | AZ29: 0.025 | BA29: 0.025 | BB29: 0.025 | BC29: 0.025 | BD29: 0.025 | BE29: 0.025 | BF29: 0.025 | BG29: 0.025 | BH29: 0.025 | BI29: 0.025 | BJ29: 0.025 | BK29: 0.025 | BL29: 0.025 | BM29: 0.025 | BN29: 0.025 | BO29: 0.025 | BP29: 0.025 | BQ29: 0.025 | BR29: 0.025 | BS29: 0.025 | BT29: 0.025 | BU29: 0.025 | BV29: 0.025 | BW29: =$F$29 -> 0.025 | BX29: 0.025 | BY29: 0.025 | BZ29: 0.025 | CA29: 0.025 | CB29: 0.025 | CC29: 0.025 | CD29: 0.025 | CE29: 0.025 | CF29: 0.025 | CG29: 0.025 | CH29: 0.025 | CI29: 0.025 | CJ29: 0.025 | CK29: 0.025 | CL29: 0.025 | CM29: 0.025 | CN29: 0.025 | CO29: 0.025 | CP29: 0.025 | CQ29: 0.025 | CR29: 0.025 | CS29: 0.025 | CT29: 0.025 | CU29: 0.025 | CV29: 0.025 | CW29: 0.025 | CX29: 0.025 | CY29: 0.025 | CZ29: 0.025 | DA29: 0.025 | DB29: 0.025 | DC29: 0.025 | DD29: 0.025 | DE29: 0.025 | DF29: 0.025 | DG29: 0.025 | DH29: 0.025 | DI29: 0.025 | DJ29: 0.025 | DK29: 0.025 | DL29: 0.025 | DM29: 0.025 | DN29: 0.025 | DO29: 0.025 | DP29: 0.025 | DQ29: 0.025 | DR29: 0.025 | DS29: 0.025 | DT29: 0.025 | DU29: 0.025 | DV29: 0.025 | DW29: 0.025 | DX29: 0.025 | DY29: 0.025 | DZ29: 0.025 | EA29: 0.025 | EB29: 0.025 | EC29: 0.025 | ED29: 0.025 | EE29: 0.025 | EF29: 0.025 | EG29: 0.025 | EH29: 0.025 | EI29: =$F$29 -> 0.025 | EJ29: 0.025 | EK29: 0.025 | EL29: 0.025 | EM29: 0.025 | EN29: 0.025 | EO29: 0.025 | EP29: 0.025 | EQ29: 0.025 | ER29: 0.025 | ES29: 0.025 | ET29: 0.025 | EU29: 0.025 | EV29: 0.025 | EW29: 0.025 | EX29: 0.025 | EY29: 0.025 | EZ29: 0.025 | FA29: 0.025 | FB29: 0.025 | FC29: 0.025
D30: Periodic Inflation Rate | E30: % p.p. | J30: =( 1 + J29) ^ ( J4 / 12 ) - 1 -> 0.00205983627 | K30: 0.00205983627 | L30: 0.00205983627 | M30: 0.00205983627 | N30: 0.00205983627 | O30: 0.00205983627 | P30: 0.00205983627 | Q30: 0.00205983627 | R30: 0.00205983627 | S30: 0.00205983627 | T30: 0.00205983627 | U30: 0.00205983627 | V30: 0.006192246326 | W30: 0.006192246326 | X30: 0.006192246326 | Y30: 0.006192246326 | Z30: 0.006192246326 | AA30: 0.006192246326 | AB30: 0.006192246326 | AC30: 0.006192246326 | AD30: 0.006192246326 | AE30: 0.006192246326 | AF30: 0.006192246326 | AG30: 0.006192246326 | AH30: 0.006192246326 | AI30: 0.006192246326 | AJ30: 0.006192246326 | AK30: 0.006192246326 | AL30: 0.006192246326 | AM30: 0.006192246326 | AN30: 0.006192246326 | AO30: 0.006192246326 | AP30: =( 1 + AP29) ^ ( AP4 / 12 ) - 1 -> 0.006192246326 | AQ30: 0.006192246326 | AR30: 0.006192246326 | AS30: 0.006192246326 | AT30: 0.006192246326 | AU30: 0.006192246326 | AV30: 0.006192246326 | AW30: 0.006192246326 | AX30: 0.006192246326 | AY30: 0.006192246326 | AZ30: 0.006192246326 | BA30: 0.006192246326 | BB30: 0.006192246326 | BC30: 0.006192246326 | BD30: 0.006192246326 | BE30: 0.006192246326 | BF30: 0.006192246326 | BG30: 0.006192246326 | BH30: 0.006192246326 | BI30: 0.006192246326 | BJ30: 0.006192246326 | BK30: 0.006192246326 | BL30: 0.006192246326 | BM30: 0.006192246326 | BN30: 0.006192246326 | BO30: 0.006192246326 | BP30: 0.006192246326 | BQ30: 0.006192246326 | BR30: 0.006192246326 | BS30: 0.006192246326 | BT30: 0.006192246326 | BU30: 0.006192246326 | BV30: =( 1 + BV29) ^ ( BV4 / 12 ) - 1 -> 0.006192246326 | BW30: 0.006192246326 | BX30: 0.006192246326 | BY30: 0.006192246326 | BZ30: 0.006192246326 | CA30: 0.006192246326 | CB30: 0.006192246326 | CC30: 0.006192246326 | CD30: 0.006192246326 | CE30: 0.006192246326 | CF30: 0.006192246326 | CG30: 0.006192246326 | CH30: 0.006192246326 | CI30: 0.006192246326 | CJ30: 0.006192246326 | CK30: 0.006192246326 | CL30: 0.006192246326 | CM30: 0.006192246326 | CN30: 0.006192246326 | CO30: 0.006192246326 | CP30: 0.006192246326 | CQ30: 0.006192246326 | CR30: 0.006192246326 | CS30: 0.006192246326 | CT30: 0.006192246326 | CU30: 0.006192246326 | CV30: 0.006192246326 | CW30: 0.006192246326 | CX30: 0.006192246326 | CY30: 0.006192246326 | CZ30: 0.006192246326 | DA30: 0.006192246326 | DB30: =( 1 + DB29) ^ ( DB4 / 12 ) - 1 -> 0.006192246326 | DC30: 0.006192246326 | DD30: 0.006192246326 | DE30: 0.006192246326 | DF30: 0.006192246326 | DG30: 0.006192246326 | DH30: 0.006192246326 | DI30: 0.006192246326 | DJ30: 0.006192246326 | DK30: 0.006192246326 | DL30: 0.006192246326 | DM30: 0.006192246326 | DN30: 0.006192246326 | DO30: 0.006192246326 | DP30: 0.006192246326 | DQ30: 0.006192246326 | DR30: 0.006192246326 | DS30: 0.006192246326 | DT30: 0.006192246326 | DU30: 0.006192246326 | DV30: 0.006192246326 | DW30: 0.006192246326 | DX30: 0.006192246326 | DY30: 0.006192246326 | DZ30: 0.006192246326 | EA30: 0.006192246326 | EB30: 0.006192246326 | EC30: 0.006192246326 | ED30: 0.006192246326 | EE30: 0.006192246326 | EF30: 0.006192246326 | EG30: 0.006192246326 | EH30: =( 1 + EH29) ^ ( EH4 / 12 ) - 1 -> 0.006192246326 | EI30: 0.006192246326 | EJ30: 0.006192246326 | EK30: 0.006192246326 | EL30: 0.006192246326 | EM30: 0.006192246326 | EN30: 0.006192246326 | EO30: 0.006192246326 | EP30: 0.006192246326 | EQ30: 0.006192246326 | ER30: 0.006192246326 | ES30: 0.006192246326 | ET30: 0.006192246326 | EU30: 0.006192246326 | EV30: 0.006192246326 | EW30: 0.006192246326 | EX30: 0.006192246326 | EY30: 0.006192246326 | EZ30: 0.006192246326 | FA30: 0.006192246326 | FB30: 0.006192246326 | FC30: 0.006192246326
D31: Inflation Index | E31: Index | I31: 1 | J31: =I31 * ( 1 + J30 * J7) -> 1 | K31: 1 | L31: 1 | M31: 1 | N31: 1 | O31: 1 | P31: 1 | Q31: 1 | R31: 1 | S31: 1 | T31: 1 | U31: 1 | V31: 1.006192246 | W31: 1.012422837 | X31: 1.018692008 | Y31: 1.025 | Z31: 1.031347052 | AA31: 1.037733407 | AB31: 1.044159308 | AC31: 1.050625 | AD31: 1.057130729 | AE31: 1.063676743 | AF31: 1.070263291 | AG31: 1.076890625 | AH31: 1.083558997 | AI31: 1.090268661 | AJ31: 1.097019873 | AK31: 1.103812891 | AL31: 1.110647972 | AM31: 1.117525378 | AN31: 1.12444537 | AO31: 1.131408213 | AP31: =AO31 * ( 1 + AP30 * AP7) -> 1.138414171 | AQ31: 1.145463512 | AR31: 1.152556504 | AS31: 1.159693418 | AT31: 1.166874526 | AU31: 1.1741001 | AV31: 1.181370417 | AW31: 1.188685754 | AX31: 1.196046389 | AY31: 1.203452603 | AZ31: 1.210904677 | BA31: 1.218402898 | BB31: 1.225947548 | BC31: 1.233538918 | BD31: 1.241177294 | BE31: 1.24886297 | BF31: 1.256596237 | BG31: 1.264377391 | BH31: 1.272206727 | BI31: 1.280084544 | BJ31: 1.288011143 | BK31: 1.295986825 | BL31: 1.304011895 | BM31: 1.312086658 | BN31: 1.320211422 | BO31: 1.328386496 | BP31: 1.336612192 | BQ31: 1.344888824 | BR31: 1.353216707 | BS31: 1.361596158 | BT31: 1.370027497 | BU31: 1.378511045 | BV31: =BU31 * ( 1 + BV30 * BV7) -> 1.387047125 | BW31: 1.395636062 | BX31: 1.404278185 | BY31: 1.412973821 | BZ31: 1.421723303 | CA31: 1.430526964 | CB31: 1.439385139 | CC31: 1.448298166 | CD31: 1.457266385 | CE31: 1.466290138 | CF31: 1.475369768 | CG31: 1.484505621 | CH31: 1.493698045 | CI31: 1.502947391 | CJ31: 1.512254012 | CK31: 1.521618261 | CL31: 1.531040496 | CM31: 1.540521076 | CN31: 1.550060362 | CO31: 1.559658718 | CP31: 1.569316509 | CQ31: 1.579034103 | CR31: 1.588811871 | CS31: 1.598650186 | CT31: 1.608549421 | CU31: 1.618509956 | CV31: 1.628532168 | CW31: 1.63861644 | CX31: 1.648763157 | CY31: 1.658972705 | CZ31: 1.669245472 | DA31: 1.679581851 | DB31: =DA31 * ( 1 + DB30 * DB7) -> 1.689982236 | DC31: 1.700447022 | DD31: 1.710976609 | DE31: 1.721571398 | DF31: 1.732231792 | DG31: 1.742958198 | DH31: 1.753751024 | DI31: 1.764610683 | DJ31: 1.775537587 | DK31: 1.786532153 | DL31: 1.7975948 | DM31: 1.80872595 | DN31: 1.819926026 | DO31: 1.831195456 | DP31: 1.84253467 | DQ31: 1.853944098 | DR31: 1.853944098 | DS31: 1.853944098 | DT31: 1.853944098 | DU31: 1.853944098 | DV31: 1.853944098 | DW31: 1.853944098 | DX31: 1.853944098 | DY31: 1.853944098 | DZ31: 1.853944098 | EA31: 1.853944098 | EB31: 1.853944098 | EC31: 1.853944098 | ED31: 1.853944098 | EE31: 1.853944098 | EF31: 1.853944098 | EG31: 1.853944098 | EH31: =EG31 * ( 1 + EH30 * EH7) -> 1.853944098 | EI31: 1.853944098 | EJ31: 1.853944098 | EK31: 1.853944098 | EL31: 1.853944098 | EM31: 1.853944098 | EN31: 1.853944098 | EO31: 1.853944098 | EP31: 1.853944098 | EQ31: 1.853944098 | ER31: 1.853944098 | ES31: 1.853944098 | ET31: 1.853944098 | EU31: 1.853944098 | EV31: 1.853944098 | EW31: 1.853944098 | EX31: 1.853944098 | EY31: 1.853944098 | EZ31: 1.853944098 | FA31: 1.853944098 | FB31: 1.853944098 | FC31: 1.853944098
D32: Inflated Price | E32: USD/kWh | J32: =J28 * J31 -> 0.045 | K32: =K28 * K31 -> 0.045 | L32: 0.045 | M32: 0.045 | N32: 0.045 | O32: 0.045 | P32: 0.045 | Q32: 0.045 | R32: 0.045 | S32: 0.045 | T32: 0.045 | U32: 0.045 | V32: 0.04527865108 | W32: 0.04555902765 | X32: 0.04584114037 | Y32: 0.046125 | Z32: 0.04641061736 | AA32: 0.04669800334 | AB32: 0.04698716888 | AC32: 0.047278125 | AD32: 0.0475708828 | AE32: 0.04786545342 | AF32: 0.0481618481 | AG32: 0.04846007813 | AH32: 0.04876015487 | AI32: 0.04906208976 | AJ32: 0.0493658943 | AK32: 0.04967158008 | AL32: 0.04997915874 | AM32: 0.050288642 | AN32: 0.05060004166 | AO32: 0.05091336958 | AP32: 0.05122863771 | AQ32: 0.05154585805 | AR32: 0.0518650427 | AS32: 0.05218620382 | AT32: 0.05250935365 | AU32: 0.0528345045 | AV32: 0.05316166877 | AW32: 0.05349085892 | AX32: 0.05382208749 | AY32: 0.05415536711 | AZ32: 0.05449071049 | BA32: 0.05482813039 | BB32: 0.05516763968 | BC32: 0.05550925129 | BD32: 0.05585297825 | BE32: 0.05619883365 | BF32: 0.05654683067 | BG32: 0.05689698257 | BH32: 0.0572493027 | BI32: 0.05760380449 | BJ32: 0.05796050144 | BK32: 0.05831940714 | BL32: 0.05868053527 | BM32: 0.0590438996 | BN32: 0.05940951397 | BO32: 0.05977739232 | BP32: 0.06014754865 | BQ32: 0.06051999709 | BR32: 0.06089475182 | BS32: 0.06127182712 | BT32: 0.06165123737 | BU32: 0.06203299702 | BV32: 0.06241712062 | BW32: =BW28 * BW31 -> 0.0628036228 | BX32: 0.0631925183 | BY32: 0.06358382194 | BZ32: 0.06397754863 | CA32: 0.06437371337 | CB32: 0.06477233126 | CC32: 0.06517341749 | CD32: 0.06557698735 | CE32: 0.06598305621 | CF32: 0.06639163954 | CG32: 0.06680275293 | CH32: 0.06721641203 | CI32: 0.06763263261 | CJ32: 0.06805143053 | CK32: 0.06847282175 | CL32: 0.06889682233 | CM32: 0.06932344843 | CN32: 0.0697527163 | CO32: 0.0701846423 | CP32: 0.07061924289 | CQ32: 0.07105653464 | CR32: 0.0714965342 | CS32: 0.07193925835 | CT32: 0.07238472396 | CU32: 0.072832948 | CV32: 0.07328394756 | CW32: 0.07373773981 | CX32: 0.07419434206 | CY32: 0.0746537717 | CZ32: 0.07511604625 | DA32: 0.07558118331 | DB32: 0.07604920061 | DC32: 0.076520116 | DD32: 0.0769939474 | DE32: 0.07747071289 | DF32: 0.07795043063 | DG32: 0.0784331189 | DH32: 0.07891879609 | DI32: 0.07940748071 | DJ32: 0.07989919139 | DK32: 0.08039394687 | DL32: 0.08089176599 | DM32: 0.08139266773 | DN32: 0.08189667118 | DO32: 0.08240379554 | DP32: 0.08291406014 | DQ32: 0.08342748442 | DR32: 0.08342748442 | DS32: 0.08342748442 | DT32: 0.08342748442 | DU32: 0.08342748442 | DV32: 0.08342748442 | DW32: 0.08342748442 | DX32: 0.08342748442 | DY32: 0.08342748442 | DZ32: 0.08342748442 | EA32: 0.08342748442 | EB32: 0.08342748442 | EC32: 0.08342748442 | ED32: 0.08342748442 | EE32: 0.08342748442 | EF32: 0.08342748442 | EG32: 0.08342748442 | EH32: 0.08342748442 | EI32: =EI28 * EI31 -> 0.08342748442 | EJ32: 0.08342748442 | EK32: 0.08342748442 | EL32: 0.08342748442 | EM32: 0.08342748442 | EN32: 0.08342748442 | EO32: 0.08342748442 | EP32: 0.08342748442 | EQ32: 0.08342748442 | ER32: 0.08342748442 | ES32: 0.08342748442 | ET32: 0.08342748442 | EU32: 0.08342748442 | EV32: 0.08342748442 | EW32: 0.08342748442 | EX32: 0.08342748442 | EY32: 0.08342748442 | EZ32: 0.08342748442 | FA32: 0.08342748442 | FB32: 0.08342748442 | FC32: 0.08342748442
D33: Revenues | E33: USD | H33: =SUM(J33:FC33) -> 266575680.2 | J33: =J32 * J20 -> 0 | K33: 0 | L33: 0 | M33: 0 | N33: 0 | O33: 0 | P33: 0 | Q33: 0 | R33: 0 | S33: 0 | T33: 0 | U33: 0 | V33: 1464164.42 | W33: 2441300.428 | X33: 2490414.498 | Y33: 1408369.219 | Z33: 1500768.531 | AA33: 2502332.939 | AB33: 2552674.86 | AC33: 1443578.449 | AD33: 1538287.744 | AE33: 2564891.263 | AF33: 2616491.732 | AG33: 1479667.91 | AH33: 1576744.938 | AI33: 2629013.544 | AJ33: 2681904.025 | AK33: 1516659.608 | AL33: 1616163.561 | AM33: 2694738.883 | AN33: 2748951.626 | AO33: 1554576.098 | AP33: =AP32 * AP20 -> 1656567.65 | AQ33: 2762107.355 | AR33: 2817675.416 | AS33: 1593440.501 | AT33: 1697981.842 | AU33: 2831160.039 | AV33: 2888117.302 | AW33: 1633276.513 | AX33: 1740431.388 | AY33: 2901939.04 | AZ33: 2960320.234 | BA33: 1674108.426 | BB33: 1783942.172 | BC33: 2974487.516 | BD33: 3034328.24 | BE33: 1715961.137 | BF33: 1828540.727 | BG33: 3048849.704 | BH33: 3110186.446 | BI33: 1758860.165 | BJ33: 1874254.245 | BK33: 3125070.946 | BL33: 3187941.107 | BM33: 1802831.669 | BN33: 1921110.601 | BO33: 3203197.72 | BP33: 3267639.635 | BQ33: 1847902.461 | BR33: 1969138.366 | BS33: 3283277.663 | BT33: 3349330.626 | BU33: 1894100.023 | BV33: =BV32 * BV20 -> 2018366.825 | BW33: 3365359.604 | BX33: 3433063.891 | BY33: 1941452.523 | BZ33: 2068825.996 | CA33: 3449493.595 | CB33: 3518890.489 | CC33: 1989988.836 | CD33: 2120546.646 | CE33: 3535730.934 | CF33: 3606862.751 | CG33: 2039738.557 | CH33: 2173560.312 | CI33: 3624124.208 | CJ33: 3697034.32 | CK33: 2090732.021 | CL33: 2227899.32 | CM33: 3714727.313 | CN33: 3789460.178 | CO33: 2143000.322 | CP33: 2283596.803 | CQ33: 3807595.496 | CR33: 3884196.682 | CS33: 2196575.33 | CT33: 2340686.723 | CU33: 3902785.383 | CV33: 3981301.599 | CW33: 2251489.713 | CX33: 2399203.891 | CY33: 4000355.018 | CZ33: 4080834.139 | DA33: 2307776.956 | DB33: =DB32 * DB20 -> 2459183.988 | DC33: 4100363.893 | DD33: 4182854.993 | DE33: 2365471.38 | DF33: 2520663.588 | DG33: 4202872.991 | DH33: 4287426.368 | DI33: 2424608.164 | DJ33: 2583680.177 | DK33: 4307944.815 | DL33: 4394612.027 | DM33: 2485223.368 | DN33: 2648272.182 | DO33: 4415643.436 | DP33: 4504477.327 | DQ33: 2547353.953 | DR33: 0 | DS33: 0 | DT33: 0 | DU33: 0 | DV33: 0 | DW33: 0 | DX33: 0 | DY33: 0 | DZ33: 0 | EA33: 0 | EB33: 0 | EC33: 0 | ED33: 0 | EE33: 0 | EF33: 0 | EG33: 0 | EH33: =EH32 * EH20 -> 0 | EI33: 0 | EJ33: 0 | EK33: 0 | EL33: 0 | EM33: 0 | EN33: 0 | EO33: 0 | EP33: 0 | EQ33: 0 | ER33: 0 | ES33: 0 | ET33: 0 | EU33: 0 | EV33: 0 | EW33: 0 | EX33: 0 | EY33: 0 | EZ33: 0 | FA33: 0 | FB33: 0 | FC33: 0
C35: O&M
D36: Base O&M Expense | E36: USD | F36: =Input!E23 -> 15 | G36: =F36 / 4 -> 3.75 | J36: =$G$36 * J14 -> 0 | K36: 0 | L36: 0 | M36: 0 | N36: 0 | O36: 0 | P36: 0 | Q36: 0 | R36: 0 | S36: 0 | T36: 0 | U36: 0 | V36: 375000 | W36: 375000 | X36: 375000 | Y36: 375000 | Z36: 375000 | AA36: 375000 | AB36: 375000 | AC36: 375000 | AD36: 375000 | AE36: 375000 | AF36: 375000 | AG36: 375000 | AH36: 375000 | AI36: 375000 | AJ36: 375000 | AK36: 375000 | AL36: 375000 | AM36: 375000 | AN36: 375000 | AO36: 375000 | AP36: =$G$36 * AP14 -> 375000 | AQ36: 375000 | AR36: 375000 | AS36: 375000 | AT36: 375000 | AU36: 375000 | AV36: 375000 | AW36: 375000 | AX36: 375000 | AY36: 375000 | AZ36: 375000 | BA36: 375000 | BB36: 375000 | BC36: 375000 | BD36: 375000 | BE36: 375000 | BF36: 375000 | BG36: 375000 | BH36: 375000 | BI36: 375000 | BJ36: 375000 | BK36: 375000 | BL36: 375000 | BM36: 375000 | BN36: 375000 | BO36: 375000 | BP36: 375000 | BQ36: 375000 | BR36: 375000 | BS36: 375000 | BT36: 375000 | BU36: 375000 | BV36: =$G$36 * BV14 -> 375000 | BW36: 375000 | BX36: 375000 | BY36: 375000 | BZ36: 375000 | CA36: 375000 | CB36: 375000 | CC36: 375000 | CD36: 375000 | CE36: 375000 | CF36: 375000 | CG36: 375000 | CH36: 375000 | CI36: 375000 | CJ36: 375000 | CK36: 375000 | CL36: 375000 | CM36: 375000 | CN36: 375000 | CO36: 375000 | CP36: 375000 | CQ36: 375000 | CR36: 375000 | CS36: 375000 | CT36: 375000 | CU36: 375000 | CV36: 375000 | CW36: 375000 | CX36: 375000 | CY36: 375000 | CZ36: 375000 | DA36: 375000 | DB36: =$G$36 * DB14 -> 375000 | DC36: 375000 | DD36: 375000 | DE36: 375000 | DF36: 375000 | DG36: 375000 | DH36: 375000 | DI36: 375000 | DJ36: 375000 | DK36: 375000 | DL36: 375000 | DM36: 375000 | DN36: 375000 | DO36: 375000 | DP36: 375000 | DQ36: 375000 | DR36: 0 | DS36: 0 | DT36: 0 | DU36: 0 | DV36: 0 | DW36: 0 | DX36: 0 | DY36: 0 | DZ36: 0 | EA36: 0 | EB36: 0 | EC36: 0 | ED36: 0 | EE36: 0 | EF36: 0 | EG36: 0 | EH36: =$G$36 * EH14 -> 0 | EI36: 0 | EJ36: 0 | EK36: 0 | EL36: 0 | EM36: 0 | EN36: 0 | EO36: 0 | EP36: 0 | EQ36: 0 | ER36: 0 | ES36: 0 | ET36: 0 | EU36: 0 | EV36: 0 | EW36: 0 | EX36: 0 | EY36: 0 | EZ36: 0 | FA36: 0 | FB36: 0 | FC36: 0
D37: Inflated O&M Expense | E37: USD | H37: =SUM(J37:FC37) -> 52034747.49 | J37: =J36 * J31 -> 0 | K37: 0 | L37: 0 | M37: 0 | N37: 0 | O37: 0 | P37: 0 | Q37: 0 | R37: 0 | S37: 0 | T37: 0 | U37: 0 | V37: 377322.0924 | W37: 379658.5637 | X37: 382009.5031 | Y37: 384375 | Z37: 386755.1447 | AA37: 389150.0278 | AB37: 391559.7406 | AC37: 393984.375 | AD37: 396424.0233 | AE37: 398878.7785 | AF37: 401348.7342 | AG37: 403833.9844 | AH37: 406334.6239 | AI37: 408850.748 | AJ37: 411382.4525 | AK37: 413929.834 | AL37: 416492.9895 | AM37: 419072.0167 | AN37: 421667.0138 | AO37: 424278.0798 | AP37: =AP36 * AP31 -> 426905.3142 | AQ37: 429548.8171 | AR37: 432208.6892 | AS37: 434885.0318 | AT37: 437577.9471 | AU37: 440287.5375 | AV37: 443013.9064 | AW37: 445757.1576 | AX37: 448517.3957 | AY37: 451294.7259 | AZ37: 454089.2541 | BA37: 456901.0866 | BB37: 459730.3306 | BC37: 462577.0941 | BD37: 465441.4854 | BE37: 468323.6137 | BF37: 471223.5889 | BG37: 474141.5214 | BH37: 477077.5225 | BI37: 480031.7041 | BJ37: 483004.1786 | BK37: 485995.0595 | BL37: 489004.4606 | BM37: 492032.4967 | BN37: 495079.2831 | BO37: 498144.936 | BP37: 501229.5721 | BQ37: 504333.3091 | BR37: 507456.2652 | BS37: 510598.5594 | BT37: 513760.3114 | BU37: 516941.6418 | BV37: =BV36 * BV31 -> 520142.6718 | BW37: 523363.5234 | BX37: 526604.3192 | BY37: 529865.1829 | BZ37: 533146.2386 | CA37: 536447.6114 | CB37: 539769.4272 | CC37: 543111.8124 | CD37: 546474.8946 | CE37: 549858.8017 | CF37: 553263.6629 | CG37: 556689.6077 | CH37: 560136.7669 | CI37: 563605.2718 | CJ37: 567095.2544 | CK37: 570606.8479 | CL37: 574140.1861 | CM37: 577695.4036 | CN37: 581272.6358 | CO37: 584872.0191 | CP37: 588493.6908 | CQ37: 592137.7886 | CR37: 595804.4517 | CS37: 599493.8196 | CT37: 603206.033 | CU37: 606941.2334 | CV37: 610699.563 | CW37: 614481.1651 | CX37: 618286.1838 | CY37: 622114.7642 | CZ37: 625967.0521 | DA37: 629843.1942 | DB37: =DB36 * DB31 -> 633743.3384 | DC37: 637667.6333 | DD37: 641616.2284 | DE37: 645589.2741 | DF37: 649586.9219 | DG37: 653609.3241 | DH37: 657656.6341 | DI37: 661729.0059 | DJ37: 665826.595 | DK37: 669949.5572 | DL37: 674098.0499 | DM37: 678272.2311 | DN37: 682472.2598 | DO37: 686698.2962 | DP37: 690950.5012 | DQ37: 695229.0369 | DR37: 0 | DS37: 0 | DT37: 0 | DU37: 0 | DV37: 0 | DW37: 0 | DX37: 0 | DY37: 0 | DZ37: 0 | EA37: 0 | EB37: 0 | EC37: 0 | ED37: 0 | EE37: 0 | EF37: 0 | EG37: 0 | EH37: =EH36 * EH31 -> 0 | EI37: 0 | EJ37: 0 | EK37: 0 | EL37: 0 | EM37: 0 | EN37: 0 | EO37: 0 | EP37: 0 | EQ37: 0 | ER37: 0 | ES37: 0 | ET37: 0 | EU37: 0 | EV37: 0 | EW37: 0 | EX37: 0 | EY37: 0 | EZ37: 0 | FA37: 0 | FB37: 0 | FC37: 0
D39: EBITDA | E39: USD | H39: =SUM(J39:FC39) -> 214540932.7 | J39: =J33 - J37 -> 0 | K39: 0 | L39: 0 | M39: 0 | N39: 0 | O39: 0 | P39: 0 | Q39: 0 | R39: 0 | S39: 0 | T39: 0 | U39: 0 | V39: 1086842.328 | W39: 2061641.865 | X39: 2108404.995 | Y39: 1023994.219 | Z39: 1114013.386 | AA39: 2113182.911 | AB39: 2161115.12 | AC39: 1049594.074 | AD39: 1141863.721 | AE39: 2166012.484 | AF39: 2215142.998 | AG39: 1075833.926 | AH39: 1170410.314 | AI39: 2220162.796 | AJ39: 2270521.573 | AK39: 1102729.774 | AL39: 1199670.572 | AM39: 2275666.866 | AN39: 2327284.612 | AO39: 1130298.019 | AP39: =AP33 - AP37 -> 1229662.336 | AQ39: 2332558.538 | AR39: 2385466.727 | AS39: 1158555.469 | AT39: 1260403.895 | AU39: 2390872.501 | AV39: 2445103.395 | AW39: 1187519.356 | AX39: 1291913.992 | AY39: 2450644.314 | AZ39: 2506230.98 | BA39: 1217207.34 | BB39: 1324211.842 | BC39: 2511910.422 | BD39: 2568886.755 | BE39: 1247637.523 | BF39: 1357317.138 | BG39: 2574708.182 | BH39: 2633108.924 | BI39: 1278828.461 | BJ39: 1391250.066 | BK39: 2639075.887 | BL39: 2698936.647 | BM39: 1310799.173 | BN39: 1426031.318 | BO39: 2705052.784 | BP39: 2766410.063 | BQ39: 1343569.152 | BR39: 1461682.101 | BS39: 2772679.103 | BT39: 2835570.314 | BU39: 1377158.381 | BV39: =BV33 - BV37 -> 1498224.153 | BW39: 2841996.081 | BX39: 2906459.572 | BY39: 1411587.34 | BZ39: 1535679.757 | CA39: 2913045.983 | CB39: 2979121.062 | CC39: 1446877.024 | CD39: 1574071.751 | CE39: 2985872.133 | CF39: 3053599.088 | CG39: 1483048.95 | CH39: 1613423.545 | CI39: 3060518.936 | CJ39: 3129939.065 | CK39: 1520125.173 | CL39: 1653759.133 | CM39: 3137031.909 | CN39: 3208187.542 | CO39: 1558128.303 | CP39: 1695103.112 | CQ39: 3215457.707 | CR39: 3288392.23 | CS39: 1597081.51 | CT39: 1737480.69 | CU39: 3295844.15 | CV39: 3370602.036 | CW39: 1637008.548 | CX39: 1780917.707 | CY39: 3378240.254 | CZ39: 3454867.087 | DA39: 1677933.762 | DB39: =DB33 - DB37 -> 1825440.649 | DC39: 3462696.26 | DD39: 3541238.764 | DE39: 1719882.106 | DF39: 1871076.666 | DG39: 3549263.666 | DH39: 3629769.733 | DI39: 1762879.158 | DJ39: 1917853.582 | DK39: 3637995.258 | DL39: 3720513.977 | DM39: 1806951.137 | DN39: 1965799.922 | DO39: 3728945.14 | DP39: 3813526.826 | DQ39: 1852124.916 | DR39: 0 | DS39: 0 | DT39: 0 | DU39: 0 | DV39: 0 | DW39: 0 | DX39: 0 | DY39: 0 | DZ39: 0 | EA39: 0 | EB39: 0 | EC39: 0 | ED39: 0 | EE39: 0 | EF39: 0 | EG39: 0 | EH39: =EH33 - EH37 -> 0 | EI39: 0 | EJ39: 0 | EK39: 0 | EL39: 0 | EM39: 0 | EN39: 0 | EO39: 0 | EP39: 0 | EQ39: 0 | ER39: 0 | ES39: 0 | ET39: 0 | EU39: 0 | EV39: 0 | EW39: 0 | EX39: 0 | EY39: 0 | EZ39: 0 | FA39: 0 | FB39: 0 | FC39: 0
D41: Free Cashflow | E41: USD | H41: =SUM(J41:FC41) -> 134540932.7 | J41: =J39 - J25 -> -6666666.667 | K41: -6666666.667 | L41: -6666666.667 | M41: -6666666.667 | N41: -6666666.667 | O41: -6666666.667 | P41: -6666666.667 | Q41: -6666666.667 | R41: -6666666.667 | S41: -6666666.667 | T41: -6666666.667 | U41: -6666666.667 | V41: 1086842.328 | W41: 2061641.865 | X41: 2108404.995 | Y41: 1023994.219 | Z41: 1114013.386 | AA41: 2113182.911 | AB41: 2161115.12 | AC41: 1049594.074 | AD41: 1141863.721 | AE41: 2166012.484 | AF41: 2215142.998 | AG41: 1075833.926 | AH41: 1170410.314 | AI41: 2220162.796 | AJ41: 2270521.573 | AK41: 1102729.774 | AL41: 1199670.572 | AM41: 2275666.866 | AN41: 2327284.612 | AO41: 1130298.019 | AP41: =AP39 - AP25 -> 1229662.336 | AQ41: 2332558.538 | AR41: 2385466.727 | AS41: 1158555.469 | AT41: 1260403.895 | AU41: 2390872.501 | AV41: 2445103.395 | AW41: 1187519.356 | AX41: 1291913.992 | AY41: 2450644.314 | AZ41: 2506230.98 | BA41: 1217207.34 | BB41: 1324211.842 | BC41: 2511910.422 | BD41: 2568886.755 | BE41: 1247637.523 | BF41: 1357317.138 | BG41: 2574708.182 | BH41: 2633108.924 | BI41: 1278828.461 | BJ41: 1391250.066 | BK41: 2639075.887 | BL41: 2698936.647 | BM41: 1310799.173 | BN41: 1426031.318 | BO41: 2705052.784 | BP41: 2766410.063 | BQ41: 1343569.152 | BR41: 1461682.101 | BS41: 2772679.103 | BT41: 2835570.314 | BU41: 1377158.381 | BV41: =BV39 - BV25 -> 1498224.153 | BW41: 2841996.081 | BX41: 2906459.572 | BY41: 1411587.34 | BZ41: 1535679.757 | CA41: 2913045.983 | CB41: 2979121.062 | CC41: 1446877.024 | CD41: 1574071.751 | CE41: 2985872.133 | CF41: 3053599.088 | CG41: 1483048.95 | CH41: 1613423.545 | CI41: 3060518.936 | CJ41: 3129939.065 | CK41: 1520125.173 | CL41: 1653759.133 | CM41: 3137031.909 | CN41: 3208187.542 | CO41: 1558128.303 | CP41: 1695103.112 | CQ41: 3215457.707 | CR41: 3288392.23 | CS41: 1597081.51 | CT41: 1737480.69 | CU41: 3295844.15 | CV41: 3370602.036 | CW41: 1637008.548 | CX41: 1780917.707 | CY41: 3378240.254 | CZ41: 3454867.087 | DA41: 1677933.762 | DB41: =DB39 - DB25 -> 1825440.649 | DC41: 3462696.26 | DD41: 3541238.764 | DE41: 1719882.106 | DF41: 1871076.666 | DG41: 3549263.666 | DH41: 3629769.733 | DI41: 1762879.158 | DJ41: 1917853.582 | DK41: 3637995.258 | DL41: 3720513.977 | DM41: 1806951.137 | DN41: 1965799.922 | DO41: 3728945.14 | DP41: 3813526.826 | DQ41: 1852124.916 | DR41: 0 | DS41: 0 | DT41: 0 | DU41: 0 | DV41: 0 | DW41: 0 | DX41: 0 | DY41: 0 | DZ41: 0 | EA41: 0 | EB41: 0 | EC41: 0 | ED41: 0 | EE41: 0 | EF41: 0 | EG41: 0 | EH41: =EH39 - EH25 -> 0 | EI41: 0 | EJ41: 0 | EK41: 0 | EL41: 0 | EM41: 0 | EN41: 0 | EO41: 0 | EP41: 0 | EQ41: 0 | ER41: 0 | ES41: 0 | ET41: 0 | EU41: 0 | EV41: 0 | EW41: 0 | EX41: 0 | EY41: 0 | EZ41: 0 | FA41: 0 | FB41: 0 | FC41: 0
D42: Pre-Tax Project IRR | E42: % p.a. | F42: =XIRR(J41:FC41, J6:FC6 ) -> 0.08348071873
C44: Debt Sizing
D45: EBITDA | E45: USD | H45: =SUM(I45:FC45) -> 214540932.7 | J45: =J39 -> 0 | K45: 0 | L45: 0 | M45: 0 | N45: 0 | O45: 0 | P45: 0 | Q45: 0 | R45: 0 | S45: 0 | T45: 0 | U45: 0 | V45: 1086842.328 | W45: 2061641.865 | X45: 2108404.995 | Y45: 1023994.219 | Z45: 1114013.386 | AA45: 2113182.911 | AB45: 2161115.12 | AC45: 1049594.074 | AD45: 1141863.721 | AE45: 2166012.484 | AF45: 2215142.998 | AG45: 1075833.926 | AH45: 1170410.314 | AI45: 2220162.796 | AJ45: 2270521.573 | AK45: 1102729.774 | AL45: 1199670.572 | AM45: 2275666.866 | AN45: 2327284.612 | AO45: 1130298.019 | AP45: =AP39 -> 1229662.336 | AQ45: 2332558.538 | AR45: 2385466.727 | AS45: 1158555.469 | AT45: 1260403.895 | AU45: 2390872.501 | AV45: 2445103.395 | AW45: 1187519.356 | AX45: 1291913.992 | AY45: 2450644.314 | AZ45: 2506230.98 | BA45: 1217207.34 | BB45: 1324211.842 | BC45: 2511910.422 | BD45: 2568886.755 | BE45: 1247637.523 | BF45: 1357317.138 | BG45: 2574708.182 | BH45: 2633108.924 | BI45: 1278828.461 | BJ45: 1391250.066 | BK45: 2639075.887 | BL45: 2698936.647 | BM45: 1310799.173 | BN45: 1426031.318 | BO45: 2705052.784 | BP45: 2766410.063 | BQ45: 1343569.152 | BR45: 1461682.101 | BS45: 2772679.103 | BT45: 2835570.314 | BU45: 1377158.381 | BV45: =BV39 -> 1498224.153 | BW45: 2841996.081 | BX45: 2906459.572 | BY45: 1411587.34 | BZ45: 1535679.757 | CA45: 2913045.983 | CB45: 2979121.062 | CC45: 1446877.024 | CD45: 1574071.751 | CE45: 2985872.133 | CF45: 3053599.088 | CG45: 1483048.95 | CH45: 1613423.545 | CI45: 3060518.936 | CJ45: 3129939.065 | CK45: 1520125.173 | CL45: 1653759.133 | CM45: 3137031.909 | CN45: 3208187.542 | CO45: 1558128.303 | CP45: 1695103.112 | CQ45: 3215457.707 | CR45: 3288392.23 | CS45: 1597081.51 | CT45: 1737480.69 | CU45: 3295844.15 | CV45: 3370602.036 | CW45: 1637008.548 | CX45: 1780917.707 | CY45: 3378240.254 | CZ45: 3454867.087 | DA45: 1677933.762 | DB45: =DB39 -> 1825440.649 | DC45: 3462696.26 | DD45: 3541238.764 | DE45: 1719882.106 | DF45: 1871076.666 | DG45: 3549263.666 | DH45: 3629769.733 | DI45: 1762879.158 | DJ45: 1917853.582 | DK45: 3637995.258 | DL45: 3720513.977 | DM45: 1806951.137 | DN45: 1965799.922 | DO45: 3728945.14 | DP45: 3813526.826 | DQ45: 1852124.916 | DR45: 0 | DS45: 0 | DT45: 0 | DU45: 0 | DV45: 0 | DW45: 0 | DX45: 0 | DY45: 0 | DZ45: 0 | EA45: 0 | EB45: 0 | EC45: 0 | ED45: 0 | EE45: 0 | EF45: 0 | EG45: 0 | EH45: =EH39 -> 0 | EI45: 0 | EJ45: 0 | EK45: 0 | EL45: 0 | EM45: 0 | EN45: 0 | EO45: 0 | EP45: 0 | EQ45: 0 | ER45: 0 | ES45: 0 | ET45: 0 | EU45: 0 | EV45: 0 | EW45: 0 | EX45: 0 | EY45: 0 | EZ45: 0 | FA45: 0 | FB45: 0 | FC45: 0
D46: LC Fees | E46: USD
D47: Add: Use of Revolver | E47: USD
D48: Less: Repayment of Revolver | E48: USD
D49: Revolver Commitment Fees | E49: USD
D50: Agency Fees | E50: USD
D51: Working Capital Changes | E51: USD
D52: CFADS | E52: USD | H52: =SUM(I52:FC52) -> 214540932.7 | J52: =SUM(J45:J51) -> 0 | K52: =SUM(K45:K51) -> 0 | L52: 0 | M52: 0 | N52: 0 | O52: 0 | P52: 0 | Q52: 0 | R52: 0 | S52: 0 | T52: 0 | U52: 0 | V52: 1086842.328 | W52: 2061641.865 | X52: 2108404.995 | Y52: 1023994.219 | Z52: 1114013.386 | AA52: 2113182.911 | AB52: 2161115.12 | AC52: 1049594.074 | AD52: 1141863.721 | AE52: 2166012.484 | AF52: 2215142.998 | AG52: 1075833.926 | AH52: 1170410.314 | AI52: 2220162.796 | AJ52: 2270521.573 | AK52: 1102729.774 | AL52: 1199670.572 | AM52: 2275666.866 | AN52: 2327284.612 | AO52: 1130298.019 | AP52: 1229662.336 | AQ52: 2332558.538 | AR52: 2385466.727 | AS52: 1158555.469 | AT52: 1260403.895 | AU52: 2390872.501 | AV52: 2445103.395 | AW52: 1187519.356 | AX52: 1291913.992 | AY52: 2450644.314 | AZ52: 2506230.98 | BA52: 1217207.34 | BB52: 1324211.842 | BC52: 2511910.422 | BD52: 2568886.755 | BE52: 1247637.523 | BF52: 1357317.138 | BG52: 2574708.182 | BH52: 2633108.924 | BI52: 1278828.461 | BJ52: 1391250.066 | BK52: 2639075.887 | BL52: 2698936.647 | BM52: 1310799.173 | BN52: 1426031.318 | BO52: 2705052.784 | BP52: 2766410.063 | BQ52: 1343569.152 | BR52: 1461682.101 | BS52: 2772679.103 | BT52: 2835570.314 | BU52: 1377158.381 | BV52: 1498224.153 | BW52: =SUM(BW45:BW51) -> 2841996.081 | BX52: 2906459.572 | BY52: 1411587.34 | BZ52: 1535679.757 | CA52: 2913045.983 | CB52: 2979121.062 | CC52: 1446877.024 | CD52: 1574071.751 | CE52: 2985872.133 | CF52: 3053599.088 | CG52: 1483048.95 | CH52: 1613423.545 | CI52: 3060518.936 | CJ52: 3129939.065 | CK52: 1520125.173 | CL52: 1653759.133 | CM52: 3137031.909 | CN52: 3208187.542 | CO52: 1558128.303 | CP52: 1695103.112 | CQ52: 3215457.707 | CR52: 3288392.23 | CS52: 1597081.51 | CT52: 1737480.69 | CU52: 3295844.15 | CV52: 3370602.036 | CW52: 1637008.548 | CX52: 1780917.707 | CY52: 3378240.254 | CZ52: 3454867.087 | DA52: 1677933.762 | DB52: 1825440.649 | DC52: 3462696.26 | DD52: 3541238.764 | DE52: 1719882.106 | DF52: 1871076.666 | DG52: 3549263.666 | DH52: 3629769.733 | DI52: 1762879.158 | DJ52: 1917853.582 | DK52: 3637995.258 | DL52: 3720513.977 | DM52: 1806951.137 | DN52: 1965799.922 | DO52: 3728945.14 | DP52: 3813526.826 | DQ52: 1852124.916 | DR52: 0 | DS52: 0 | DT52: 0 | DU52: 0 | DV52: 0 | DW52: 0 | DX52: 0 | DY52: 0 | DZ52: 0 | EA52: 0 | EB52: 0 | EC52: 0 | ED52: 0 | EE52: 0 | EF52: 0 | EG52: 0 | EH52: 0 | EI52: =SUM(EI45:EI51) -> 0 | EJ52: 0 | EK52: 0 | EL52: 0 | EM52: 0 | EN52: 0 | EO52: 0 | EP52: 0 | EQ52: 0 | ER52: 0 | ES52: 0 | ET52: 0 | EU52: 0 | EV52: 0 | EW52: 0 | EX52: 0 | EY52: 0 | EZ52: 0 | FA52: 0 | FB52: 0 | FC52: 0
D54: Debt Repayment Flag | F54: =Input!E5 -> 2024-01-01 | G54: =Input!E36 -> 2044-01-01 | H54: =SUM(I54:FC54) -> 80 | J54: =AND( J$5 >=$F54, J$5 <$G54) * 1 -> 0 | K54: 0 | L54: 0 | M54: 0 | N54: 0 | O54: 0 | P54: 0 | Q54: 0 | R54: 0 | S54: 0 | T54: 0 | U54: 0 | V54: 1 | W54: 1 | X54: 1 | Y54: 1 | Z54: 1 | AA54: 1 | AB54: 1 | AC54: 1 | AD54: 1 | AE54: 1 | AF54: 1 | AG54: 1 | AH54: 1 | AI54: 1 | AJ54: 1 | AK54: 1 | AL54: 1 | AM54: 1 | AN54: 1 | AO54: 1 | AP54: =AND( AP$5 >=$F54, AP$5 <$G54) * 1 -> 1 | AQ54: 1 | AR54: 1 | AS54: 1 | AT54: 1 | AU54: 1 | AV54: 1 | AW54: 1 | AX54: 1 | AY54: 1 | AZ54: 1 | BA54: 1 | BB54: 1 | BC54: 1 | BD54: 1 | BE54: 1 | BF54: 1 | BG54: 1 | BH54: 1 | BI54: 1 | BJ54: 1 | BK54: 1 | BL54: 1 | BM54: 1 | BN54: 1 | BO54: 1 | BP54: 1 | BQ54: 1 | BR54: 1 | BS54: 1 | BT54: 1 | BU54: 1 | BV54: =AND( BV$5 >=$F54, BV$5 <$G54) * 1 -> 1 | BW54: 1 | BX54: 1 | BY54: 1 | BZ54: 1 | CA54: 1 | CB54: 1 | CC54: 1 | CD54: 1 | CE54: 1 | CF54: 1 | CG54: 1 | CH54: 1 | CI54: 1 | CJ54: 1 | CK54: 1 | CL54: 1 | CM54: 1 | CN54: 1 | CO54: 1 | CP54: 1 | CQ54: 1 | CR54: 1 | CS54: 1 | CT54: 1 | CU54: 1 | CV54: 1 | CW54: 1 | CX54: 0 | CY54: 0 | CZ54: 0 | DA54: 0 | DB54: =AND( DB$5 >=$F54, DB$5 <$G54) * 1 -> 0 | DC54: 0 | DD54: 0 | DE54: 0 | DF54: 0 | DG54: 0 | DH54: 0 | DI54: 0 | DJ54: 0 | DK54: 0 | DL54: 0 | DM54: 0 | DN54: 0 | DO54: 0 | DP54: 0 | DQ54: 0 | DR54: 0 | DS54: 0 | DT54: 0 | DU54: 0 | DV54: 0 | DW54: 0 | DX54: 0 | DY54: 0 | DZ54: 0 | EA54: 0 | EB54: 0 | EC54: 0 | ED54: 0 | EE54: 0 | EF54: 0 | EG54: 0 | EH54: =AND( EH$5 >=$F54, EH$5 <$G54) * 1 -> 0 | EI54: 0 | EJ54: 0 | EK54: 0 | EL54: 0 | EM54: 0 | EN54: 0 | EO54: 0 | EP54: 0 | EQ54: 0 | ER54: 0 | ES54: 0 | ET54: 0 | EU54: 0 | EV54: 0 | EW54: 0 | EX54: 0 | EY54: 0 | EZ54: 0 | FA54: 0 | FB54: 0 | FC54: 0
D55: CFADS over repayment period | E55: USD | H55: =SUM(I55:FC55) -> 160443016.1 | J55: =IF( J54, J52 ) -> FALSE | K55: FALSE | L55: FALSE | M55: FALSE | N55: FALSE | O55: FALSE | P55: FALSE | Q55: FALSE | R55: FALSE | S55: FALSE | T55: FALSE | U55: FALSE | V55: 1086842.328 | W55: 2061641.865 | X55: 2108404.995 | Y55: 1023994.219 | Z55: 1114013.386 | AA55: 2113182.911 | AB55: 2161115.12 | AC55: 1049594.074 | AD55: 1141863.721 | AE55: 2166012.484 | AF55: 2215142.998 | AG55: 1075833.926 | AH55: 1170410.314 | AI55: 2220162.796 | AJ55: 2270521.573 | AK55: 1102729.774 | AL55: 1199670.572 | AM55: 2275666.866 | AN55: 2327284.612 | AO55: 1130298.019 | AP55: =IF( AP54, AP52 ) -> 1229662.336 | AQ55: 2332558.538 | AR55: 2385466.727 | AS55: 1158555.469 | AT55: 1260403.895 | AU55: 2390872.501 | AV55: 2445103.395 | AW55: 1187519.356 | AX55: 1291913.992 | AY55: 2450644.314 | AZ55: 2506230.98 | BA55: 1217207.34 | BB55: 1324211.842 | BC55: 2511910.422 | BD55: 2568886.755 | BE55: 1247637.523 | BF55: 1357317.138 | BG55: 2574708.182 | BH55: 2633108.924 | BI55: 1278828.461 | BJ55: 1391250.066 | BK55: 2639075.887 | BL55: 2698936.647 | BM55: 1310799.173 | BN55: 1426031.318 | BO55: 2705052.784 | BP55: 2766410.063 | BQ55: 1343569.152 | BR55: 1461682.101 | BS55: 2772679.103 | BT55: 2835570.314 | BU55: 1377158.381 | BV55: =IF( BV54, BV52 ) -> 1498224.153 | BW55: 2841996.081 | BX55: 2906459.572 | BY55: 1411587.34 | BZ55: 1535679.757 | CA55: 2913045.983 | CB55: 2979121.062 | CC55: 1446877.024 | CD55: 1574071.751 | CE55: 2985872.133 | CF55: 3053599.088 | CG55: 1483048.95 | CH55: 1613423.545 | CI55: 3060518.936 | CJ55: 3129939.065 | CK55: 1520125.173 | CL55: 1653759.133 | CM55: 3137031.909 | CN55: 3208187.542 | CO55: 1558128.303 | CP55: 1695103.112 | CQ55: 3215457.707 | CR55: 3288392.23 | CS55: 1597081.51 | CT55: 1737480.69 | CU55: 3295844.15 | CV55: 3370602.036 | CW55: 1637008.548 | CX55: FALSE | CY55: FALSE | CZ55: FALSE | DA55: FALSE | DB55: =IF( DB54, DB52 ) -> FALSE | DC55: FALSE | DD55: FALSE | DE55: FALSE | DF55: FALSE | DG55: FALSE | DH55: FALSE | DI55: FALSE | DJ55: FALSE | DK55: FALSE | DL55: FALSE | DM55: FALSE | DN55: FALSE | DO55: FALSE | DP55: FALSE | DQ55: FALSE | DR55: FALSE | DS55: FALSE | DT55: FALSE | DU55: FALSE | DV55: FALSE | DW55: FALSE | DX55: FALSE | DY55: FALSE | DZ55: FALSE | EA55: FALSE | EB55: FALSE | EC55: FALSE | ED55: FALSE | EE55: FALSE | EF55: FALSE | EG55: FALSE | EH55: =IF( EH54, EH52 ) -> FALSE | EI55: FALSE | EJ55: FALSE | EK55: FALSE | EL55: FALSE | EM55: FALSE | EN55: FALSE | EO55: FALSE | EP55: FALSE | EQ55: FALSE | ER55: FALSE | ES55: FALSE | ET55: FALSE | EU55: FALSE | EV55: FALSE | EW55: FALSE | EX55: FALSE | EY55: FALSE | EZ55: FALSE | FA55: FALSE | FB55: FALSE | FC55: FALSE
D56: PV of CFADS over repayment period | E56: USD | H56: =NPV(G71, J55:FC55) -> 94864914.21
D57: Debt from Debt to Capital | E57: USD | F57: =Input!E28 -> 0.85 | H57: =F57*H78 -> 68000000
D58: LLCR for Sculpting | E58: x | H58: =H56/H57 -> 1.395072268
D60: Curved DSCR
D61: Period | E61: Quarter | F61: 1 | G61: =H54 -> 80
D62: DSCR | E62: x | F62: 2 | G62: =F64 -> 1.3
D64: Target DSCR | F64: =Input!E27 -> 1.3 | J64: =$F$64 -> 1.3 | K64: 1.3 | L64: 1.3 | M64: 1.3 | N64: 1.3 | O64: 1.3 | P64: 1.3 | Q64: 1.3 | R64: 1.3 | S64: 1.3 | T64: 1.3 | U64: 1.3 | V64: 1.3 | W64: 1.3 | X64: 1.3 | Y64: 1.3 | Z64: 1.3 | AA64: 1.3 | AB64: 1.3 | AC64: 1.3 | AD64: 1.3 | AE64: 1.3 | AF64: 1.3 | AG64: 1.3 | AH64: 1.3 | AI64: 1.3 | AJ64: 1.3 | AK64: 1.3 | AL64: 1.3 | AM64: 1.3 | AN64: 1.3 | AO64: 1.3 | AP64: =$F$64 -> 1.3 | AQ64: 1.3 | AR64: 1.3 | AS64: 1.3 | AT64: 1.3 | AU64: 1.3 | AV64: 1.3 | AW64: 1.3 | AX64: 1.3 | AY64: 1.3 | AZ64: 1.3 | BA64: 1.3 | BB64: 1.3 | BC64: 1.3 | BD64: 1.3 | BE64: 1.3 | BF64: 1.3 | BG64: 1.3 | BH64: 1.3 | BI64: 1.3 | BJ64: 1.3 | BK64: 1.3 | BL64: 1.3 | BM64: 1.3 | BN64: 1.3 | BO64: 1.3 | BP64: 1.3 | BQ64: 1.3 | BR64: 1.3 | BS64: 1.3 | BT64: 1.3 | BU64: 1.3 | BV64: =$F$64 -> 1.3 | BW64: 1.3 | BX64: 1.3 | BY64: 1.3 | BZ64: 1.3 | CA64: 1.3 | CB64: 1.3 | CC64: 1.3 | CD64: 1.3 | CE64: 1.3 | CF64: 1.3 | CG64: 1.3 | CH64: 1.3 | CI64: 1.3 | CJ64: 1.3 | CK64: 1.3 | CL64: 1.3 | CM64: 1.3 | CN64: 1.3 | CO64: 1.3 | CP64: 1.3 | CQ64: 1.3 | CR64: 1.3 | CS64: 1.3 | CT64: 1.3 | CU64: 1.3 | CV64: 1.3 | CW64: 1.3 | CX64: 1.3 | CY64: 1.3 | CZ64: 1.3 | DA64: 1.3 | DB64: =$F$64 -> 1.3 | DC64: 1.3 | DD64: 1.3 | DE64: 1.3 | DF64: 1.3 | DG64: 1.3 | DH64: 1.3 | DI64: 1.3 | DJ64: 1.3 | DK64: 1.3 | DL64: 1.3 | DM64: 1.3 | DN64: 1.3 | DO64: 1.3 | DP64: 1.3 | DQ64: 1.3 | DR64: 1.3 | DS64: 1.3 | DT64: 1.3 | DU64: 1.3 | DV64: 1.3 | DW64: 1.3 | DX64: 1.3 | DY64: 1.3 | DZ64: 1.3 | EA64: 1.3 | EB64: 1.3 | EC64: 1.3 | ED64: 1.3 | EE64: 1.3 | EF64: 1.3 | EG64: 1.3 | EH64: =$F$64 -> 1.3 | EI64: 1.3 | EJ64: 1.3 | EK64: 1.3 | EL64: 1.3 | EM64: 1.3 | EN64: 1.3 | EO64: 1.3 | EP64: 1.3 | EQ64: 1.3 | ER64: 1.3 | ES64: 1.3 | ET64: 1.3 | EU64: 1.3 | EV64: 1.3 | EW64: 1.3 | EX64: 1.3 | EY64: 1.3 | EZ64: 1.3 | FA64: 1.3 | FB64: 1.3 | FC64: 1.3
D65: Target DSCR - LLCR | F65: =H58 -> 1.395072268 | J65: =$F$65 -> 1.395072268 | K65: =$F$65 -> 1.395072268 | L65: 1.395072268 | M65: 1.395072268 | N65: 1.395072268 | O65: 1.395072268 | P65: 1.395072268 | Q65: 1.395072268 | R65: 1.395072268 | S65: 1.395072268 | T65: 1.395072268 | U65: 1.395072268 | V65: 1.395072268 | W65: 1.395072268 | X65: 1.395072268 | Y65: 1.395072268 | Z65: 1.395072268 | AA65: 1.395072268 | AB65: 1.395072268 | AC65: 1.395072268 | AD65: 1.395072268 | AE65: 1.395072268 | AF65: 1.395072268 | AG65: 1.395072268 | AH65: 1.395072268 | AI65: 1.395072268 | AJ65: 1.395072268 | AK65: 1.395072268 | AL65: 1.395072268 | AM65: 1.395072268 | AN65: 1.395072268 | AO65: 1.395072268 | AP65: 1.395072268 | AQ65: 1.395072268 | AR65: 1.395072268 | AS65: 1.395072268 | AT65: 1.395072268 | AU65: 1.395072268 | AV65: 1.395072268 | AW65: 1.395072268 | AX65: 1.395072268 | AY65: 1.395072268 | AZ65: 1.395072268 | BA65: 1.395072268 | BB65: 1.395072268 | BC65: 1.395072268 | BD65: 1.395072268 | BE65: 1.395072268 | BF65: 1.395072268 | BG65: 1.395072268 | BH65: 1.395072268 | BI65: 1.395072268 | BJ65: 1.395072268 | BK65: 1.395072268 | BL65: 1.395072268 | BM65: 1.395072268 | BN65: 1.395072268 | BO65: 1.395072268 | BP65: 1.395072268 | BQ65: 1.395072268 | BR65: 1.395072268 | BS65: 1.395072268 | BT65: 1.395072268 | BU65: 1.395072268 | BV65: 1.395072268 | BW65: =$F$65 -> 1.395072268 | BX65: 1.395072268 | BY65: 1.395072268 | BZ65: 1.395072268 | CA65: 1.395072268 | CB65: 1.395072268 | CC65: 1.395072268 | CD65: 1.395072268 | CE65: 1.395072268 | CF65: 1.395072268 | CG65: 1.395072268 | CH65: 1.395072268 | CI65: 1.395072268 | CJ65: 1.395072268 | CK65: 1.395072268 | CL65: 1.395072268 | CM65: 1.395072268 | CN65: 1.395072268 | CO65: 1.395072268 | CP65: 1.395072268 | CQ65: 1.395072268 | CR65: 1.395072268 | CS65: 1.395072268 | CT65: 1.395072268 | CU65: 1.395072268 | CV65: 1.395072268 | CW65: 1.395072268 | CX65: 1.395072268 | CY65: 1.395072268 | CZ65: 1.395072268 | DA65: 1.395072268 | DB65: 1.395072268 | DC65: 1.395072268 | DD65: 1.395072268 | DE65: 1.395072268 | DF65: 1.395072268 | DG65: 1.395072268 | DH65: 1.395072268 | DI65: 1.395072268 | DJ65: 1.395072268 | DK65: 1.395072268 | DL65: 1.395072268 | DM65: 1.395072268 | DN65: 1.395072268 | DO65: 1.395072268 | DP65: 1.395072268 | DQ65: 1.395072268 | DR65: 1.395072268 | DS65: 1.395072268 | DT65: 1.395072268 | DU65: 1.395072268 | DV65: 1.395072268 | DW65: 1.395072268 | DX65: 1.395072268 | DY65: 1.395072268 | DZ65: 1.395072268 | EA65: 1.395072268 | EB65: 1.395072268 | EC65: 1.395072268 | ED65: 1.395072268 | EE65: 1.395072268 | EF65: 1.395072268 | EG65: 1.395072268 | EH65: 1.395072268 | EI65: =$F$65 -> 1.395072268 | EJ65: 1.395072268 | EK65: 1.395072268 | EL65: 1.395072268 | EM65: 1.395072268 | EN65: 1.395072268 | EO65: 1.395072268 | EP65: 1.395072268 | EQ65: 1.395072268 | ER65: 1.395072268 | ES65: 1.395072268 | ET65: 1.395072268 | EU65: 1.395072268 | EV65: 1.395072268 | EW65: 1.395072268 | EX65: 1.395072268 | EY65: 1.395072268 | EZ65: 1.395072268 | FA65: 1.395072268 | FB65: 1.395072268 | FC65: 1.395072268
D66: Target DSCR - Curved
D68: DSCR Applied | F68: =Input!E29 -> 1 | J68: =INDEX(J64:J66,$F$68) -> 1.3 | K68: =INDEX(K64:K66,$F$68) -> 1.3 | L68: =INDEX(L64:L66,$F$68) -> 1.3 | M68: =INDEX(M64:M66,$F$68) -> 1.3 | N68: =INDEX(N64:N66,$F$68) -> 1.3 | O68: =INDEX(O64:O66,$F$68) -> 1.3 | P68: =INDEX(P64:P66,$F$68) -> 1.3 | Q68: =INDEX(Q64:Q66,$F$68) -> 1.3 | R68: =INDEX(R64:R66,$F$68) -> 1.3 | S68: =INDEX(S64:S66,$F$68) -> 1.3 | T68: =INDEX(T64:T66,$F$68) -> 1.3 | U68: =INDEX(U64:U66,$F$68) -> 1.3 | V68: =INDEX(V64:V66,$F$68) -> 1.3 | W68: =INDEX(W64:W66,$F$68) -> 1.3 | X68: =INDEX(X64:X66,$F$68) -> 1.3 | Y68: =INDEX(Y64:Y66,$F$68) -> 1.3 | Z68: =INDEX(Z64:Z66,$F$68) -> 1.3 | AA68: =INDEX(AA64:AA66,$F$68) -> 1.3 | AB68: =INDEX(AB64:AB66,$F$68) -> 1.3 | AC68: =INDEX(AC64:AC66,$F$68) -> 1.3 | AD68: =INDEX(AD64:AD66,$F$68) -> 1.3 | AE68: =INDEX(AE64:AE66,$F$68) -> 1.3 | AF68: =INDEX(AF64:AF66,$F$68) -> 1.3 | AG68: =INDEX(AG64:AG66,$F$68) -> 1.3 | AH68: =INDEX(AH64:AH66,$F$68) -> 1.3 | AI68: =INDEX(AI64:AI66,$F$68) -> 1.3 | AJ68: =INDEX(AJ64:AJ66,$F$68) -> 1.3 | AK68: =INDEX(AK64:AK66,$F$68) -> 1.3 | AL68: =INDEX(AL64:AL66,$F$68) -> 1.3 | AM68: =INDEX(AM64:AM66,$F$68) -> 1.3 | AN68: =INDEX(AN64:AN66,$F$68) -> 1.3 | AO68: =INDEX(AO64:AO66,$F$68) -> 1.3 | AP68: =INDEX(AP64:AP66,$F$68) -> 1.3 | AQ68: =INDEX(AQ64:AQ66,$F$68) -> 1.3 | AR68: =INDEX(AR64:AR66,$F$68) -> 1.3 | AS68: =INDEX(AS64:AS66,$F$68) -> 1.3 | AT68: =INDEX(AT64:AT66,$F$68) -> 1.3 | AU68: =INDEX(AU64:AU66,$F$68) -> 1.3 | AV68: =INDEX(AV64:AV66,$F$68) -> 1.3 | AW68: =INDEX(AW64:AW66,$F$68) -> 1.3 | AX68: =INDEX(AX64:AX66,$F$68) -> 1.3 | AY68: =INDEX(AY64:AY66,$F$68) -> 1.3 | AZ68: =INDEX(AZ64:AZ66,$F$68) -> 1.3 | BA68: =INDEX(BA64:BA66,$F$68) -> 1.3 | BB68: =INDEX(BB64:BB66,$F$68) -> 1.3 | BC68: =INDEX(BC64:BC66,$F$68) -> 1.3 | BD68: =INDEX(BD64:BD66,$F$68) -> 1.3 | BE68: =INDEX(BE64:BE66,$F$68) -> 1.3 | BF68: =INDEX(BF64:BF66,$F$68) -> 1.3 | BG68: =INDEX(BG64:BG66,$F$68) -> 1.3 | BH68: =INDEX(BH64:BH66,$F$68) -> 1.3 | BI68: =INDEX(BI64:BI66,$F$68) -> 1.3 | BJ68: =INDEX(BJ64:BJ66,$F$68) -> 1.3 | BK68: =INDEX(BK64:BK66,$F$68) -> 1.3 | BL68: =INDEX(BL64:BL66,$F$68) -> 1.3 | BM68: =INDEX(BM64:BM66,$F$68) -> 1.3 | BN68: =INDEX(BN64:BN66,$F$68) -> 1.3 | BO68: =INDEX(BO64:BO66,$F$68) -> 1.3 | BP68: =INDEX(BP64:BP66,$F$68) -> 1.3 | BQ68: =INDEX(BQ64:BQ66,$F$68) -> 1.3 | BR68: =INDEX(BR64:BR66,$F$68) -> 1.3 | BS68: =INDEX(BS64:BS66,$F$68) -> 1.3 | BT68: =INDEX(BT64:BT66,$F$68) -> 1.3 | BU68: =INDEX(BU64:BU66,$F$68) -> 1.3 | BV68: =INDEX(BV64:BV66,$F$68) -> 1.3 | BW68: =INDEX(BW64:BW66,$F$68) -> 1.3 | BX68: =INDEX(BX64:BX66,$F$68) -> 1.3 | BY68: =INDEX(BY64:BY66,$F$68) -> 1.3 | BZ68: =INDEX(BZ64:BZ66,$F$68) -> 1.3 | CA68: =INDEX(CA64:CA66,$F$68) -> 1.3 | CB68: =INDEX(CB64:CB66,$F$68) -> 1.3 | CC68: =INDEX(CC64:CC66,$F$68) -> 1.3 | CD68: =INDEX(CD64:CD66,$F$68) -> 1.3 | CE68: =INDEX(CE64:CE66,$F$68) -> 1.3 | CF68: =INDEX(CF64:CF66,$F$68) -> 1.3 | CG68: =INDEX(CG64:CG66,$F$68) -> 1.3 | CH68: =INDEX(CH64:CH66,$F$68) -> 1.3 | CI68: =INDEX(CI64:CI66,$F$68) -> 1.3 | CJ68: =INDEX(CJ64:CJ66,$F$68) -> 1.3 | CK68: =INDEX(CK64:CK66,$F$68) -> 1.3 | CL68: =INDEX(CL64:CL66,$F$68) -> 1.3 | CM68: =INDEX(CM64:CM66,$F$68) -> 1.3 | CN68: =INDEX(CN64:CN66,$F$68) -> 1.3 | CO68: =INDEX(CO64:CO66,$F$68) -> 1.3 | CP68: =INDEX(CP64:CP66,$F$68) -> 1.3 | CQ68: =INDEX(CQ64:CQ66,$F$68) -> 1.3 | CR68: =INDEX(CR64:CR66,$F$68) -> 1.3 | CS68: =INDEX(CS64:CS66,$F$68) -> 1.3 | CT68: =INDEX(CT64:CT66,$F$68) -> 1.3 | CU68: =INDEX(CU64:CU66,$F$68) -> 1.3 | CV68: =INDEX(CV64:CV66,$F$68) -> 1.3 | CW68: =INDEX(CW64:CW66,$F$68) -> 1.3 | CX68: =INDEX(CX64:CX66,$F$68) -> 1.3 | CY68: =INDEX(CY64:CY66,$F$68) -> 1.3 | CZ68: =INDEX(CZ64:CZ66,$F$68) -> 1.3 | DA68: =INDEX(DA64:DA66,$F$68) -> 1.3 | DB68: =INDEX(DB64:DB66,$F$68) -> 1.3 | DC68: =INDEX(DC64:DC66,$F$68) -> 1.3 | DD68: =INDEX(DD64:DD66,$F$68) -> 1.3 | DE68: =INDEX(DE64:DE66,$F$68) -> 1.3 | DF68: =INDEX(DF64:DF66,$F$68) -> 1.3 | DG68: =INDEX(DG64:DG66,$F$68) -> 1.3 | DH68: =INDEX(DH64:DH66,$F$68) -> 1.3 | DI68: =INDEX(DI64:DI66,$F$68) -> 1.3 | DJ68: =INDEX(DJ64:DJ66,$F$68) -> 1.3 | DK68: =INDEX(DK64:DK66,$F$68) -> 1.3 | DL68: =INDEX(DL64:DL66,$F$68) -> 1.3 | DM68: =INDEX(DM64:DM66,$F$68) -> 1.3 | DN68: =INDEX(DN64:DN66,$F$68) -> 1.3 | DO68: =INDEX(DO64:DO66,$F$68) -> 1.3 | DP68: =INDEX(DP64:DP66,$F$68) -> 1.3 | DQ68: =INDEX(DQ64:DQ66,$F$68) -> 1.3 | DR68: =INDEX(DR64:DR66,$F$68) -> 1.3 | DS68: =INDEX(DS64:DS66,$F$68) -> 1.3 | DT68: =INDEX(DT64:DT66,$F$68) -> 1.3 | DU68: =INDEX(DU64:DU66,$F$68) -> 1.3 | DV68: =INDEX(DV64:DV66,$F$68) -> 1.3 | DW68: =INDEX(DW64:DW66,$F$68) -> 1.3 | DX68: =INDEX(DX64:DX66,$F$68) -> 1.3 | DY68: =INDEX(DY64:DY66,$F$68) -> 1.3 | DZ68: =INDEX(DZ64:DZ66,$F$68) -> 1.3 | EA68: =INDEX(EA64:EA66,$F$68) -> 1.3 | EB68: =INDEX(EB64:EB66,$F$68) -> 1.3 | EC68: =INDEX(EC64:EC66,$F$68) -> 1.3 | ED68: =INDEX(ED64:ED66,$F$68) -> 1.3 | EE68: =INDEX(EE64:EE66,$F$68) -> 1.3 | EF68: =INDEX(EF64:EF66,$F$68) -> 1.3 | EG68: =INDEX(EG64:EG66,$F$68) -> 1.3 | EH68: =INDEX(EH64:EH66,$F$68) -> 1.3 | EI68: =INDEX(EI64:EI66,$F$68) -> 1.3 | EJ68: =INDEX(EJ64:EJ66,$F$68) -> 1.3 | EK68: =INDEX(EK64:EK66,$F$68) -> 1.3 | EL68: =INDEX(EL64:EL66,$F$68) -> 1.3 | EM68: =INDEX(EM64:EM66,$F$68) -> 1.3 | EN68: =INDEX(EN64:EN66,$F$68) -> 1.3 | EO68: =INDEX(EO64:EO66,$F$68) -> 1.3 | EP68: =INDEX(EP64:EP66,$F$68) -> 1.3 | EQ68: =INDEX(EQ64:EQ66,$F$68) -> 1.3 | ER68: =INDEX(ER64:ER66,$F$68) -> 1.3 | ES68: =INDEX(ES64:ES66,$F$68) -> 1.3 | ET68: =INDEX(ET64:ET66,$F$68) -> 1.3 | EU68: =INDEX(EU64:EU66,$F$68) -> 1.3 | EV68: =INDEX(EV64:EV66,$F$68) -> 1.3 | EW68: =INDEX(EW64:EW66,$F$68) -> 1.3 | EX68: =INDEX(EX64:EX66,$F$68) -> 1.3 | EY68: =INDEX(EY64:EY66,$F$68) -> 1.3 | EZ68: =INDEX(EZ64:EZ66,$F$68) -> 1.3 | FA68: =INDEX(FA64:FA66,$F$68) -> 1.3 | FB68: =INDEX(FB64:FB66,$F$68) -> 1.3 | FC68: =INDEX(FC64:FC66,$F$68) -> 1.3
D70: Target Debt Service | H70: =SUM(I70:FC70) -> 123417704.7 | J70: =IF( J54, J45 / J68 ) -> FALSE | K70: =IF( K54, K45 / K68 ) -> FALSE | L70: FALSE | M70: FALSE | N70: FALSE | O70: FALSE | P70: FALSE | Q70: FALSE | R70: FALSE | S70: FALSE | T70: FALSE | U70: FALSE | V70: 836032.5601 | W70: 1585878.357 | X70: 1621849.996 | Y70: 787687.8606 | Z70: 856933.3741 | AA70: 1625525.316 | AB70: 1662396.246 | AC70: 807380.0571 | AD70: 878356.7084 | AE70: 1666163.449 | AF70: 1703956.152 | AG70: 827564.5585 | AH70: 900315.6261 | AI70: 1707817.536 | AJ70: 1746555.056 | AK70: 848253.6725 | AL70: 922823.5168 | AM70: 1750512.974 | AN70: 1790218.932 | AO70: 869460.0143 | AP70: 945894.1047 | AQ70: 1794275.798 | AR70: 1834974.405 | AS70: 891196.5147 | AT70: 969541.4573 | AU70: 1839132.693 | AV70: 1880848.766 | AW70: 913476.4275 | AX70: 993779.9938 | AY70: 1885111.011 | AZ70: 1927869.985 | BA70: 936313.3382 | BB70: 1018624.494 | BC70: 1932238.786 | BD70: 1976066.734 | BE70: 959721.1717 | BF70: 1044090.106 | BG70: 1980544.756 | BH70: 2025468.403 | BI70: 983714.201 | BJ70: 1070192.359 | BK70: 2030058.374 | BL70: 2076105.113 | BM70: 1008307.056 | BN70: 1096947.168 | BO70: 2080809.834 | BP70: 2128007.741 | BQ70: 1033514.732 | BR70: 1124370.847 | BS70: 2132830.08 | BT70: 2181207.934 | BU70: 1059352.601 | BV70: 1152480.118 | BW70: =IF( BW54, BW45 / BW68 ) -> 2186150.832 | BX70: 2235738.133 | BY70: 1085836.416 | BZ70: 1181292.121 | CA70: 2240804.602 | CB70: 2291631.586 | CC70: 1112982.326 | CD70: 1210824.424 | CE70: 2296824.717 | CF70: 2348922.375 | CG70: 1140806.884 | CH70: 1241095.034 | CI70: 2354245.335 | CJ70: 2407645.435 | CK70: 1169327.056 | CL70: 1272122.41 | CM70: 2413101.469 | CN70: 2467836.571 | CO70: 1198560.233 | CP70: 1303925.471 | CQ70: 2473429.005 | CR70: 2529532.485 | CS70: 1228524.239 | CT70: 1336523.607 | CU70: 2535264.731 | CV70: 2592770.797 | CW70: 1259237.345 | CX70: FALSE | CY70: FALSE | CZ70: FALSE | DA70: FALSE | DB70: FALSE | DC70: FALSE | DD70: FALSE | DE70: FALSE | DF70: FALSE | DG70: FALSE | DH70: FALSE | DI70: FALSE | DJ70: FALSE | DK70: FALSE | DL70: FALSE | DM70: FALSE | DN70: FALSE | DO70: FALSE | DP70: FALSE | DQ70: FALSE | DR70: FALSE | DS70: FALSE | DT70: FALSE | DU70: FALSE | DV70: FALSE | DW70: FALSE | DX70: FALSE | DY70: FALSE | DZ70: FALSE | EA70: FALSE | EB70: FALSE | EC70: FALSE | ED70: FALSE | EE70: FALSE | EF70: FALSE | EG70: FALSE | EH70: FALSE | EI70: =IF( EI54, EI45 / EI68 ) -> FALSE | EJ70: FALSE | EK70: FALSE | EL70: FALSE | EM70: FALSE | EN70: FALSE | EO70: FALSE | EP70: FALSE | EQ70: FALSE | ER70: FALSE | ES70: FALSE | ET70: FALSE | EU70: FALSE | EV70: FALSE | EW70: FALSE | EX70: FALSE | EY70: FALSE | EZ70: FALSE | FA70: FALSE | FB70: FALSE | FC70: FALSE
D71: PV of Debt Service | F71: =Input!E38 + Input!E39 -> 0.0525 | G71: =F71 / Quarter -> 0.013125 | H71: =NPV(G71, J70:FC70 ) -> 72973010.93
C73: Summary of S&U
D74: Capex | H74: =G23 -> 80000000
D75: IDC
D76: Upfront Fees
D77: Commitment Fees
D78: Total Project Cost | H78: =SUM(H74:H77) -> 80000000
H80: 1
D83: Debt | G83: =Input!E28 -> 0.85 | H83: =H71 -> 72973010.93
D84: Equity | H84: =H78 - H83 -> 7026989.066
D85: Total | F85: =H83 / H85 -> 0.9121626367 | H85: =SUM(H83:H84) -> 80000000
C87: Debt Balance
D88: Repayments
D89: Debt Draw Date | F89: =EDATE( F7, -1) -> 2023-12-01 | H89: =SUM(J89:FC89) -> 1 | J89: =( $F$89 =J5)*1 -> 0 | K89: 0 | L89: 0 | M89: 0 | N89: 0 | O89: 0 | P89: 0 | Q89: 0 | R89: 0 | S89: 0 | T89: 0 | U89: 1 | V89: 0 | W89: 0 | X89: 0 | Y89: 0 | Z89: 0 | AA89: 0 | AB89: 0 | AC89: 0 | AD89: 0 | AE89: 0 | AF89: 0 | AG89: 0 | AH89: 0 | AI89: 0 | AJ89: 0 | AK89: 0 | AL89: 0 | AM89: 0 | AN89: 0 | AO89: 0 | AP89: =( $F$89 =AP5)*1 -> 0 | AQ89: 0 | AR89: 0 | AS89: 0 | AT89: 0 | AU89: 0 | AV89: 0 | AW89: 0 | AX89: 0 | AY89: 0 | AZ89: 0 | BA89: 0 | BB89: 0 | BC89: 0 | BD89: 0 | BE89: 0 | BF89: 0 | BG89: 0 | BH89: 0 | BI89: 0 | BJ89: 0 | BK89: 0 | BL89: 0 | BM89: 0 | BN89: 0 | BO89: 0 | BP89: 0 | BQ89: 0 | BR89: 0 | BS89: 0 | BT89: 0 | BU89: 0 | BV89: =( $F$89 =BV5)*1 -> 0 | BW89: 0 | BX89: 0 | BY89: 0 | BZ89: 0 | CA89: 0 | CB89: 0 | CC89: 0 | CD89: 0 | CE89: 0 | CF89: 0 | CG89: 0 | CH89: 0 | CI89: 0 | CJ89: 0 | CK89: 0 | CL89: 0 | CM89: 0 | CN89: 0 | CO89: 0 | CP89: 0 | CQ89: 0 | CR89: 0 | CS89: 0 | CT89: 0 | CU89: 0 | CV89: 0 | CW89: 0 | CX89: 0 | CY89: 0 | CZ89: 0 | DA89: 0 | DB89: =( $F$89 =DB5)*1 -> 0 | DC89: 0 | DD89: 0 | DE89: 0 | DF89: 0 | DG89: 0 | DH89: 0 | DI89: 0 | DJ89: 0 | DK89: 0 | DL89: 0 | DM89: 0 | DN89: 0 | DO89: 0 | DP89: 0 | DQ89: 0 | DR89: 0 | DS89: 0 | DT89: 0 | DU89: 0 | DV89: 0 | DW89: 0 | DX89: 0 | DY89: 0 | DZ89: 0 | EA89: 0 | EB89: 0 | EC89: 0 | ED89: 0 | EE89: 0 | EF89: 0 | EG89: 0 | EH89: =( $F$89 =EH5)*1 -> 0 | EI89: 0 | EJ89: 0 | EK89: 0 | EL89: 0 | EM89: 0 | EN89: 0 | EO89: 0 | EP89: 0 | EQ89: 0 | ER89: 0 | ES89: 0 | ET89: 0 | EU89: 0 | EV89: 0 | EW89: 0 | EX89: 0 | EY89: 0 | EZ89: 0 | FA89: 0 | FB89: 0 | FC89: 0
D91: Opening Balance | J91: =I94 -> 0 | K91: 0 | L91: 0 | M91: 0 | N91: 0 | O91: 0 | P91: 0 | Q91: 0 | R91: 0 | S91: 0 | T91: 0 | U91: 0 | V91: 0 | W91: 0 | X91: 0 | Y91: 0 | Z91: 0 | AA91: 0 | AB91: 0 | AC91: 0 | AD91: 0 | AE91: 0 | AF91: 0 | AG91: 0 | AH91: 0 | AI91: 0 | AJ91: 0 | AK91: 0 | AL91: 0 | AM91: 0 | AN91: 0 | AO91: 0 | AP91: =AO94 -> 0 | AQ91: 0 | AR91: 0 | AS91: 0 | AT91: 0 | AU91: 0 | AV91: 0 | AW91: 0 | AX91: 0 | AY91: 0 | AZ91: 0 | BA91: 0 | BB91: 0 | BC91: 0 | BD91: 0 | BE91: 0 | BF91: 0 | BG91: 0 | BH91: 0 | BI91: 0 | BJ91: 0 | BK91: 0 | BL91: 0 | BM91: 0 | BN91: 0 | BO91: 0 | BP91: 0 | BQ91: 0 | BR91: 0 | BS91: 0 | BT91: 0 | BU91: 0 | BV91: =BU94 -> 0 | BW91: 0 | BX91: 0 | BY91: 0 | BZ91: 0 | CA91: 0 | CB91: 0 | CC91: 0 | CD91: 0 | CE91: 0 | CF91: 0 | CG91: 0 | CH91: 0 | CI91: 0 | CJ91: 0 | CK91: 0 | CL91: 0 | CM91: 0 | CN91: 0 | CO91: 0 | CP91: 0 | CQ91: 0 | CR91: 0 | CS91: 0 | CT91: 0 | CU91: 0 | CV91: 0 | CW91: 0 | CX91: 0 | CY91: 0 | CZ91: 0 | DA91: 0 | DB91: =DA94 -> 0 | DC91: 0 | DD91: 0 | DE91: 0 | DF91: 0 | DG91: 0 | DH91: 0 | DI91: 0 | DJ91: 0 | DK91: 0 | DL91: 0 | DM91: 0 | DN91: 0 | DO91: 0 | DP91: 0 | DQ91: 0 | DR91: 0 | DS91: 0 | DT91: 0 | DU91: 0 | DV91: 0 | DW91: 0 | DX91: 0 | DY91: 0 | DZ91: 0 | EA91: 0 | EB91: 0 | EC91: 0 | ED91: 0 | EE91: 0 | EF91: 0 | EG91: 0 | EH91: =EG94 -> 0 | EI91: 0 | EJ91: 0 | EK91: 0 | EL91: 0 | EM91: 0 | EN91: 0 | EO91: 0 | EP91: 0 | EQ91: 0 | ER91: 0 | ES91: 0 | ET91: 0 | EU91: 0 | EV91: 0 | EW91: 0 | EX91: 0 | EY91: 0 | EZ91: 0 | FA91: 0 | FB91: 0 | FC91: 0
D92: (add) draws | F92: =K83 -> 0 | H92: =SUM(J92:FC92) -> 0 | J92: =$F$92 * J89 -> 0 | K92: 0 | L92: 0 | M92: 0 | N92: 0 | O92: 0 | P92: 0 | Q92: 0 | R92: 0 | S92: 0 | T92: 0 | U92: 0 | V92: 0 | W92: 0 | X92: 0 | Y92: 0 | Z92: 0 | AA92: 0 | AB92: 0 | AC92: 0 | AD92: 0 | AE92: 0 | AF92: 0 | AG92: 0 | AH92: 0 | AI92: 0 | AJ92: 0 | AK92: 0 | AL92: 0 | AM92: 0 | AN92: 0 | AO92: 0 | AP92: =$F$92 * AP89 -> 0 | AQ92: 0 | AR92: 0 | AS92: 0 | AT92: 0 | AU92: 0 | AV92: 0 | AW92: 0 | AX92: 0 | AY92: 0 | AZ92: 0 | BA92: 0 | BB92: 0 | BC92: 0 | BD92: 0 | BE92: 0 | BF92: 0 | BG92: 0 | BH92: 0 | BI92: 0 | BJ92: 0 | BK92: 0 | BL92: 0 | BM92: 0 | BN92: 0 | BO92: 0 | BP92: 0 | BQ92: 0 | BR92: 0 | BS92: 0 | BT92: 0 | BU92: 0 | BV92: =$F$92 * BV89 -> 0 | BW92: 0 | BX92: 0 | BY92: 0 | BZ92: 0 | CA92: 0 | CB92: 0 | CC92: 0 | CD92: 0 | CE92: 0 | CF92: 0 | CG92: 0 | CH92: 0 | CI92: 0 | CJ92: 0 | CK92: 0 | CL92: 0 | CM92: 0 | CN92: 0 | CO92: 0 | CP92: 0 | CQ92: 0 | CR92: 0 | CS92: 0 | CT92: 0 | CU92: 0 | CV92: 0 | CW92: 0 | CX92: 0 | CY92: 0 | CZ92: 0 | DA92: 0 | DB92: =$F$92 * DB89 -> 0 | DC92: 0 | DD92: 0 | DE92: 0 | DF92: 0 | DG92: 0 | DH92: 0 | DI92: 0 | DJ92: 0 | DK92: 0 | DL92: 0 | DM92: 0 | DN92: 0 | DO92: 0 | DP92: 0 | DQ92: 0 | DR92: 0 | DS92: 0 | DT92: 0 | DU92: 0 | DV92: 0 | DW92: 0 | DX92: 0 | DY92: 0 | DZ92: 0 | EA92: 0 | EB92: 0 | EC92: 0 | ED92: 0 | EE92: 0 | EF92: 0 | EG92: 0 | EH92: =$F$92 * EH89 -> 0 | EI92: 0 | EJ92: 0 | EK92: 0 | EL92: 0 | EM92: 0 | EN92: 0 | EO92: 0 | EP92: 0 | EQ92: 0 | ER92: 0 | ES92: 0 | ET92: 0 | EU92: 0 | EV92: 0 | EW92: 0 | EX92: 0 | EY92: 0 | EZ92: 0 | FA92: 0 | FB92: 0 | FC92: 0
D93: (less) repayments | H93: =SUM(J93:FC93) -> 0 | J93: =MIN( J70 - J97, J91) -> 0 | K93: 0 | L93: 0 | M93: 0 | N93: 0 | O93: 0 | P93: 0 | Q93: 0 | R93: 0 | S93: 0 | T93: 0 | U93: 0 | V93: 0 | W93: 0 | X93: 0 | Y93: 0 | Z93: 0 | AA93: 0 | AB93: 0 | AC93: 0 | AD93: 0 | AE93: 0 | AF93: 0 | AG93: 0 | AH93: 0 | AI93: 0 | AJ93: 0 | AK93: 0 | AL93: 0 | AM93: 0 | AN93: 0 | AO93: 0 | AP93: =MIN( AP70 - AP97, AP91) -> 0 | AQ93: 0 | AR93: 0 | AS93: 0 | AT93: 0 | AU93: 0 | AV93: 0 | AW93: 0 | AX93: 0 | AY93: 0 | AZ93: 0 | BA93: 0 | BB93: 0 | BC93: 0 | BD93: 0 | BE93: 0 | BF93: 0 | BG93: 0 | BH93: 0 | BI93: 0 | BJ93: 0 | BK93: 0 | BL93: 0 | BM93: 0 | BN93: 0 | BO93: 0 | BP93: 0 | BQ93: 0 | BR93: 0 | BS93: 0 | BT93: 0 | BU93: 0 | BV93: =MIN( BV70 - BV97, BV91) -> 0 | BW93: 0 | BX93: 0 | BY93: 0 | BZ93: 0 | CA93: 0 | CB93: 0 | CC93: 0 | CD93: 0 | CE93: 0 | CF93: 0 | CG93: 0 | CH93: 0 | CI93: 0 | CJ93: 0 | CK93: 0 | CL93: 0 | CM93: 0 | CN93: 0 | CO93: 0 | CP93: 0 | CQ93: 0 | CR93: 0 | CS93: 0 | CT93: 0 | CU93: 0 | CV93: 0 | CW93: 0 | CX93: 0 | CY93: 0 | CZ93: 0 | DA93: 0 | DB93: =MIN( DB70 - DB97, DB91) -> 0 | DC93: 0 | DD93: 0 | DE93: 0 | DF93: 0 | DG93: 0 | DH93: 0 | DI93: 0 | DJ93: 0 | DK93: 0 | DL93: 0 | DM93: 0 | DN93: 0 | DO93: 0 | DP93: 0 | DQ93: 0 | DR93: 0 | DS93: 0 | DT93: 0 | DU93: 0 | DV93: 0 | DW93: 0 | DX93: 0 | DY93: 0 | DZ93: 0 | EA93: 0 | EB93: 0 | EC93: 0 | ED93: 0 | EE93: 0 | EF93: 0 | EG93: 0 | EH93: =MIN( EH70 - EH97, EH91) -> 0 | EI93: 0 | EJ93: 0 | EK93: 0 | EL93: 0 | EM93: 0 | EN93: 0 | EO93: 0 | EP93: 0 | EQ93: 0 | ER93: 0 | ES93: 0 | ET93: 0 | EU93: 0 | EV93: 0 | EW93: 0 | EX93: 0 | EY93: 0 | EZ93: 0 | FA93: 0 | FB93: 0 | FC93: 0
D94: Closing Balance | J94: =J91 + J92 - J93 -> 0 | K94: 0 | L94: 0 | M94: 0 | N94: 0 | O94: 0 | P94: 0 | Q94: 0 | R94: 0 | S94: 0 | T94: 0 | U94: 0 | V94: 0 | W94: 0 | X94: 0 | Y94: 0 | Z94: 0 | AA94: 0 | AB94: 0 | AC94: 0 | AD94: 0 | AE94: 0 | AF94: 0 | AG94: 0 | AH94: 0 | AI94: 0 | AJ94: 0 | AK94: 0 | AL94: 0 | AM94: 0 | AN94: 0 | AO94: 0 | AP94: =AP91 + AP92 - AP93 -> 0 | AQ94: 0 | AR94: 0 | AS94: 0 | AT94: 0 | AU94: 0 | AV94: 0 | AW94: 0 | AX94: 0 | AY94: 0 | AZ94: 0 | BA94: 0 | BB94: 0 | BC94: 0 | BD94: 0 | BE94: 0 | BF94: 0 | BG94: 0 | BH94: 0 | BI94: 0 | BJ94: 0 | BK94: 0 | BL94: 0 | BM94: 0 | BN94: 0 | BO94: 0 | BP94: 0 | BQ94: 0 | BR94: 0 | BS94: 0 | BT94: 0 | BU94: 0 | BV94: =BV91 + BV92 - BV93 -> 0 | BW94: 0 | BX94: 0 | BY94: 0 | BZ94: 0 | CA94: 0 | CB94: 0 | CC94: 0 | CD94: 0 | CE94: 0 | CF94: 0 | CG94: 0 | CH94: 0 | CI94: 0 | CJ94: 0 | CK94: 0 | CL94: 0 | CM94: 0 | CN94: 0 | CO94: 0 | CP94: 0 | CQ94: 0 | CR94: 0 | CS94: 0 | CT94: 0 | CU94: 0 | CV94: 0 | CW94: 0 | CX94: 0 | CY94: 0 | CZ94: 0 | DA94: 0 | DB94: =DB91 + DB92 - DB93 -> 0 | DC94: 0 | DD94: 0 | DE94: 0 | DF94: 0 | DG94: 0 | DH94: 0 | DI94: 0 | DJ94: 0 | DK94: 0 | DL94: 0 | DM94: 0 | DN94: 0 | DO94: 0 | DP94: 0 | DQ94: 0 | DR94: 0 | DS94: 0 | DT94: 0 | DU94: 0 | DV94: 0 | DW94: 0 | DX94: 0 | DY94: 0 | DZ94: 0 | EA94: 0 | EB94: 0 | EC94: 0 | ED94: 0 | EE94: 0 | EF94: 0 | EG94: 0 | EH94: =EH91 + EH92 - EH93 -> 0 | EI94: 0 | EJ94: 0 | EK94: 0 | EL94: 0 | EM94: 0 | EN94: 0 | EO94: 0 | EP94: 0 | EQ94: 0 | ER94: 0 | ES94: 0 | ET94: 0 | EU94: 0 | EV94: 0 | EW94: 0 | EX94: 0 | EY94: 0 | EZ94: 0 | FA94: 0 | FB94: 0 | FC94: 0
D96: Periodic Interest Rate | F96: =F71 -> 0.0525 | G96: =G71 -> 0.013125 | J96: =$F$96 / 12 * J4 -> 0.004375 | K96: 0.004375 | L96: 0.004375 | M96: 0.004375 | N96: 0.004375 | O96: 0.004375 | P96: 0.004375 | Q96: 0.004375 | R96: 0.004375 | S96: 0.004375 | T96: 0.004375 | U96: 0.004375 | V96: 0.013125 | W96: 0.013125 | X96: 0.013125 | Y96: 0.013125 | Z96: 0.013125 | AA96: 0.013125 | AB96: 0.013125 | AC96: 0.013125 | AD96: 0.013125 | AE96: 0.013125 | AF96: 0.013125 | AG96: 0.013125 | AH96: 0.013125 | AI96: 0.013125 | AJ96: 0.013125 | AK96: 0.013125 | AL96: 0.013125 | AM96: 0.013125 | AN96: 0.013125 | AO96: 0.013125 | AP96: =$F$96 / 12 * AP4 -> 0.013125 | AQ96: 0.013125 | AR96: 0.013125 | AS96: 0.013125 | AT96: 0.013125 | AU96: 0.013125 | AV96: 0.013125 | AW96: 0.013125 | AX96: 0.013125 | AY96: 0.013125 | AZ96: 0.013125 | BA96: 0.013125 | BB96: 0.013125 | BC96: 0.013125 | BD96: 0.013125 | BE96: 0.013125 | BF96: 0.013125 | BG96: 0.013125 | BH96: 0.013125 | BI96: 0.013125 | BJ96: 0.013125 | BK96: 0.013125 | BL96: 0.013125 | BM96: 0.013125 | BN96: 0.013125 | BO96: 0.013125 | BP96: 0.013125 | BQ96: 0.013125 | BR96: 0.013125 | BS96: 0.013125 | BT96: 0.013125 | BU96: 0.013125 | BV96: =$F$96 / 12 * BV4 -> 0.013125 | BW96: 0.013125 | BX96: 0.013125 | BY96: 0.013125 | BZ96: 0.013125 | CA96: 0.013125 | CB96: 0.013125 | CC96: 0.013125 | CD96: 0.013125 | CE96: 0.013125 | CF96: 0.013125 | CG96: 0.013125 | CH96: 0.013125 | CI96: 0.013125 | CJ96: 0.013125 | CK96: 0.013125 | CL96: 0.013125 | CM96: 0.013125 | CN96: 0.013125 | CO96: 0.013125 | CP96: 0.013125 | CQ96: 0.013125 | CR96: 0.013125 | CS96: 0.013125 | CT96: 0.013125 | CU96: 0.013125 | CV96: 0.013125 | CW96: 0.013125 | CX96: 0.013125 | CY96: 0.013125 | CZ96: 0.013125 | DA96: 0.013125 | DB96: =$F$96 / 12 * DB4 -> 0.013125 | DC96: 0.013125 | DD96: 0.013125 | DE96: 0.013125 | DF96: 0.013125 | DG96: 0.013125 | DH96: 0.013125 | DI96: 0.013125 | DJ96: 0.013125 | DK96: 0.013125 | DL96: 0.013125 | DM96: 0.013125 | DN96: 0.013125 | DO96: 0.013125 | DP96: 0.013125 | DQ96: 0.013125 | DR96: 0.013125 | DS96: 0.013125 | DT96: 0.013125 | DU96: 0.013125 | DV96: 0.013125 | DW96: 0.013125 | DX96: 0.013125 | DY96: 0.013125 | DZ96: 0.013125 | EA96: 0.013125 | EB96: 0.013125 | EC96: 0.013125 | ED96: 0.013125 | EE96: 0.013125 | EF96: 0.013125 | EG96: 0.013125 | EH96: =$F$96 / 12 * EH4 -> 0.013125 | EI96: 0.013125 | EJ96: 0.013125 | EK96: 0.013125 | EL96: 0.013125 | EM96: 0.013125 | EN96: 0.013125 | EO96: 0.013125 | EP96: 0.013125 | EQ96: 0.013125 | ER96: 0.013125 | ES96: 0.013125 | ET96: 0.013125 | EU96: 0.013125 | EV96: 0.013125 | EW96: 0.013125 | EX96: 0.013125 | EY96: 0.013125 | EZ96: 0.013125 | FA96: 0.013125 | FB96: 0.013125 | FC96: 0.013125
D97: Interest Cost | J97: =J96 * J91 -> 0 | K97: 0 | L97: 0 | M97: 0 | N97: 0 | O97: 0 | P97: 0 | Q97: 0 | R97: 0 | S97: 0 | T97: 0 | U97: 0 | V97: 0 | W97: 0 | X97: 0 | Y97: 0 | Z97: 0 | AA97: 0 | AB97: 0 | AC97: 0 | AD97: 0 | AE97: 0 | AF97: 0 | AG97: 0 | AH97: 0 | AI97: 0 | AJ97: 0 | AK97: 0 | AL97: 0 | AM97: 0 | AN97: 0 | AO97: 0 | AP97: =AP96 * AP91 -> 0 | AQ97: 0 | AR97: 0 | AS97: 0 | AT97: 0 | AU97: 0 | AV97: 0 | AW97: 0 | AX97: 0 | AY97: 0 | AZ97: 0 | BA97: 0 | BB97: 0 | BC97: 0 | BD97: 0 | BE97: 0 | BF97: 0 | BG97: 0 | BH97: 0 | BI97: 0 | BJ97: 0 | BK97: 0 | BL97: 0 | BM97: 0 | BN97: 0 | BO97: 0 | BP97: 0 | BQ97: 0 | BR97: 0 | BS97: 0 | BT97: 0 | BU97: 0 | BV97: =BV96 * BV91 -> 0 | BW97: 0 | BX97: 0 | BY97: 0 | BZ97: 0 | CA97: 0 | CB97: 0 | CC97: 0 | CD97: 0 | CE97: 0 | CF97: 0 | CG97: 0 | CH97: 0 | CI97: 0 | CJ97: 0 | CK97: 0 | CL97: 0 | CM97: 0 | CN97: 0 | CO97: 0 | CP97: 0 | CQ97: 0 | CR97: 0 | CS97: 0 | CT97: 0 | CU97: 0 | CV97: 0 | CW97: 0 | CX97: 0 | CY97: 0 | CZ97: 0 | DA97: 0 | DB97: =DB96 * DB91 -> 0 | DC97: 0 | DD97: 0 | DE97: 0 | DF97: 0 | DG97: 0 | DH97: 0 | DI97: 0 | DJ97: 0 | DK97: 0 | DL97: 0 | DM97: 0 | DN97: 0 | DO97: 0 | DP97: 0 | DQ97: 0 | DR97: 0 | DS97: 0 | DT97: 0 | DU97: 0 | DV97: 0 | DW97: 0 | DX97: 0 | DY97: 0 | DZ97: 0 | EA97: 0 | EB97: 0 | EC97: 0 | ED97: 0 | EE97: 0 | EF97: 0 | EG97: 0 | EH97: =EH96 * EH91 -> 0 | EI97: 0 | EJ97: 0 | EK97: 0 | EL97: 0 | EM97: 0 | EN97: 0 | EO97: 0 | EP97: 0 | EQ97: 0 | ER97: 0 | ES97: 0 | ET97: 0 | EU97: 0 | EV97: 0 | EW97: 0 | EX97: 0 | EY97: 0 | EZ97: 0 | FA97: 0 | FB97: 0 | FC97: 0
D99: Project Cash Flow | E99: USD | J99: =J41 -> -6666666.667 | K99: -6666666.667 | L99: -6666666.667 | M99: -6666666.667 | N99: -6666666.667 | O99: -6666666.667 | P99: -6666666.667 | Q99: -6666666.667 | R99: -6666666.667 | S99: -6666666.667 | T99: -6666666.667 | U99: -6666666.667 | V99: 1086842.328 | W99: 2061641.865 | X99: 2108404.995 | Y99: 1023994.219 | Z99: 1114013.386 | AA99: 2113182.911 | AB99: 2161115.12 | AC99: 1049594.074 | AD99: 1141863.721 | AE99: 2166012.484 | AF99: 2215142.998 | AG99: 1075833.926 | AH99: 1170410.314 | AI99: 2220162.796 | AJ99: 2270521.573 | AK99: 1102729.774 | AL99: 1199670.572 | AM99: 2275666.866 | AN99: 2327284.612 | AO99: 1130298.019 | AP99: =AP41 -> 1229662.336 | AQ99: 2332558.538 | AR99: 2385466.727 | AS99: 1158555.469 | AT99: 1260403.895 | AU99: 2390872.501 | AV99: 2445103.395 | AW99: 1187519.356 | AX99: 1291913.992 | AY99: 2450644.314 | AZ99: 2506230.98 | BA99: 1217207.34 | BB99: 1324211.842 | BC99: 2511910.422 | BD99: 2568886.755 | BE99: 1247637.523 | BF99: 1357317.138 | BG99: 2574708.182 | BH99: 2633108.924 | BI99: 1278828.461 | BJ99: 1391250.066 | BK99: 2639075.887 | BL99: 2698936.647 | BM99: 1310799.173 | BN99: 1426031.318 | BO99: 2705052.784 | BP99: 2766410.063 | BQ99: 1343569.152 | BR99: 1461682.101 | BS99: 2772679.103 | BT99: 2835570.314 | BU99: 1377158.381 | BV99: =BV41 -> 1498224.153 | BW99: 2841996.081 | BX99: 2906459.572 | BY99: 1411587.34 | BZ99: 1535679.757 | CA99: 2913045.983 | CB99: 2979121.062 | CC99: 1446877.024 | CD99: 1574071.751 | CE99: 2985872.133 | CF99: 3053599.088 | CG99: 1483048.95 | CH99: 1613423.545 | CI99: 3060518.936 | CJ99: 3129939.065 | CK99: 1520125.173 | CL99: 1653759.133 | CM99: 3137031.909 | CN99: 3208187.542 | CO99: 1558128.303 | CP99: 1695103.112 | CQ99: 3215457.707 | CR99: 3288392.23 | CS99: 1597081.51 | CT99: 1737480.69 | CU99: 3295844.15 | CV99: 3370602.036 | CW99: 1637008.548 | CX99: 1780917.707 | CY99: 3378240.254 | CZ99: 3454867.087 | DA99: 1677933.762 | DB99: =DB41 -> 1825440.649 | DC99: 3462696.26 | DD99: 3541238.764 | DE99: 1719882.106 | DF99: 1871076.666 | DG99: 3549263.666 | DH99: 3629769.733 | DI99: 1762879.158 | DJ99: 1917853.582 | DK99: 3637995.258 | DL99: 3720513.977 | DM99: 1806951.137 | DN99: 1965799.922 | DO99: 3728945.14 | DP99: 3813526.826 | DQ99: 1852124.916 | DR99: 0 | DS99: 0 | DT99: 0 | DU99: 0 | DV99: 0 | DW99: 0 | DX99: 0 | DY99: 0 | DZ99: 0 | EA99: 0 | EB99: 0 | EC99: 0 | ED99: 0 | EE99: 0 | EF99: 0 | EG99: 0 | EH99: =EH41 -> 0 | EI99: 0 | EJ99: 0 | EK99: 0 | EL99: 0 | EM99: 0 | EN99: 0 | EO99: 0 | EP99: 0 | EQ99: 0 | ER99: 0 | ES99: 0 | ET99: 0 | EU99: 0 | EV99: 0 | EW99: 0 | EX99: 0 | EY99: 0 | EZ99: 0 | FA99: 0 | FB99: 0 | FC99: 0
D100: Add: Debt Financing | E100: USD | J100: =J92 -> 0 | K100: 0 | L100: 0 | M100: 0 | N100: 0 | O100: 0 | P100: 0 | Q100: 0 | R100: 0 | S100: 0 | T100: 0 | U100: 0 | V100: 0 | W100: 0 | X100: 0 | Y100: 0 | Z100: 0 | AA100: 0 | AB100: 0 | AC100: 0 | AD100: 0 | AE100: 0 | AF100: 0 | AG100: 0 | AH100: 0 | AI100: 0 | AJ100: 0 | AK100: 0 | AL100: 0 | AM100: 0 | AN100: 0 | AO100: 0 | AP100: =AP92 -> 0 | AQ100: 0 | AR100: 0 | AS100: 0 | AT100: 0 | AU100: 0 | AV100: 0 | AW100: 0 | AX100: 0 | AY100: 0 | AZ100: 0 | BA100: 0 | BB100: 0 | BC100: 0 | BD100: 0 | BE100: 0 | BF100: 0 | BG100: 0 | BH100: 0 | BI100: 0 | BJ100: 0 | BK100: 0 | BL100: 0 | BM100: 0 | BN100: 0 | BO100: 0 | BP100: 0 | BQ100: 0 | BR100: 0 | BS100: 0 | BT100: 0 | BU100: 0 | BV100: =BV92 -> 0 | BW100: 0 | BX100: 0 | BY100: 0 | BZ100: 0 | CA100: 0 | CB100: 0 | CC100: 0 | CD100: 0 | CE100: 0 | CF100: 0 | CG100: 0 | CH100: 0 | CI100: 0 | CJ100: 0 | CK100: 0 | CL100: 0 | CM100: 0 | CN100: 0 | CO100: 0 | CP100: 0 | CQ100: 0 | CR100: 0 | CS100: 0 | CT100: 0 | CU100: 0 | CV100: 0 | CW100: 0 | CX100: 0 | CY100: 0 | CZ100: 0 | DA100: 0 | DB100: =DB92 -> 0 | DC100: 0 | DD100: 0 | DE100: 0 | DF100: 0 | DG100: 0 | DH100: 0 | DI100: 0 | DJ100: 0 | DK100: 0 | DL100: 0 | DM100: 0 | DN100: 0 | DO100: 0 | DP100: 0 | DQ100: 0 | DR100: 0 | DS100: 0 | DT100: 0 | DU100: 0 | DV100: 0 | DW100: 0 | DX100: 0 | DY100: 0 | DZ100: 0 | EA100: 0 | EB100: 0 | EC100: 0 | ED100: 0 | EE100: 0 | EF100: 0 | EG100: 0 | EH100: =EH92 -> 0 | EI100: 0 | EJ100: 0 | EK100: 0 | EL100: 0 | EM100: 0 | EN100: 0 | EO100: 0 | EP100: 0 | EQ100: 0 | ER100: 0 | ES100: 0 | ET100: 0 | EU100: 0 | EV100: 0 | EW100: 0 | EX100: 0 | EY100: 0 | EZ100: 0 | FA100: 0 | FB100: 0 | FC100: 0
D101: Less: Debt Service | E101: USD | J101: =J93+J97 -> 0 | K101: 0 | L101: 0 | M101: 0 | N101: 0 | O101: 0 | P101: 0 | Q101: 0 | R101: 0 | S101: 0 | T101: 0 | U101: 0 | V101: 0 | W101: 0 | X101: 0 | Y101: 0 | Z101: 0 | AA101: 0 | AB101: 0 | AC101: 0 | AD101: 0 | AE101: 0 | AF101: 0 | AG101: 0 | AH101: 0 | AI101: 0 | AJ101: 0 | AK101: 0 | AL101: 0 | AM101: 0 | AN101: 0 | AO101: 0 | AP101: =AP93+AP97 -> 0 | AQ101: 0 | AR101: 0 | AS101: 0 | AT101: 0 | AU101: 0 | AV101: 0 | AW101: 0 | AX101: 0 | AY101: 0 | AZ101: 0 | BA101: 0 | BB101: 0 | BC101: 0 | BD101: 0 | BE101: 0 | BF101: 0 | BG101: 0 | BH101: 0 | BI101: 0 | BJ101: 0 | BK101: 0 | BL101: 0 | BM101: 0 | BN101: 0 | BO101: 0 | BP101: 0 | BQ101: 0 | BR101: 0 | BS101: 0 | BT101: 0 | BU101: 0 | BV101: =BV93+BV97 -> 0 | BW101: 0 | BX101: 0 | BY101: 0 | BZ101: 0 | CA101: 0 | CB101: 0 | CC101: 0 | CD101: 0 | CE101: 0 | CF101: 0 | CG101: 0 | CH101: 0 | CI101: 0 | CJ101: 0 | CK101: 0 | CL101: 0 | CM101: 0 | CN101: 0 | CO101: 0 | CP101: 0 | CQ101: 0 | CR101: 0 | CS101: 0 | CT101: 0 | CU101: 0 | CV101: 0 | CW101: 0 | CX101: 0 | CY101: 0 | CZ101: 0 | DA101: 0 | DB101: =DB93+DB97 -> 0 | DC101: 0 | DD101: 0 | DE101: 0 | DF101: 0 | DG101: 0 | DH101: 0 | DI101: 0 | DJ101: 0 | DK101: 0 | DL101: 0 | DM101: 0 | DN101: 0 | DO101: 0 | DP101: 0 | DQ101: 0 | DR101: 0 | DS101: 0 | DT101: 0 | DU101: 0 | DV101: 0 | DW101: 0 | DX101: 0 | DY101: 0 | DZ101: 0 | EA101: 0 | EB101: 0 | EC101: 0 | ED101: 0 | EE101: 0 | EF101: 0 | EG101: 0 | EH101: =EH93+EH97 -> 0 | EI101: 0 | EJ101: 0 | EK101: 0 | EL101: 0 | EM101: 0 | EN101: 0 | EO101: 0 | EP101: 0 | EQ101: 0 | ER101: 0 | ES101: 0 | ET101: 0 | EU101: 0 | EV101: 0 | EW101: 0 | EX101: 0 | EY101: 0 | EZ101: 0 | FA101: 0 | FB101: 0 | FC101: 0
D102: Equity Cashflow | E102: USD | F102: =XIRR(J102:FC102, J6:FC6) -> 0.08348071873 | H102: =SUM(J102:FC102) -> 134540932.7 | J102: =J99+J100-J101 -> -6666666.667 | K102: =K99+K100-K101 -> -6666666.667 | L102: -6666666.667 | M102: -6666666.667 | N102: -6666666.667 | O102: -6666666.667 | P102: -6666666.667 | Q102: -6666666.667 | R102: -6666666.667 | S102: -6666666.667 | T102: -6666666.667 | U102: -6666666.667 | V102: 1086842.328 | W102: 2061641.865 | X102: 2108404.995 | Y102: 1023994.219 | Z102: 1114013.386 | AA102: 2113182.911 | AB102: 2161115.12 | AC102: 1049594.074 | AD102: 1141863.721 | AE102: 2166012.484 | AF102: 2215142.998 | AG102: 1075833.926 | AH102: 1170410.314 | AI102: 2220162.796 | AJ102: 2270521.573 | AK102: 1102729.774 | AL102: 1199670.572 | AM102: 2275666.866 | AN102: 2327284.612 | AO102: 1130298.019 | AP102: 1229662.336 | AQ102: 2332558.538 | AR102: 2385466.727 | AS102: 1158555.469 | AT102: 1260403.895 | AU102: 2390872.501 | AV102: 2445103.395 | AW102: 1187519.356 | AX102: 1291913.992 | AY102: 2450644.314 | AZ102: 2506230.98 | BA102: 1217207.34 | BB102: 1324211.842 | BC102: 2511910.422 | BD102: 2568886.755 | BE102: 1247637.523 | BF102: 1357317.138 | BG102: 2574708.182 | BH102: 2633108.924 | BI102: 1278828.461 | BJ102: 1391250.066 | BK102: 2639075.887 | BL102: 2698936.647 | BM102: 1310799.173 | BN102: 1426031.318 | BO102: 2705052.784 | BP102: 2766410.063 | BQ102: 1343569.152 | BR102: 1461682.101 | BS102: 2772679.103 | BT102: 2835570.314 | BU102: 1377158.381 | BV102: 1498224.153 | BW102: =BW99+BW100-BW101 -> 2841996.081 | BX102: 2906459.572 | BY102: 1411587.34 | BZ102: 1535679.757 | CA102: 2913045.983 | CB102: 2979121.062 | CC102: 1446877.024 | CD102: 1574071.751 | CE102: 2985872.133 | CF102: 3053599.088 | CG102: 1483048.95 | CH102: 1613423.545 | CI102: 3060518.936 | CJ102: 3129939.065 | CK102: 1520125.173 | CL102: 1653759.133 | CM102: 3137031.909 | CN102: 3208187.542 | CO102: 1558128.303 | CP102: 1695103.112 | CQ102: 3215457.707 | CR102: 3288392.23 | CS102: 1597081.51 | CT102: 1737480.69 | CU102: 3295844.15 | CV102: 3370602.036 | CW102: 1637008.548 | CX102: 1780917.707 | CY102: 3378240.254 | CZ102: 3454867.087 | DA102: 1677933.762 | DB102: 1825440.649 | DC102: 3462696.26 | DD102: 3541238.764 | DE102: 1719882.106 | DF102: 1871076.666 | DG102: 3549263.666 | DH102: 3629769.733 | DI102: 1762879.158 | DJ102: 1917853.582 | DK102: 3637995.258 | DL102: 3720513.977 | DM102: 1806951.137 | DN102: 1965799.922 | DO102: 3728945.14 | DP102: 3813526.826 | DQ102: 1852124.916 | DR102: 0 | DS102: 0 | DT102: 0 | DU102: 0 | DV102: 0 | DW102: 0 | DX102: 0 | DY102: 0 | DZ102: 0 | EA102: 0 | EB102: 0 | EC102: 0 | ED102: 0 | EE102: 0 | EF102: 0 | EG102: 0 | EH102: 0 | EI102: =EI99+EI100-EI101 -> 0 | EJ102: 0 | EK102: 0 | EL102: 0 | EM102: 0 | EN102: 0 | EO102: 0 | EP102: 0 | EQ102: 0 | ER102: 0 | ES102: 0 | ET102: 0 | EU102: 0 | EV102: 0 | EW102: 0 | EX102: 0 | EY102: 0 | EZ102: 0 | FA102: 0 | FB102: 0 | FC102: 0
C104: Construction Funding
D105: Capex | E105: USD | J105: =J25 -> 6666666.667 | K105: 6666666.667 | L105: 6666666.667 | M105: 6666666.667 | N105: 6666666.667 | O105: 6666666.667 | P105: 6666666.667 | Q105: 6666666.667 | R105: 6666666.667 | S105: 6666666.667 | T105: 6666666.667 | U105: 6666666.667 | V105: 0 | W105: 0 | X105: 0 | Y105: 0 | Z105: 0 | AA105: 0 | AB105: 0 | AC105: 0 | AD105: 0 | AE105: 0 | AF105: 0 | AG105: 0 | AH105: 0 | AI105: 0 | AJ105: 0 | AK105: 0 | AL105: 0 | AM105: 0 | AN105: 0 | AO105: 0 | AP105: =AP25 -> 0 | AQ105: 0 | AR105: 0 | AS105: 0 | AT105: 0 | AU105: 0 | AV105: 0 | AW105: 0 | AX105: 0 | AY105: 0 | AZ105: 0 | BA105: 0 | BB105: 0 | BC105: 0 | BD105: 0 | BE105: 0 | BF105: 0 | BG105: 0 | BH105: 0 | BI105: 0 | BJ105: 0 | BK105: 0 | BL105: 0 | BM105: 0 | BN105: 0 | BO105: 0 | BP105: 0 | BQ105: 0 | BR105: 0 | BS105: 0 | BT105: 0 | BU105: 0 | BV105: =BV25 -> 0 | BW105: 0 | BX105: 0 | BY105: 0 | BZ105: 0 | CA105: 0 | CB105: 0 | CC105: 0 | CD105: 0 | CE105: 0 | CF105: 0 | CG105: 0 | CH105: 0 | CI105: 0 | CJ105: 0 | CK105: 0 | CL105: 0 | CM105: 0 | CN105: 0 | CO105: 0 | CP105: 0 | CQ105: 0 | CR105: 0 | CS105: 0 | CT105: 0 | CU105: 0 | CV105: 0 | CW105: 0 | CX105: 0 | CY105: 0 | CZ105: 0 | DA105: 0 | DB105: =DB25 -> 0 | DC105: 0 | DD105: 0 | DE105: 0 | DF105: 0 | DG105: 0 | DH105: 0 | DI105: 0 | DJ105: 0 | DK105: 0 | DL105: 0 | DM105: 0 | DN105: 0 | DO105: 0 | DP105: 0 | DQ105: 0 | DR105: 0 | DS105: 0 | DT105: 0 | DU105: 0 | DV105: 0 | DW105: 0 | DX105: 0 | DY105: 0 | DZ105: 0 | EA105: 0 | EB105: 0 | EC105: 0 | ED105: 0 | EE105: 0 | EF105: 0 | EG105: 0 | EH105: =EH25 -> 0 | EI105: 0 | EJ105: 0 | EK105: 0 | EL105: 0 | EM105: 0 | EN105: 0 | EO105: 0 | EP105: 0 | EQ105: 0 | ER105: 0 | ES105: 0 | ET105: 0 | EU105: 0 | EV105: 0 | EW105: 0 | EX105: 0 | EY105: 0 | EZ105: 0 | FA105: 0 | FB105: 0 | FC105: 0
D106: IDC | E106: USD
D107: Upfront Fees | E107: USD
D108: Commitment Fees | E108: USD
D109: Total Project Cost | E109: USD | J109: =SUM(J105:J108) -> 6666666.667 | K109: =SUM(K105:K108) -> 6666666.667 | L109: 6666666.667 | M109: 6666666.667 | N109: 6666666.667 | O109: 6666666.667 | P109: 6666666.667 | Q109: 6666666.667 | R109: 6666666.667 | S109: 6666666.667 | T109: 6666666.667 | U109: 6666666.667 | V109: 0 | W109: 0 | X109: 0 | Y109: 0 | Z109: 0 | AA109: 0 | AB109: 0 | AC109: 0 | AD109: 0 | AE109: 0 | AF109: 0 | AG109: 0 | AH109: 0 | AI109: 0 | AJ109: 0 | AK109: 0 | AL109: 0 | AM109: 0 | AN109: 0 | AO109: 0 | AP109: 0 | AQ109: 0 | AR109: 0 | AS109: 0 | AT109: 0 | AU109: 0 | AV109: 0 | AW109: 0 | AX109: 0 | AY109: 0 | AZ109: 0 | BA109: 0 | BB109: 0 | BC109: 0 | BD109: 0 | BE109: 0 | BF109: 0 | BG109: 0 | BH109: 0 | BI109: 0 | BJ109: 0 | BK109: 0 | BL109: 0 | BM109: 0 | BN109: 0 | BO109: 0 | BP109: 0 | BQ109: 0 | BR109: 0 | BS109: 0 | BT109: 0 | BU109: 0 | BV109: 0 | BW109: =SUM(BW105:BW108) -> 0 | BX109: 0 | BY109: 0 | BZ109: 0 | CA109: 0 | CB109: 0 | CC109: 0 | CD109: 0 | CE109: 0 | CF109: 0 | CG109: 0 | CH109: 0 | CI109: 0 | CJ109: 0 | CK109: 0 | CL109: 0 | CM109: 0 | CN109: 0 | CO109: 0 | CP109: 0 | CQ109: 0 | CR109: 0 | CS109: 0 | CT109: 0 | CU109: 0 | CV109: 0 | CW109: 0 | CX109: 0 | CY109: 0 | CZ109: 0 | DA109: 0 | DB109: 0 | DC109: 0 | DD109: 0 | DE109: 0 | DF109: 0 | DG109: 0 | DH109: 0 | DI109: 0 | DJ109: 0 | DK109: 0 | DL109: 0 | DM109: 0 | DN109: 0 | DO109: 0 | DP109: 0 | DQ109: 0 | DR109: 0 | DS109: 0 | DT109: 0 | DU109: 0 | DV109: 0 | DW109: 0 | DX109: 0 | DY109: 0 | DZ109: 0 | EA109: 0 | EB109: 0 | EC109: 0 | ED109: 0 | EE109: 0 | EF109: 0 | EG109: 0 | EH109: 0 | EI109: =SUM(EI105:EI108) -> 0 | EJ109: 0 | EK109: 0 | EL109: 0 | EM109: 0 | EN109: 0 | EO109: 0 | EP109: 0 | EQ109: 0 | ER109: 0 | ES109: 0 | ET109: 0 | EU109: 0 | EV109: 0 | EW109: 0 | EX109: 0 | EY109: 0 | EZ109: 0 | FA109: 0 | FB109: 0 | FC109: 0
D111: Equity Commitment | E111: USD
D112: (less) equity drawn | E112: USD
D113: Remaining equity | E113: USD
D115: Opening Balance | E115: USD
D116: (add) draw | E116: USD
D117: Closing Balance | E117: USD
D119: Debt Draw | E119: USD
D121: Opening Balance | J121: =I124 -> 0 | K121: 0 | L121: 0 | M121: 0 | N121: 0 | O121: 0 | P121: 0 | Q121: 0 | R121: 0 | S121: 0 | T121: 0 | U121: 0 | V121: 0 | W121: 0 | X121: 0 | Y121: 0 | Z121: 0 | AA121: 0 | AB121: 0 | AC121: 0 | AD121: 0 | AE121: 0 | AF121: 0 | AG121: 0 | AH121: 0 | AI121: 0 | AJ121: 0 | AK121: 0 | AL121: 0 | AM121: 0 | AN121: 0 | AO121: 0 | AP121: 0 | AQ121: 0 | AR121: 0 | AS121: 0 | AT121: 0 | AU121: 0 | AV121: 0 | AW121: 0 | AX121: 0 | AY121: 0 | AZ121: 0 | BA121: 0 | BB121: 0 | BC121: 0 | BD121: 0 | BE121: 0 | BF121: 0 | BG121: 0 | BH121: 0 | BI121: 0 | BJ121: 0 | BK121: 0 | BL121: 0 | BM121: 0 | BN121: 0 | BO121: 0 | BP121: 0 | BQ121: 0 | BR121: 0 | BS121: 0 | BT121: 0 | BU121: 0 | BV121: =BU124 -> 0 | BW121: 0 | BX121: 0 | BY121: 0 | BZ121: 0 | CA121: 0 | CB121: 0 | CC121: 0 | CD121: 0 | CE121: 0 | CF121: 0 | CG121: 0 | CH121: 0 | CI121: 0 | CJ121: 0 | CK121: 0 | CL121: 0 | CM121: 0 | CN121: 0 | CO121: 0 | CP121: 0 | CQ121: 0 | CR121: 0 | CS121: 0 | CT121: 0 | CU121: 0 | CV121: 0 | CW121: 0 | CX121: 0 | CY121: 0 | CZ121: 0 | DA121: 0 | DB121: 0 | DC121: 0 | DD121: 0 | DE121: 0 | DF121: 0 | DG121: 0 | DH121: 0 | DI121: 0 | DJ121: 0 | DK121: 0 | DL121: 0 | DM121: 0 | DN121: 0 | DO121: 0 | DP121: 0 | DQ121: 0 | DR121: 0 | DS121: 0 | DT121: 0 | DU121: 0 | DV121: 0 | DW121: 0 | DX121: 0 | DY121: 0 | DZ121: 0 | EA121: 0 | EB121: 0 | EC121: 0 | ED121: 0 | EE121: 0 | EF121: 0 | EG121: 0 | EH121: =EG124 -> 0 | EI121: 0 | EJ121: 0 | EK121: 0 | EL121: 0 | EM121: 0 | EN121: 0 | EO121: 0 | EP121: 0 | EQ121: 0 | ER121: 0 | ES121: 0 | ET121: 0 | EU121: 0 | EV121: 0 | EW121: 0 | EX121: 0 | EY121: 0 | EZ121: 0 | FA121: 0 | FB121: 0 | FC121: 0
D122: (add) draws | F122: =K113 -> 0 | H122: =SUM(J122:FC122) -> 0
D123: (less) repayments | H123: =SUM(J123:FC123) -> 0
D124: Closing Balance | J124: =J121 + J122 - J123 -> 0 | K124: =K121 + K122 - K123 -> 0 | L124: =L121 + L122 - L123 -> 0 | M124: =M121 + M122 - M123 -> 0 | N124: =N121 + N122 - N123 -> 0 | O124: =O121 + O122 - O123 -> 0 | P124: =P121 + P122 - P123 -> 0 | Q124: =Q121 + Q122 - Q123 -> 0 | R124: =R121 + R122 - R123 -> 0 | S124: =S121 + S122 - S123 -> 0 | T124: =T121 + T122 - T123 -> 0 | U124: =U121 + U122 - U123 -> 0 | V124: =V121 + V122 - V123 -> 0 | W124: =W121 + W122 - W123 -> 0 | X124: =X121 + X122 - X123 -> 0 | Y124: =Y121 + Y122 - Y123 -> 0 | Z124: =Z121 + Z122 - Z123 -> 0 | AA124: =AA121 + AA122 - AA123 -> 0 | AB124: =AB121 + AB122 - AB123 -> 0 | AC124: =AC121 + AC122 - AC123 -> 0 | AD124: =AD121 + AD122 - AD123 -> 0 | AE124: =AE121 + AE122 - AE123 -> 0 | AF124: =AF121 + AF122 - AF123 -> 0 | AG124: =AG121 + AG122 - AG123 -> 0 | AH124: =AH121 + AH122 - AH123 -> 0 | AI124: =AI121 + AI122 - AI123 -> 0 | AJ124: =AJ121 + AJ122 - AJ123 -> 0 | AK124: =AK121 + AK122 - AK123 -> 0 | AL124: =AL121 + AL122 - AL123 -> 0 | AM124: =AM121 + AM122 - AM123 -> 0 | AN124: =AN121 + AN122 - AN123 -> 0 | AO124: =AO121 + AO122 - AO123 -> 0 | AP124: =AP121 + AP122 - AP123 -> 0 | AQ124: =AQ121 + AQ122 - AQ123 -> 0 | AR124: =AR121 + AR122 - AR123 -> 0 | AS124: =AS121 + AS122 - AS123 -> 0 | AT124: =AT121 + AT122 - AT123 -> 0 | AU124: =AU121 + AU122 - AU123 -> 0 | AV124: =AV121 + AV122 - AV123 -> 0 | AW124: =AW121 + AW122 - AW123 -> 0 | AX124: =AX121 + AX122 - AX123 -> 0 | AY124: =AY121 + AY122 - AY123 -> 0 | AZ124: =AZ121 + AZ122 - AZ123 -> 0 | BA124: =BA121 + BA122 - BA123 -> 0 | BB124: =BB121 + BB122 - BB123 -> 0 | BC124: =BC121 + BC122 - BC123 -> 0 | BD124: =BD121 + BD122 - BD123 -> 0 | BE124: =BE121 + BE122 - BE123 -> 0 | BF124: =BF121 + BF122 - BF123 -> 0 | BG124: =BG121 + BG122 - BG123 -> 0 | BH124: =BH121 + BH122 - BH123 -> 0 | BI124: =BI121 + BI122 - BI123 -> 0 | BJ124: =BJ121 + BJ122 - BJ123 -> 0 | BK124: =BK121 + BK122 - BK123 -> 0 | BL124: =BL121 + BL122 - BL123 -> 0 | BM124: =BM121 + BM122 - BM123 -> 0 | BN124: =BN121 + BN122 - BN123 -> 0 | BO124: =BO121 + BO122 - BO123 -> 0 | BP124: =BP121 + BP122 - BP123 -> 0 | BQ124: =BQ121 + BQ122 - BQ123 -> 0 | BR124: =BR121 + BR122 - BR123 -> 0 | BS124: =BS121 + BS122 - BS123 -> 0 | BT124: =BT121 + BT122 - BT123 -> 0 | BU124: =BU121 + BU122 - BU123 -> 0 | BV124: =BV121 + BV122 - BV123 -> 0 | BW124: =BW121 + BW122 - BW123 -> 0 | BX124: =BX121 + BX122 - BX123 -> 0 | BY124: =BY121 + BY122 - BY123 -> 0 | BZ124: =BZ121 + BZ122 - BZ123 -> 0 | CA124: =CA121 + CA122 - CA123 -> 0 | CB124: =CB121 + CB122 - CB123 -> 0 | CC124: =CC121 + CC122 - CC123 -> 0 | CD124: =CD121 + CD122 - CD123 -> 0 | CE124: =CE121 + CE122 - CE123 -> 0 | CF124: =CF121 + CF122 - CF123 -> 0 | CG124: =CG121 + CG122 - CG123 -> 0 | CH124: =CH121 + CH122 - CH123 -> 0 | CI124: =CI121 + CI122 - CI123 -> 0 | CJ124: =CJ121 + CJ122 - CJ123 -> 0 | CK124: =CK121 + CK122 - CK123 -> 0 | CL124: =CL121 + CL122 - CL123 -> 0 | CM124: =CM121 + CM122 - CM123 -> 0 | CN124: =CN121 + CN122 - CN123 -> 0 | CO124: =CO121 + CO122 - CO123 -> 0 | CP124: =CP121 + CP122 - CP123 -> 0 | CQ124: =CQ121 + CQ122 - CQ123 -> 0 | CR124: =CR121 + CR122 - CR123 -> 0 | CS124: =CS121 + CS122 - CS123 -> 0 | CT124: =CT121 + CT122 - CT123 -> 0 | CU124: =CU121 + CU122 - CU123 -> 0 | CV124: =CV121 + CV122 - CV123 -> 0 | CW124: =CW121 + CW122 - CW123 -> 0 | CX124: =CX121 + CX122 - CX123 -> 0 | CY124: =CY121 + CY122 - CY123 -> 0 | CZ124: =CZ121 + CZ122 - CZ123 -> 0 | DA124: =DA121 + DA122 - DA123 -> 0 | DB124: =DB121 + DB122 - DB123 -> 0 | DC124: =DC121 + DC122 - DC123 -> 0 | DD124: =DD121 + DD122 - DD123 -> 0 | DE124: =DE121 + DE122 - DE123 -> 0 | DF124: =DF121 + DF122 - DF123 -> 0 | DG124: =DG121 + DG122 - DG123 -> 0 | DH124: =DH121 + DH122 - DH123 -> 0 | DI124: =DI121 + DI122 - DI123 -> 0 | DJ124: =DJ121 + DJ122 - DJ123 -> 0 | DK124: =DK121 + DK122 - DK123 -> 0 | DL124: =DL121 + DL122 - DL123 -> 0 | DM124: =DM121 + DM122 - DM123 -> 0 | DN124: =DN121 + DN122 - DN123 -> 0 | DO124: =DO121 + DO122 - DO123 -> 0 | DP124: =DP121 + DP122 - DP123 -> 0 | DQ124: =DQ121 + DQ122 - DQ123 -> 0 | DR124: =DR121 + DR122 - DR123 -> 0 | DS124: =DS121 + DS122 - DS123 -> 0 | DT124: =DT121 + DT122 - DT123 -> 0 | DU124: =DU121 + DU122 - DU123 -> 0 | DV124: =DV121 + DV122 - DV123 -> 0 | DW124: =DW121 + DW122 - DW123 -> 0 | DX124: =DX121 + DX122 - DX123 -> 0 | DY124: =DY121 + DY122 - DY123 -> 0 | DZ124: =DZ121 + DZ122 - DZ123 -> 0 | EA124: =EA121 + EA122 - EA123 -> 0 | EB124: =EB121 + EB122 - EB123 -> 0 | EC124: =EC121 + EC122 - EC123 -> 0 | ED124: =ED121 + ED122 - ED123 -> 0 | EE124: =EE121 + EE122 - EE123 -> 0 | EF124: =EF121 + EF122 - EF123 -> 0 | EG124: =EG121 + EG122 - EG123 -> 0 | EH124: =EH121 + EH122 - EH123 -> 0 | EI124: =EI121 + EI122 - EI123 -> 0 | EJ124: =EJ121 + EJ122 - EJ123 -> 0 | EK124: =EK121 + EK122 - EK123 -> 0 | EL124: =EL121 + EL122 - EL123 -> 0 | EM124: =EM121 + EM122 - EM123 -> 0 | EN124: =EN121 + EN122 - EN123 -> 0 | EO124: =EO121 + EO122 - EO123 -> 0 | EP124: =EP121 + EP122 - EP123 -> 0 | EQ124: =EQ121 + EQ122 - EQ123 -> 0 | ER124: =ER121 + ER122 - ER123 -> 0 | ES124: =ES121 + ES122 - ES123 -> 0 | ET124: =ET121 + ET122 - ET123 -> 0 | EU124: =EU121 + EU122 - EU123 -> 0 | EV124: =EV121 + EV122 - EV123 -> 0 | EW124: =EW121 + EW122 - EW123 -> 0 | EX124: =EX121 + EX122 - EX123 -> 0 | EY124: =EY121 + EY122 - EY123 -> 0 | EZ124: =EZ121 + EZ122 - EZ123 -> 0 | FA124: =FA121 + FA122 - FA123 -> 0 | FB124: =FB121 + FB122 - FB123 -> 0 | FC124: =FC121 + FC122 - FC123 -> 0
D126: Periodic Interest Rate | F126: =F96 -> 0.0525 | G126: =G101 -> 0 | J126: =$F$126 / 12 * J4 -> 0.004375 | K126: 0.004375 | L126: 0.004375 | M126: 0.004375 | N126: 0.004375 | O126: 0.004375 | P126: 0.004375 | Q126: 0.004375 | R126: 0.004375 | S126: 0.004375 | T126: 0.004375 | U126: 0.004375 | V126: 0.013125 | W126: 0.013125 | X126: 0.013125 | Y126: 0.013125 | Z126: 0.013125 | AA126: 0.013125 | AB126: 0.013125 | AC126: 0.013125 | AD126: 0.013125 | AE126: 0.013125 | AF126: 0.013125 | AG126: 0.013125 | AH126: 0.013125 | AI126: 0.013125 | AJ126: 0.013125 | AK126: 0.013125 | AL126: 0.013125 | AM126: 0.013125 | AN126: 0.013125 | AO126: 0.013125 | AP126: =$F$126 / 12 * AP4 -> 0.013125 | AQ126: 0.013125 | AR126: 0.013125 | AS126: 0.013125 | AT126: 0.013125 | AU126: 0.013125 | AV126: 0.013125 | AW126: 0.013125 | AX126: 0.013125 | AY126: 0.013125 | AZ126: 0.013125 | BA126: 0.013125 | BB126: 0.013125 | BC126: 0.013125 | BD126: 0.013125 | BE126: 0.013125 | BF126: 0.013125 | BG126: 0.013125 | BH126: 0.013125 | BI126: 0.013125 | BJ126: 0.013125 | BK126: 0.013125 | BL126: 0.013125 | BM126: 0.013125 | BN126: 0.013125 | BO126: 0.013125 | BP126: 0.013125 | BQ126: 0.013125 | BR126: 0.013125 | BS126: 0.013125 | BT126: 0.013125 | BU126: 0.013125 | BV126: =$F$126 / 12 * BV4 -> 0.013125 | BW126: 0.013125 | BX126: 0.013125 | BY126: 0.013125 | BZ126: 0.013125 | CA126: 0.013125 | CB126: 0.013125 | CC126: 0.013125 | CD126: 0.013125 | CE126: 0.013125 | CF126: 0.013125 | CG126: 0.013125 | CH126: 0.013125 | CI126: 0.013125 | CJ126: 0.013125 | CK126: 0.013125 | CL126: 0.013125 | CM126: 0.013125 | CN126: 0.013125 | CO126: 0.013125 | CP126: 0.013125 | CQ126: 0.013125 | CR126: 0.013125 | CS126: 0.013125 | CT126: 0.013125 | CU126: 0.013125 | CV126: 0.013125 | CW126: 0.013125 | CX126: 0.013125 | CY126: 0.013125 | CZ126: 0.013125 | DA126: 0.013125 | DB126: =$F$126 / 12 * DB4 -> 0.013125 | DC126: 0.013125 | DD126: 0.013125 | DE126: 0.013125 | DF126: 0.013125 | DG126: 0.013125 | DH126: 0.013125 | DI126: 0.013125 | DJ126: 0.013125 | DK126: 0.013125 | DL126: 0.013125 | DM126: 0.013125 | DN126: 0.013125 | DO126: 0.013125 | DP126: 0.013125 | DQ126: 0.013125 | DR126: 0.013125 | DS126: 0.013125 | DT126: 0.013125 | DU126: 0.013125 | DV126: 0.013125 | DW126: 0.013125 | DX126: 0.013125 | DY126: 0.013125 | DZ126: 0.013125 | EA126: 0.013125 | EB126: 0.013125 | EC126: 0.013125 | ED126: 0.013125 | EE126: 0.013125 | EF126: 0.013125 | EG126: 0.013125 | EH126: =$F$126 / 12 * EH4 -> 0.013125 | EI126: 0.013125 | EJ126: 0.013125 | EK126: 0.013125 | EL126: 0.013125 | EM126: 0.013125 | EN126: 0.013125 | EO126: 0.013125 | EP126: 0.013125 | EQ126: 0.013125 | ER126: 0.013125 | ES126: 0.013125 | ET126: 0.013125 | EU126: 0.013125 | EV126: 0.013125 | EW126: 0.013125 | EX126: 0.013125 | EY126: 0.013125 | EZ126: 0.013125 | FA126: 0.013125 | FB126: 0.013125 | FC126: 0.013125
D127: Interest Cost | J127: =J126 * J121 -> 0 | K127: =K126 * K121 -> 0 | L127: =L126 * L121 -> 0 | M127: =M126 * M121 -> 0 | N127: =N126 * N121 -> 0 | O127: =O126 * O121 -> 0 | P127: =P126 * P121 -> 0 | Q127: =Q126 * Q121 -> 0 | R127: =R126 * R121 -> 0 | S127: =S126 * S121 -> 0 | T127: =T126 * T121 -> 0 | U127: =U126 * U121 -> 0 | V127: =V126 * V121 -> 0 | W127: =W126 * W121 -> 0 | X127: =X126 * X121 -> 0 | Y127: =Y126 * Y121 -> 0 | Z127: =Z126 * Z121 -> 0 | AA127: =AA126 * AA121 -> 0 | AB127: =AB126 * AB121 -> 0 | AC127: =AC126 * AC121 -> 0 | AD127: =AD126 * AD121 -> 0 | AE127: =AE126 * AE121 -> 0 | AF127: =AF126 * AF121 -> 0 | AG127: =AG126 * AG121 -> 0 | AH127: =AH126 * AH121 -> 0 | AI127: =AI126 * AI121 -> 0 | AJ127: =AJ126 * AJ121 -> 0 | AK127: =AK126 * AK121 -> 0 | AL127: =AL126 * AL121 -> 0 | AM127: =AM126 * AM121 -> 0 | AN127: =AN126 * AN121 -> 0 | AO127: =AO126 * AO121 -> 0 | AP127: =AP126 * AP121 -> 0 | AQ127: =AQ126 * AQ121 -> 0 | AR127: =AR126 * AR121 -> 0 | AS127: =AS126 * AS121 -> 0 | AT127: =AT126 * AT121 -> 0 | AU127: =AU126 * AU121 -> 0 | AV127: =AV126 * AV121 -> 0 | AW127: =AW126 * AW121 -> 0 | AX127: =AX126 * AX121 -> 0 | AY127: =AY126 * AY121 -> 0 | AZ127: =AZ126 * AZ121 -> 0 | BA127: =BA126 * BA121 -> 0 | BB127: =BB126 * BB121 -> 0 | BC127: =BC126 * BC121 -> 0 | BD127: =BD126 * BD121 -> 0 | BE127: =BE126 * BE121 -> 0 | BF127: =BF126 * BF121 -> 0 | BG127: =BG126 * BG121 -> 0 | BH127: =BH126 * BH121 -> 0 | BI127: =BI126 * BI121 -> 0 | BJ127: =BJ126 * BJ121 -> 0 | BK127: =BK126 * BK121 -> 0 | BL127: =BL126 * BL121 -> 0 | BM127: =BM126 * BM121 -> 0 | BN127: =BN126 * BN121 -> 0 | BO127: =BO126 * BO121 -> 0 | BP127: =BP126 * BP121 -> 0 | BQ127: =BQ126 * BQ121 -> 0 | BR127: =BR126 * BR121 -> 0 | BS127: =BS126 * BS121 -> 0 | BT127: =BT126 * BT121 -> 0 | BU127: =BU126 * BU121 -> 0 | BV127: =BV126 * BV121 -> 0 | BW127: =BW126 * BW121 -> 0 | BX127: =BX126 * BX121 -> 0 | BY127: =BY126 * BY121 -> 0 | BZ127: =BZ126 * BZ121 -> 0 | CA127: =CA126 * CA121 -> 0 | CB127: =CB126 * CB121 -> 0 | CC127: =CC126 * CC121 -> 0 | CD127: =CD126 * CD121 -> 0 | CE127: =CE126 * CE121 -> 0 | CF127: =CF126 * CF121 -> 0 | CG127: =CG126 * CG121 -> 0 | CH127: =CH126 * CH121 -> 0 | CI127: =CI126 * CI121 -> 0 | CJ127: =CJ126 * CJ121 -> 0 | CK127: =CK126 * CK121 -> 0 | CL127: =CL126 * CL121 -> 0 | CM127: =CM126 * CM121 -> 0 | CN127: =CN126 * CN121 -> 0 | CO127: =CO126 * CO121 -> 0 | CP127: =CP126 * CP121 -> 0 | CQ127: =CQ126 * CQ121 -> 0 | CR127: =CR126 * CR121 -> 0 | CS127: =CS126 * CS121 -> 0 | CT127: =CT126 * CT121 -> 0 | CU127: =CU126 * CU121 -> 0 | CV127: =CV126 * CV121 -> 0 | CW127: =CW126 * CW121 -> 0 | CX127: =CX126 * CX121 -> 0 | CY127: =CY126 * CY121 -> 0 | CZ127: =CZ126 * CZ121 -> 0 | DA127: =DA126 * DA121 -> 0 | DB127: =DB126 * DB121 -> 0 | DC127: =DC126 * DC121 -> 0 | DD127: =DD126 * DD121 -> 0 | DE127: =DE126 * DE121 -> 0 | DF127: =DF126 * DF121 -> 0 | DG127: =DG126 * DG121 -> 0 | DH127: =DH126 * DH121 -> 0 | DI127: =DI126 * DI121 -> 0 | DJ127: =DJ126 * DJ121 -> 0 | DK127: =DK126 * DK121 -> 0 | DL127: =DL126 * DL121 -> 0 | DM127: =DM126 * DM121 -> 0 | DN127: =DN126 * DN121 -> 0 | DO127: =DO126 * DO121 -> 0 | DP127: =DP126 * DP121 -> 0 | DQ127: =DQ126 * DQ121 -> 0 | DR127: =DR126 * DR121 -> 0 | DS127: =DS126 * DS121 -> 0 | DT127: =DT126 * DT121 -> 0 | DU127: =DU126 * DU121 -> 0 | DV127: =DV126 * DV121 -> 0 | DW127: =DW126 * DW121 -> 0 | DX127: =DX126 * DX121 -> 0 | DY127: =DY126 * DY121 -> 0 | DZ127: =DZ126 * DZ121 -> 0 | EA127: =EA126 * EA121 -> 0 | EB127: =EB126 * EB121 -> 0 | EC127: =EC126 * EC121 -> 0 | ED127: =ED126 * ED121 -> 0 | EE127: =EE126 * EE121 -> 0 | EF127: =EF126 * EF121 -> 0 | EG127: =EG126 * EG121 -> 0 | EH127: =EH126 * EH121 -> 0 | EI127: =EI126 * EI121 -> 0 | EJ127: =EJ126 * EJ121 -> 0 | EK127: =EK126 * EK121 -> 0 | EL127: =EL126 * EL121 -> 0 | EM127: =EM126 * EM121 -> 0 | EN127: =EN126 * EN121 -> 0 | EO127: =EO126 * EO121 -> 0 | EP127: =EP126 * EP121 -> 0 | EQ127: =EQ126 * EQ121 -> 0 | ER127: =ER126 * ER121 -> 0 | ES127: =ES126 * ES121 -> 0 | ET127: =ET126 * ET121 -> 0 | EU127: =EU126 * EU121 -> 0 | EV127: =EV126 * EV121 -> 0 | EW127: =EW126 * EW121 -> 0 | EX127: =EX126 * EX121 -> 0 | EY127: =EY126 * EY121 -> 0 | EZ127: =EZ126 * EZ121 -> 0 | FA127: =FA126 * FA121 -> 0 | FB127: =FB126 * FB121 -> 0 | FC127: =FC126 * FC121 -> 0
D129: Cash After Debt Service | J129: =J52-J93-J97 -> 0 | K129: 0 | L129: 0 | M129: 0 | N129: 0 | O129: 0 | P129: 0 | Q129: 0 | R129: 0 | S129: 0 | T129: 0 | U129: 0 | V129: 1086842.328 | W129: 2061641.865 | X129: 2108404.995 | Y129: 1023994.219 | Z129: 1114013.386 | AA129: 2113182.911 | AB129: 2161115.12 | AC129: 1049594.074 | AD129: 1141863.721 | AE129: 2166012.484 | AF129: 2215142.998 | AG129: 1075833.926 | AH129: 1170410.314 | AI129: 2220162.796 | AJ129: 2270521.573 | AK129: 1102729.774 | AL129: 1199670.572 | AM129: 2275666.866 | AN129: 2327284.612 | AO129: 1130298.019 | AP129: =AP52-AP93-AP97 -> 1229662.336 | AQ129: 2332558.538 | AR129: 2385466.727 | AS129: 1158555.469 | AT129: 1260403.895 | AU129: 2390872.501 | AV129: 2445103.395 | AW129: 1187519.356 | AX129: 1291913.992 | AY129: 2450644.314 | AZ129: 2506230.98 | BA129: 1217207.34 | BB129: 1324211.842 | BC129: 2511910.422 | BD129: 2568886.755 | BE129: 1247637.523 | BF129: 1357317.138 | BG129: 2574708.182 | BH129: 2633108.924 | BI129: 1278828.461 | BJ129: 1391250.066 | BK129: 2639075.887 | BL129: 2698936.647 | BM129: 1310799.173 | BN129: 1426031.318 | BO129: 2705052.784 | BP129: 2766410.063 | BQ129: 1343569.152 | BR129: 1461682.101 | BS129: 2772679.103 | BT129: 2835570.314 | BU129: 1377158.381 | BV129: =BV52-BV93-BV97 -> 1498224.153 | BW129: 2841996.081 | BX129: 2906459.572 | BY129: 1411587.34 | BZ129: 1535679.757 | CA129: 2913045.983 | CB129: 2979121.062 | CC129: 1446877.024 | CD129: 1574071.751 | CE129: 2985872.133 | CF129: 3053599.088 | CG129: 1483048.95 | CH129: 1613423.545 | CI129: 3060518.936 | CJ129: 3129939.065 | CK129: 1520125.173 | CL129: 1653759.133 | CM129: 3137031.909 | CN129: 3208187.542 | CO129: 1558128.303 | CP129: 1695103.112 | CQ129: 3215457.707 | CR129: 3288392.23 | CS129: 1597081.51 | CT129: 1737480.69 | CU129: 3295844.15 | CV129: 3370602.036 | CW129: 1637008.548 | CX129: 1780917.707 | CY129: 3378240.254 | CZ129: 3454867.087 | DA129: 1677933.762 | DB129: =DB52-DB93-DB97 -> 1825440.649 | DC129: 3462696.26 | DD129: 3541238.764 | DE129: 1719882.106 | DF129: 1871076.666 | DG129: 3549263.666 | DH129: 3629769.733 | DI129: 1762879.158 | DJ129: 1917853.582 | DK129: 3637995.258 | DL129: 3720513.977 | DM129: 1806951.137 | DN129: 1965799.922 | DO129: 3728945.14 | DP129: 3813526.826 | DQ129: 1852124.916 | DR129: 0 | DS129: 0 | DT129: 0 | DU129: 0 | DV129: 0 | DW129: 0 | DX129: 0 | DY129: 0 | DZ129: 0 | EA129: 0 | EB129: 0 | EC129: 0 | ED129: 0 | EE129: 0 | EF129: 0 | EG129: 0 | EH129: =EH52-EH93-EH97 -> 0 | EI129: 0 | EJ129: 0 | EK129: 0 | EL129: 0 | EM129: 0 | EN129: 0 | EO129: 0 | EP129: 0 | EQ129: 0 | ER129: 0 | ES129: 0 | ET129: 0 | EU129: 0 | EV129: 0 | EW129: 0 | EX129: 0 | EY129: 0 | EZ129: 0 | FA129: 0 | FB129: 0 | FC129: 0
D130: Balance at maturity | F130: =LOOKUP( G54, 6:6, 94:94) -> 0
D132: Minimum Debt Repayment/Period | F132: =MIN(J93:FC93) -> 0 | G132: =_xlfn.XLOOKUP(F132,93:93,2:2) -> 0
D133: Opening Balance | F133: =LOOKUP(G132,2:2,91:91) -> 
D134: Interest | F134: =F132/G134 -> 0 | G134: =G96 -> 0.013125
D135: Revised Debt | F135: =F134+F92 -> 0
D136: DSCR | F136: 1.3 | J136: =$F$136 -> 1.3 | K136: 1.3 | L136: 1.3 | M136: 1.3 | N136: 1.3 | O136: 1.3 | P136: 1.3 | Q136: 1.3 | R136: 1.3 | S136: 1.3 | T136: 1.3 | U136: 1.3 | V136: 1.3 | W136: 1.3 | X136: 1.3 | Y136: 1.3 | Z136: 1.3 | AA136: 1.3 | AB136: 1.3 | AC136: 1.3 | AD136: 1.3 | AE136: 1.3 | AF136: 1.3 | AG136: 1.3 | AH136: 1.3 | AI136: 1.3 | AJ136: 1.3 | AK136: 1.3 | AL136: 1.3 | AM136: 1.3 | AN136: 1.3 | AO136: 1.3 | AP136: =$F$136 -> 1.3 | AQ136: 1.3 | AR136: 1.3 | AS136: 1.3 | AT136: 1.3 | AU136: 1.3 | AV136: 1.3 | AW136: 1.3 | AX136: 1.3 | AY136: 1.3 | AZ136: 1.3 | BA136: 1.3 | BB136: 1.3 | BC136: 1.3 | BD136: 1.3 | BE136: 1.3 | BF136: 1.3 | BG136: 1.3 | BH136: 1.3 | BI136: 1.3 | BJ136: 1.3 | BK136: 1.3 | BL136: 1.3 | BM136: 1.3 | BN136: 1.3 | BO136: 1.3 | BP136: 1.3 | BQ136: 1.3 | BR136: 1.3 | BS136: 1.3 | BT136: 1.3 | BU136: 1.3 | BV136: =$F$136 -> 1.3 | BW136: 1.3 | BX136: 1.3 | BY136: 1.3 | BZ136: 1.3 | CA136: 1.3 | CB136: 1.3 | CC136: 1.3 | CD136: 1.3 | CE136: 1.3 | CF136: 1.3 | CG136: 1.3 | CH136: 1.3 | CI136: 1.3 | CJ136: 1.3 | CK136: 1.3 | CL136: 1.3 | CM136: 1.3 | CN136: 1.3 | CO136: 1.3 | CP136: 1.3 | CQ136: 1.3 | CR136: 1.3 | CS136: 1.3 | CT136: 1.3 | CU136: 1.3 | CV136: 1.3 | CW136: 1.3 | CX136: 1.3 | CY136: 1.3 | CZ136: 1.3 | DA136: 1.3 | DB136: =$F$136 -> 1.3 | DC136: 1.3 | DD136: 1.3 | DE136: 1.3 | DF136: 1.3 | DG136: 1.3 | DH136: 1.3 | DI136: 1.3 | DJ136: 1.3 | DK136: 1.3 | DL136: 1.3 | DM136: 1.3 | DN136: 1.3 | DO136: 1.3 | DP136: 1.3 | DQ136: 1.3 | DR136: 1.3 | DS136: 1.3 | DT136: 1.3 | DU136: 1.3 | DV136: 1.3 | DW136: 1.3 | DX136: 1.3 | DY136: 1.3 | DZ136: 1.3 | EA136: 1.3 | EB136: 1.3 | EC136: 1.3 | ED136: 1.3 | EE136: 1.3 | EF136: 1.3 | EG136: 1.3 | EH136: =$F$136 -> 1.3 | EI136: 1.3 | EJ136: 1.3 | EK136: 1.3 | EL136: 1.3 | EM136: 1.3 | EN136: 1.3 | EO136: 1.3 | EP136: 1.3 | EQ136: 1.3 | ER136: 1.3 | ES136: 1.3 | ET136: 1.3 | EU136: 1.3 | EV136: 1.3 | EW136: 1.3 | EX136: 1.3 | EY136: 1.3 | EZ136: 1.3 | FA136: 1.3 | FB136: 1.3 | FC136: 1.3
D138: Opening Balance | J138: =I141 -> 0 | K138: =J141 -> 0 | L138: 0 | M138: 0 | N138: 0 | O138: 0 | P138: 0 | Q138: 0 | R138: 0 | S138: 0 | T138: 0 | U138: 0 | V138: 0 | W138: 0 | X138: 0 | Y138: 0 | Z138: 0 | AA138: 0 | AB138: 0 | AC138: 0 | AD138: 0 | AE138: 0 | AF138: 0 | AG138: 0 | AH138: 0 | AI138: 0 | AJ138: 0 | AK138: 0 | AL138: 0 | AM138: 0 | AN138: 0 | AO138: 0 | AP138: 0 | AQ138: 0 | AR138: 0 | AS138: 0 | AT138: 0 | AU138: 0 | AV138: 0 | AW138: 0 | AX138: 0 | AY138: 0 | AZ138: 0 | BA138: 0 | BB138: 0 | BC138: 0 | BD138: 0 | BE138: 0 | BF138: 0 | BG138: 0 | BH138: 0 | BI138: 0 | BJ138: 0 | BK138: 0 | BL138: 0 | BM138: 0 | BN138: 0 | BO138: 0 | BP138: 0 | BQ138: 0 | BR138: 0 | BS138: 0 | BT138: 0 | BU138: 0 | BV138: 0 | BW138: =BV141 -> 0 | BX138: 0 | BY138: 0 | BZ138: 0 | CA138: 0 | CB138: 0 | CC138: 0 | CD138: 0 | CE138: 0 | CF138: 0 | CG138: 0 | CH138: 0 | CI138: 0 | CJ138: 0 | CK138: 0 | CL138: 0 | CM138: 0 | CN138: 0 | CO138: 0 | CP138: 0 | CQ138: 0 | CR138: 0 | CS138: 0 | CT138: 0 | CU138: 0 | CV138: 0 | CW138: 0 | CX138: 0 | CY138: 0 | CZ138: 0 | DA138: 0 | DB138: 0 | DC138: 0 | DD138: 0 | DE138: 0 | DF138: 0 | DG138: 0 | DH138: 0 | DI138: 0 | DJ138: 0 | DK138: 0 | DL138: 0 | DM138: 0 | DN138: 0 | DO138: 0 | DP138: 0 | DQ138: 0 | DR138: 0 | DS138: 0 | DT138: 0 | DU138: 0 | DV138: 0 | DW138: 0 | DX138: 0 | DY138: 0 | DZ138: 0 | EA138: 0 | EB138: 0 | EC138: 0 | ED138: 0 | EE138: 0 | EF138: 0 | EG138: 0 | EH138: 0 | EI138: =EH141 -> 0 | EJ138: 0 | EK138: 0 | EL138: 0 | EM138: 0 | EN138: 0 | EO138: 0 | EP138: 0 | EQ138: 0 | ER138: 0 | ES138: 0 | ET138: 0 | EU138: 0 | EV138: 0 | EW138: 0 | EX138: 0 | EY138: 0 | EZ138: 0 | FA138: 0 | FB138: 0 | FC138: 0
D139: (add) draws | F139: =F135 -> 0 | J139: =$F$139*J89 -> 0 | K139: 0 | L139: 0 | M139: 0 | N139: 0 | O139: 0 | P139: 0 | Q139: 0 | R139: 0 | S139: 0 | T139: 0 | U139: 0 | V139: 0 | W139: 0 | X139: 0 | Y139: 0 | Z139: 0 | AA139: 0 | AB139: 0 | AC139: 0 | AD139: 0 | AE139: 0 | AF139: 0 | AG139: 0 | AH139: 0 | AI139: 0 | AJ139: 0 | AK139: 0 | AL139: 0 | AM139: 0 | AN139: 0 | AO139: 0 | AP139: =$F$139*AP89 -> 0 | AQ139: 0 | AR139: 0 | AS139: 0 | AT139: 0 | AU139: 0 | AV139: 0 | AW139: 0 | AX139: 0 | AY139: 0 | AZ139: 0 | BA139: 0 | BB139: 0 | BC139: 0 | BD139: 0 | BE139: 0 | BF139: 0 | BG139: 0 | BH139: 0 | BI139: 0 | BJ139: 0 | BK139: 0 | BL139: 0 | BM139: 0 | BN139: 0 | BO139: 0 | BP139: 0 | BQ139: 0 | BR139: 0 | BS139: 0 | BT139: 0 | BU139: 0 | BV139: =$F$139*BV89 -> 0 | BW139: 0 | BX139: 0 | BY139: 0 | BZ139: 0 | CA139: 0 | CB139: 0 | CC139: 0 | CD139: 0 | CE139: 0 | CF139: 0 | CG139: 0 | CH139: 0 | CI139: 0 | CJ139: 0 | CK139: 0 | CL139: 0 | CM139: 0 | CN139: 0 | CO139: 0 | CP139: 0 | CQ139: 0 | CR139: 0 | CS139: 0 | CT139: 0 | CU139: 0 | CV139: 0 | CW139: 0 | CX139: 0 | CY139: 0 | CZ139: 0 | DA139: 0 | DB139: =$F$139*DB89 -> 0 | DC139: 0 | DD139: 0 | DE139: 0 | DF139: 0 | DG139: 0 | DH139: 0 | DI139: 0 | DJ139: 0 | DK139: 0 | DL139: 0 | DM139: 0 | DN139: 0 | DO139: 0 | DP139: 0 | DQ139: 0 | DR139: 0 | DS139: 0 | DT139: 0 | DU139: 0 | DV139: 0 | DW139: 0 | DX139: 0 | DY139: 0 | DZ139: 0 | EA139: 0 | EB139: 0 | EC139: 0 | ED139: 0 | EE139: 0 | EF139: 0 | EG139: 0 | EH139: =$F$139*EH89 -> 0 | EI139: 0 | EJ139: 0 | EK139: 0 | EL139: 0 | EM139: 0 | EN139: 0 | EO139: 0 | EP139: 0 | EQ139: 0 | ER139: 0 | ES139: 0 | ET139: 0 | EU139: 0 | EV139: 0 | EW139: 0 | EX139: 0 | EY139: 0 | EZ139: 0 | FA139: 0 | FB139: 0 | FC139: 0
D140: (less) repayments | J140: =MIN(J52/J136*J54-J143,J138) -> 0 | K140: 0 | L140: 0 | M140: 0 | N140: 0 | O140: 0 | P140: 0 | Q140: 0 | R140: 0 | S140: 0 | T140: 0 | U140: 0 | V140: 0 | W140: 0 | X140: 0 | Y140: 0 | Z140: 0 | AA140: 0 | AB140: 0 | AC140: 0 | AD140: 0 | AE140: 0 | AF140: 0 | AG140: 0 | AH140: 0 | AI140: 0 | AJ140: 0 | AK140: 0 | AL140: 0 | AM140: 0 | AN140: 0 | AO140: 0 | AP140: =MIN(AP52/AP136*AP54-AP143,AP138) -> 0 | AQ140: 0 | AR140: 0 | AS140: 0 | AT140: 0 | AU140: 0 | AV140: 0 | AW140: 0 | AX140: 0 | AY140: 0 | AZ140: 0 | BA140: 0 | BB140: 0 | BC140: 0 | BD140: 0 | BE140: 0 | BF140: 0 | BG140: 0 | BH140: 0 | BI140: 0 | BJ140: 0 | BK140: 0 | BL140: 0 | BM140: 0 | BN140: 0 | BO140: 0 | BP140: 0 | BQ140: 0 | BR140: 0 | BS140: 0 | BT140: 0 | BU140: 0 | BV140: =MIN(BV52/BV136*BV54-BV143,BV138) -> 0 | BW140: 0 | BX140: 0 | BY140: 0 | BZ140: 0 | CA140: 0 | CB140: 0 | CC140: 0 | CD140: 0 | CE140: 0 | CF140: 0 | CG140: 0 | CH140: 0 | CI140: 0 | CJ140: 0 | CK140: 0 | CL140: 0 | CM140: 0 | CN140: 0 | CO140: 0 | CP140: 0 | CQ140: 0 | CR140: 0 | CS140: 0 | CT140: 0 | CU140: 0 | CV140: 0 | CW140: 0 | CX140: 0 | CY140: 0 | CZ140: 0 | DA140: 0 | DB140: =MIN(DB52/DB136*DB54-DB143,DB138) -> 0 | DC140: 0 | DD140: 0 | DE140: 0 | DF140: 0 | DG140: 0 | DH140: 0 | DI140: 0 | DJ140: 0 | DK140: 0 | DL140: 0 | DM140: 0 | DN140: 0 | DO140: 0 | DP140: 0 | DQ140: 0 | DR140: 0 | DS140: 0 | DT140: 0 | DU140: 0 | DV140: 0 | DW140: 0 | DX140: 0 | DY140: 0 | DZ140: 0 | EA140: 0 | EB140: 0 | EC140: 0 | ED140: 0 | EE140: 0 | EF140: 0 | EG140: 0 | EH140: =MIN(EH52/EH136*EH54-EH143,EH138) -> 0 | EI140: 0 | EJ140: 0 | EK140: 0 | EL140: 0 | EM140: 0 | EN140: 0 | EO140: 0 | EP140: 0 | EQ140: 0 | ER140: 0 | ES140: 0 | ET140: 0 | EU140: 0 | EV140: 0 | EW140: 0 | EX140: 0 | EY140: 0 | EZ140: 0 | FA140: 0 | FB140: 0 | FC140: 0
D141: Closing Balance | J141: =J138+J139-J140 -> 0 | K141: =K138+K139-K140 -> 0 | L141: 0 | M141: 0 | N141: 0 | O141: 0 | P141: 0 | Q141: 0 | R141: 0 | S141: 0 | T141: 0 | U141: 0 | V141: 0 | W141: 0 | X141: 0 | Y141: 0 | Z141: 0 | AA141: 0 | AB141: 0 | AC141: 0 | AD141: 0 | AE141: 0 | AF141: 0 | AG141: 0 | AH141: 0 | AI141: 0 | AJ141: 0 | AK141: 0 | AL141: 0 | AM141: 0 | AN141: 0 | AO141: 0 | AP141: 0 | AQ141: 0 | AR141: 0 | AS141: 0 | AT141: 0 | AU141: 0 | AV141: 0 | AW141: 0 | AX141: 0 | AY141: 0 | AZ141: 0 | BA141: 0 | BB141: 0 | BC141: 0 | BD141: 0 | BE141: 0 | BF141: 0 | BG141: 0 | BH141: 0 | BI141: 0 | BJ141: 0 | BK141: 0 | BL141: 0 | BM141: 0 | BN141: 0 | BO141: 0 | BP141: 0 | BQ141: 0 | BR141: 0 | BS141: 0 | BT141: 0 | BU141: 0 | BV141: 0 | BW141: =BW138+BW139-BW140 -> 0 | BX141: 0 | BY141: 0 | BZ141: 0 | CA141: 0 | CB141: 0 | CC141: 0 | CD141: 0 | CE141: 0 | CF141: 0 | CG141: 0 | CH141: 0 | CI141: 0 | CJ141: 0 | CK141: 0 | CL141: 0 | CM141: 0 | CN141: 0 | CO141: 0 | CP141: 0 | CQ141: 0 | CR141: 0 | CS141: 0 | CT141: 0 | CU141: 0 | CV141: 0 | CW141: 0 | CX141: 0 | CY141: 0 | CZ141: 0 | DA141: 0 | DB141: 0 | DC141: 0 | DD141: 0 | DE141: 0 | DF141: 0 | DG141: 0 | DH141: 0 | DI141: 0 | DJ141: 0 | DK141: 0 | DL141: 0 | DM141: 0 | DN141: 0 | DO141: 0 | DP141: 0 | DQ141: 0 | DR141: 0 | DS141: 0 | DT141: 0 | DU141: 0 | DV141: 0 | DW141: 0 | DX141: 0 | DY141: 0 | DZ141: 0 | EA141: 0 | EB141: 0 | EC141: 0 | ED141: 0 | EE141: 0 | EF141: 0 | EG141: 0 | EH141: 0 | EI141: =EI138+EI139-EI140 -> 0 | EJ141: 0 | EK141: 0 | EL141: 0 | EM141: 0 | EN141: 0 | EO141: 0 | EP141: 0 | EQ141: 0 | ER141: 0 | ES141: 0 | ET141: 0 | EU141: 0 | EV141: 0 | EW141: 0 | EX141: 0 | EY141: 0 | EZ141: 0 | FA141: 0 | FB141: 0 | FC141: 0
D143: Interest Cost | J143: =J138*J96 -> 0 | K143: 0 | L143: 0 | M143: 0 | N143: 0 | O143: 0 | P143: 0 | Q143: 0 | R143: 0 | S143: 0 | T143: 0 | U143: 0 | V143: 0 | W143: 0 | X143: 0 | Y143: 0 | Z143: 0 | AA143: 0 | AB143: 0 | AC143: 0 | AD143: 0 | AE143: 0 | AF143: 0 | AG143: 0 | AH143: 0 | AI143: 0 | AJ143: 0 | AK143: 0 | AL143: 0 | AM143: 0 | AN143: 0 | AO143: 0 | AP143: =AP138*AP96 -> 0 | AQ143: 0 | AR143: 0 | AS143: 0 | AT143: 0 | AU143: 0 | AV143: 0 | AW143: 0 | AX143: 0 | AY143: 0 | AZ143: 0 | BA143: 0 | BB143: 0 | BC143: 0 | BD143: 0 | BE143: 0 | BF143: 0 | BG143: 0 | BH143: 0 | BI143: 0 | BJ143: 0 | BK143: 0 | BL143: 0 | BM143: 0 | BN143: 0 | BO143: 0 | BP143: 0 | BQ143: 0 | BR143: 0 | BS143: 0 | BT143: 0 | BU143: 0 | BV143: =BV138*BV96 -> 0 | BW143: 0 | BX143: 0 | BY143: 0 | BZ143: 0 | CA143: 0 | CB143: 0 | CC143: 0 | CD143: 0 | CE143: 0 | CF143: 0 | CG143: 0 | CH143: 0 | CI143: 0 | CJ143: 0 | CK143: 0 | CL143: 0 | CM143: 0 | CN143: 0 | CO143: 0 | CP143: 0 | CQ143: 0 | CR143: 0 | CS143: 0 | CT143: 0 | CU143: 0 | CV143: 0 | CW143: 0 | CX143: 0 | CY143: 0 | CZ143: 0 | DA143: 0 | DB143: =DB138*DB96 -> 0 | DC143: 0 | DD143: 0 | DE143: 0 | DF143: 0 | DG143: 0 | DH143: 0 | DI143: 0 | DJ143: 0 | DK143: 0 | DL143: 0 | DM143: 0 | DN143: 0 | DO143: 0 | DP143: 0 | DQ143: 0 | DR143: 0 | DS143: 0 | DT143: 0 | DU143: 0 | DV143: 0 | DW143: 0 | DX143: 0 | DY143: 0 | DZ143: 0 | EA143: 0 | EB143: 0 | EC143: 0 | ED143: 0 | EE143: 0 | EF143: 0 | EG143: 0 | EH143: =EH138*EH96 -> 0 | EI143: 0 | EJ143: 0 | EK143: 0 | EL143: 0 | EM143: 0 | EN143: 0 | EO143: 0 | EP143: 0 | EQ143: 0 | ER143: 0 | ES143: 0 | ET143: 0 | EU143: 0 | EV143: 0 | EW143: 0 | EX143: 0 | EY143: 0 | EZ143: 0 | FA143: 0 | FB143: 0 | FC143: 0
D145: Year Counter | J145: =I145+J9*J7 -> 0 | K145: 0 | L145: 0 | M145: 0 | N145: 0 | O145: 0 | P145: 0 | Q145: 0 | R145: 0 | S145: 0 | T145: 0 | U145: 0 | V145: 1 | W145: 1 | X145: 1 | Y145: 1 | Z145: 2 | AA145: 2 | AB145: 2 | AC145: 2 | AD145: 3 | AE145: 3 | AF145: 3 | AG145: 3 | AH145: 4 | AI145: 4 | AJ145: 4 | AK145: 4 | AL145: 5 | AM145: 5 | AN145: 5 | AO145: 5 | AP145: =AO145+AP9*AP7 -> 6 | AQ145: 6 | AR145: 6 | AS145: 6 | AT145: 7 | AU145: 7 | AV145: 7 | AW145: 7 | AX145: 8 | AY145: 8 | AZ145: 8 | BA145: 8 | BB145: 9 | BC145: 9 | BD145: 9 | BE145: 9 | BF145: 10 | BG145: 10 | BH145: 10 | BI145: 10 | BJ145: 11 | BK145: 11 | BL145: 11 | BM145: 11 | BN145: 12 | BO145: 12 | BP145: 12 | BQ145: 12 | BR145: 13 | BS145: 13 | BT145: 13 | BU145: 13 | BV145: =BU145+BV9*BV7 -> 14 | BW145: 14 | BX145: 14 | BY145: 14 | BZ145: 15 | CA145: 15 | CB145: 15 | CC145: 15 | CD145: 16 | CE145: 16 | CF145: 16 | CG145: 16 | CH145: 17 | CI145: 17 | CJ145: 17 | CK145: 17 | CL145: 18 | CM145: 18 | CN145: 18 | CO145: 18 | CP145: 19 | CQ145: 19 | CR145: 19 | CS145: 19 | CT145: 20 | CU145: 20 | CV145: 20 | CW145: 20 | CX145: 21 | CY145: 21 | CZ145: 21 | DA145: 21 | DB145: =DA145+DB9*DB7 -> 22 | DC145: 22 | DD145: 22 | DE145: 22 | DF145: 23 | DG145: 23 | DH145: 23 | DI145: 23 | DJ145: 24 | DK145: 24 | DL145: 24 | DM145: 24 | DN145: 25 | DO145: 25 | DP145: 25 | DQ145: 25 | DR145: 25 | DS145: 25 | DT145: 25 | DU145: 25 | DV145: 25 | DW145: 25 | DX145: 25 | DY145: 25 | DZ145: 25 | EA145: 25 | EB145: 25 | EC145: 25 | ED145: 25 | EE145: 25 | EF145: 25 | EG145: 25 | EH145: =EG145+EH9*EH7 -> 25 | EI145: 25 | EJ145: 25 | EK145: 25 | EL145: 25 | EM145: 25 | EN145: 25 | EO145: 25 | EP145: 25 | EQ145: 25 | ER145: 25 | ES145: 25 | ET145: 25 | EU145: 25 | EV145: 25 | EW145: 25 | EX145: 25 | EY145: 25 | EZ145: 25 | FA145: 25 | FB145: 25 | FC145: 25
D146: Repayment | J146: =J93 -> 0 | K146: 0 | L146: 0 | M146: 0 | N146: 0 | O146: 0 | P146: 0 | Q146: 0 | R146: 0 | S146: 0 | T146: 0 | U146: 0 | V146: 0 | W146: 0 | X146: 0 | Y146: 0 | Z146: 0 | AA146: 0 | AB146: 0 | AC146: 0 | AD146: 0 | AE146: 0 | AF146: 0 | AG146: 0 | AH146: 0 | AI146: 0 | AJ146: 0 | AK146: 0 | AL146: 0 | AM146: 0 | AN146: 0 | AO146: 0 | AP146: =AP93 -> 0 | AQ146: 0 | AR146: 0 | AS146: 0 | AT146: 0 | AU146: 0 | AV146: 0 | AW146: 0 | AX146: 0 | AY146: 0 | AZ146: 0 | BA146: 0 | BB146: 0 | BC146: 0 | BD146: 0 | BE146: 0 | BF146: 0 | BG146: 0 | BH146: 0 | BI146: 0 | BJ146: 0 | BK146: 0 | BL146: 0 | BM146: 0 | BN146: 0 | BO146: 0 | BP146: 0 | BQ146: 0 | BR146: 0 | BS146: 0 | BT146: 0 | BU146: 0 | BV146: =BV93 -> 0 | BW146: 0 | BX146: 0 | BY146: 0 | BZ146: 0 | CA146: 0 | CB146: 0 | CC146: 0 | CD146: 0 | CE146: 0 | CF146: 0 | CG146: 0 | CH146: 0 | CI146: 0 | CJ146: 0 | CK146: 0 | CL146: 0 | CM146: 0 | CN146: 0 | CO146: 0 | CP146: 0 | CQ146: 0 | CR146: 0 | CS146: 0 | CT146: 0 | CU146: 0 | CV146: 0 | CW146: 0 | CX146: 0 | CY146: 0 | CZ146: 0 | DA146: 0 | DB146: =DB93 -> 0 | DC146: 0 | DD146: 0 | DE146: 0 | DF146: 0 | DG146: 0 | DH146: 0 | DI146: 0 | DJ146: 0 | DK146: 0 | DL146: 0 | DM146: 0 | DN146: 0 | DO146: 0 | DP146: 0 | DQ146: 0 | DR146: 0 | DS146: 0 | DT146: 0 | DU146: 0 | DV146: 0 | DW146: 0 | DX146: 0 | DY146: 0 | DZ146: 0 | EA146: 0 | EB146: 0 | EC146: 0 | ED146: 0 | EE146: 0 | EF146: 0 | EG146: 0 | EH146: =EH93 -> 0 | EI146: 0 | EJ146: 0 | EK146: 0 | EL146: 0 | EM146: 0 | EN146: 0 | EO146: 0 | EP146: 0 | EQ146: 0 | ER146: 0 | ES146: 0 | ET146: 0 | EU146: 0 | EV146: 0 | EW146: 0 | EX146: 0 | EY146: 0 | EZ146: 0 | FA146: 0 | FB146: 0 | FC146: 0
D147: Negative Repayment | J147: =MAX(-J146,0) -> 0 | K147: =MAX(-K146,0) -> 0 | L147: 0 | M147: 0 | N147: 0 | O147: 0 | P147: 0 | Q147: 0 | R147: 0 | S147: 0 | T147: 0 | U147: 0 | V147: 0 | W147: 0 | X147: 0 | Y147: 0 | Z147: 0 | AA147: 0 | AB147: 0 | AC147: 0 | AD147: 0 | AE147: 0 | AF147: 0 | AG147: 0 | AH147: 0 | AI147: 0 | AJ147: 0 | AK147: 0 | AL147: 0 | AM147: 0 | AN147: 0 | AO147: 0 | AP147: 0 | AQ147: 0 | AR147: 0 | AS147: 0 | AT147: 0 | AU147: 0 | AV147: 0 | AW147: 0 | AX147: 0 | AY147: 0 | AZ147: 0 | BA147: 0 | BB147: 0 | BC147: 0 | BD147: 0 | BE147: 0 | BF147: 0 | BG147: 0 | BH147: 0 | BI147: 0 | BJ147: 0 | BK147: 0 | BL147: 0 | BM147: 0 | BN147: 0 | BO147: 0 | BP147: 0 | BQ147: 0 | BR147: 0 | BS147: 0 | BT147: 0 | BU147: 0 | BV147: 0 | BW147: =MAX(-BW146,0) -> 0 | BX147: 0 | BY147: 0 | BZ147: 0 | CA147: 0 | CB147: 0 | CC147: 0 | CD147: 0 | CE147: 0 | CF147: 0 | CG147: 0 | CH147: 0 | CI147: 0 | CJ147: 0 | CK147: 0 | CL147: 0 | CM147: 0 | CN147: 0 | CO147: 0 | CP147: 0 | CQ147: 0 | CR147: 0 | CS147: 0 | CT147: 0 | CU147: 0 | CV147: 0 | CW147: 0 | CX147: 0 | CY147: 0 | CZ147: 0 | DA147: 0 | DB147: 0 | DC147: 0 | DD147: 0 | DE147: 0 | DF147: 0 | DG147: 0 | DH147: 0 | DI147: 0 | DJ147: 0 | DK147: 0 | DL147: 0 | DM147: 0 | DN147: 0 | DO147: 0 | DP147: 0 | DQ147: 0 | DR147: 0 | DS147: 0 | DT147: 0 | DU147: 0 | DV147: 0 | DW147: 0 | DX147: 0 | DY147: 0 | DZ147: 0 | EA147: 0 | EB147: 0 | EC147: 0 | ED147: 0 | EE147: 0 | EF147: 0 | EG147: 0 | EH147: 0 | EI147: =MAX(-EI146,0) -> 0 | EJ147: 0 | EK147: 0 | EL147: 0 | EM147: 0 | EN147: 0 | EO147: 0 | EP147: 0 | EQ147: 0 | ER147: 0 | ES147: 0 | ET147: 0 | EU147: 0 | EV147: 0 | EW147: 0 | EX147: 0 | EY147: 0 | EZ147: 0 | FA147: 0 | FB147: 0 | FC147: 0
D148: Sumif - Required Reserve for Year | J148: =SUMIF(145:145,J145,147:147) -> 0 | K148: 0 | L148: 0 | M148: 0 | N148: 0 | O148: 0 | P148: 0 | Q148: 0 | R148: 0 | S148: 0 | T148: 0 | U148: 0 | V148: 0 | W148: 0 | X148: 0 | Y148: 0 | Z148: 0 | AA148: 0 | AB148: 0 | AC148: 0 | AD148: 0 | AE148: 0 | AF148: 0 | AG148: 0 | AH148: 0 | AI148: 0 | AJ148: 0 | AK148: 0 | AL148: 0 | AM148: 0 | AN148: 0 | AO148: 0 | AP148: =SUMIF(145:145,AP145,147:147) -> 0 | AQ148: 0 | AR148: 0 | AS148: 0 | AT148: 0 | AU148: 0 | AV148: 0 | AW148: 0 | AX148: 0 | AY148: 0 | AZ148: 0 | BA148: 0 | BB148: 0 | BC148: 0 | BD148: 0 | BE148: 0 | BF148: 0 | BG148: 0 | BH148: 0 | BI148: 0 | BJ148: 0 | BK148: 0 | BL148: 0 | BM148: 0 | BN148: 0 | BO148: 0 | BP148: 0 | BQ148: 0 | BR148: 0 | BS148: 0 | BT148: 0 | BU148: 0 | BV148: =SUMIF(145:145,BV145,147:147) -> 0 | BW148: 0 | BX148: 0 | BY148: 0 | BZ148: 0 | CA148: 0 | CB148: 0 | CC148: 0 | CD148: 0 | CE148: 0 | CF148: 0 | CG148: 0 | CH148: 0 | CI148: 0 | CJ148: 0 | CK148: 0 | CL148: 0 | CM148: 0 | CN148: 0 | CO148: 0 | CP148: 0 | CQ148: 0 | CR148: 0 | CS148: 0 | CT148: 0 | CU148: 0 | CV148: 0 | CW148: 0 | CX148: 0 | CY148: 0 | CZ148: 0 | DA148: 0 | DB148: =SUMIF(145:145,DB145,147:147) -> 0 | DC148: 0 | DD148: 0 | DE148: 0 | DF148: 0 | DG148: 0 | DH148: 0 | DI148: 0 | DJ148: 0 | DK148: 0 | DL148: 0 | DM148: 0 | DN148: 0 | DO148: 0 | DP148: 0 | DQ148: 0 | DR148: 0 | DS148: 0 | DT148: 0 | DU148: 0 | DV148: 0 | DW148: 0 | DX148: 0 | DY148: 0 | DZ148: 0 | EA148: 0 | EB148: 0 | EC148: 0 | ED148: 0 | EE148: 0 | EF148: 0 | EG148: 0 | EH148: =SUMIF(145:145,EH145,147:147) -> 0 | EI148: 0 | EJ148: 0 | EK148: 0 | EL148: 0 | EM148: 0 | EN148: 0 | EO148: 0 | EP148: 0 | EQ148: 0 | ER148: 0 | ES148: 0 | ET148: 0 | EU148: 0 | EV148: 0 | EW148: 0 | EX148: 0 | EY148: 0 | EZ148: 0 | FA148: 0 | FB148: 0 | FC148: 0
D149: Max | F149: =SUM(147:147) -> 0
D151: Repayment Reserve Account
D152: Remaining Cash Need
D153: Period Before COD | J153: =J89 -> 0 | K153: 0 | L153: 0 | M153: 0 | N153: 0 | O153: 0 | P153: 0 | Q153: 0 | R153: 0 | S153: 0 | T153: 0 | U153: 1 | V153: 0 | W153: 0 | X153: 0 | Y153: 0 | Z153: 0 | AA153: 0 | AB153: 0 | AC153: 0 | AD153: 0 | AE153: 0 | AF153: 0 | AG153: 0 | AH153: 0 | AI153: 0 | AJ153: 0 | AK153: 0 | AL153: 0 | AM153: 0 | AN153: 0 | AO153: 0 | AP153: =AP89 -> 0 | AQ153: 0 | AR153: 0 | AS153: 0 | AT153: 0 | AU153: 0 | AV153: 0 | AW153: 0 | AX153: 0 | AY153: 0 | AZ153: 0 | BA153: 0 | BB153: 0 | BC153: 0 | BD153: 0 | BE153: 0 | BF153: 0 | BG153: 0 | BH153: 0 | BI153: 0 | BJ153: 0 | BK153: 0 | BL153: 0 | BM153: 0 | BN153: 0 | BO153: 0 | BP153: 0 | BQ153: 0 | BR153: 0 | BS153: 0 | BT153: 0 | BU153: 0 | BV153: =BV89 -> 0 | BW153: 0 | BX153: 0 | BY153: 0 | BZ153: 0 | CA153: 0 | CB153: 0 | CC153: 0 | CD153: 0 | CE153: 0 | CF153: 0 | CG153: 0 | CH153: 0 | CI153: 0 | CJ153: 0 | CK153: 0 | CL153: 0 | CM153: 0 | CN153: 0 | CO153: 0 | CP153: 0 | CQ153: 0 | CR153: 0 | CS153: 0 | CT153: 0 | CU153: 0 | CV153: 0 | CW153: 0 | CX153: 0 | CY153: 0 | CZ153: 0 | DA153: 0 | DB153: =DB89 -> 0 | DC153: 0 | DD153: 0 | DE153: 0 | DF153: 0 | DG153: 0 | DH153: 0 | DI153: 0 | DJ153: 0 | DK153: 0 | DL153: 0 | DM153: 0 | DN153: 0 | DO153: 0 | DP153: 0 | DQ153: 0 | DR153: 0 | DS153: 0 | DT153: 0 | DU153: 0 | DV153: 0 | DW153: 0 | DX153: 0 | DY153: 0 | DZ153: 0 | EA153: 0 | EB153: 0 | EC153: 0 | ED153: 0 | EE153: 0 | EF153: 0 | EG153: 0 | EH153: =EH89 -> 0 | EI153: 0 | EJ153: 0 | EK153: 0 | EL153: 0 | EM153: 0 | EN153: 0 | EO153: 0 | EP153: 0 | EQ153: 0 | ER153: 0 | ES153: 0 | ET153: 0 | EU153: 0 | EV153: 0 | EW153: 0 | EX153: 0 | EY153: 0 | EZ153: 0 | FA153: 0 | FB153: 0 | FC153: 0
D154: Opening Balance | J154: =I157 -> 0 | K154: =J157 -> 0 | L154: 0 | M154: 0 | N154: 0 | O154: 0 | P154: 0 | Q154: 0 | R154: 0 | S154: 0 | T154: 0 | U154: 0 | V154: 0 | W154: 0 | X154: 0 | Y154: 0 | Z154: 0 | AA154: 0 | AB154: 0 | AC154: 0 | AD154: 0 | AE154: 0 | AF154: 0 | AG154: 0 | AH154: 0 | AI154: 0 | AJ154: 0 | AK154: 0 | AL154: 0 | AM154: 0 | AN154: 0 | AO154: 0 | AP154: 0 | AQ154: 0 | AR154: 0 | AS154: 0 | AT154: 0 | AU154: 0 | AV154: 0 | AW154: 0 | AX154: 0 | AY154: 0 | AZ154: 0 | BA154: 0 | BB154: 0 | BC154: 0 | BD154: 0 | BE154: 0 | BF154: 0 | BG154: 0 | BH154: 0 | BI154: 0 | BJ154: 0 | BK154: 0 | BL154: 0 | BM154: 0 | BN154: 0 | BO154: 0 | BP154: 0 | BQ154: 0 | BR154: 0 | BS154: 0 | BT154: 0 | BU154: 0 | BV154: 0 | BW154: =BV157 -> 0 | BX154: 0 | BY154: 0 | BZ154: 0 | CA154: 0 | CB154: 0 | CC154: 0 | CD154: 0 | CE154: 0 | CF154: 0 | CG154: 0 | CH154: 0 | CI154: 0 | CJ154: 0 | CK154: 0 | CL154: 0 | CM154: 0 | CN154: 0 | CO154: 0 | CP154: 0 | CQ154: 0 | CR154: 0 | CS154: 0 | CT154: 0 | CU154: 0 | CV154: 0 | CW154: 0 | CX154: 0 | CY154: 0 | CZ154: 0 | DA154: 0 | DB154: 0 | DC154: 0 | DD154: 0 | DE154: 0 | DF154: 0 | DG154: 0 | DH154: 0 | DI154: 0 | DJ154: 0 | DK154: 0 | DL154: 0 | DM154: 0 | DN154: 0 | DO154: 0 | DP154: 0 | DQ154: 0 | DR154: 0 | DS154: 0 | DT154: 0 | DU154: 0 | DV154: 0 | DW154: 0 | DX154: 0 | DY154: 0 | DZ154: 0 | EA154: 0 | EB154: 0 | EC154: 0 | ED154: 0 | EE154: 0 | EF154: 0 | EG154: 0 | EH154: 0 | EI154: =EH157 -> 0 | EJ154: 0 | EK154: 0 | EL154: 0 | EM154: 0 | EN154: 0 | EO154: 0 | EP154: 0 | EQ154: 0 | ER154: 0 | ES154: 0 | ET154: 0 | EU154: 0 | EV154: 0 | EW154: 0 | EX154: 0 | EY154: 0 | EZ154: 0 | FA154: 0 | FB154: 0 | FC154: 0
D155: Add: Cash Reserved | F155: =F149 -> 0 | J155: =$F$155*J153 -> 0 | K155: 0 | L155: 0 | M155: 0 | N155: 0 | O155: 0 | P155: 0 | Q155: 0 | R155: 0 | S155: 0 | T155: 0 | U155: 0 | V155: 0 | W155: 0 | X155: 0 | Y155: 0 | Z155: 0 | AA155: 0 | AB155: 0 | AC155: 0 | AD155: 0 | AE155: 0 | AF155: 0 | AG155: 0 | AH155: 0 | AI155: 0 | AJ155: 0 | AK155: 0 | AL155: 0 | AM155: 0 | AN155: 0 | AO155: 0 | AP155: =$F$155*AP153 -> 0 | AQ155: 0 | AR155: 0 | AS155: 0 | AT155: 0 | AU155: 0 | AV155: 0 | AW155: 0 | AX155: 0 | AY155: 0 | AZ155: 0 | BA155: 0 | BB155: 0 | BC155: 0 | BD155: 0 | BE155: 0 | BF155: 0 | BG155: 0 | BH155: 0 | BI155: 0 | BJ155: 0 | BK155: 0 | BL155: 0 | BM155: 0 | BN155: 0 | BO155: 0 | BP155: 0 | BQ155: 0 | BR155: 0 | BS155: 0 | BT155: 0 | BU155: 0 | BV155: =$F$155*BV153 -> 0 | BW155: 0 | BX155: 0 | BY155: 0 | BZ155: 0 | CA155: 0 | CB155: 0 | CC155: 0 | CD155: 0 | CE155: 0 | CF155: 0 | CG155: 0 | CH155: 0 | CI155: 0 | CJ155: 0 | CK155: 0 | CL155: 0 | CM155: 0 | CN155: 0 | CO155: 0 | CP155: 0 | CQ155: 0 | CR155: 0 | CS155: 0 | CT155: 0 | CU155: 0 | CV155: 0 | CW155: 0 | CX155: 0 | CY155: 0 | CZ155: 0 | DA155: 0 | DB155: =$F$155*DB153 -> 0 | DC155: 0 | DD155: 0 | DE155: 0 | DF155: 0 | DG155: 0 | DH155: 0 | DI155: 0 | DJ155: 0 | DK155: 0 | DL155: 0 | DM155: 0 | DN155: 0 | DO155: 0 | DP155: 0 | DQ155: 0 | DR155: 0 | DS155: 0 | DT155: 0 | DU155: 0 | DV155: 0 | DW155: 0 | DX155: 0 | DY155: 0 | DZ155: 0 | EA155: 0 | EB155: 0 | EC155: 0 | ED155: 0 | EE155: 0 | EF155: 0 | EG155: 0 | EH155: =$F$155*EH153 -> 0 | EI155: 0 | EJ155: 0 | EK155: 0 | EL155: 0 | EM155: 0 | EN155: 0 | EO155: 0 | EP155: 0 | EQ155: 0 | ER155: 0 | ES155: 0 | ET155: 0 | EU155: 0 | EV155: 0 | EW155: 0 | EX155: 0 | EY155: 0 | EZ155: 0 | FA155: 0 | FB155: 0 | FC155: 0
D156: Less: Cash Used | J156: =J146-J148 -> 0 | K156: 0 | L156: 0 | M156: 0 | N156: 0 | O156: 0 | P156: 0 | Q156: 0 | R156: 0 | S156: 0 | T156: 0 | U156: 0 | V156: =MAX(-V146,0) -> 0 | W156: 0 | X156: 0 | Y156: 0 | Z156: 0 | AA156: 0 | AB156: 0 | AC156: 0 | AD156: 0 | AE156: 0 | AF156: 0 | AG156: 0 | AH156: 0 | AI156: 0 | AJ156: 0 | AK156: 0 | AL156: 0 | AM156: 0 | AN156: 0 | AO156: 0 | AP156: 0 | AQ156: 0 | AR156: 0 | AS156: 0 | AT156: 0 | AU156: 0 | AV156: 0 | AW156: 0 | AX156: 0 | AY156: 0 | AZ156: 0 | BA156: 0 | BB156: =MAX(-BB146,0) -> 0 | BC156: 0 | BD156: 0 | BE156: 0 | BF156: 0 | BG156: 0 | BH156: 0 | BI156: 0 | BJ156: 0 | BK156: 0 | BL156: 0 | BM156: 0 | BN156: 0 | BO156: 0 | BP156: 0 | BQ156: 0 | BR156: 0 | BS156: 0 | BT156: 0 | BU156: 0 | BV156: 0 | BW156: 0 | BX156: 0 | BY156: 0 | BZ156: 0 | CA156: 0 | CB156: 0 | CC156: 0 | CD156: 0 | CE156: 0 | CF156: 0 | CG156: 0 | CH156: =MAX(-CH146,0) -> 0 | CI156: 0 | CJ156: 0 | CK156: 0 | CL156: 0 | CM156: 0 | CN156: 0 | CO156: 0 | CP156: 0 | CQ156: 0 | CR156: 0 | CS156: 0 | CT156: 0 | CU156: 0 | CV156: 0 | CW156: 0 | CX156: 0 | CY156: 0 | CZ156: 0 | DA156: 0 | DB156: 0 | DC156: 0 | DD156: 0 | DE156: 0 | DF156: 0 | DG156: 0 | DH156: 0 | DI156: 0 | DJ156: 0 | DK156: 0 | DL156: 0 | DM156: 0 | DN156: =MAX(-DN146,0) -> 0 | DO156: 0 | DP156: 0 | DQ156: 0 | DR156: 0 | DS156: 0 | DT156: 0 | DU156: 0 | DV156: 0 | DW156: 0 | DX156: 0 | DY156: 0 | DZ156: 0 | EA156: 0 | EB156: 0 | EC156: 0 | ED156: 0 | EE156: 0 | EF156: 0 | EG156: 0 | EH156: 0 | EI156: 0 | EJ156: 0 | EK156: 0 | EL156: 0 | EM156: 0 | EN156: 0 | EO156: 0 | EP156: 0 | EQ156: 0 | ER156: 0 | ES156: 0 | ET156: =MAX(-ET146,0) -> 0 | EU156: 0 | EV156: 0 | EW156: 0 | EX156: 0 | EY156: 0 | EZ156: 0 | FA156: 0 | FB156: 0 | FC156: 0
D157: Closing Balance | J157: =J154+J155-J156 -> 0 | K157: =K154+K155-K156 -> 0 | L157: 0 | M157: 0 | N157: 0 | O157: 0 | P157: 0 | Q157: 0 | R157: 0 | S157: 0 | T157: 0 | U157: 0 | V157: 0 | W157: 0 | X157: 0 | Y157: 0 | Z157: 0 | AA157: 0 | AB157: 0 | AC157: 0 | AD157: 0 | AE157: 0 | AF157: 0 | AG157: 0 | AH157: 0 | AI157: 0 | AJ157: 0 | AK157: 0 | AL157: 0 | AM157: 0 | AN157: 0 | AO157: 0 | AP157: 0 | AQ157: 0 | AR157: 0 | AS157: 0 | AT157: 0 | AU157: 0 | AV157: 0 | AW157: 0 | AX157: 0 | AY157: 0 | AZ157: 0 | BA157: 0 | BB157: 0 | BC157: 0 | BD157: 0 | BE157: 0 | BF157: 0 | BG157: 0 | BH157: 0 | BI157: 0 | BJ157: 0 | BK157: 0 | BL157: 0 | BM157: 0 | BN157: 0 | BO157: 0 | BP157: 0 | BQ157: 0 | BR157: 0 | BS157: 0 | BT157: 0 | BU157: 0 | BV157: 0 | BW157: =BW154+BW155-BW156 -> 0 | BX157: 0 | BY157: 0 | BZ157: 0 | CA157: 0 | CB157: 0 | CC157: 0 | CD157: 0 | CE157: 0 | CF157: 0 | CG157: 0 | CH157: 0 | CI157: 0 | CJ157: 0 | CK157: 0 | CL157: 0 | CM157: 0 | CN157: 0 | CO157: 0 | CP157: 0 | CQ157: 0 | CR157: 0 | CS157: 0 | CT157: 0 | CU157: 0 | CV157: 0 | CW157: 0 | CX157: 0 | CY157: 0 | CZ157: 0 | DA157: 0 | DB157: 0 | DC157: 0 | DD157: 0 | DE157: 0 | DF157: 0 | DG157: 0 | DH157: 0 | DI157: 0 | DJ157: 0 | DK157: 0 | DL157: 0 | DM157: 0 | DN157: 0 | DO157: 0 | DP157: 0 | DQ157: 0 | DR157: 0 | DS157: 0 | DT157: 0 | DU157: 0 | DV157: 0 | DW157: 0 | DX157: 0 | DY157: 0 | DZ157: 0 | EA157: 0 | EB157: 0 | EC157: 0 | ED157: 0 | EE157: 0 | EF157: 0 | EG157: 0 | EH157: 0 | EI157: =EI154+EI155-EI156 -> 0 | EJ157: 0 | EK157: 0 | EL157: 0 | EM157: 0 | EN157: 0 | EO157: 0 | EP157: 0 | EQ157: 0 | ER157: 0 | ES157: 0 | ET157: 0 | EU157: 0 | EV157: 0 | EW157: 0 | EX157: 0 | EY157: 0 | EZ157: 0 | FA157: 0 | FB157: 0 | FC157: 0
D158: IDC
D159: Interest Expense
D161: Upfront Fee
D162: Undrawn Balance
D163: Commitment Fee
D164: Agency Fee
C166: Letter of Credit
D167: Debt Service
D168: Required LC
D169: LC Fee Percent
D170: LC Fee
C172: Cashflow Waterfall
D173: CFADS
D174: Interest
D175: Repayment
D176: Remaining Cash
D177: (add) revolver draws
D178: (less) revolver repayments
D179: Cash flow for distribution

Sheet Production
C1: January | D1: February | E1: March | F1: April | G1: May | H1: June | I1: July | J1: August | K1: September | L1: October | M1: November | N1: December | O1: Year
B2: 2005 | C2: 81.77 | D2: 77.85 | E2: 145.5 | F2: 174.91 | G2: 183.68 | H2: 200.51 | I2: 205.39 | J2: 190.89 | K2: 159.97 | L2: 139.19 | M2: 102.21 | N2: 88.44 | O2: =SUM(C2:N2) -> 1750.31
B3: 2006 | C3: 105.05 | D3: 95.8 | E3: 130.97 | F3: 181.44 | G3: 187.26 | H3: 202.47 | I3: 188.01 | J3: 199.96 | K3: 154.04 | L3: 128.32 | M3: 99.45 | N3: 81.93 | O3: =SUM(C3:N3) -> 1754.7
B4: 2007 | C4: 74.87 | D4: 103.94 | E4: 126.49 | F4: 151.92 | G4: 164.79 | H4: 174.23 | I4: 163.08 | J4: 184.5 | K4: 152.42 | L4: 136.83 | M4: 91.39 | N4: 90.59 | O4: 1615.05
B5: 2008 | C5: 87.38 | D5: 115.84 | E5: 139.34 | F5: 163.36 | G5: 183.86 | H5: 201.52 | I5: 210.48 | J5: 178.47 | K5: 162.23 | L5: 141.98 | M5: 98.76 | N5: 74.6 | O5: 1757.82
B6: 2009 | C6: 100.08 | D6: 112.81 | E6: 135.22 | F6: 177.86 | G6: 184.48 | H6: 204.34 | I6: 206.47 | J6: 194.58 | K6: 129.28 | L6: 105.19 | M6: 102.66 | N6: 71.59 | O6: 1724.56
B7: 2010 | C7: 90.17 | D7: 96.94 | E7: 157.01 | F7: 157 | G7: 184.48 | H7: 179.2 | I7: 185.08 | J7: 203.64 | K7: 148.11 | L7: 156.17 | M7: 98.28 | N7: 91.74 | O7: 1747.82
B8: 2011 | C8: 90.4 | D8: 99.92 | E8: 147.33 | F8: 188.83 | G8: 199.57 | H8: 208.62 | I8: 209.13 | J8: 209.26 | K8: 184.98 | L8: 144.65 | M8: 102.56 | N8: 67.34 | O8: 1852.59
B9: 2012 | C9: 97.71 | D9: 91.93 | E9: 130.48 | F9: 180.45 | G9: 191.19 | H9: 202.9 | I9: 190.36 | J9: 198.95 | K9: 156.68 | L9: 123.94 | M9: 109.81 | N9: 81.57 | O9: 1755.97
B10: 2013 | C10: 83.04 | D10: 110.89 | E10: 156.91 | F10: 155.09 | G10: 185.73 | H10: 204.48 | I10: 196.58 | J10: 198.78 | K10: 156.01 | L10: 122.6 | M10: 86.32 | N10: 80.59 | O10: 1737.02
B11: 2014 | C11: 104.86 | D11: 84.05 | E11: 131.7 | F11: 165.93 | G11: 185.32 | H11: 175.2 | I11: 199.54 | J11: 190.83 | K11: 142.16 | L11: 139.58 | M11: 94.91 | N11: 60.55 | O11: 1674.63
B12: 2015 | C12: 85.15 | D12: 90.98 | E12: 111.98 | F12: 132.58 | G12: 143.58 | H12: 184.83 | I12: 215.16 | J12: 201.08 | K12: 163.46 | L12: 133.15 | M12: 76.03 | N12: 84.94 | O12: 1622.92
B13: 2016 | C13: 101.82 | D13: 124.23 | E13: 141.4 | F13: 153.07 | G13: 153.94 | H13: 184.66 | I13: 206.43 | J13: 163.65 | K13: 157.24 | L13: 139.21 | M13: 92.28 | N13: 63 | O13: 1680.93
B14: 2017 | C14: 95.56 | D14: 101.34 | E14: 137.49 | F14: 160.25 | G14: 180.72 | H14: 180.62 | I14: 206.94 | J14: 163.32 | K14: 165.08 | L14: 138.49 | M14: 91.61 | N14: 71.17 | O14: 1692.59
B15: 2018 | C15: 95.98 | D15: 57.8 | E15: 144.63 | F15: 169.23 | G15: 191.93 | H15: 189.17 | I15: 210.23 | J15: 192.28 | K15: 111.15 | L15: 98.96 | M15: 87.26 | N15: 79.93 | O15: 1628.55
B16: 2019 | C16: 88.39 | D16: 69.72 | E16: 129.15 | F16: 163.37 | G16: 166.21 | H16: 184.02 | I16: 206.65 | J16: 191.96 | K16: 158.49 | L16: 120.22 | M16: 88.06 | N16: 92.82 | O16: 1659.06
B17: 2020 | C17: 83.48 | D17: 96.7 | E17: 111.83 | F17: 159.7 | G17: 190.78 | H17: 184.39 | I17: 198 | J17: 202.91 | K17: 128.44 | L17: 127.29 | M17: 99.18 | N17: 88.06 | O17: 1670.76
C20: =AVERAGE(C2:C17) -> 91.606875 | D20: =AVERAGE(D2:D17) -> 95.67125 | E20: 136.089375 | F20: 164.686875 | G20: 179.845 | H20: 191.3225 | I20: 199.845625 | J20: 191.56625 | K20: 151.85875 | L20: 130.985625 | M20: 95.048125 | N20: 79.30375 | O20: =SUM(C20:N20) -> 1707.83
C21: =_xlfn.STDEV.S(C2:C17) -> 8.922689967 | D21: =_xlfn.STDEV.S(D2:D17) -> 17.25364768 | E21: 13.13401054 | F21: 14.00070604 | G21: 15.00298237 | H21: 11.81702416 | I21: 13.08999362 | J21: 13.32768341 | K21: 17.36241799 | L21: 14.59107671 | M21: 8.264334794 | N21: 10.2604437 | O21: 63.46567261
C22: 1 | D22: 2 | E22: 3 | F22: 4 | G22: 5 | H22: 6 | I22: 7 | J22: 8 | K22: 9 | L22: 10 | M22: 11 | N22: 12
C23: =C20 / $O$20 -> 0.05363934057 | D23: =D20 / $O$20 -> 0.05601918809 | E23: 0.07968555126 | F23: 0.09643048488 | G23: 0.1053061487 | H23: 0.1120266654 | I23: 0.1170172822 | J23: 0.1121693904 | K23: 0.08891912544 | L23: 0.07669710978 | M23: 0.05565432449 | N23: 0.04643538877
C24: =MOD(C22, 3) = 0 -> FALSE | D24: =MOD(D22, 3) = 0 -> FALSE | E24: TRUE | F24: FALSE | G24: FALSE | H24: TRUE | I24: FALSE | J24: FALSE | K24: TRUE | L24: FALSE | M24: FALSE | N24: TRUE
A25: 0 | B25: 1 | C25: =B25 + B24 -> 1 | D25: =C25 + C24 -> 1 | E25: 1 | F25: 2 | G25: 2 | H25: 2 | I25: 3 | J25: 3 | K25: 3 | L25: 4 | M25: 4 | N25: 4
C26: =SUMIF(25:25, C25, 23:23) * C24 -> 0 | D26: 0 | E26: 0.1893440799 | F26: 0 | G26: 0 | H26: 0.313763299 | I26: 0 | J26: 0 | K26: 0.318105798 | L26: 0 | M26: 0 | N26: 0.178786823
C27: =10% -> 0.1
C28: =_xlfn.NORM.INV( $C$27, C20, C21) -> 80.1719877 | D28: =_xlfn.NORM.INV( $C$27, D20, D21) -> 73.5598108 | E28: 119.2574632 | F28: 146.7442483 | G28: 160.6179045 | H28: 176.1783742 | I28: 183.0701232 | J28: 174.4861365 | K28: 129.607916 | L28: 112.2864078 | M28: 84.45695381 | N28: 66.15446231 | O28: 1626.495468
C29: =C28 / C20 -> 0.8751743546 | D29: =D28 / D20 -> 0.7688810463 | E29: 0.8763172234 | F29: 0.8910500503 | G29: 0.8930907418 | H29: 0.9208450349 | I29: 0.916057698 | J29: 0.9108396519 | K29: 0.853476774 | L29: 0.8572422187 | M29: 0.8885704353 | N29: 0.8341908461 | O29: 0.9523755104
C31: =C21 ^ 2 -> 79.61439625 | D31: =D21 ^ 2 -> 297.6883583 | E31: 172.5022329 | F31: 196.0197696 | G31: 225.08948 | H31: 139.64206 | I31: 171.3479329 | J31: 177.627145 | K31: 301.4535583 | L31: 212.8995196 | M31: 68.29922958 | N31: 105.276705 | O31: =SUM(C31:N31) -> 2147.460387
O32: =O31 ^ 0.5 -> 46.34069904
C34: Standard Deviation From Year to Year Variability | I34: =O21 -> 63.46567261 | K34: =I34 ^ 2 -> 4027.8916
C35: Standrad Deviation in Performance Ratio | I35: 50 | K35: =I35 ^ 2 -> 2500
C36: Solar Modelling Error | I36: 70 | K36: 4900 | L36: Mean Squared Error
K37: =SUM(K34:K36) -> 11427.8916 | L37: =K37 ^ 0.5 -> 106.9013171 | N37: 0.01 | O37: =_xlfn.NORM.INV(N37, O20, L37) -> 1459.140348
M38: 1yr P99 > | O38: =O37 / O20 -> 0.8543826658
C39: Standard Deviation % | I39: =L37 / O20 -> 0.06259482332
O40: =K35 + K36 -> 7400
O41: =O40 ^ 0.5 -> 86.02325267
O43: =_xlfn.NORM.INV(N37, O20, O41) -> 1507.709989
M44: 10yr P99 > | O44: =O43 / O20 -> 0.8828220543

Sheet Read from PVGIS
A1: Month
A2: January
A3: February
A4: March
A5: April
A6: May
A7: June
A8: July
A9: August
A10: September
A11: October
A12: November
A13: December
A14: 2005
A15: 81.77
A16: 77.85
A17: 145.5
A18: 174.91
A19: 183.68
A20: 200.51
A21: 205.39
A22: 190.89
A23: 159.97
A24: 139.19
A25: 102.21
A26: 88.44
A27: 2006
A28: 105.05
A29: 95.8
A30: 130.97
A31: 181.44
A32: 187.26
A33: 202.47
A34: 188.01
A35: 199.96
A36: 154.04
A37: 128.32
A38: 99.45
A39: 81.93
A40: 2007
A41: 74.87
A42: 103.94
A43: 126.49
A44: 151.92
A45: 164.79
A46: 174.23
A47: 163.08
A48: 184.5
A49: 152.42
A50: 136.83
A51: 91.39
A52: 90.59
A53: 2008
A54: 87.38
A55: 115.84
A56: 139.34
A57: 163.36
A58: 183.86
A59: 201.52
A60: 210.48
A61: 178.47
A62: 162.23
A63: 141.98
A64: 98.76
A65: 74.6
A66: 2009
A67: 100.08
A68: 112.81
A69: 135.22
A70: 177.86
A71: 184.48
A72: 204.34
A73: 206.47
A74: 194.58
A75: 129.28
A76: 105.19
A77: 102.66
A78: 71.59
A79: 2010
A80: 90.17
A81: 96.94
A82: 157.01
A83: 157
A84: 184.48
A85: 179.2
A86: 185.08
A87: 203.64
A88: 148.11
A89: 156.17
A90: 98.28
A91: 91.74
A92: 2011
A93: 90.4
A94: 99.92
A95: 147.33
A96: 188.83
A97: 199.57
A98: 208.62
A99: 209.13
A100: 209.26
A101: 184.98
A102: 144.65
A103: 102.56
A104: 67.34
A105: 2012
A106: 97.71
A107: 91.93
A108: 130.48
A109: 180.45
A110: 191.19
A111: 202.9
A112: 190.36
A113: 198.95
A114: 156.68
A115: 123.94
A116: 109.81
A117: 81.57
A118: 2013
A119: 83.04
A120: 110.89
A121: 156.91
A122: 155.09
A123: 185.73
A124: 204.48
A125: 196.58
A126: 198.78
A127: 156.01
A128: 122.6
A129: 86.32
A130: 80.59
A131: 2014
A132: 104.86
A133: 84.05
A134: 131.7
A135: 165.93
A136: 185.32
A137: 175.2
A138: 199.54
A139: 190.83
A140: 142.16
A141: 139.58
A142: 94.91
A143: 60.55
A144: 2015
A145: 85.15
A146: 90.98
A147: 111.98
A148: 132.58
A149: 143.58
A150: 184.83
A151: 215.16
A152: 201.08
A153: 163.46
A154: 133.15
A155: 76.03
A156: 84.94
A157: 2016
A158: 101.82
A159: 124.23
A160: 141.4
A161: 153.07
A162: 153.94
A163: 184.66
A164: 206.43
A165: 163.65
A166: 157.24
A167: 139.21
A168: 92.28
A169: 63
A170: 2017
A171: 95.56
A172: 101.34
A173: 137.49
A174: 160.25
A175: 180.72
A176: 180.62
A177: 206.94
A178: 163.32
A179: 165.08
A180: 138.49
A181: 91.61
A182: 71.17
A183: 2018
A184: 95.98
A185: 57.8
A186: 144.63
A187: 169.23
A188: 191.93
A189: 189.17
A190: 210.23
A191: 192.28
A192: 111.15
A193: 98.96
A194: 87.26
A195: 79.93
A196: 2019
A197: 88.39
A198: 69.72
A199: 129.15
A200: 163.37
... 21 more rows

Sheet Summary
E1: Units | F1: Constant 1 | G1: Constant 2 | H1: Sum | I1: Initial | J1: Project IRR | K1: =#REF! ->  | L1: Equity IRR
D2: Period | E2: Period | J2: 1 | K2: 2 | L2: 3 | M2: 4 | N2: 5 | O2: 6 | P2: 7 | Q2: 8 | R2: 9 | S2: 10 | T2: 11 | U2: 12 | V2: 13 | W2: 14 | X2: 15 | Y2: 16 | Z2: 17 | AA2: 18 | AB2: 19 | AC2: 20 | AD2: 21 | AE2: 22 | AF2: 23 | AG2: 24 | AH2: 25 | AI2: 26 | AJ2: 27 | AK2: 28 | AL2: 29 | AM2: 30 | AN2: 31 | AO2: 32 | AP2: 33 | AQ2: 34 | AR2: 35 | AS2: 36 | AT2: 37 | AU2: 38 | AV2: 39 | AW2: 40 | AX2: 41 | AY2: 42 | AZ2: 43 | BA2: 44 | BB2: 45 | BC2: 46 | BD2: 47 | BE2: 48 | BF2: 49 | BG2: 50 | BH2: 51 | BI2: 52 | BJ2: 53 | BK2: 54 | BL2: 55 | BM2: 56 | BN2: 57 | BO2: 58 | BP2: 59 | BQ2: 60 | BR2: 61 | BS2: 62 | BT2: 63 | BU2: 64 | BV2: 65 | BW2: 66 | BX2: 67 | BY2: 68 | BZ2: 69 | CA2: 70 | CB2: 71 | CC2: 72 | CD2: 73 | CE2: 74 | CF2: 75 | CG2: 76 | CH2: 77 | CI2: 78 | CJ2: 79 | CK2: 80 | CL2: 81 | CM2: 82 | CN2: 83 | CO2: 84 | CP2: 85 | CQ2: 86 | CR2: 87 | CS2: 88 | CT2: 89 | CU2: 90 | CV2: 91 | CW2: 92 | CX2: 93 | CY2: 94 | CZ2: 95 | DA2: 96 | DB2: 97 | DC2: 98 | DD2: 99 | DE2: 100 | DF2: 101 | DG2: 102 | DH2: 103 | DI2: 104 | DJ2: 105 | DK2: 106 | DL2: 107 | DM2: 108 | DN2: 109 | DO2: 110 | DP2: 111 | DQ2: 112 | DR2: 113 | DS2: 114 | DT2: 115 | DU2: 116 | DV2: 117 | DW2: 118 | DX2: 119 | DY2: 120 | DZ2: 121 | EA2: 122 | EB2: 123 | EC2: 124 | ED2: 125 | EE2: 126 | EF2: 127 | EG2: 128 | EH2: 129 | EI2: 130 | EJ2: 131 | EK2: 132 | EL2: 133 | EM2: 134 | EN2: 135 | EO2: 136 | EP2: 137 | EQ2: 138 | ER2: 139 | ES2: 140 | ET2: 141 | EU2: 142 | EV2: 143 | EW2: 144 | EX2: 145 | EY2: 146 | EZ2: 147 | FA2: 148 | FB2: 149 | FC2: 150
D3: Pre-COD Period | E3: Flag | F3: =Input!E4 -> 12 | I3: =SUM(J3:FC3) -> 12 | J3: =( J2 <=$F$3)*1 -> 1 | K3: 1 | L3: 1 | M3: 1 | N3: 1 | O3: 1 | P3: 1 | Q3: 1 | R3: 1 | S3: 1 | T3: 1 | U3: 1 | V3: 0 | W3: 0 | X3: 0 | Y3: 0 | Z3: 0 | AA3: 0 | AB3: 0 | AC3: 0 | AD3: 0 | AE3: 0 | AF3: 0 | AG3: 0 | AH3: 0 | AI3: 0 | AJ3: 0 | AK3: 0 | AL3: 0 | AM3: 0 | AN3: 0 | AO3: 0 | AP3: 0 | AQ3: 0 | AR3: 0 | AS3: 0 | AT3: 0 | AU3: 0 | AV3: 0 | AW3: 0 | AX3: 0 | AY3: 0 | AZ3: 0 | BA3: 0 | BB3: 0 | BC3: 0 | BD3: 0 | BE3: 0 | BF3: 0 | BG3: 0 | BH3: 0 | BI3: 0 | BJ3: 0 | BK3: 0 | BL3: 0 | BM3: 0 | BN3: 0 | BO3: 0 | BP3: 0 | BQ3: 0 | BR3: 0 | BS3: 0 | BT3: 0 | BU3: 0 | BV3: =( BV2 <=$F$3)*1 -> 0 | BW3: 0 | BX3: 0 | BY3: 0 | BZ3: 0 | CA3: 0 | CB3: 0 | CC3: 0 | CD3: 0 | CE3: 0 | CF3: 0 | CG3: 0 | CH3: 0 | CI3: 0 | CJ3: 0 | CK3: 0 | CL3: 0 | CM3: 0 | CN3: 0 | CO3: 0 | CP3: 0 | CQ3: 0 | CR3: 0 | CS3: 0 | CT3: 0 | CU3: 0 | CV3: 0 | CW3: 0 | CX3: 0 | CY3: 0 | CZ3: 0 | DA3: 0 | DB3: 0 | DC3: 0 | DD3: 0 | DE3: 0 | DF3: 0 | DG3: 0 | DH3: 0 | DI3: 0 | DJ3: 0 | DK3: 0 | DL3: 0 | DM3: 0 | DN3: 0 | DO3: 0 | DP3: 0 | DQ3: 0 | DR3: 0 | DS3: 0 | DT3: 0 | DU3: 0 | DV3: 0 | DW3: 0 | DX3: 0 | DY3: 0 | DZ3: 0 | EA3: 0 | EB3: 0 | EC3: 0 | ED3: 0 | EE3: 0 | EF3: 0 | EG3: 0 | EH3: =( EH2 <=$F$3)*1 -> 0 | EI3: 0 | EJ3: 0 | EK3: 0 | EL3: 0 | EM3: 0 | EN3: 0 | EO3: 0 | EP3: 0 | EQ3: 0 | ER3: 0 | ES3: 0 | ET3: 0 | EU3: 0 | EV3: 0 | EW3: 0 | EX3: 0 | EY3: 0 | EZ3: 0 | FA3: 0 | FB3: 0 | FC3: 0
D4: Months in Period | E4: Flag | F4: =Input!E8 -> 1 | G4: =Input!E9 -> 3 | J4: =IF( J3, $F$4, $G$4) -> 1 | K4: 1 | L4: 1 | M4: 1 | N4: 1 | O4: 1 | P4: 1 | Q4: 1 | R4: 1 | S4: 1 | T4: 1 | U4: 1 | V4: 3 | W4: 3 | X4: 3 | Y4: 3 | Z4: 3 | AA4: 3 | AB4: 3 | AC4: 3 | AD4: 3 | AE4: 3 | AF4: 3 | AG4: 3 | AH4: 3 | AI4: 3 | AJ4: 3 | AK4: 3 | AL4: 3 | AM4: 3 | AN4: 3 | AO4: 3 | AP4: 3 | AQ4: 3 | AR4: 3 | AS4: 3 | AT4: 3 | AU4: 3 | AV4: 3 | AW4: 3 | AX4: 3 | AY4: 3 | AZ4: 3 | BA4: 3 | BB4: 3 | BC4: 3 | BD4: 3 | BE4: 3 | BF4: 3 | BG4: 3 | BH4: 3 | BI4: 3 | BJ4: 3 | BK4: 3 | BL4: 3 | BM4: 3 | BN4: 3 | BO4: 3 | BP4: 3 | BQ4: 3 | BR4: 3 | BS4: 3 | BT4: 3 | BU4: 3 | BV4: =IF( BV3, $F$4, $G$4) -> 3 | BW4: 3 | BX4: 3 | BY4: 3 | BZ4: 3 | CA4: 3 | CB4: 3 | CC4: 3 | CD4: 3 | CE4: 3 | CF4: 3 | CG4: 3 | CH4: 3 | CI4: 3 | CJ4: 3 | CK4: 3 | CL4: 3 | CM4: 3 | CN4: 3 | CO4: 3 | CP4: 3 | CQ4: 3 | CR4: 3 | CS4: 3 | CT4: 3 | CU4: 3 | CV4: 3 | CW4: 3 | CX4: 3 | CY4: 3 | CZ4: 3 | DA4: 3 | DB4: 3 | DC4: 3 | DD4: 3 | DE4: 3 | DF4: 3 | DG4: 3 | DH4: 3 | DI4: 3 | DJ4: 3 | DK4: 3 | DL4: 3 | DM4: 3 | DN4: 3 | DO4: 3 | DP4: 3 | DQ4: 3 | DR4: 3 | DS4: 3 | DT4: 3 | DU4: 3 | DV4: 3 | DW4: 3 | DX4: 3 | DY4: 3 | DZ4: 3 | EA4: 3 | EB4: 3 | EC4: 3 | ED4: 3 | EE4: 3 | EF4: 3 | EG4: 3 | EH4: =IF( EH3, $F$4, $G$4) -> 3 | EI4: 3 | EJ4: 3 | EK4: 3 | EL4: 3 | EM4: 3 | EN4: 3 | EO4: 3 | EP4: 3 | EQ4: 3 | ER4: 3 | ES4: 3 | ET4: 3 | EU4: 3 | EV4: 3 | EW4: 3 | EX4: 3 | EY4: 3 | EZ4: 3 | FA4: 3 | FB4: 3 | FC4: 3
D5: Start Date | E5: Date | J5: =I6 + 1 -> 2023-01-01 | K5: 2023-02-01 | L5: 2023-03-01 | M5: 2023-04-01 | N5: 2023-05-01 | O5: 2023-06-01 | P5: 2023-07-01 | Q5: 2023-08-01 | R5: 2023-09-01 | S5: 2023-10-01 | T5: 2023-11-01 | U5: 2023-12-01 | V5: 2024-01-01 | W5: 2024-04-01 | X5: 2024-07-01 | Y5: 2024-10-01 | Z5: 2025-01-01 | AA5: 2025-04-01 | AB5: 2025-07-01 | AC5: 2025-10-01 | AD5: 2026-01-01 | AE5: 2026-04-01 | AF5: 2026-07-01 | AG5: 2026-10-01 | AH5: 2027-01-01 | AI5: 2027-04-01 | AJ5: 2027-07-01 | AK5: 2027-10-01 | AL5: 2028-01-01 | AM5: 2028-04-01 | AN5: 2028-07-01 | AO5: 2028-10-01 | AP5: 2029-01-01 | AQ5: 2029-04-01 | AR5: 2029-07-01 | AS5: 2029-10-01 | AT5: 2030-01-01 | AU5: 2030-04-01 | AV5: 2030-07-01 | AW5: 2030-10-01 | AX5: 2031-01-01 | AY5: 2031-04-01 | AZ5: 2031-07-01 | BA5: 2031-10-01 | BB5: 2032-01-01 | BC5: 2032-04-01 | BD5: 2032-07-01 | BE5: 2032-10-01 | BF5: 2033-01-01 | BG5: 2033-04-01 | BH5: 2033-07-01 | BI5: 2033-10-01 | BJ5: 2034-01-01 | BK5: 2034-04-01 | BL5: 2034-07-01 | BM5: 2034-10-01 | BN5: 2035-01-01 | BO5: 2035-04-01 | BP5: 2035-07-01 | BQ5: 2035-10-01 | BR5: 2036-01-01 | BS5: 2036-04-01 | BT5: 2036-07-01 | BU5: 2036-10-01 | BV5: =BU6 + 1 -> 2037-01-01 | BW5: 2037-04-01 | BX5: 2037-07-01 | BY5: 2037-10-01 | BZ5: 2038-01-01 | CA5: 2038-04-01 | CB5: 2038-07-01 | CC5: 2038-10-01 | CD5: 2039-01-01 | CE5: 2039-04-01 | CF5: 2039-07-01 | CG5: 2039-10-01 | CH5: 2040-01-01 | CI5: 2040-04-01 | CJ5: 2040-07-01 | CK5: 2040-10-01 | CL5: 2041-01-01 | CM5: 2041-04-01 | CN5: 2041-07-01 | CO5: 2041-10-01 | CP5: 2042-01-01 | CQ5: 2042-04-01 | CR5: 2042-07-01 | CS5: 2042-10-01 | CT5: 2043-01-01 | CU5: 2043-04-01 | CV5: 2043-07-01 | CW5: 2043-10-01 | CX5: 2044-01-01 | CY5: 2044-04-01 | CZ5: 2044-07-01 | DA5: 2044-10-01 | DB5: 2045-01-01 | DC5: 2045-04-01 | DD5: 2045-07-01 | DE5: 2045-10-01 | DF5: 2046-01-01 | DG5: 2046-04-01 | DH5: 2046-07-01 | DI5: 2046-10-01 | DJ5: 2047-01-01 | DK5: 2047-04-01 | DL5: 2047-07-01 | DM5: 2047-10-01 | DN5: 2048-01-01 | DO5: 2048-04-01 | DP5: 2048-07-01 | DQ5: 2048-10-01 | DR5: 2049-01-01 | DS5: 2049-04-01 | DT5: 2049-07-01 | DU5: 2049-10-01 | DV5: 2050-01-01 | DW5: 2050-04-01 | DX5: 2050-07-01 | DY5: 2050-10-01 | DZ5: 2051-01-01 | EA5: 2051-04-01 | EB5: 2051-07-01 | EC5: 2051-10-01 | ED5: 2052-01-01 | EE5: 2052-04-01 | EF5: 2052-07-01 | EG5: 2052-10-01 | EH5: =EG6 + 1 -> 2053-01-01 | EI5: 2053-04-01 | EJ5: 2053-07-01 | EK5: 2053-10-01 | EL5: 2054-01-01 | EM5: 2054-04-01 | EN5: 2054-07-01 | EO5: 2054-10-01 | EP5: 2055-01-01 | EQ5: 2055-04-01 | ER5: 2055-07-01 | ES5: 2055-10-01 | ET5: 2056-01-01 | EU5: 2056-04-01 | EV5: 2056-07-01 | EW5: 2056-10-01 | EX5: 2057-01-01 | EY5: 2057-04-01 | EZ5: 2057-07-01 | FA5: 2057-10-01 | FB5: 2058-01-01 | FC5: 2058-04-01
D6: End Date | E6: Date | I6: =Input!E3 - 1 -> 2022-12-31 | J6: =EDATE(J5, J4) - 1 -> 2023-01-31 | K6: 2023-02-28 | L6: 2023-03-31 | M6: 2023-04-30 | N6: 2023-05-31 | O6: 2023-06-30 | P6: 2023-07-31 | Q6: 2023-08-31 | R6: 2023-09-30 | S6: 2023-10-31 | T6: 2023-11-30 | U6: 2023-12-31 | V6: 2024-03-31 | W6: 2024-06-30 | X6: 2024-09-30 | Y6: 2024-12-31 | Z6: 2025-03-31 | AA6: 2025-06-30 | AB6: 2025-09-30 | AC6: 2025-12-31 | AD6: 2026-03-31 | AE6: 2026-06-30 | AF6: 2026-09-30 | AG6: 2026-12-31 | AH6: 2027-03-31 | AI6: 2027-06-30 | AJ6: 2027-09-30 | AK6: 2027-12-31 | AL6: 2028-03-31 | AM6: 2028-06-30 | AN6: 2028-09-30 | AO6: 2028-12-31 | AP6: 2029-03-31 | AQ6: 2029-06-30 | AR6: 2029-09-30 | AS6: 2029-12-31 | AT6: 2030-03-31 | AU6: 2030-06-30 | AV6: 2030-09-30 | AW6: 2030-12-31 | AX6: 2031-03-31 | AY6: 2031-06-30 | AZ6: 2031-09-30 | BA6: 2031-12-31 | BB6: 2032-03-31 | BC6: 2032-06-30 | BD6: 2032-09-30 | BE6: 2032-12-31 | BF6: 2033-03-31 | BG6: 2033-06-30 | BH6: 2033-09-30 | BI6: 2033-12-31 | BJ6: 2034-03-31 | BK6: 2034-06-30 | BL6: 2034-09-30 | BM6: 2034-12-31 | BN6: 2035-03-31 | BO6: 2035-06-30 | BP6: 2035-09-30 | BQ6: 2035-12-31 | BR6: 2036-03-31 | BS6: 2036-06-30 | BT6: 2036-09-30 | BU6: 2036-12-31 | BV6: =EDATE(BV5, BV4) - 1 -> 2037-03-31 | BW6: 2037-06-30 | BX6: 2037-09-30 | BY6: 2037-12-31 | BZ6: 2038-03-31 | CA6: 2038-06-30 | CB6: 2038-09-30 | CC6: 2038-12-31 | CD6: 2039-03-31 | CE6: 2039-06-30 | CF6: 2039-09-30 | CG6: 2039-12-31 | CH6: 2040-03-31 | CI6: 2040-06-30 | CJ6: 2040-09-30 | CK6: 2040-12-31 | CL6: 2041-03-31 | CM6: 2041-06-30 | CN6: 2041-09-30 | CO6: 2041-12-31 | CP6: 2042-03-31 | CQ6: 2042-06-30 | CR6: 2042-09-30 | CS6: 2042-12-31 | CT6: 2043-03-31 | CU6: 2043-06-30 | CV6: 2043-09-30 | CW6: 2043-12-31 | CX6: 2044-03-31 | CY6: 2044-06-30 | CZ6: 2044-09-30 | DA6: 2044-12-31 | DB6: 2045-03-31 | DC6: 2045-06-30 | DD6: 2045-09-30 | DE6: 2045-12-31 | DF6: 2046-03-31 | DG6: 2046-06-30 | DH6: 2046-09-30 | DI6: 2046-12-31 | DJ6: 2047-03-31 | DK6: 2047-06-30 | DL6: 2047-09-30 | DM6: 2047-12-31 | DN6: 2048-03-31 | DO6: 2048-06-30 | DP6: 2048-09-30 | DQ6: 2048-12-31 | DR6: 2049-03-31 | DS6: 2049-06-30 | DT6: 2049-09-30 | DU6: 2049-12-31 | DV6: 2050-03-31 | DW6: 2050-06-30 | DX6: 2050-09-30 | DY6: 2050-12-31 | DZ6: 2051-03-31 | EA6: 2051-06-30 | EB6: 2051-09-30 | EC6: 2051-12-31 | ED6: 2052-03-31 | EE6: 2052-06-30 | EF6: 2052-09-30 | EG6: 2052-12-31 | EH6: =EDATE(EH5, EH4) - 1 -> 2053-03-31 | EI6: 2053-06-30 | EJ6: 2053-09-30 | EK6: 2053-12-31 | EL6: 2054-03-31 | EM6: 2054-06-30 | EN6: 2054-09-30 | EO6: 2054-12-31 | EP6: 2055-03-31 | EQ6: 2055-06-30 | ER6: 2055-09-30 | ES6: 2055-12-31 | ET6: 2056-03-31 | EU6: 2056-06-30 | EV6: 2056-09-30 | EW6: 2056-12-31 | EX6: 2057-03-31 | EY6: 2057-06-30 | EZ6: 2057-09-30 | FA6: 2057-12-31 | FB6: 2058-03-31 | FC6: 2058-06-30
D7: Operating Period | E7: Flag | F7: =Input!E5 -> 2024-01-01 | G7: =Input!E7 -> 2049-01-01 | H7: =SUM(J7:FC7) -> 100 | J7: =AND( J$5 >=$F7, J$5 <$G7) * 1 -> 0 | K7: 0 | L7: 0 | M7: 0 | N7: 0 | O7: 0 | P7: 0 | Q7: 0 | R7: 0 | S7: 0 | T7: 0 | U7: 0 | V7: 1 | W7: 1 | X7: 1 | Y7: 1 | Z7: 1 | AA7: 1 | AB7: 1 | AC7: 1 | AD7: 1 | AE7: 1 | AF7: 1 | AG7: 1 | AH7: 1 | AI7: 1 | AJ7: 1 | AK7: 1 | AL7: 1 | AM7: 1 | AN7: 1 | AO7: 1 | AP7: 1 | AQ7: 1 | AR7: 1 | AS7: 1 | AT7: 1 | AU7: 1 | AV7: 1 | AW7: 1 | AX7: 1 | AY7: 1 | AZ7: 1 | BA7: 1 | BB7: 1 | BC7: 1 | BD7: 1 | BE7: 1 | BF7: 1 | BG7: 1 | BH7: 1 | BI7: 1 | BJ7: 1 | BK7: 1 | BL7: 1 | BM7: 1 | BN7: 1 | BO7: 1 | BP7: 1 | BQ7: 1 | BR7: 1 | BS7: 1 | BT7: 1 | BU7: 1 | BV7: =AND( BV$5 >=$F7, BV$5 <$G7) * 1 -> 1 | BW7: 1 | BX7: 1 | BY7: 1 | BZ7: 1 | CA7: 1 | CB7: 1 | CC7: 1 | CD7: 1 | CE7: 1 | CF7: 1 | CG7: 1 | CH7: 1 | CI7: 1 | CJ7: 1 | CK7: 1 | CL7: 1 | CM7: 1 | CN7: 1 | CO7: 1 | CP7: 1 | CQ7: 1 | CR7: 1 | CS7: 1 | CT7: 1 | CU7: 1 | CV7: 1 | CW7: 1 | CX7: 1 | CY7: 1 | CZ7: 1 | DA7: 1 | DB7: 1 | DC7: 1 | DD7: 1 | DE7: 1 | DF7: 1 | DG7: 1 | DH7: 1 | DI7: 1 | DJ7: 1 | DK7: 1 | DL7: 1 | DM7: 1 | DN7: 1 | DO7: 1 | DP7: 1 | DQ7: 1 | DR7: 0 | DS7: 0 | DT7: 0 | DU7: 0 | DV7: 0 | DW7: 0 | DX7: 0 | DY7: 0 | DZ7: 0 | EA7: 0 | EB7: 0 | EC7: 0 | ED7: 0 | EE7: 0 | EF7: 0 | EG7: 0 | EH7: =AND( EH$5 >=$F7, EH$5 <$G7) * 1 -> 0 | EI7: 0 | EJ7: 0 | EK7: 0 | EL7: 0 | EM7: 0 | EN7: 0 | EO7: 0 | EP7: 0 | EQ7: 0 | ER7: 0 | ES7: 0 | ET7: 0 | EU7: 0 | EV7: 0 | EW7: 0 | EX7: 0 | EY7: 0 | EZ7: 0 | FA7: 0 | FB7: 0 | FC7: 0
J9: =J6 -> 2023-01-31 | K9: 2023-02-28 | L9: 2023-03-31 | M9: 2023-04-30 | N9: 2023-05-31 | O9: 2023-06-30 | P9: 2023-07-31 | Q9: 2023-08-31 | R9: 2023-09-30 | S9: 2023-10-31 | T9: 2023-11-30 | U9: 2023-12-31 | V9: 2024-03-31 | W9: 2024-06-30 | X9: 2024-09-30 | Y9: 2024-12-31 | Z9: 2025-03-31 | AA9: 2025-06-30 | AB9: 2025-09-30 | AC9: 2025-12-31 | AD9: 2026-03-31 | AE9: 2026-06-30 | AF9: 2026-09-30 | AG9: 2026-12-31 | AH9: 2027-03-31 | AI9: 2027-06-30 | AJ9: 2027-09-30 | AK9: 2027-12-31 | AL9: 2028-03-31 | AM9: 2028-06-30 | AN9: 2028-09-30 | AO9: 2028-12-31 | AP9: =AP6 -> 2029-03-31 | AQ9: 2029-06-30 | AR9: 2029-09-30 | AS9: 2029-12-31 | AT9: 2030-03-31 | AU9: 2030-06-30 | AV9: 2030-09-30 | AW9: 2030-12-31 | AX9: 2031-03-31 | AY9: 2031-06-30 | AZ9: 2031-09-30 | BA9: 2031-12-31 | BB9: 2032-03-31 | BC9: 2032-06-30 | BD9: 2032-09-30 | BE9: 2032-12-31 | BF9: 2033-03-31 | BG9: 2033-06-30 | BH9: 2033-09-30 | BI9: 2033-12-31 | BJ9: 2034-03-31 | BK9: 2034-06-30 | BL9: 2034-09-30 | BM9: 2034-12-31 | BN9: 2035-03-31 | BO9: 2035-06-30 | BP9: 2035-09-30 | BQ9: 2035-12-31 | BR9: 2036-03-31 | BS9: 2036-06-30 | BT9: 2036-09-30 | BU9: 2036-12-31 | BV9: =BV6 -> 2037-03-31 | BW9: 2037-06-30 | BX9: 2037-09-30 | BY9: 2037-12-31 | BZ9: 2038-03-31 | CA9: 2038-06-30 | CB9: 2038-09-30 | CC9: 2038-12-31 | CD9: 2039-03-31 | CE9: 2039-06-30 | CF9: 2039-09-30 | CG9: 2039-12-31 | CH9: 2040-03-31 | CI9: 2040-06-30 | CJ9: 2040-09-30 | CK9: 2040-12-31 | CL9: 2041-03-31 | CM9: 2041-06-30 | CN9: 2041-09-30 | CO9: 2041-12-31 | CP9: 2042-03-31 | CQ9: 2042-06-30 | CR9: 2042-09-30 | CS9: 2042-12-31 | CT9: 2043-03-31 | CU9: 2043-06-30 | CV9: 2043-09-30 | CW9: 2043-12-31 | CX9: 2044-03-31 | CY9: 2044-06-30 | CZ9: 2044-09-30 | DA9: 2044-12-31 | DB9: =DB6 -> 2045-03-31 | DC9: 2045-06-30 | DD9: 2045-09-30 | DE9: 2045-12-31 | DF9: 2046-03-31 | DG9: 2046-06-30 | DH9: 2046-09-30 | DI9: 2046-12-31 | DJ9: 2047-03-31 | DK9: 2047-06-30 | DL9: 2047-09-30 | DM9: 2047-12-31 | DN9: 2048-03-31 | DO9: 2048-06-30 | DP9: 2048-09-30 | DQ9: 2048-12-31 | DR9: 2049-03-31 | DS9: 2049-06-30 | DT9: 2049-09-30 | DU9: 2049-12-31 | DV9: 2050-03-31 | DW9: 2050-06-30 | DX9: 2050-09-30 | DY9: 2050-12-31 | DZ9: 2051-03-31 | EA9: 2051-06-30 | EB9: 2051-09-30 | EC9: 2051-12-31 | ED9: 2052-03-31 | EE9: 2052-06-30 | EF9: 2052-09-30 | EG9: 2052-12-31 | EH9: =EH6 -> 2053-03-31 | EI9: 2053-06-30 | EJ9: 2053-09-30 | EK9: 2053-12-31 | EL9: 2054-03-31 | EM9: 2054-06-30 | EN9: 2054-09-30 | EO9: 2054-12-31 | EP9: 2055-03-31 | EQ9: 2055-06-30 | ER9: 2055-09-30 | ES9: 2055-12-31 | ET9: 2056-03-31 | EU9: 2056-06-30 | EV9: 2056-09-30 | EW9: 2056-12-31 | EX9: 2057-03-31 | EY9: 2057-06-30 | EZ9: 2057-09-30 | FA9: 2057-12-31 | FB9: 2058-03-31 | FC9: 2058-06-30
D10: CFADS | J10: ='Negative Repayment'!J99 -> 0 | K10: ='Negative Repayment'!K99 -> 0 | L10: ='Negative Repayment'!L99 -> 0 | M10: ='Negative Repayment'!M99 -> 0 | N10: ='Negative Repayment'!N99 -> 0 | O10: ='Negative Repayment'!O99 -> 0 | P10: ='Negative Repayment'!P99 -> 0 | Q10: ='Negative Repayment'!Q99 -> 0 | R10: ='Negative Repayment'!R99 -> 0 | S10: ='Negative Repayment'!S99 -> 0 | T10: ='Negative Repayment'!T99 -> 0 | U10: ='Negative Repayment'!U99 -> 0 | V10: ='Negative Repayment'!V99 -> 1086842.328 | W10: ='Negative Repayment'!W99 -> 1093572.324 | X10: ='Negative Repayment'!X99 -> 2074408.059 | Y10: ='Negative Repayment'!Y99 -> 2121460.758 | Z10: ='Negative Repayment'!Z99 -> 1114013.386 | AA10: ='Negative Repayment'!AA99 -> 1120911.632 | AB10: ='Negative Repayment'!AB99 -> 2126268.26 | AC10: ='Negative Repayment'!AC99 -> 2174497.277 | AD10: ='Negative Repayment'!AD99 -> 1141863.721 | AE10: ='Negative Repayment'!AE99 -> 1148934.422 | AF10: ='Negative Repayment'!AF99 -> 2179424.967 | AG10: ='Negative Repayment'!AG99 -> 2228859.709 | AH10: ='Negative Repayment'!AH99 -> 1170410.314 | AI10: ='Negative Repayment'!AI99 -> 1177657.783 | AJ10: ='Negative Repayment'!AJ99 -> 2233910.591 | AK10: ='Negative Repayment'!AK99 -> 2284581.201 | AL10: ='Negative Repayment'!AL99 -> 1199670.572 | AM10: ='Negative Repayment'!AM99 -> 1207099.228 | AN10: ='Negative Repayment'!AN99 -> 2289758.356 | AO10: ='Negative Repayment'!AO99 -> 2341695.731 | AP10: ='Negative Repayment'!AP99 -> 1229662.336 | AQ10: ='Negative Repayment'!AQ99 -> 1237276.708 | AR10: ='Negative Repayment'!AR99 -> 2347002.315 | AS10: ='Negative Repayment'!AS99 -> 2400238.125 | AT10: ='Negative Repayment'!AT99 -> 1260403.895 | AU10: ='Negative Repayment'!AU99 -> 1268208.626 | AV10: ='Negative Repayment'!AV99 -> 2405677.373 | AW10: ='Negative Repayment'!AW99 -> 2460244.078 | AX10: ='Negative Repayment'!AX99 -> 1291913.992 | AY10: ='Negative Repayment'!AY99 -> 1299913.842 | AZ10: ='Negative Repayment'!AZ99 -> 2465819.307 | BA10: ='Negative Repayment'!BA99 -> 2521750.18 | BB10: ='Negative Repayment'!BB99 -> 1324211.842 | BC10: ='Negative Repayment'!BC99 -> 1332411.688 | BD10: ='Negative Repayment'!BD99 -> 2527464.79 | BE10: ='Negative Repayment'!BE99 -> 2584793.934 | BF10: ='Negative Repayment'!BF99 -> 1357317.138 | BG10: ='Negative Repayment'!BG99 -> 1365721.98 | BH10: ='Negative Repayment'!BH99 -> 2590651.409 | BI10: ='Negative Repayment'!BI99 -> 2649413.783 | BJ10: ='Negative Repayment'!BJ99 -> 1391250.066 | BK10: ='Negative Repayment'!BK99 -> 1399865.029 | BL10: ='Negative Repayment'!BL99 -> 2655417.695 | BM10: ='Negative Repayment'!BM99 -> 2715649.127 | BN10: ='Negative Repayment'!BN99 -> 1426031.318 | BO10: ='Negative Repayment'!BO99 -> 1434861.655 | BP10: ='Negative Repayment'!BP99 -> 2721803.137 | BQ10: ='Negative Repayment'!BQ99 -> 2783540.355 | BR10: ='Negative Repayment'!BR99 -> 1461682.101 | BS10: ='Negative Repayment'!BS99 -> 1470733.196 | BT10: ='Negative Repayment'!BT99 -> 2789848.215 | BU10: ='Negative Repayment'!BU99 -> 2853128.864 | BV10: ='Negative Repayment'!BV99 -> 1498224.153 | BW10: ='Negative Repayment'!BW99 -> 1507501.526 | BX10: ='Negative Repayment'!BX99 -> 2859594.421 | BY10: ='Negative Repayment'!BY99 -> 2924457.086 | BZ10: ='Negative Repayment'!BZ99 -> 1535679.757 | CA10: ='Negative Repayment'!CA99 -> 1545189.064 | CB10: ='Negative Repayment'!CB99 -> 2931084.281 | CC10: ='Negative Repayment'!CC99 -> 2997568.513 | CD10: ='Negative Repayment'!CD99 -> 1574071.751 | CE10: ='Negative Repayment'!CE99 -> 1583818.791 | CF10: ='Negative Repayment'!CF99 -> 3004361.388 | CG10: ='Negative Repayment'!CG99 -> 3072507.726 | CH10: ='Negative Repayment'!CH99 -> 1613423.545 | CI10: ='Negative Repayment'!CI99 -> 1623414.261 | CJ10: ='Negative Repayment'!CJ99 -> 3079470.423 | CK10: ='Negative Repayment'!CK99 -> 3149320.419 | CL10: ='Negative Repayment'!CL99 -> 1653759.133 | CM10: ='Negative Repayment'!CM99 -> 1663999.617 | CN10: ='Negative Repayment'!CN99 -> 3156457.184 | CO10: ='Negative Repayment'!CO99 -> 3228053.429 | CP10: ='Negative Repayment'!CP99 -> 1695103.112 | CQ10: ='Negative Repayment'!CQ99 -> 1705599.608 | CR10: ='Negative Repayment'!CR99 -> 3235368.613 | CS10: ='Negative Repayment'!CS99 -> 3308754.765 | CT10: ='Negative Repayment'!CT99 -> 1737480.69 | CU10: ='Negative Repayment'!CU99 -> 1748239.598 | CV10: ='Negative Repayment'!CV99 -> 3316252.829 | CW10: ='Negative Repayment'!CW99 -> 3391473.634 | CX10: ='Negative Repayment'!CX99 -> 1780917.707 | CY10: ='Negative Repayment'!CY99 -> 1791945.588 | CZ10: ='Negative Repayment'!CZ99 -> 3399159.149 | DA10: ='Negative Repayment'!DA99 -> 3476260.475 | DB10: ='Negative Repayment'!DB99 -> 1825440.649 | DC10: ='Negative Repayment'!DC99 -> 1836744.228 | DD10: ='Negative Repayment'!DD99 -> 3484138.128 | DE10: ='Negative Repayment'!DE99 -> 3563166.987 | DF10: ='Negative Repayment'!DF99 -> 1871076.666 | DG10: ='Negative Repayment'!DG99 -> 1882662.833 | DH10: ='Negative Repayment'!DH99 -> 3571241.581 | DI10: ='Negative Repayment'!DI99 -> 3652246.162 | DJ10: ='Negative Repayment'!DJ99 -> 1917853.582 | DK10: ='Negative Repayment'!DK99 -> 1929729.404 | DL10: ='Negative Repayment'!DL99 -> 3660522.621 | DM10: ='Negative Repayment'!DM99 -> 3743552.316 | DN10: ='Negative Repayment'!DN99 -> 1965799.922 | DO10: ='Negative Repayment'!DO99 -> 1977972.639 | DP10: ='Negative Repayment'!DP99 -> 3752035.686 | DQ10: ='Negative Repayment'!DQ99 -> 3837141.124 | DR10: ='Negative Repayment'!DR99 -> 0 | DS10: ='Negative Repayment'!DS99 -> 0 | DT10: ='Negative Repayment'!DT99 -> 0 | DU10: ='Negative Repayment'!DU99 -> 0 | DV10: ='Negative Repayment'!DV99 -> 0 | DW10: ='Negative Repayment'!DW99 -> 0 | DX10: ='Negative Repayment'!DX99 -> 0 | DY10: ='Negative Repayment'!DY99 -> 0 | DZ10: ='Negative Repayment'!DZ99 -> 0 | EA10: ='Negative Repayment'!EA99 -> 0 | EB10: ='Negative Repayment'!EB99 -> 0 | EC10: ='Negative Repayment'!EC99 -> 0 | ED10: ='Negative Repayment'!ED99 -> 0 | EE10: ='Negative Repayment'!EE99 -> 0 | EF10: ='Negative Repayment'!EF99 -> 0 | EG10: ='Negative Repayment'!EG99 -> 0 | EH10: ='Negative Repayment'!EH99 -> 0 | EI10: ='Negative Repayment'!EI99 -> 0 | EJ10: ='Negative Repayment'!EJ99 -> 0 | EK10: ='Negative Repayment'!EK99 -> 0 | EL10: ='Negative Repayment'!EL99 -> 0 | EM10: ='Negative Repayment'!EM99 -> 0 | EN10: ='Negative Repayment'!EN99 -> 0 | EO10: ='Negative Repayment'!EO99 -> 0 | EP10: ='Negative Repayment'!EP99 -> 0 | EQ10: ='Negative Repayment'!EQ99 -> 0 | ER10: ='Negative Repayment'!ER99 -> 0 | ES10: ='Negative Repayment'!ES99 -> 0 | ET10: ='Negative Repayment'!ET99 -> 0 | EU10: ='Negative Repayment'!EU99 -> 0 | EV10: ='Negative Repayment'!EV99 -> 0 | EW10: ='Negative Repayment'!EW99 -> 0 | EX10: ='Negative Repayment'!EX99 -> 0 | EY10: ='Negative Repayment'!EY99 -> 0 | EZ10: ='Negative Repayment'!EZ99 -> 0 | FA10: ='Negative Repayment'!FA99 -> 0 | FB10: ='Negative Repayment'!FB99 -> 0 | FC10: ='Negative Repayment'!FC99 -> 0
D11: Debt Service | J11: ='Negative Repayment'!J100 -> 0 | K11: ='Negative Repayment'!K100 -> 0 | L11: ='Negative Repayment'!L100 -> 0 | M11: ='Negative Repayment'!M100 -> 0 | N11: ='Negative Repayment'!N100 -> 0 | O11: ='Negative Repayment'!O100 -> 0 | P11: ='Negative Repayment'!P100 -> 0 | Q11: ='Negative Repayment'!Q100 -> 0 | R11: ='Negative Repayment'!R100 -> 0 | S11: ='Negative Repayment'!S100 -> 0 | T11: ='Negative Repayment'!T100 -> 0 | U11: ='Negative Repayment'!U100 -> 0 | V11: ='Negative Repayment'!V100 -> 836032.5601 | W11: ='Negative Repayment'!W100 -> 841209.4796 | X11: ='Negative Repayment'!X100 -> 1595698.507 | Y11: ='Negative Repayment'!Y100 -> 1631892.891 | Z11: ='Negative Repayment'!Z100 -> 856933.3741 | AA11: ='Negative Repayment'!AA100 -> 862239.7166 | AB11: ='Negative Repayment'!AB100 -> 1635590.97 | AC11: ='Negative Repayment'!AC100 -> 1672690.213 | AD11: ='Negative Repayment'!AD100 -> 878356.7084 | AE11: ='Negative Repayment'!AE100 -> 883795.7095 | AF11: ='Negative Repayment'!AF100 -> 1676480.744 | AG11: ='Negative Repayment'!AG100 -> 1714507.468 | AH11: ='Negative Repayment'!AH100 -> 900315.6261 | AI11: ='Negative Repayment'!AI100 -> 905890.6023 | AJ11: ='Negative Repayment'!AJ100 -> 1718392.762 | AK11: ='Negative Repayment'!AK100 -> 1757370.155 | AL11: ='Negative Repayment'!AL100 -> 922823.5168 | AM11: ='Negative Repayment'!AM100 -> 928537.8673 | AN11: ='Negative Repayment'!AN100 -> 1761352.581 | AO11: ='Negative Repayment'!AO100 -> 1801304.409 | AP11: ='Negative Repayment'!AP100 -> 945894.1047 | AQ11: ='Negative Repayment'!AQ100 -> 951751.314 | AR11: ='Negative Repayment'!AR100 -> 1805386.396 | AS11: ='Negative Repayment'!AS100 -> 1846337.019 | AT11: ='Negative Repayment'!AT100 -> 969541.4573 | AU11: ='Negative Repayment'!AU100 -> 975545.0969 | AV11: ='Negative Repayment'!AV100 -> 1850521.056 | AW11: ='Negative Repayment'!AW100 -> 1892495.444 | AX11: ='Negative Repayment'!AX100 -> 993779.9938 | AY11: ='Negative Repayment'!AY100 -> 999933.7243 | AZ11: ='Negative Repayment'!AZ100 -> 1896784.082 | BA11: ='Negative Repayment'!BA100 -> 1939807.831 | BB11: ='Negative Repayment'!BB100 -> 1018624.494 | BC11: ='Negative Repayment'!BC100 -> 1024932.067 | BD11: ='Negative Repayment'!BD100 -> 1944203.684 | BE11: ='Negative Repayment'!BE100 -> 1988303.026 | BF11: ='Negative Repayment'!BF100 -> 1044090.106 | BG11: ='Negative Repayment'!BG100 -> 1050555.369 | BH11: ='Negative Repayment'!BH100 -> 1992808.777 | BI11: ='Negative Repayment'!BI100 -> 2038010.602 | BJ11: ='Negative Repayment'!BJ100 -> 1070192.359 | BK11: ='Negative Repayment'!BK100 -> 1076819.253 | BL11: ='Negative Repayment'!BL100 -> 2042628.996 | BM11: ='Negative Repayment'!BM100 -> 2088960.867 | BN11: ='Negative Repayment'!BN100 -> 1096947.168 | BO11: ='Negative Repayment'!BO100 -> 1103739.735 | BP11: ='Negative Repayment'!BP100 -> 2093694.721 | BQ11: ='Negative Repayment'!BQ100 -> 2141184.889 | BR11: ='Negative Repayment'!BR100 -> 1124370.847 | BS11: ='Negative Repayment'!BS100 -> 1131333.228 | BT11: ='Negative Repayment'!BT100 -> 2146037.089 | BU11: ='Negative Repayment'!BU100 -> 2194714.511 | BV11: ='Negative Repayment'!BV100 -> 1152480.118 | BW11: ='Negative Repayment'!BW100 -> 1159616.559 | BX11: ='Negative Repayment'!BX100 -> 2199688.016 | BY11: ='Negative Repayment'!BY100 -> 2249582.374 | BZ11: ='Negative Repayment'!BZ100 -> 1181292.121 | CA11: ='Negative Repayment'!CA100 -> 1188606.973 | CB11: ='Negative Repayment'!CB100 -> 2254680.216 | CC11: ='Negative Repayment'!CC100 -> 2305821.933 | CD11: ='Negative Repayment'!CD100 -> 1210824.424 | CE11: ='Negative Repayment'!CE100 -> 1218322.147 | CF11: ='Negative Repayment'!CF100 -> 2311047.222 | CG11: ='Negative Repayment'!CG100 -> 2363467.481 | CH11: ='Negative Repayment'!CH100 -> 1241095.034 | CI11: ='Negative Repayment'!CI100 -> 1248780.201 | CJ11: ='Negative Repayment'!CJ100 -> 2368823.402 | CK11: ='Negative Repayment'!CK100 -> 2422554.168 | CL11: ='Negative Repayment'!CL100 -> 1272122.41 | CM11: ='Negative Repayment'!CM100 -> 1279999.706 | CN11: ='Negative Repayment'!CN100 -> 2428043.987 | CO11: ='Negative Repayment'!CO100 -> 2483118.023 | CP11: ='Negative Repayment'!CP100 -> 1303925.471 | CQ11: ='Negative Repayment'!CQ100 -> 1311999.698 | CR11: ='Negative Repayment'!CR100 -> 2488745.087 | CS11: ='Negative Repayment'!CS100 -> 2545195.973 | CT11: ='Negative Repayment'!CT100 -> 1336523.607 | CU11: ='Negative Repayment'!CU100 -> 1344799.691 | CV11: ='Negative Repayment'!CV100 -> 2550963.714 | CW11: ='Negative Repayment'!CW100 -> 2608825.873 | CX11: ='Negative Repayment'!CX100 -> 0 | CY11: ='Negative Repayment'!CY100 -> 0 | CZ11: ='Negative Repayment'!CZ100 -> 0 | DA11: ='Negative Repayment'!DA100 -> 0 | DB11: ='Negative Repayment'!DB100 -> 0 | DC11: ='Negative Repayment'!DC100 -> 0 | DD11: ='Negative Repayment'!DD100 -> 0 | DE11: ='Negative Repayment'!DE100 -> 0 | DF11: ='Negative Repayment'!DF100 -> 0 | DG11: ='Negative Repayment'!DG100 -> 0 | DH11: ='Negative Repayment'!DH100 -> 0 | DI11: ='Negative Repayment'!DI100 -> 0 | DJ11: ='Negative Repayment'!DJ100 -> 0 | DK11: ='Negative Repayment'!DK100 -> 0 | DL11: ='Negative Repayment'!DL100 -> 0 | DM11: ='Negative Repayment'!DM100 -> 0 | DN11: ='Negative Repayment'!DN100 -> 0 | DO11: ='Negative Repayment'!DO100 -> 0 | DP11: ='Negative Repayment'!DP100 -> 0 | DQ11: ='Negative Repayment'!DQ100 -> 0 | DR11: ='Negative Repayment'!DR100 -> 0 | DS11: ='Negative Repayment'!DS100 -> 0 | DT11: ='Negative Repayment'!DT100 -> 0 | DU11: ='Negative Repayment'!DU100 -> 0 | DV11: ='Negative Repayment'!DV100 -> 0 | DW11: ='Negative Repayment'!DW100 -> 0 | DX11: ='Negative Repayment'!DX100 -> 0 | DY11: ='Negative Repayment'!DY100 -> 0 | DZ11: ='Negative Repayment'!DZ100 -> 0 | EA11: ='Negative Repayment'!EA100 -> 0 | EB11: ='Negative Repayment'!EB100 -> 0 | EC11: ='Negative Repayment'!EC100 -> 0 | ED11: ='Negative Repayment'!ED100 -> 0 | EE11: ='Negative Repayment'!EE100 -> 0 | EF11: ='Negative Repayment'!EF100 -> 0 | EG11: ='Negative Repayment'!EG100 -> 0 | EH11: ='Negative Repayment'!EH100 -> 0 | EI11: ='Negative Repayment'!EI100 -> 0 | EJ11: ='Negative Repayment'!EJ100 -> 0 | EK11: ='Negative Repayment'!EK100 -> 0 | EL11: ='Negative Repayment'!EL100 -> 0 | EM11: ='Negative Repayment'!EM100 -> 0 | EN11: ='Negative Repayment'!EN100 -> 0 | EO11: ='Negative Repayment'!EO100 -> 0 | EP11: ='Negative Repayment'!EP100 -> 0 | EQ11: ='Negative Repayment'!EQ100 -> 0 | ER11: ='Negative Repayment'!ER100 -> 0 | ES11: ='Negative Repayment'!ES100 -> 0 | ET11: ='Negative Repayment'!ET100 -> 0 | EU11: ='Negative Repayment'!EU100 -> 0 | EV11: ='Negative Repayment'!EV100 -> 0 | EW11: ='Negative Repayment'!EW100 -> 0 | EX11: ='Negative Repayment'!EX100 -> 0 | EY11: ='Negative Repayment'!EY100 -> 0 | EZ11: ='Negative Repayment'!EZ100 -> 0 | FA11: ='Negative Repayment'!FA100 -> 0 | FB11: ='Negative Repayment'!FB100 -> 0 | FC11: ='Negative Repayment'!FC100 -> 0
D13: DSCR | J13: =IF(J11>0.1,J10/J11) -> FALSE | K13: =IF(K11>0.1,K10/K11) -> FALSE | L13: FALSE | M13: FALSE | N13: FALSE | O13: FALSE | P13: FALSE | Q13: FALSE | R13: FALSE | S13: FALSE | T13: FALSE | U13: FALSE | V13: 1.3 | W13: 1.3 | X13: 1.3 | Y13: 1.3 | Z13: 1.3 | AA13: 1.3 | AB13: 1.3 | AC13: 1.3 | AD13: 1.3 | AE13: 1.3 | AF13: 1.3 | AG13: 1.3 | AH13: 1.3 | AI13: 1.3 | AJ13: 1.3 | AK13: 1.3 | AL13: 1.3 | AM13: 1.3 | AN13: 1.3 | AO13: 1.3 | AP13: 1.3 | AQ13: 1.3 | AR13: 1.3 | AS13: 1.3 | AT13: 1.3 | AU13: 1.3 | AV13: 1.3 | AW13: 1.3 | AX13: 1.3 | AY13: 1.3 | AZ13: 1.3 | BA13: 1.3 | BB13: 1.3 | BC13: 1.3 | BD13: 1.3 | BE13: 1.3 | BF13: 1.3 | BG13: 1.3 | BH13: 1.3 | BI13: 1.3 | BJ13: 1.3 | BK13: 1.3 | BL13: 1.3 | BM13: 1.3 | BN13: 1.3 | BO13: 1.3 | BP13: 1.3 | BQ13: 1.3 | BR13: 1.3 | BS13: 1.3 | BT13: 1.3 | BU13: 1.3 | BV13: 1.3 | BW13: =IF(BW11>0.1,BW10/BW11) -> 1.3 | BX13: 1.3 | BY13: 1.3 | BZ13: 1.3 | CA13: 1.3 | CB13: 1.3 | CC13: 1.3 | CD13: 1.3 | CE13: 1.3 | CF13: 1.3 | CG13: 1.3 | CH13: 1.3 | CI13: 1.3 | CJ13: 1.3 | CK13: 1.3 | CL13: 1.3 | CM13: 1.3 | CN13: 1.3 | CO13: 1.3 | CP13: 1.3 | CQ13: 1.3 | CR13: 1.3 | CS13: 1.3 | CT13: 1.3 | CU13: 1.3 | CV13: 1.3 | CW13: 1.3 | CX13: FALSE | CY13: FALSE | CZ13: FALSE | DA13: FALSE | DB13: FALSE | DC13: FALSE | DD13: FALSE | DE13: FALSE | DF13: FALSE | DG13: FALSE | DH13: FALSE | DI13: FALSE | DJ13: FALSE | DK13: FALSE | DL13: FALSE | DM13: FALSE | DN13: FALSE | DO13: FALSE | DP13: FALSE | DQ13: FALSE | DR13: FALSE | DS13: FALSE | DT13: FALSE | DU13: FALSE | DV13: FALSE | DW13: FALSE | DX13: FALSE | DY13: FALSE | DZ13: FALSE | EA13: FALSE | EB13: FALSE | EC13: FALSE | ED13: FALSE | EE13: FALSE | EF13: FALSE | EG13: FALSE | EH13: FALSE | EI13: =IF(EI11>0.1,EI10/EI11) -> FALSE | EJ13: FALSE | EK13: FALSE | EL13: FALSE | EM13: FALSE | EN13: FALSE | EO13: FALSE | EP13: FALSE | EQ13: FALSE | ER13: FALSE | ES13: FALSE | ET13: FALSE | EU13: FALSE | EV13: FALSE | EW13: FALSE | EX13: FALSE | EY13: FALSE | EZ13: FALSE | FA13: FALSE | FB13: FALSE | FC13: FALSE
D14: Equity Cash Flow | J14: ='Negative Repayment'!J96 -> -6666666.667 | K14: ='Negative Repayment'!K96 -> -6666666.667 | L14: ='Negative Repayment'!L96 -> -6666666.667 | M14: ='Negative Repayment'!M96 -> -6666666.667 | N14: ='Negative Repayment'!N96 -> -6666666.667 | O14: ='Negative Repayment'!O96 -> -6666666.667 | P14: ='Negative Repayment'!P96 -> -6666666.667 | Q14: ='Negative Repayment'!Q96 -> -6666666.667 | R14: ='Negative Repayment'!R96 -> -6666666.667 | S14: ='Negative Repayment'!S96 -> -6666666.667 | T14: ='Negative Repayment'!T96 -> -6666666.667 | U14: ='Negative Repayment'!U96 -> 67096574.54 | V14: ='Negative Repayment'!V96 -> 250809.768 | W14: ='Negative Repayment'!W96 -> 252362.8439 | X14: ='Negative Repayment'!X96 -> 478709.5521 | Y14: ='Negative Repayment'!Y96 -> 489567.8672 | Z14: ='Negative Repayment'!Z96 -> 257080.0122 | AA14: ='Negative Repayment'!AA96 -> 258671.915 | AB14: ='Negative Repayment'!AB96 -> 490677.2909 | AC14: ='Negative Repayment'!AC96 -> 501807.0639 | AD14: ='Negative Repayment'!AD96 -> 263507.0125 | AE14: ='Negative Repayment'!AE96 -> 265138.7129 | AF14: ='Negative Repayment'!AF96 -> 502944.2232 | AG14: ='Negative Repayment'!AG96 -> 514352.2405 | AH14: ='Negative Repayment'!AH96 -> 270094.6878 | AI14: ='Negative Repayment'!AI96 -> 271767.1807 | AJ14: ='Negative Repayment'!AJ96 -> 515517.8287 | AK14: ='Negative Repayment'!AK96 -> 527211.0465 | AL14: ='Negative Repayment'!AL96 -> 276847.055 | AM14: ='Negative Repayment'!AM96 -> 278561.3602 | AN14: ='Negative Repayment'!AN96 -> 528405.7744 | AO14: ='Negative Repayment'!AO96 -> 540391.3226 | AP14: ='Negative Repayment'!AP96 -> 283768.2314 | AQ14: ='Negative Repayment'!AQ96 -> 285525.3942 | AR14: ='Negative Repayment'!AR96 -> 541615.9188 | AS14: ='Negative Repayment'!AS96 -> 553901.1057 | AT14: ='Negative Repayment'!AT96 -> 290862.4372 | AU14: ='Negative Repayment'!AU96 -> 292663.5291 | AV14: ='Negative Repayment'!AV96 -> 555156.3168 | AW14: ='Negative Repayment'!AW96 -> 567748.6333 | AX14: ='Negative Repayment'!AX96 -> 298133.9981 | AY14: ='Negative Repayment'!AY96 -> 299980.1173 | AZ14: ='Negative Repayment'!AZ96 -> 569035.2247 | BA14: ='Negative Repayment'!BA96 -> 581942.3492 | BB14: ='Negative Repayment'!BB96 -> 305587.3481 | BC14: ='Negative Repayment'!BC96 -> 307479.6202 | BD14: ='Negative Repayment'!BD96 -> 583261.1053 | BE14: ='Negative Repayment'!BE96 -> 596490.9079 | BF14: ='Negative Repayment'!BF96 -> 313227.0318 | BG14: ='Negative Repayment'!BG96 -> 315166.6107 | BH14: ='Negative Repayment'!BH96 -> 597842.633 | BI14: ='Negative Repayment'!BI96 -> 611403.1806 | BJ14: ='Negative Repayment'!BJ96 -> 321057.7076 | BK14: ='Negative Repayment'!BK96 -> 323045.776 | BL14: ='Negative Repayment'!BL96 -> 612788.6988 | BM14: ='Negative Repayment'!BM96 -> 626688.2601 | BN14: ='Negative Repayment'!BN96 -> 329084.1503 | BO14: ='Negative Repayment'!BO96 -> 331121.9204 | BP14: ='Negative Repayment'!BP96 -> 628108.4162 | BQ14: ='Negative Repayment'!BQ96 -> 642355.4666 | BR14: ='Negative Repayment'!BR96 -> 337311.254 | BS14: ='Negative Repayment'!BS96 -> 339399.9684 | BT14: ='Negative Repayment'!BT96 -> 643811.1267 | BU14: ='Negative Repayment'!BU96 -> 658414.3533 | BV14: ='Negative Repayment'!BV96 -> 345744.0354 | BW14: ='Negative Repayment'!BW96 -> 347884.9676 | BX14: ='Negative Repayment'!BX96 -> 659906.4048 | BY14: ='Negative Repayment'!BY96 -> 674874.7121 | BZ14: ='Negative Repayment'!BZ96 -> 354387.6363 | CA14: ='Negative Repayment'!CA96 -> 356582.0918 | CB14: ='Negative Repayment'!CB96 -> 676404.0649 | CC14: ='Negative Repayment'!CC96 -> 691746.5799 | CD14: ='Negative Repayment'!CD96 -> 363247.3272 | CE14: ='Negative Repayment'!CE96 -> 365496.6441 | CF14: ='Negative Repayment'!CF96 -> 693314.1666 | CG14: ='Negative Repayment'!CG96 -> 709040.2444 | CH14: ='Negative Repayment'!CH96 -> 372328.5103 | CI14: ='Negative Repayment'!CI96 -> 374634.0602 | CJ14: ='Negative Repayment'!CJ96 -> 710647.0207 | CK14: ='Negative Repayment'!CK96 -> 726766.2505 | CL14: ='Negative Repayment'!CL96 -> 381636.7231 | CM14: ='Negative Repayment'!CM96 -> 383999.9117 | CN14: ='Negative Repayment'!CN96 -> 728413.1962 | CO14: ='Negative Repayment'!CO96 -> 744935.4068 | CP14: ='Negative Repayment'!CP96 -> 391177.6412 | CQ14: ='Negative Repayment'!CQ96 -> 393599.9095 | CR14: ='Negative Repayment'!CR96 -> 746623.5261 | CS14: ='Negative Repayment'!CS96 -> 763558.792 | CT14: ='Negative Repayment'!CT96 -> 400957.0822 | CU14: ='Negative Repayment'!CU96 -> 403439.9072 | CV14: ='Negative Repayment'!CV96 -> 765289.1143 | CW14: ='Negative Repayment'!CW96 -> 782647.7618 | CX14: ='Negative Repayment'!CX96 -> 1780917.707 | CY14: ='Negative Repayment'!CY96 -> 1791945.588 | CZ14: ='Negative Repayment'!CZ96 -> 3399159.149 | DA14: ='Negative Repayment'!DA96 -> 3476260.475 | DB14: ='Negative Repayment'!DB96 -> 1825440.649 | DC14: ='Negative Repayment'!DC96 -> 1836744.228 | DD14: ='Negative Repayment'!DD96 -> 3484138.128 | DE14: ='Negative Repayment'!DE96 -> 3563166.987 | DF14: ='Negative Repayment'!DF96 -> 1871076.666 | DG14: ='Negative Repayment'!DG96 -> 1882662.833 | DH14: ='Negative Repayment'!DH96 -> 3571241.581 | DI14: ='Negative Repayment'!DI96 -> 3652246.162 | DJ14: ='Negative Repayment'!DJ96 -> 1917853.582 | DK14: ='Negative Repayment'!DK96 -> 1929729.404 | DL14: ='Negative Repayment'!DL96 -> 3660522.621 | DM14: ='Negative Repayment'!DM96 -> 3743552.316 | DN14: ='Negative Repayment'!DN96 -> 1965799.922 | DO14: ='Negative Repayment'!DO96 -> 1977972.639 | DP14: ='Negative Repayment'!DP96 -> 3752035.686 | DQ14: ='Negative Repayment'!DQ96 -> 3837141.124 | DR14: ='Negative Repayment'!DR96 -> 0 | DS14: ='Negative Repayment'!DS96 -> 0 | DT14: ='Negative Repayment'!DT96 -> 0 | DU14: ='Negative Repayment'!DU96 -> 0 | DV14: ='Negative Repayment'!DV96 -> 0 | DW14: ='Negative Repayment'!DW96 -> 0 | DX14: ='Negative Repayment'!DX96 -> 0 | DY14: ='Negative Repayment'!DY96 -> 0 | DZ14: ='Negative Repayment'!DZ96 -> 0 | EA14: ='Negative Repayment'!EA96 -> 0 | EB14: ='Negative Repayment'!EB96 -> 0 | EC14: ='Negative Repayment'!EC96 -> 0 | ED14: ='Negative Repayment'!ED96 -> 0 | EE14: ='Negative Repayment'!EE96 -> 0 | EF14: ='Negative Repayment'!EF96 -> 0 | EG14: ='Negative Repayment'!EG96 -> 0 | EH14: ='Negative Repayment'!EH96 -> 0 | EI14: ='Negative Repayment'!EI96 -> 0 | EJ14: ='Negative Repayment'!EJ96 -> 0 | EK14: ='Negative Repayment'!EK96 -> 0 | EL14: ='Negative Repayment'!EL96 -> 0 | EM14: ='Negative Repayment'!EM96 -> 0 | EN14: ='Negative Repayment'!EN96 -> 0 | EO14: ='Negative Repayment'!EO96 -> 0 | EP14: ='Negative Repayment'!EP96 -> 0 | EQ14: ='Negative Repayment'!EQ96 -> 0 | ER14: ='Negative Repayment'!ER96 -> 0 | ES14: ='Negative Repayment'!ES96 -> 0 | ET14: ='Negative Repayment'!ET96 -> 0 | EU14: ='Negative Repayment'!EU96 -> 0 | EV14: ='Negative Repayment'!EV96 -> 0 | EW14: ='Negative Repayment'!EW96 -> 0 | EX14: ='Negative Repayment'!EX96 -> 0 | EY14: ='Negative Repayment'!EY96 -> 0 | EZ14: ='Negative Repayment'!EZ96 -> 0 | FA14: ='Negative Repayment'!FA96 -> 0 | FB14: ='Negative Repayment'!FB96 -> 0 | FC14: ='Negative Repayment'!FC96 -> 0
D15: Equity IRR | G15: =XIRR(J14:FC14,J6:FC6) -> 0.1628950417

Sheet Negative Repayment
E1: Units | F1: Constant 1 | G1: Constant 2 | H1: Sum | I1: Initial | J1: Project IRR | K1: =F42 -> 0.08436237872 | L1: Equity IRR | M1: =F96 -> 0.1628950417
D2: Period | E2: Period | J2: 1 | K2: 2 | L2: 3 | M2: 4 | N2: 5 | O2: 6 | P2: 7 | Q2: 8 | R2: 9 | S2: 10 | T2: 11 | U2: 12 | V2: 13 | W2: 14 | X2: 15 | Y2: 16 | Z2: 17 | AA2: 18 | AB2: 19 | AC2: 20 | AD2: 21 | AE2: 22 | AF2: 23 | AG2: 24 | AH2: 25 | AI2: 26 | AJ2: 27 | AK2: 28 | AL2: 29 | AM2: 30 | AN2: 31 | AO2: 32 | AP2: 33 | AQ2: 34 | AR2: 35 | AS2: 36 | AT2: 37 | AU2: 38 | AV2: 39 | AW2: 40 | AX2: 41 | AY2: 42 | AZ2: 43 | BA2: 44 | BB2: 45 | BC2: 46 | BD2: 47 | BE2: 48 | BF2: 49 | BG2: 50 | BH2: 51 | BI2: 52 | BJ2: 53 | BK2: 54 | BL2: 55 | BM2: 56 | BN2: 57 | BO2: 58 | BP2: 59 | BQ2: 60 | BR2: 61 | BS2: 62 | BT2: 63 | BU2: 64 | BV2: 65 | BW2: 66 | BX2: 67 | BY2: 68 | BZ2: 69 | CA2: 70 | CB2: 71 | CC2: 72 | CD2: 73 | CE2: 74 | CF2: 75 | CG2: 76 | CH2: 77 | CI2: 78 | CJ2: 79 | CK2: 80 | CL2: 81 | CM2: 82 | CN2: 83 | CO2: 84 | CP2: 85 | CQ2: 86 | CR2: 87 | CS2: 88 | CT2: 89 | CU2: 90 | CV2: 91 | CW2: 92 | CX2: 93 | CY2: 94 | CZ2: 95 | DA2: 96 | DB2: 97 | DC2: 98 | DD2: 99 | DE2: 100 | DF2: 101 | DG2: 102 | DH2: 103 | DI2: 104 | DJ2: 105 | DK2: 106 | DL2: 107 | DM2: 108 | DN2: 109 | DO2: 110 | DP2: 111 | DQ2: 112 | DR2: 113 | DS2: 114 | DT2: 115 | DU2: 116 | DV2: 117 | DW2: 118 | DX2: 119 | DY2: 120 | DZ2: 121 | EA2: 122 | EB2: 123 | EC2: 124 | ED2: 125 | EE2: 126 | EF2: 127 | EG2: 128 | EH2: 129 | EI2: 130 | EJ2: 131 | EK2: 132 | EL2: 133 | EM2: 134 | EN2: 135 | EO2: 136 | EP2: 137 | EQ2: 138 | ER2: 139 | ES2: 140 | ET2: 141 | EU2: 142 | EV2: 143 | EW2: 144 | EX2: 145 | EY2: 146 | EZ2: 147 | FA2: 148 | FB2: 149 | FC2: 150
D3: Pre-COD Period | E3: Flag | F3: =Input!E4 -> 12 | I3: =SUM(J3:FC3) -> 12 | J3: =( J2 <=$F$3)*1 -> 1 | K3: 1 | L3: 1 | M3: 1 | N3: 1 | O3: 1 | P3: 1 | Q3: 1 | R3: 1 | S3: 1 | T3: 1 | U3: 1 | V3: 0 | W3: 0 | X3: 0 | Y3: 0 | Z3: 0 | AA3: 0 | AB3: 0 | AC3: 0 | AD3: 0 | AE3: 0 | AF3: 0 | AG3: 0 | AH3: 0 | AI3: 0 | AJ3: 0 | AK3: 0 | AL3: 0 | AM3: 0 | AN3: 0 | AO3: 0 | AP3: 0 | AQ3: 0 | AR3: 0 | AS3: 0 | AT3: 0 | AU3: 0 | AV3: 0 | AW3: 0 | AX3: 0 | AY3: 0 | AZ3: 0 | BA3: 0 | BB3: 0 | BC3: 0 | BD3: 0 | BE3: 0 | BF3: 0 | BG3: 0 | BH3: 0 | BI3: 0 | BJ3: 0 | BK3: 0 | BL3: 0 | BM3: 0 | BN3: 0 | BO3: 0 | BP3: 0 | BQ3: 0 | BR3: 0 | BS3: 0 | BT3: 0 | BU3: 0 | BV3: =( BV2 <=$F$3)*1 -> 0 | BW3: 0 | BX3: 0 | BY3: 0 | BZ3: 0 | CA3: 0 | CB3: 0 | CC3: 0 | CD3: 0 | CE3: 0 | CF3: 0 | CG3: 0 | CH3: 0 | CI3: 0 | CJ3: 0 | CK3: 0 | CL3: 0 | CM3: 0 | CN3: 0 | CO3: 0 | CP3: 0 | CQ3: 0 | CR3: 0 | CS3: 0 | CT3: 0 | CU3: 0 | CV3: 0 | CW3: 0 | CX3: 0 | CY3: 0 | CZ3: 0 | DA3: 0 | DB3: 0 | DC3: 0 | DD3: 0 | DE3: 0 | DF3: 0 | DG3: 0 | DH3: 0 | DI3: 0 | DJ3: 0 | DK3: 0 | DL3: 0 | DM3: 0 | DN3: 0 | DO3: 0 | DP3: 0 | DQ3: 0 | DR3: 0 | DS3: 0 | DT3: 0 | DU3: 0 | DV3: 0 | DW3: 0 | DX3: 0 | DY3: 0 | DZ3: 0 | EA3: 0 | EB3: 0 | EC3: 0 | ED3: 0 | EE3: 0 | EF3: 0 | EG3: 0 | EH3: =( EH2 <=$F$3)*1 -> 0 | EI3: 0 | EJ3: 0 | EK3: 0 | EL3: 0 | EM3: 0 | EN3: 0 | EO3: 0 | EP3: 0 | EQ3: 0 | ER3: 0 | ES3: 0 | ET3: 0 | EU3: 0 | EV3: 0 | EW3: 0 | EX3: 0 | EY3: 0 | EZ3: 0 | FA3: 0 | FB3: 0 | FC3: 0
D4: Months in Period | E4: Flag | F4: =Input!E8 -> 1 | G4: =Input!E9 -> 3 | J4: =IF( J3, $F$4, $G$4) -> 1 | K4: 1 | L4: 1 | M4: 1 | N4: 1 | O4: 1 | P4: 1 | Q4: 1 | R4: 1 | S4: 1 | T4: 1 | U4: 1 | V4: 3 | W4: 3 | X4: 3 | Y4: 3 | Z4: 3 | AA4: 3 | AB4: 3 | AC4: 3 | AD4: 3 | AE4: 3 | AF4: 3 | AG4: 3 | AH4: 3 | AI4: 3 | AJ4: 3 | AK4: 3 | AL4: 3 | AM4: 3 | AN4: 3 | AO4: 3 | AP4: 3 | AQ4: 3 | AR4: 3 | AS4: 3 | AT4: 3 | AU4: 3 | AV4: 3 | AW4: 3 | AX4: 3 | AY4: 3 | AZ4: 3 | BA4: 3 | BB4: 3 | BC4: 3 | BD4: 3 | BE4: 3 | BF4: 3 | BG4: 3 | BH4: 3 | BI4: 3 | BJ4: 3 | BK4: 3 | BL4: 3 | BM4: 3 | BN4: 3 | BO4: 3 | BP4: 3 | BQ4: 3 | BR4: 3 | BS4: 3 | BT4: 3 | BU4: 3 | BV4: =IF( BV3, $F$4, $G$4) -> 3 | BW4: 3 | BX4: 3 | BY4: 3 | BZ4: 3 | CA4: 3 | CB4: 3 | CC4: 3 | CD4: 3 | CE4: 3 | CF4: 3 | CG4: 3 | CH4: 3 | CI4: 3 | CJ4: 3 | CK4: 3 | CL4: 3 | CM4: 3 | CN4: 3 | CO4: 3 | CP4: 3 | CQ4: 3 | CR4: 3 | CS4: 3 | CT4: 3 | CU4: 3 | CV4: 3 | CW4: 3 | CX4: 3 | CY4: 3 | CZ4: 3 | DA4: 3 | DB4: 3 | DC4: 3 | DD4: 3 | DE4: 3 | DF4: 3 | DG4: 3 | DH4: 3 | DI4: 3 | DJ4: 3 | DK4: 3 | DL4: 3 | DM4: 3 | DN4: 3 | DO4: 3 | DP4: 3 | DQ4: 3 | DR4: 3 | DS4: 3 | DT4: 3 | DU4: 3 | DV4: 3 | DW4: 3 | DX4: 3 | DY4: 3 | DZ4: 3 | EA4: 3 | EB4: 3 | EC4: 3 | ED4: 3 | EE4: 3 | EF4: 3 | EG4: 3 | EH4: =IF( EH3, $F$4, $G$4) -> 3 | EI4: 3 | EJ4: 3 | EK4: 3 | EL4: 3 | EM4: 3 | EN4: 3 | EO4: 3 | EP4: 3 | EQ4: 3 | ER4: 3 | ES4: 3 | ET4: 3 | EU4: 3 | EV4: 3 | EW4: 3 | EX4: 3 | EY4: 3 | EZ4: 3 | FA4: 3 | FB4: 3 | FC4: 3
D5: Start Date | E5: Date | J5: =I6 + 1 -> 2023-01-01 | K5: 2023-02-01 | L5: 2023-03-01 | M5: 2023-04-01 | N5: 2023-05-01 | O5: 2023-06-01 | P5: 2023-07-01 | Q5: 2023-08-01 | R5: 2023-09-01 | S5: 2023-10-01 | T5: 2023-11-01 | U5: 2023-12-01 | V5: 2024-01-01 | W5: 2024-04-01 | X5: 2024-07-01 | Y5: 2024-10-01 | Z5: 2025-01-01 | AA5: 2025-04-01 | AB5: 2025-07-01 | AC5: 2025-10-01 | AD5: 2026-01-01 | AE5: 2026-04-01 | AF5: 2026-07-01 | AG5: 2026-10-01 | AH5: 2027-01-01 | AI5: 2027-04-01 | AJ5: 2027-07-01 | AK5: 2027-10-01 | AL5: 2028-01-01 | AM5: 2028-04-01 | AN5: 2028-07-01 | AO5: 2028-10-01 | AP5: 2029-01-01 | AQ5: 2029-04-01 | AR5: 2029-07-01 | AS5: 2029-10-01 | AT5: 2030-01-01 | AU5: 2030-04-01 | AV5: 2030-07-01 | AW5: 2030-10-01 | AX5: 2031-01-01 | AY5: 2031-04-01 | AZ5: 2031-07-01 | BA5: 2031-10-01 | BB5: 2032-01-01 | BC5: 2032-04-01 | BD5: 2032-07-01 | BE5: 2032-10-01 | BF5: 2033-01-01 | BG5: 2033-04-01 | BH5: 2033-07-01 | BI5: 2033-10-01 | BJ5: 2034-01-01 | BK5: 2034-04-01 | BL5: 2034-07-01 | BM5: 2034-10-01 | BN5: 2035-01-01 | BO5: 2035-04-01 | BP5: 2035-07-01 | BQ5: 2035-10-01 | BR5: 2036-01-01 | BS5: 2036-04-01 | BT5: 2036-07-01 | BU5: 2036-10-01 | BV5: =BU6 + 1 -> 2037-01-01 | BW5: 2037-04-01 | BX5: 2037-07-01 | BY5: 2037-10-01 | BZ5: 2038-01-01 | CA5: 2038-04-01 | CB5: 2038-07-01 | CC5: 2038-10-01 | CD5: 2039-01-01 | CE5: 2039-04-01 | CF5: 2039-07-01 | CG5: 2039-10-01 | CH5: 2040-01-01 | CI5: 2040-04-01 | CJ5: 2040-07-01 | CK5: 2040-10-01 | CL5: 2041-01-01 | CM5: 2041-04-01 | CN5: 2041-07-01 | CO5: 2041-10-01 | CP5: 2042-01-01 | CQ5: 2042-04-01 | CR5: 2042-07-01 | CS5: 2042-10-01 | CT5: 2043-01-01 | CU5: 2043-04-01 | CV5: 2043-07-01 | CW5: 2043-10-01 | CX5: 2044-01-01 | CY5: 2044-04-01 | CZ5: 2044-07-01 | DA5: 2044-10-01 | DB5: 2045-01-01 | DC5: 2045-04-01 | DD5: 2045-07-01 | DE5: 2045-10-01 | DF5: 2046-01-01 | DG5: 2046-04-01 | DH5: 2046-07-01 | DI5: 2046-10-01 | DJ5: 2047-01-01 | DK5: 2047-04-01 | DL5: 2047-07-01 | DM5: 2047-10-01 | DN5: 2048-01-01 | DO5: 2048-04-01 | DP5: 2048-07-01 | DQ5: 2048-10-01 | DR5: 2049-01-01 | DS5: 2049-04-01 | DT5: 2049-07-01 | DU5: 2049-10-01 | DV5: 2050-01-01 | DW5: 2050-04-01 | DX5: 2050-07-01 | DY5: 2050-10-01 | DZ5: 2051-01-01 | EA5: 2051-04-01 | EB5: 2051-07-01 | EC5: 2051-10-01 | ED5: 2052-01-01 | EE5: 2052-04-01 | EF5: 2052-07-01 | EG5: 2052-10-01 | EH5: =EG6 + 1 -> 2053-01-01 | EI5: 2053-04-01 | EJ5: 2053-07-01 | EK5: 2053-10-01 | EL5: 2054-01-01 | EM5: 2054-04-01 | EN5: 2054-07-01 | EO5: 2054-10-01 | EP5: 2055-01-01 | EQ5: 2055-04-01 | ER5: 2055-07-01 | ES5: 2055-10-01 | ET5: 2056-01-01 | EU5: 2056-04-01 | EV5: 2056-07-01 | EW5: 2056-10-01 | EX5: 2057-01-01 | EY5: 2057-04-01 | EZ5: 2057-07-01 | FA5: 2057-10-01 | FB5: 2058-01-01 | FC5: 2058-04-01
D6: End Date | E6: Date | I6: =Input!E3 - 1 -> 2022-12-31 | J6: =EDATE(J5, J4) - 1 -> 2023-01-31 | K6: 2023-02-28 | L6: 2023-03-31 | M6: 2023-04-30 | N6: 2023-05-31 | O6: 2023-06-30 | P6: 2023-07-31 | Q6: 2023-08-31 | R6: 2023-09-30 | S6: 2023-10-31 | T6: 2023-11-30 | U6: 2023-12-31 | V6: 2024-03-31 | W6: 2024-06-30 | X6: 2024-09-30 | Y6: 2024-12-31 | Z6: 2025-03-31 | AA6: 2025-06-30 | AB6: 2025-09-30 | AC6: 2025-12-31 | AD6: 2026-03-31 | AE6: 2026-06-30 | AF6: 2026-09-30 | AG6: 2026-12-31 | AH6: 2027-03-31 | AI6: 2027-06-30 | AJ6: 2027-09-30 | AK6: 2027-12-31 | AL6: 2028-03-31 | AM6: 2028-06-30 | AN6: 2028-09-30 | AO6: 2028-12-31 | AP6: 2029-03-31 | AQ6: 2029-06-30 | AR6: 2029-09-30 | AS6: 2029-12-31 | AT6: 2030-03-31 | AU6: 2030-06-30 | AV6: 2030-09-30 | AW6: 2030-12-31 | AX6: 2031-03-31 | AY6: 2031-06-30 | AZ6: 2031-09-30 | BA6: 2031-12-31 | BB6: 2032-03-31 | BC6: 2032-06-30 | BD6: 2032-09-30 | BE6: 2032-12-31 | BF6: 2033-03-31 | BG6: 2033-06-30 | BH6: 2033-09-30 | BI6: 2033-12-31 | BJ6: 2034-03-31 | BK6: 2034-06-30 | BL6: 2034-09-30 | BM6: 2034-12-31 | BN6: 2035-03-31 | BO6: 2035-06-30 | BP6: 2035-09-30 | BQ6: 2035-12-31 | BR6: 2036-03-31 | BS6: 2036-06-30 | BT6: 2036-09-30 | BU6: 2036-12-31 | BV6: =EDATE(BV5, BV4) - 1 -> 2037-03-31 | BW6: 2037-06-30 | BX6: 2037-09-30 | BY6: 2037-12-31 | BZ6: 2038-03-31 | CA6: 2038-06-30 | CB6: 2038-09-30 | CC6: 2038-12-31 | CD6: 2039-03-31 | CE6: 2039-06-30 | CF6: 2039-09-30 | CG6: 2039-12-31 | CH6: 2040-03-31 | CI6: 2040-06-30 | CJ6: 2040-09-30 | CK6: 2040-12-31 | CL6: 2041-03-31 | CM6: 2041-06-30 | CN6: 2041-09-30 | CO6: 2041-12-31 | CP6: 2042-03-31 | CQ6: 2042-06-30 | CR6: 2042-09-30 | CS6: 2042-12-31 | CT6: 2043-03-31 | CU6: 2043-06-30 | CV6: 2043-09-30 | CW6: 2043-12-31 | CX6: 2044-03-31 | CY6: 2044-06-30 | CZ6: 2044-09-30 | DA6: 2044-12-31 | DB6: 2045-03-31 | DC6: 2045-06-30 | DD6: 2045-09-30 | DE6: 2045-12-31 | DF6: 2046-03-31 | DG6: 2046-06-30 | DH6: 2046-09-30 | DI6: 2046-12-31 | DJ6: 2047-03-31 | DK6: 2047-06-30 | DL6: 2047-09-30 | DM6: 2047-12-31 | DN6: 2048-03-31 | DO6: 2048-06-30 | DP6: 2048-09-30 | DQ6: 2048-12-31 | DR6: 2049-03-31 | DS6: 2049-06-30 | DT6: 2049-09-30 | DU6: 2049-12-31 | DV6: 2050-03-31 | DW6: 2050-06-30 | DX6: 2050-09-30 | DY6: 2050-12-31 | DZ6: 2051-03-31 | EA6: 2051-06-30 | EB6: 2051-09-30 | EC6: 2051-12-31 | ED6: 2052-03-31 | EE6: 2052-06-30 | EF6: 2052-09-30 | EG6: 2052-12-31 | EH6: =EDATE(EH5, EH4) - 1 -> 2053-03-31 | EI6: 2053-06-30 | EJ6: 2053-09-30 | EK6: 2053-12-31 | EL6: 2054-03-31 | EM6: 2054-06-30 | EN6: 2054-09-30 | EO6: 2054-12-31 | EP6: 2055-03-31 | EQ6: 2055-06-30 | ER6: 2055-09-30 | ES6: 2055-12-31 | ET6: 2056-03-31 | EU6: 2056-06-30 | EV6: 2056-09-30 | EW6: 2056-12-31 | EX6: 2057-03-31 | EY6: 2057-06-30 | EZ6: 2057-09-30 | FA6: 2057-12-31 | FB6: 2058-03-31 | FC6: 2058-06-30
D7: Operating Period | E7: Flag | F7: =Input!E5 -> 2024-01-01 | G7: =Input!E7 -> 2049-01-01 | H7: =SUM(J7:FC7) -> 100 | J7: =AND( J$5 >=$F7, J$5 <$G7) * 1 -> 0 | K7: 0 | L7: 0 | M7: 0 | N7: 0 | O7: 0 | P7: 0 | Q7: 0 | R7: 0 | S7: 0 | T7: 0 | U7: 0 | V7: 1 | W7: 1 | X7: 1 | Y7: 1 | Z7: 1 | AA7: 1 | AB7: 1 | AC7: 1 | AD7: 1 | AE7: 1 | AF7: 1 | AG7: 1 | AH7: 1 | AI7: 1 | AJ7: 1 | AK7: 1 | AL7: 1 | AM7: 1 | AN7: 1 | AO7: 1 | AP7: 1 | AQ7: 1 | AR7: 1 | AS7: 1 | AT7: 1 | AU7: 1 | AV7: 1 | AW7: 1 | AX7: 1 | AY7: 1 | AZ7: 1 | BA7: 1 | BB7: 1 | BC7: 1 | BD7: 1 | BE7: 1 | BF7: 1 | BG7: 1 | BH7: 1 | BI7: 1 | BJ7: 1 | BK7: 1 | BL7: 1 | BM7: 1 | BN7: 1 | BO7: 1 | BP7: 1 | BQ7: 1 | BR7: 1 | BS7: 1 | BT7: 1 | BU7: 1 | BV7: =AND( BV$5 >=$F7, BV$5 <$G7) * 1 -> 1 | BW7: 1 | BX7: 1 | BY7: 1 | BZ7: 1 | CA7: 1 | CB7: 1 | CC7: 1 | CD7: 1 | CE7: 1 | CF7: 1 | CG7: 1 | CH7: 1 | CI7: 1 | CJ7: 1 | CK7: 1 | CL7: 1 | CM7: 1 | CN7: 1 | CO7: 1 | CP7: 1 | CQ7: 1 | CR7: 1 | CS7: 1 | CT7: 1 | CU7: 1 | CV7: 1 | CW7: 1 | CX7: 1 | CY7: 1 | CZ7: 1 | DA7: 1 | DB7: 1 | DC7: 1 | DD7: 1 | DE7: 1 | DF7: 1 | DG7: 1 | DH7: 1 | DI7: 1 | DJ7: 1 | DK7: 1 | DL7: 1 | DM7: 1 | DN7: 1 | DO7: 1 | DP7: 1 | DQ7: 1 | DR7: 0 | DS7: 0 | DT7: 0 | DU7: 0 | DV7: 0 | DW7: 0 | DX7: 0 | DY7: 0 | DZ7: 0 | EA7: 0 | EB7: 0 | EC7: 0 | ED7: 0 | EE7: 0 | EF7: 0 | EG7: 0 | EH7: =AND( EH$5 >=$F7, EH$5 <$G7) * 1 -> 0 | EI7: 0 | EJ7: 0 | EK7: 0 | EL7: 0 | EM7: 0 | EN7: 0 | EO7: 0 | EP7: 0 | EQ7: 0 | ER7: 0 | ES7: 0 | ET7: 0 | EU7: 0 | EV7: 0 | EW7: 0 | EX7: 0 | EY7: 0 | EZ7: 0 | FA7: 0 | FB7: 0 | FC7: 0
D8: Year | E8: Year | J8: =YEAR( J5) -> 2023 | K8: 2023 | L8: 2023 | M8: 2023 | N8: 2023 | O8: 2023 | P8: 2023 | Q8: 2023 | R8: 2023 | S8: 2023 | T8: 2023 | U8: 2023 | V8: 2024 | W8: 2024 | X8: 2024 | Y8: 2024 | Z8: 2025 | AA8: 2025 | AB8: 2025 | AC8: 2025 | AD8: 2026 | AE8: 2026 | AF8: 2026 | AG8: 2026 | AH8: 2027 | AI8: 2027 | AJ8: 2027 | AK8: 2027 | AL8: 2028 | AM8: 2028 | AN8: 2028 | AO8: 2028 | AP8: 2029 | AQ8: 2029 | AR8: 2029 | AS8: 2029 | AT8: 2030 | AU8: 2030 | AV8: 2030 | AW8: 2030 | AX8: 2031 | AY8: 2031 | AZ8: 2031 | BA8: 2031 | BB8: 2032 | BC8: 2032 | BD8: 2032 | BE8: 2032 | BF8: 2033 | BG8: 2033 | BH8: 2033 | BI8: 2033 | BJ8: 2034 | BK8: 2034 | BL8: 2034 | BM8: 2034 | BN8: 2035 | BO8: 2035 | BP8: 2035 | BQ8: 2035 | BR8: 2036 | BS8: 2036 | BT8: 2036 | BU8: 2036 | BV8: =YEAR( BV5) -> 2037 | BW8: 2037 | BX8: 2037 | BY8: 2037 | BZ8: 2038 | CA8: 2038 | CB8: 2038 | CC8: 2038 | CD8: 2039 | CE8: 2039 | CF8: 2039 | CG8: 2039 | CH8: 2040 | CI8: 2040 | CJ8: 2040 | CK8: 2040 | CL8: 2041 | CM8: 2041 | CN8: 2041 | CO8: 2041 | CP8: 2042 | CQ8: 2042 | CR8: 2042 | CS8: 2042 | CT8: 2043 | CU8: 2043 | CV8: 2043 | CW8: 2043 | CX8: 2044 | CY8: 2044 | CZ8: 2044 | DA8: 2044 | DB8: 2045 | DC8: 2045 | DD8: 2045 | DE8: 2045 | DF8: 2046 | DG8: 2046 | DH8: 2046 | DI8: 2046 | DJ8: 2047 | DK8: 2047 | DL8: 2047 | DM8: 2047 | DN8: 2048 | DO8: 2048 | DP8: 2048 | DQ8: 2048 | DR8: 2049 | DS8: 2049 | DT8: 2049 | DU8: 2049 | DV8: 2050 | DW8: 2050 | DX8: 2050 | DY8: 2050 | DZ8: 2051 | EA8: 2051 | EB8: 2051 | EC8: 2051 | ED8: 2052 | EE8: 2052 | EF8: 2052 | EG8: 2052 | EH8: =YEAR( EH5) -> 2053 | EI8: 2053 | EJ8: 2053 | EK8: 2053 | EL8: 2054 | EM8: 2054 | EN8: 2054 | EO8: 2054 | EP8: 2055 | EQ8: 2055 | ER8: 2055 | ES8: 2055 | ET8: 2056 | EU8: 2056 | EV8: 2056 | EW8: 2056 | EX8: 2057 | EY8: 2057 | EZ8: 2057 | FA8: 2057 | FB8: 2058 | FC8: 2058
D9: New Year Flag | E9: Flag | J9: =J8 <> I8 -> TRUE | K9: FALSE | L9: FALSE | M9: FALSE | N9: FALSE | O9: FALSE | P9: FALSE | Q9: FALSE | R9: FALSE | S9: FALSE | T9: FALSE | U9: FALSE | V9: TRUE | W9: FALSE | X9: FALSE | Y9: FALSE | Z9: TRUE | AA9: FALSE | AB9: FALSE | AC9: FALSE | AD9: TRUE | AE9: FALSE | AF9: FALSE | AG9: FALSE | AH9: TRUE | AI9: FALSE | AJ9: FALSE | AK9: FALSE | AL9: TRUE | AM9: FALSE | AN9: FALSE | AO9: FALSE | AP9: TRUE | AQ9: FALSE | AR9: FALSE | AS9: FALSE | AT9: TRUE | AU9: FALSE | AV9: FALSE | AW9: FALSE | AX9: TRUE | AY9: FALSE | AZ9: FALSE | BA9: FALSE | BB9: TRUE | BC9: FALSE | BD9: FALSE | BE9: FALSE | BF9: TRUE | BG9: FALSE | BH9: FALSE | BI9: FALSE | BJ9: TRUE | BK9: FALSE | BL9: FALSE | BM9: FALSE | BN9: TRUE | BO9: FALSE | BP9: FALSE | BQ9: FALSE | BR9: TRUE | BS9: FALSE | BT9: FALSE | BU9: FALSE | BV9: =BV8 <> BU8 -> TRUE | BW9: FALSE | BX9: FALSE | BY9: FALSE | BZ9: TRUE | CA9: FALSE | CB9: FALSE | CC9: FALSE | CD9: TRUE | CE9: FALSE | CF9: FALSE | CG9: FALSE | CH9: TRUE | CI9: FALSE | CJ9: FALSE | CK9: FALSE | CL9: TRUE | CM9: FALSE | CN9: FALSE | CO9: FALSE | CP9: TRUE | CQ9: FALSE | CR9: FALSE | CS9: FALSE | CT9: TRUE | CU9: FALSE | CV9: FALSE | CW9: FALSE | CX9: TRUE | CY9: FALSE | CZ9: FALSE | DA9: FALSE | DB9: TRUE | DC9: FALSE | DD9: FALSE | DE9: FALSE | DF9: TRUE | DG9: FALSE | DH9: FALSE | DI9: FALSE | DJ9: TRUE | DK9: FALSE | DL9: FALSE | DM9: FALSE | DN9: TRUE | DO9: FALSE | DP9: FALSE | DQ9: FALSE | DR9: TRUE | DS9: FALSE | DT9: FALSE | DU9: FALSE | DV9: TRUE | DW9: FALSE | DX9: FALSE | DY9: FALSE | DZ9: TRUE | EA9: FALSE | EB9: FALSE | EC9: FALSE | ED9: TRUE | EE9: FALSE | EF9: FALSE | EG9: FALSE | EH9: =EH8 <> EG8 -> TRUE | EI9: FALSE | EJ9: FALSE | EK9: FALSE | EL9: TRUE | EM9: FALSE | EN9: FALSE | EO9: FALSE | EP9: TRUE | EQ9: FALSE | ER9: FALSE | ES9: FALSE | ET9: TRUE | EU9: FALSE | EV9: FALSE | EW9: FALSE | EX9: TRUE | EY9: FALSE | EZ9: FALSE | FA9: FALSE | FB9: TRUE | FC9: FALSE
D10: Month | E10: Month | J10: =MONTH(J5) -> 1 | K10: =MONTH(K5) -> 2 | L10: 3 | M10: 4 | N10: 5 | O10: 6 | P10: 7 | Q10: 8 | R10: 9 | S10: 10 | T10: 11 | U10: 12 | V10: 1 | W10: 4 | X10: 7 | Y10: 10 | Z10: 1 | AA10: 4 | AB10: 7 | AC10: 10 | AD10: 1 | AE10: 4 | AF10: 7 | AG10: 10 | AH10: 1 | AI10: 4 | AJ10: 7 | AK10: 10 | AL10: 1 | AM10: 4 | AN10: 7 | AO10: 10 | AP10: 1 | AQ10: 4 | AR10: 7 | AS10: 10 | AT10: 1 | AU10: 4 | AV10: 7 | AW10: 10 | AX10: 1 | AY10: 4 | AZ10: 7 | BA10: 10 | BB10: 1 | BC10: 4 | BD10: 7 | BE10: 10 | BF10: 1 | BG10: 4 | BH10: 7 | BI10: 10 | BJ10: 1 | BK10: 4 | BL10: 7 | BM10: 10 | BN10: 1 | BO10: 4 | BP10: 7 | BQ10: 10 | BR10: 1 | BS10: 4 | BT10: 7 | BU10: 10 | BV10: 1 | BW10: =MONTH(BW5) -> 4 | BX10: 7 | BY10: 10 | BZ10: 1 | CA10: 4 | CB10: 7 | CC10: 10 | CD10: 1 | CE10: 4 | CF10: 7 | CG10: 10 | CH10: 1 | CI10: 4 | CJ10: 7 | CK10: 10 | CL10: 1 | CM10: 4 | CN10: 7 | CO10: 10 | CP10: 1 | CQ10: 4 | CR10: 7 | CS10: 10 | CT10: 1 | CU10: 4 | CV10: 7 | CW10: 10 | CX10: 1 | CY10: 4 | CZ10: 7 | DA10: 10 | DB10: 1 | DC10: 4 | DD10: 7 | DE10: 10 | DF10: 1 | DG10: 4 | DH10: 7 | DI10: 10 | DJ10: 1 | DK10: 4 | DL10: 7 | DM10: 10 | DN10: 1 | DO10: 4 | DP10: 7 | DQ10: 10 | DR10: 1 | DS10: 4 | DT10: 7 | DU10: 10 | DV10: 1 | DW10: 4 | DX10: 7 | DY10: 10 | DZ10: 1 | EA10: 4 | EB10: 7 | EC10: 10 | ED10: 1 | EE10: 4 | EF10: 7 | EG10: 10 | EH10: 1 | EI10: =MONTH(EI5) -> 4 | EJ10: 7 | EK10: 10 | EL10: 1 | EM10: 4 | EN10: 7 | EO10: 10 | EP10: 1 | EQ10: 4 | ER10: 7 | ES10: 10 | ET10: 1 | EU10: 4 | EV10: 7 | EW10: 10 | EX10: 1 | EY10: 4 | EZ10: 7 | FA10: 10 | FB10: 1 | FC10: 4
D11: Quarter | E11: Quarter | J11: =ROUNDUP(J10/Quarter,0) -> 1 | K11: 1 | L11: 1 | M11: 1 | N11: 2 | O11: 2 | P11: 2 | Q11: 2 | R11: 3 | S11: 3 | T11: 3 | U11: 3 | V11: 1 | W11: 1 | X11: 2 | Y11: 3 | Z11: 1 | AA11: 1 | AB11: 2 | AC11: 3 | AD11: 1 | AE11: 1 | AF11: 2 | AG11: 3 | AH11: 1 | AI11: 1 | AJ11: 2 | AK11: 3 | AL11: 1 | AM11: 1 | AN11: 2 | AO11: 3 | AP11: =ROUNDUP(AP10/Quarter,0) -> 1 | AQ11: 1 | AR11: 2 | AS11: 3 | AT11: 1 | AU11: 1 | AV11: 2 | AW11: 3 | AX11: 1 | AY11: 1 | AZ11: 2 | BA11: 3 | BB11: 1 | BC11: 1 | BD11: 2 | BE11: 3 | BF11: 1 | BG11: 1 | BH11: 2 | BI11: 3 | BJ11: 1 | BK11: 1 | BL11: 2 | BM11: 3 | BN11: 1 | BO11: 1 | BP11: 2 | BQ11: 3 | BR11: 1 | BS11: 1 | BT11: 2 | BU11: 3 | BV11: =ROUNDUP(BV10/Quarter,0) -> 1 | BW11: 1 | BX11: 2 | BY11: 3 | BZ11: 1 | CA11: 1 | CB11: 2 | CC11: 3 | CD11: 1 | CE11: 1 | CF11: 2 | CG11: 3 | CH11: 1 | CI11: 1 | CJ11: 2 | CK11: 3 | CL11: 1 | CM11: 1 | CN11: 2 | CO11: 3 | CP11: 1 | CQ11: 1 | CR11: 2 | CS11: 3 | CT11: 1 | CU11: 1 | CV11: 2 | CW11: 3 | CX11: 1 | CY11: 1 | CZ11: 2 | DA11: 3 | DB11: =ROUNDUP(DB10/Quarter,0) -> 1 | DC11: 1 | DD11: 2 | DE11: 3 | DF11: 1 | DG11: 1 | DH11: 2 | DI11: 3 | DJ11: 1 | DK11: 1 | DL11: 2 | DM11: 3 | DN11: 1 | DO11: 1 | DP11: 2 | DQ11: 3 | DR11: 1 | DS11: 1 | DT11: 2 | DU11: 3 | DV11: 1 | DW11: 1 | DX11: 2 | DY11: 3 | DZ11: 1 | EA11: 1 | EB11: 2 | EC11: 3 | ED11: 1 | EE11: 1 | EF11: 2 | EG11: 3 | EH11: =ROUNDUP(EH10/Quarter,0) -> 1 | EI11: 1 | EJ11: 2 | EK11: 3 | EL11: 1 | EM11: 1 | EN11: 2 | EO11: 3 | EP11: 1 | EQ11: 1 | ER11: 2 | ES11: 3 | ET11: 1 | EU11: 1 | EV11: 2 | EW11: 3 | EX11: 1 | EY11: 1 | EZ11: 2 | FA11: 3 | FB11: 1 | FC11: 1
C13: Resource
D14: Capacity | E14: kWp | F14: =Input!E12 -> 100000 | J14: =$F14 * J$7 -> 0 | K14: 0 | L14: 0 | M14: 0 | N14: 0 | O14: 0 | P14: 0 | Q14: 0 | R14: 0 | S14: 0 | T14: 0 | U14: 0 | V14: 100000 | W14: 100000 | X14: 100000 | Y14: 100000 | Z14: =$F14 * Z$7 -> 100000 | AA14: 100000 | AB14: 100000 | AC14: 100000 | AD14: 100000 | AE14: 100000 | AF14: 100000 | AG14: 100000 | AH14: 100000 | AI14: 100000 | AJ14: 100000 | AK14: 100000 | AL14: 100000 | AM14: 100000 | AN14: 100000 | AO14: 100000 | AP14: =$F14 * AP$7 -> 100000 | AQ14: 100000 | AR14: 100000 | AS14: 100000 | AT14: 100000 | AU14: 100000 | AV14: 100000 | AW14: 100000 | AX14: 100000 | AY14: 100000 | AZ14: 100000 | BA14: 100000 | BB14: 100000 | BC14: 100000 | BD14: 100000 | BE14: 100000 | BF14: =$F14 * BF$7 -> 100000 | BG14: 100000 | BH14: 100000 | BI14: 100000 | BJ14: 100000 | BK14: 100000 | BL14: 100000 | BM14: 100000 | BN14: 100000 | BO14: 100000 | BP14: 100000 | BQ14: 100000 | BR14: 100000 | BS14: 100000 | BT14: 100000 | BU14: 100000 | BV14: =$F14 * BV$7 -> 100000 | BW14: 100000 | BX14: 100000 | BY14: 100000 | BZ14: 100000 | CA14: 100000 | CB14: 100000 | CC14: 100000 | CD14: 100000 | CE14: 100000 | CF14: 100000 | CG14: 100000 | CH14: 100000 | CI14: 100000 | CJ14: 100000 | CK14: 100000 | CL14: =$F14 * CL$7 -> 100000 | CM14: 100000 | CN14: 100000 | CO14: 100000 | CP14: 100000 | CQ14: 100000 | CR14: 100000 | CS14: 100000 | CT14: 100000 | CU14: 100000 | CV14: 100000 | CW14: 100000 | CX14: 100000 | CY14: 100000 | CZ14: 100000 | DA14: 100000 | DB14: =$F14 * DB$7 -> 100000 | DC14: 100000 | DD14: 100000 | DE14: 100000 | DF14: 100000 | DG14: 100000 | DH14: 100000 | DI14: 100000 | DJ14: 100000 | DK14: 100000 | DL14: 100000 | DM14: 100000 | DN14: 100000 | DO14: 100000 | DP14: 100000 | DQ14: 100000 | DR14: =$F14 * DR$7 -> 0 | DS14: 0 | DT14: 0 | DU14: 0 | DV14: 0 | DW14: 0 | DX14: 0 | DY14: 0 | DZ14: 0 | EA14: 0 | EB14: 0 | EC14: 0 | ED14: 0 | EE14: 0 | EF14: 0 | EG14: 0 | EH14: =$F14 * EH$7 -> 0 | EI14: 0 | EJ14: 0 | EK14: 0 | EL14: 0 | EM14: 0 | EN14: 0 | EO14: 0 | EP14: 0 | EQ14: 0 | ER14: 0 | ES14: 0 | ET14: 0 | EU14: 0 | EV14: 0 | EW14: 0 | EX14: =$F14 * EX$7 -> 0 | EY14: 0 | EZ14: 0 | FA14: 0 | FB14: 0 | FC14: 0
D15: Annual Yield | E15: kWh/kWp | F15: =Input!E16 -> 1707.83 | J15: 0 | K15: 0 | L15: 0 | M15: 0 | N15: 0 | O15: 0 | P15: 0 | Q15: 0 | R15: 0 | S15: 0 | T15: 0 | U15: 0 | V15: 1707.83 | W15: 1707.83 | X15: 1707.83 | Y15: 1707.83 | Z15: 1707.83 | AA15: 1707.83 | AB15: 1707.83 | AC15: 1707.83 | AD15: 1707.83 | AE15: 1707.83 | AF15: 1707.83 | AG15: 1707.83 | AH15: 1707.83 | AI15: 1707.83 | AJ15: 1707.83 | AK15: 1707.83 | AL15: 1707.83 | AM15: 1707.83 | AN15: 1707.83 | AO15: 1707.83 | AP15: 1707.83 | AQ15: 1707.83 | AR15: 1707.83 | AS15: 1707.83 | AT15: 1707.83 | AU15: 1707.83 | AV15: 1707.83 | AW15: 1707.83 | AX15: 1707.83 | AY15: 1707.83 | AZ15: 1707.83 | BA15: 1707.83 | BB15: 1707.83 | BC15: 1707.83 | BD15: 1707.83 | BE15: 1707.83 | BF15: 1707.83 | BG15: 1707.83 | BH15: 1707.83 | BI15: 1707.83 | BJ15: 1707.83 | BK15: 1707.83 | BL15: 1707.83 | BM15: 1707.83 | BN15: 1707.83 | BO15: 1707.83 | BP15: 1707.83 | BQ15: 1707.83 | BR15: 1707.83 | BS15: 1707.83 | BT15: 1707.83 | BU15: 1707.83 | BV15: 1707.83 | BW15: 1707.83 | BX15: 1707.83 | BY15: 1707.83 | BZ15: 1707.83 | CA15: 1707.83 | CB15: 1707.83 | CC15: 1707.83 | CD15: 1707.83 | CE15: 1707.83 | CF15: 1707.83 | CG15: 1707.83 | CH15: 1707.83 | CI15: 1707.83 | CJ15: 1707.83 | CK15: 1707.83 | CL15: 1707.83 | CM15: 1707.83 | CN15: 1707.83 | CO15: 1707.83 | CP15: 1707.83 | CQ15: 1707.83 | CR15: 1707.83 | CS15: 1707.83 | CT15: 1707.83 | CU15: 1707.83 | CV15: 1707.83 | CW15: 1707.83 | CX15: 1707.83 | CY15: 1707.83 | CZ15: 1707.83 | DA15: 1707.83 | DB15: 1707.83 | DC15: 1707.83 | DD15: 1707.83 | DE15: 1707.83 | DF15: 1707.83 | DG15: 1707.83 | DH15: 1707.83 | DI15: 1707.83 | DJ15: 1707.83 | DK15: 1707.83 | DL15: 1707.83 | DM15: 1707.83 | DN15: 1707.83 | DO15: 1707.83 | DP15: 1707.83 | DQ15: 1707.83 | DR15: 0 | DS15: 0 | DT15: 0 | DU15: 0 | DV15: 0 | DW15: 0 | DX15: 0 | DY15: 0 | DZ15: 0 | EA15: 0 | EB15: 0 | EC15: 0 | ED15: 0 | EE15: 0 | EF15: 0 | EG15: 0 | EH15: 0 | EI15: 0 | EJ15: 0 | EK15: 0 | EL15: 0 | EM15: 0 | EN15: 0 | EO15: 0 | EP15: 0 | EQ15: 0 | ER15: 0 | ES15: 0 | ET15: 0 | EU15: 0 | EV15: 0 | EW15: 0 | EX15: 0 | EY15: 0 | EZ15: 0 | FA15: 0 | FB15: 0 | FC15: 0
D16: Degradation | E16: % | F16: =(1+Input!E17)^(1/4)-1 -> 0 | J16: =$F$16*J7 -> 0 | K16: 0 | L16: 0 | M16: 0 | N16: 0 | O16: 0 | P16: 0 | Q16: 0 | R16: 0 | S16: 0 | T16: 0 | U16: 0 | V16: 0 | W16: 0 | X16: 0 | Y16: 0 | Z16: 0 | AA16: 0 | AB16: 0 | AC16: 0 | AD16: 0 | AE16: 0 | AF16: 0 | AG16: 0 | AH16: 0 | AI16: 0 | AJ16: 0 | AK16: 0 | AL16: 0 | AM16: 0 | AN16: 0 | AO16: 0 | AP16: 0 | AQ16: 0 | AR16: 0 | AS16: 0 | AT16: 0 | AU16: 0 | AV16: 0 | AW16: 0 | AX16: 0 | AY16: 0 | AZ16: 0 | BA16: 0 | BB16: 0 | BC16: 0 | BD16: 0 | BE16: 0 | BF16: 0 | BG16: 0 | BH16: 0 | BI16: 0 | BJ16: 0 | BK16: 0 | BL16: 0 | BM16: 0 | BN16: 0 | BO16: 0 | BP16: 0 | BQ16: 0 | BR16: 0 | BS16: 0 | BT16: 0 | BU16: 0 | BV16: =$F$16*BV7 -> 0 | BW16: 0 | BX16: 0 | BY16: 0 | BZ16: 0 | CA16: 0 | CB16: 0 | CC16: 0 | CD16: 0 | CE16: 0 | CF16: 0 | CG16: 0 | CH16: 0 | CI16: 0 | CJ16: 0 | CK16: 0 | CL16: 0 | CM16: 0 | CN16: 0 | CO16: 0 | CP16: 0 | CQ16: 0 | CR16: 0 | CS16: 0 | CT16: 0 | CU16: 0 | CV16: 0 | CW16: 0 | CX16: 0 | CY16: 0 | CZ16: 0 | DA16: 0 | DB16: 0 | DC16: 0 | DD16: 0 | DE16: 0 | DF16: 0 | DG16: 0 | DH16: 0 | DI16: 0 | DJ16: 0 | DK16: 0 | DL16: 0 | DM16: 0 | DN16: 0 | DO16: 0 | DP16: 0 | DQ16: 0 | DR16: 0 | DS16: 0 | DT16: 0 | DU16: 0 | DV16: 0 | DW16: 0 | DX16: 0 | DY16: 0 | DZ16: 0 | EA16: 0 | EB16: 0 | EC16: 0 | ED16: 0 | EE16: 0 | EF16: 0 | EG16: 0 | EH16: =$F$16*EH7 -> 0 | EI16: 0 | EJ16: 0 | EK16: 0 | EL16: 0 | EM16: 0 | EN16: 0 | EO16: 0 | EP16: 0 | EQ16: 0 | ER16: 0 | ES16: 0 | ET16: 0 | EU16: 0 | EV16: 0 | EW16: 0 | EX16: 0 | EY16: 0 | EZ16: 0 | FA16: 0 | FB16: 0 | FC16: 0
D17: Degradation Index | E17: Index | I17: 1 | J17: =I17*(1-J16) -> 1 | K17: =J17*(1-K16) -> 1 | L17: 1 | M17: 1 | N17: 1 | O17: 1 | P17: 1 | Q17: 1 | R17: 1 | S17: 1 | T17: 1 | U17: 1 | V17: 1 | W17: 1 | X17: 1 | Y17: 1 | Z17: 1 | AA17: 1 | AB17: 1 | AC17: 1 | AD17: 1 | AE17: 1 | AF17: 1 | AG17: 1 | AH17: 1 | AI17: 1 | AJ17: 1 | AK17: 1 | AL17: 1 | AM17: 1 | AN17: 1 | AO17: 1 | AP17: 1 | AQ17: 1 | AR17: 1 | AS17: 1 | AT17: 1 | AU17: 1 | AV17: 1 | AW17: 1 | AX17: 1 | AY17: 1 | AZ17: 1 | BA17: 1 | BB17: 1 | BC17: 1 | BD17: 1 | BE17: 1 | BF17: 1 | BG17: 1 | BH17: 1 | BI17: 1 | BJ17: 1 | BK17: 1 | BL17: 1 | BM17: 1 | BN17: 1 | BO17: 1 | BP17: 1 | BQ17: 1 | BR17: 1 | BS17: 1 | BT17: 1 | BU17: 1 | BV17: 1 | BW17: =BV17*(1-BW16) -> 1 | BX17: 1 | BY17: 1 | BZ17: 1 | CA17: 1 | CB17: 1 | CC17: 1 | CD17: 1 | CE17: 1 | CF17: 1 | CG17: 1 | CH17: 1 | CI17: 1 | CJ17: 1 | CK17: 1 | CL17: 1 | CM17: 1 | CN17: 1 | CO17: 1 | CP17: 1 | CQ17: 1 | CR17: 1 | CS17: 1 | CT17: 1 | CU17: 1 | CV17: 1 | CW17: 1 | CX17: 1 | CY17: 1 | CZ17: 1 | DA17: 1 | DB17: 1 | DC17: 1 | DD17: 1 | DE17: 1 | DF17: 1 | DG17: 1 | DH17: 1 | DI17: 1 | DJ17: 1 | DK17: 1 | DL17: 1 | DM17: 1 | DN17: 1 | DO17: 1 | DP17: 1 | DQ17: 1 | DR17: 1 | DS17: 1 | DT17: 1 | DU17: 1 | DV17: 1 | DW17: 1 | DX17: 1 | DY17: 1 | DZ17: 1 | EA17: 1 | EB17: 1 | EC17: 1 | ED17: 1 | EE17: 1 | EF17: 1 | EG17: 1 | EH17: 1 | EI17: =EH17*(1-EI16) -> 1 | EJ17: 1 | EK17: 1 | EL17: 1 | EM17: 1 | EN17: 1 | EO17: 1 | EP17: 1 | EQ17: 1 | ER17: 1 | ES17: 1 | ET17: 1 | EU17: 1 | EV17: 1 | EW17: 1 | EX17: 1 | EY17: 1 | EZ17: 1 | FA17: 1 | FB17: 1 | FC17: 1
D18: Annual Generation | E18: kWh p.a. | J18: =J14 * J15*J17 -> 0 | K18: 0 | L18: 0 | M18: 0 | N18: 0 | O18: 0 | P18: 0 | Q18: 0 | R18: 0 | S18: 0 | T18: 0 | U18: 0 | V18: 170783000 | W18: 170783000 | X18: 170783000 | Y18: 170783000 | Z18: 170783000 | AA18: 170783000 | AB18: 170783000 | AC18: 170783000 | AD18: 170783000 | AE18: 170783000 | AF18: 170783000 | AG18: 170783000 | AH18: 170783000 | AI18: 170783000 | AJ18: 170783000 | AK18: 170783000 | AL18: 170783000 | AM18: 170783000 | AN18: 170783000 | AO18: 170783000 | AP18: 170783000 | AQ18: 170783000 | AR18: 170783000 | AS18: 170783000 | AT18: 170783000 | AU18: 170783000 | AV18: 170783000 | AW18: 170783000 | AX18: 170783000 | AY18: 170783000 | AZ18: 170783000 | BA18: 170783000 | BB18: 170783000 | BC18: 170783000 | BD18: 170783000 | BE18: 170783000 | BF18: 170783000 | BG18: 170783000 | BH18: 170783000 | BI18: 170783000 | BJ18: 170783000 | BK18: 170783000 | BL18: 170783000 | BM18: 170783000 | BN18: 170783000 | BO18: 170783000 | BP18: 170783000 | BQ18: 170783000 | BR18: 170783000 | BS18: 170783000 | BT18: 170783000 | BU18: 170783000 | BV18: =BV14 * BV15*BV17 -> 170783000 | BW18: 170783000 | BX18: 170783000 | BY18: 170783000 | BZ18: 170783000 | CA18: 170783000 | CB18: 170783000 | CC18: 170783000 | CD18: 170783000 | CE18: 170783000 | CF18: 170783000 | CG18: 170783000 | CH18: 170783000 | CI18: 170783000 | CJ18: 170783000 | CK18: 170783000 | CL18: 170783000 | CM18: 170783000 | CN18: 170783000 | CO18: 170783000 | CP18: 170783000 | CQ18: 170783000 | CR18: 170783000 | CS18: 170783000 | CT18: 170783000 | CU18: 170783000 | CV18: 170783000 | CW18: 170783000 | CX18: 170783000 | CY18: 170783000 | CZ18: 170783000 | DA18: 170783000 | DB18: 170783000 | DC18: 170783000 | DD18: 170783000 | DE18: 170783000 | DF18: 170783000 | DG18: 170783000 | DH18: 170783000 | DI18: 170783000 | DJ18: 170783000 | DK18: 170783000 | DL18: 170783000 | DM18: 170783000 | DN18: 170783000 | DO18: 170783000 | DP18: 170783000 | DQ18: 170783000 | DR18: 0 | DS18: 0 | DT18: 0 | DU18: 0 | DV18: 0 | DW18: 0 | DX18: 0 | DY18: 0 | DZ18: 0 | EA18: 0 | EB18: 0 | EC18: 0 | ED18: 0 | EE18: 0 | EF18: 0 | EG18: 0 | EH18: =EH14 * EH15*EH17 -> 0 | EI18: 0 | EJ18: 0 | EK18: 0 | EL18: 0 | EM18: 0 | EN18: 0 | EO18: 0 | EP18: 0 | EQ18: 0 | ER18: 0 | ES18: 0 | ET18: 0 | EU18: 0 | EV18: 0 | EW18: 0 | EX18: 0 | EY18: 0 | EZ18: 0 | FA18: 0 | FB18: 0 | FC18: 0
D19: Seasonality Factor | E19: % | J19: =LOOKUP( J$11, Production!25:25, Production!26:26) -> 0.1893440799 | K19: =LOOKUP( K$11, Production!25:25, Production!26:26) -> 0.1893440799 | L19: =LOOKUP( L$11, Production!25:25, Production!26:26) -> 0.1893440799 | M19: =LOOKUP( M$11, Production!25:25, Production!26:26) -> 0.1893440799 | N19: =LOOKUP( N$11, Production!25:25, Production!26:26) -> 0.313763299 | O19: =LOOKUP( O$11, Production!25:25, Production!26:26) -> 0.313763299 | P19: =LOOKUP( P$11, Production!25:25, Production!26:26) -> 0.313763299 | Q19: =LOOKUP( Q$11, Production!25:25, Production!26:26) -> 0.313763299 | R19: =LOOKUP( R$11, Production!25:25, Production!26:26) -> 0.318105798 | S19: =LOOKUP( S$11, Production!25:25, Production!26:26) -> 0.318105798 | T19: =LOOKUP( T$11, Production!25:25, Production!26:26) -> 0.318105798 | U19: =LOOKUP( U$11, Production!25:25, Production!26:26) -> 0.318105798 | V19: =LOOKUP( V$11, Production!25:25, Production!26:26) -> 0.1893440799 | W19: =LOOKUP( W$11, Production!25:25, Production!26:26) -> 0.1893440799 | X19: =LOOKUP( X$11, Production!25:25, Production!26:26) -> 0.313763299 | Y19: =LOOKUP( Y$11, Production!25:25, Production!26:26) -> 0.318105798 | Z19: =LOOKUP( Z$11, Production!25:25, Production!26:26) -> 0.1893440799 | AA19: =LOOKUP( AA$11, Production!25:25, Production!26:26) -> 0.1893440799 | AB19: =LOOKUP( AB$11, Production!25:25, Production!26:26) -> 0.313763299 | AC19: =LOOKUP( AC$11, Production!25:25, Production!26:26) -> 0.318105798 | AD19: =LOOKUP( AD$11, Production!25:25, Production!26:26) -> 0.1893440799 | AE19: =LOOKUP( AE$11, Production!25:25, Production!26:26) -> 0.1893440799 | AF19: =LOOKUP( AF$11, Production!25:25, Production!26:26) -> 0.313763299 | AG19: =LOOKUP( AG$11, Production!25:25, Production!26:26) -> 0.318105798 | AH19: =LOOKUP( AH$11, Production!25:25, Production!26:26) -> 0.1893440799 | AI19: =LOOKUP( AI$11, Production!25:25, Production!26:26) -> 0.1893440799 | AJ19: =LOOKUP( AJ$11, Production!25:25, Production!26:26) -> 0.313763299 | AK19: =LOOKUP( AK$11, Production!25:25, Production!26:26) -> 0.318105798 | AL19: =LOOKUP( AL$11, Production!25:25, Production!26:26) -> 0.1893440799 | AM19: =LOOKUP( AM$11, Production!25:25, Production!26:26) -> 0.1893440799 | AN19: =LOOKUP( AN$11, Production!25:25, Production!26:26) -> 0.313763299 | AO19: =LOOKUP( AO$11, Production!25:25, Production!26:26) -> 0.318105798 | AP19: =LOOKUP( AP$11, Production!25:25, Production!26:26) -> 0.1893440799 | AQ19: =LOOKUP( AQ$11, Production!25:25, Production!26:26) -> 0.1893440799 | AR19: =LOOKUP( AR$11, Production!25:25, Production!26:26) -> 0.313763299 | AS19: =LOOKUP( AS$11, Production!25:25, Production!26:26) -> 0.318105798 | AT19: =LOOKUP( AT$11, Production!25:25, Production!26:26) -> 0.1893440799 | AU19: =LOOKUP( AU$11, Production!25:25, Production!26:26) -> 0.1893440799 | AV19: =LOOKUP( AV$11, Production!25:25, Production!26:26) -> 0.313763299 | AW19: =LOOKUP( AW$11, Production!25:25, Production!26:26) -> 0.318105798 | AX19: =LOOKUP( AX$11, Production!25:25, Production!26:26) -> 0.1893440799 | AY19: =LOOKUP( AY$11, Production!25:25, Production!26:26) -> 0.1893440799 | AZ19: =LOOKUP( AZ$11, Production!25:25, Production!26:26) -> 0.313763299 | BA19: =LOOKUP( BA$11, Production!25:25, Production!26:26) -> 0.318105798 | BB19: =LOOKUP( BB$11, Production!25:25, Production!26:26) -> 0.1893440799 | BC19: =LOOKUP( BC$11, Production!25:25, Production!26:26) -> 0.1893440799 | BD19: =LOOKUP( BD$11, Production!25:25, Production!26:26) -> 0.313763299 | BE19: =LOOKUP( BE$11, Production!25:25, Production!26:26) -> 0.318105798 | BF19: =LOOKUP( BF$11, Production!25:25, Production!26:26) -> 0.1893440799 | BG19: =LOOKUP( BG$11, Production!25:25, Production!26:26) -> 0.1893440799 | BH19: =LOOKUP( BH$11, Production!25:25, Production!26:26) -> 0.313763299 | BI19: =LOOKUP( BI$11, Production!25:25, Production!26:26) -> 0.318105798 | BJ19: =LOOKUP( BJ$11, Production!25:25, Production!26:26) -> 0.1893440799 | BK19: =LOOKUP( BK$11, Production!25:25, Production!26:26) -> 0.1893440799 | BL19: =LOOKUP( BL$11, Production!25:25, Production!26:26) -> 0.313763299 | BM19: =LOOKUP( BM$11, Production!25:25, Production!26:26) -> 0.318105798 | BN19: =LOOKUP( BN$11, Production!25:25, Production!26:26) -> 0.1893440799 | BO19: =LOOKUP( BO$11, Production!25:25, Production!26:26) -> 0.1893440799 | BP19: =LOOKUP( BP$11, Production!25:25, Production!26:26) -> 0.313763299 | BQ19: =LOOKUP( BQ$11, Production!25:25, Production!26:26) -> 0.318105798 | BR19: =LOOKUP( BR$11, Production!25:25, Production!26:26) -> 0.1893440799 | BS19: =LOOKUP( BS$11, Production!25:25, Production!26:26) -> 0.1893440799 | BT19: =LOOKUP( BT$11, Production!25:25, Production!26:26) -> 0.313763299 | BU19: =LOOKUP( BU$11, Production!25:25, Production!26:26) -> 0.318105798 | BV19: =LOOKUP( BV$11, Production!25:25, Production!26:26) -> 0.1893440799 | BW19: =LOOKUP( BW$11, Production!25:25, Production!26:26) -> 0.1893440799 | BX19: =LOOKUP( BX$11, Production!25:25, Production!26:26) -> 0.313763299 | BY19: =LOOKUP( BY$11, Production!25:25, Production!26:26) -> 0.318105798 | BZ19: =LOOKUP( BZ$11, Production!25:25, Production!26:26) -> 0.1893440799 | CA19: =LOOKUP( CA$11, Production!25:25, Production!26:26) -> 0.1893440799 | CB19: =LOOKUP( CB$11, Production!25:25, Production!26:26) -> 0.313763299 | CC19: =LOOKUP( CC$11, Production!25:25, Production!26:26) -> 0.318105798 | CD19: =LOOKUP( CD$11, Production!25:25, Production!26:26) -> 0.1893440799 | CE19: =LOOKUP( CE$11, Production!25:25, Production!26:26) -> 0.1893440799 | CF19: =LOOKUP( CF$11, Production!25:25, Production!26:26) -> 0.313763299 | CG19: =LOOKUP( CG$11, Production!25:25, Production!26:26) -> 0.318105798 | CH19: =LOOKUP( CH$11, Production!25:25, Production!26:26) -> 0.1893440799 | CI19: =LOOKUP( CI$11, Production!25:25, Production!26:26) -> 0.1893440799 | CJ19: =LOOKUP( CJ$11, Production!25:25, Production!26:26) -> 0.313763299 | CK19: =LOOKUP( CK$11, Production!25:25, Production!26:26) -> 0.318105798 | CL19: =LOOKUP( CL$11, Production!25:25, Production!26:26) -> 0.1893440799 | CM19: =LOOKUP( CM$11, Production!25:25, Production!26:26) -> 0.1893440799 | CN19: =LOOKUP( CN$11, Production!25:25, Production!26:26) -> 0.313763299 | CO19: =LOOKUP( CO$11, Production!25:25, Production!26:26) -> 0.318105798 | CP19: =LOOKUP( CP$11, Production!25:25, Production!26:26) -> 0.1893440799 | CQ19: =LOOKUP( CQ$11, Production!25:25, Production!26:26) -> 0.1893440799 | CR19: =LOOKUP( CR$11, Production!25:25, Production!26:26) -> 0.313763299 | CS19: =LOOKUP( CS$11, Production!25:25, Production!26:26) -> 0.318105798 | CT19: =LOOKUP( CT$11, Production!25:25, Production!26:26) -> 0.1893440799 | CU19: =LOOKUP( CU$11, Production!25:25, Production!26:26) -> 0.1893440799 | CV19: =LOOKUP( CV$11, Production!25:25, Production!26:26) -> 0.313763299 | CW19: =LOOKUP( CW$11, Production!25:25, Production!26:26) -> 0.318105798 | CX19: =LOOKUP( CX$11, Production!25:25, Production!26:26) -> 0.1893440799 | CY19: =LOOKUP( CY$11, Production!25:25, Production!26:26) -> 0.1893440799 | CZ19: =LOOKUP( CZ$11, Production!25:25, Production!26:26) -> 0.313763299 | DA19: =LOOKUP( DA$11, Production!25:25, Production!26:26) -> 0.318105798 | DB19: =LOOKUP( DB$11, Production!25:25, Production!26:26) -> 0.1893440799 | DC19: =LOOKUP( DC$11, Production!25:25, Production!26:26) -> 0.1893440799 | DD19: =LOOKUP( DD$11, Production!25:25, Production!26:26) -> 0.313763299 | DE19: =LOOKUP( DE$11, Production!25:25, Production!26:26) -> 0.318105798 | DF19: =LOOKUP( DF$11, Production!25:25, Production!26:26) -> 0.1893440799 | DG19: =LOOKUP( DG$11, Production!25:25, Production!26:26) -> 0.1893440799 | DH19: =LOOKUP( DH$11, Production!25:25, Production!26:26) -> 0.313763299 | DI19: =LOOKUP( DI$11, Production!25:25, Production!26:26) -> 0.318105798 | DJ19: =LOOKUP( DJ$11, Production!25:25, Production!26:26) -> 0.1893440799 | DK19: =LOOKUP( DK$11, Production!25:25, Production!26:26) -> 0.1893440799 | DL19: =LOOKUP( DL$11, Production!25:25, Production!26:26) -> 0.313763299 | DM19: =LOOKUP( DM$11, Production!25:25, Production!26:26) -> 0.318105798 | DN19: =LOOKUP( DN$11, Production!25:25, Production!26:26) -> 0.1893440799 | DO19: =LOOKUP( DO$11, Production!25:25, Production!26:26) -> 0.1893440799 | DP19: =LOOKUP( DP$11, Production!25:25, Production!26:26) -> 0.313763299 | DQ19: =LOOKUP( DQ$11, Production!25:25, Production!26:26) -> 0.318105798 | DR19: =LOOKUP( DR$11, Production!25:25, Production!26:26) -> 0.1893440799 | DS19: =LOOKUP( DS$11, Production!25:25, Production!26:26) -> 0.1893440799 | DT19: =LOOKUP( DT$11, Production!25:25, Production!26:26) -> 0.313763299 | DU19: =LOOKUP( DU$11, Production!25:25, Production!26:26) -> 0.318105798 | DV19: =LOOKUP( DV$11, Production!25:25, Production!26:26) -> 0.1893440799 | DW19: =LOOKUP( DW$11, Production!25:25, Production!26:26) -> 0.1893440799 | DX19: =LOOKUP( DX$11, Production!25:25, Production!26:26) -> 0.313763299 | DY19: =LOOKUP( DY$11, Production!25:25, Production!26:26) -> 0.318105798 | DZ19: =LOOKUP( DZ$11, Production!25:25, Production!26:26) -> 0.1893440799 | EA19: =LOOKUP( EA$11, Production!25:25, Production!26:26) -> 0.1893440799 | EB19: =LOOKUP( EB$11, Production!25:25, Production!26:26) -> 0.313763299 | EC19: =LOOKUP( EC$11, Production!25:25, Production!26:26) -> 0.318105798 | ED19: =LOOKUP( ED$11, Production!25:25, Production!26:26) -> 0.1893440799 | EE19: =LOOKUP( EE$11, Production!25:25, Production!26:26) -> 0.1893440799 | EF19: =LOOKUP( EF$11, Production!25:25, Production!26:26) -> 0.313763299 | EG19: =LOOKUP( EG$11, Production!25:25, Production!26:26) -> 0.318105798 | EH19: =LOOKUP( EH$11, Production!25:25, Production!26:26) -> 0.1893440799 | EI19: =LOOKUP( EI$11, Production!25:25, Production!26:26) -> 0.1893440799 | EJ19: =LOOKUP( EJ$11, Production!25:25, Production!26:26) -> 0.313763299 | EK19: =LOOKUP( EK$11, Production!25:25, Production!26:26) -> 0.318105798 | EL19: =LOOKUP( EL$11, Production!25:25, Production!26:26) -> 0.1893440799 | EM19: =LOOKUP( EM$11, Production!25:25, Production!26:26) -> 0.1893440799 | EN19: =LOOKUP( EN$11, Production!25:25, Production!26:26) -> 0.313763299 | EO19: =LOOKUP( EO$11, Production!25:25, Production!26:26) -> 0.318105798 | EP19: =LOOKUP( EP$11, Production!25:25, Production!26:26) -> 0.1893440799 | EQ19: =LOOKUP( EQ$11, Production!25:25, Production!26:26) -> 0.1893440799 | ER19: =LOOKUP( ER$11, Production!25:25, Production!26:26) -> 0.313763299 | ES19: =LOOKUP( ES$11, Production!25:25, Production!26:26) -> 0.318105798 | ET19: =LOOKUP( ET$11, Production!25:25, Production!26:26) -> 0.1893440799 | EU19: =LOOKUP( EU$11, Production!25:25, Production!26:26) -> 0.1893440799 | EV19: =LOOKUP( EV$11, Production!25:25, Production!26:26) -> 0.313763299 | EW19: =LOOKUP( EW$11, Production!25:25, Production!26:26) -> 0.318105798 | EX19: =LOOKUP( EX$11, Production!25:25, Production!26:26) -> 0.1893440799 | EY19: =LOOKUP( EY$11, Production!25:25, Production!26:26) -> 0.1893440799 | EZ19: =LOOKUP( EZ$11, Production!25:25, Production!26:26) -> 0.313763299 | FA19: =LOOKUP( FA$11, Production!25:25, Production!26:26) -> 0.318105798 | FB19: =LOOKUP( FB$11, Production!25:25, Production!26:26) -> 0.1893440799 | FC19: =LOOKUP( FC$11, Production!25:25, Production!26:26) -> 0.1893440799
D20: Seasonal Generation | E20: kWh p.p. | J20: =J18 * J19 -> 0 | K20: 0 | L20: 0 | M20: 0 | N20: 0 | O20: 0 | P20: 0 | Q20: 0 | R20: 0 | S20: 0 | T20: 0 | U20: 0 | V20: 32336750 | W20: 32336750 | X20: 53585437.5 | Y20: 54327062.5 | Z20: 32336750 | AA20: 32336750 | AB20: 53585437.5 | AC20: 54327062.5 | AD20: 32336750 | AE20: 32336750 | AF20: 53585437.5 | AG20: 54327062.5 | AH20: 32336750 | AI20: 32336750 | AJ20: 53585437.5 | AK20: 54327062.5 | AL20: 32336750 | AM20: 32336750 | AN20: 53585437.5 | AO20: 54327062.5 | AP20: 32336750 | AQ20: 32336750 | AR20: 53585437.5 | AS20: 54327062.5 | AT20: 32336750 | AU20: 32336750 | AV20: 53585437.5 | AW20: 54327062.5 | AX20: 32336750 | AY20: 32336750 | AZ20: 53585437.5 | BA20: 54327062.5 | BB20: 32336750 | BC20: 32336750 | BD20: 53585437.5 | BE20: 54327062.5 | BF20: 32336750 | BG20: 32336750 | BH20: 53585437.5 | BI20: 54327062.5 | BJ20: 32336750 | BK20: 32336750 | BL20: 53585437.5 | BM20: 54327062.5 | BN20: 32336750 | BO20: 32336750 | BP20: 53585437.5 | BQ20: 54327062.5 | BR20: 32336750 | BS20: 32336750 | BT20: 53585437.5 | BU20: 54327062.5 | BV20: =BV18 * BV19 -> 32336750 | BW20: 32336750 | BX20: 53585437.5 | BY20: 54327062.5 | BZ20: 32336750 | CA20: 32336750 | CB20: 53585437.5 | CC20: 54327062.5 | CD20: 32336750 | CE20: 32336750 | CF20: 53585437.5 | CG20: 54327062.5 | CH20: 32336750 | CI20: 32336750 | CJ20: 53585437.5 | CK20: 54327062.5 | CL20: 32336750 | CM20: 32336750 | CN20: 53585437.5 | CO20: 54327062.5 | CP20: 32336750 | CQ20: 32336750 | CR20: 53585437.5 | CS20: 54327062.5 | CT20: 32336750 | CU20: 32336750 | CV20: 53585437.5 | CW20: 54327062.5 | CX20: 32336750 | CY20: 32336750 | CZ20: 53585437.5 | DA20: 54327062.5 | DB20: 32336750 | DC20: 32336750 | DD20: 53585437.5 | DE20: 54327062.5 | DF20: 32336750 | DG20: 32336750 | DH20: 53585437.5 | DI20: 54327062.5 | DJ20: 32336750 | DK20: 32336750 | DL20: 53585437.5 | DM20: 54327062.5 | DN20: 32336750 | DO20: 32336750 | DP20: 53585437.5 | DQ20: 54327062.5 | DR20: 0 | DS20: 0 | DT20: 0 | DU20: 0 | DV20: 0 | DW20: 0 | DX20: 0 | DY20: 0 | DZ20: 0 | EA20: 0 | EB20: 0 | EC20: 0 | ED20: 0 | EE20: 0 | EF20: 0 | EG20: 0 | EH20: =EH18 * EH19 -> 0 | EI20: 0 | EJ20: 0 | EK20: 0 | EL20: 0 | EM20: 0 | EN20: 0 | EO20: 0 | EP20: 0 | EQ20: 0 | ER20: 0 | ES20: 0 | ET20: 0 | EU20: 0 | EV20: 0 | EW20: 0 | EX20: 0 | EY20: 0 | EZ20: 0 | FA20: 0 | FB20: 0 | FC20: 0
C22: Capital Expenditures
D23: Total Project Cost | E23: USD | F23: =Input!E20 -> 800 | G23: =F14 * F23 -> 80000000 | J23: =$G$23 * J$3 -> 80000000 | K23: 80000000 | L23: 80000000 | M23: 80000000 | N23: 80000000 | O23: 80000000 | P23: 80000000 | Q23: 80000000 | R23: 80000000 | S23: 80000000 | T23: 80000000 | U23: 80000000 | V23: 0 | W23: 0 | X23: 0 | Y23: 0 | Z23: 0 | AA23: 0 | AB23: 0 | AC23: 0 | AD23: 0 | AE23: 0 | AF23: 0 | AG23: 0 | AH23: 0 | AI23: 0 | AJ23: 0 | AK23: 0 | AL23: 0 | AM23: 0 | AN23: 0 | AO23: 0 | AP23: 0 | AQ23: 0 | AR23: 0 | AS23: 0 | AT23: 0 | AU23: 0 | AV23: 0 | AW23: 0 | AX23: 0 | AY23: 0 | AZ23: 0 | BA23: 0 | BB23: 0 | BC23: 0 | BD23: 0 | BE23: 0 | BF23: 0 | BG23: 0 | BH23: 0 | BI23: 0 | BJ23: 0 | BK23: 0 | BL23: 0 | BM23: 0 | BN23: 0 | BO23: 0 | BP23: 0 | BQ23: 0 | BR23: 0 | BS23: 0 | BT23: 0 | BU23: 0 | BV23: =$G$23 * BV$3 -> 0 | BW23: 0 | BX23: 0 | BY23: 0 | BZ23: 0 | CA23: 0 | CB23: 0 | CC23: 0 | CD23: 0 | CE23: 0 | CF23: 0 | CG23: 0 | CH23: 0 | CI23: 0 | CJ23: 0 | CK23: 0 | CL23: 0 | CM23: 0 | CN23: 0 | CO23: 0 | CP23: 0 | CQ23: 0 | CR23: 0 | CS23: 0 | CT23: 0 | CU23: 0 | CV23: 0 | CW23: 0 | CX23: 0 | CY23: 0 | CZ23: 0 | DA23: 0 | DB23: 0 | DC23: 0 | DD23: 0 | DE23: 0 | DF23: 0 | DG23: 0 | DH23: 0 | DI23: 0 | DJ23: 0 | DK23: 0 | DL23: 0 | DM23: 0 | DN23: 0 | DO23: 0 | DP23: 0 | DQ23: 0 | DR23: 0 | DS23: 0 | DT23: 0 | DU23: 0 | DV23: 0 | DW23: 0 | DX23: 0 | DY23: 0 | DZ23: 0 | EA23: 0 | EB23: 0 | EC23: 0 | ED23: 0 | EE23: 0 | EF23: 0 | EG23: 0 | EH23: =$G$23 * EH$3 -> 0 | EI23: 0 | EJ23: 0 | EK23: 0 | EL23: 0 | EM23: 0 | EN23: 0 | EO23: 0 | EP23: 0 | EQ23: 0 | ER23: 0 | ES23: 0 | ET23: 0 | EU23: 0 | EV23: 0 | EW23: 0 | EX23: 0 | EY23: 0 | EZ23: 0 | FA23: 0 | FB23: 0 | FC23: 0
D24: S-Curve | E24: % | F24: =1 / $F$3 -> 0.08333333333 | J24: =$F24 * J3 -> 0.08333333333 | K24: 0.08333333333 | L24: 0.08333333333 | M24: 0.08333333333 | N24: 0.08333333333 | O24: 0.08333333333 | P24: 0.08333333333 | Q24: 0.08333333333 | R24: 0.08333333333 | S24: 0.08333333333 | T24: 0.08333333333 | U24: 0.08333333333 | V24: 0 | W24: 0 | X24: 0 | Y24: 0 | Z24: 0 | AA24: 0 | AB24: 0 | AC24: 0 | AD24: 0 | AE24: 0 | AF24: 0 | AG24: 0 | AH24: 0 | AI24: 0 | AJ24: 0 | AK24: 0 | AL24: 0 | AM24: 0 | AN24: 0 | AO24: 0 | AP24: 0 | AQ24: 0 | AR24: 0 | AS24: 0 | AT24: 0 | AU24: 0 | AV24: 0 | AW24: 0 | AX24: 0 | AY24: 0 | AZ24: 0 | BA24: 0 | BB24: 0 | BC24: 0 | BD24: 0 | BE24: 0 | BF24: 0 | BG24: 0 | BH24: 0 | BI24: 0 | BJ24: 0 | BK24: 0 | BL24: 0 | BM24: 0 | BN24: 0 | BO24: 0 | BP24: 0 | BQ24: 0 | BR24: 0 | BS24: 0 | BT24: 0 | BU24: 0 | BV24: =$F24 * BV3 -> 0 | BW24: 0 | BX24: 0 | BY24: 0 | BZ24: 0 | CA24: 0 | CB24: 0 | CC24: 0 | CD24: 0 | CE24: 0 | CF24: 0 | CG24: 0 | CH24: 0 | CI24: 0 | CJ24: 0 | CK24: 0 | CL24: 0 | CM24: 0 | CN24: 0 | CO24: 0 | CP24: 0 | CQ24: 0 | CR24: 0 | CS24: 0 | CT24: 0 | CU24: 0 | CV24: 0 | CW24: 0 | CX24: 0 | CY24: 0 | CZ24: 0 | DA24: 0 | DB24: 0 | DC24: 0 | DD24: 0 | DE24: 0 | DF24: 0 | DG24: 0 | DH24: 0 | DI24: 0 | DJ24: 0 | DK24: 0 | DL24: 0 | DM24: 0 | DN24: 0 | DO24: 0 | DP24: 0 | DQ24: 0 | DR24: 0 | DS24: 0 | DT24: 0 | DU24: 0 | DV24: 0 | DW24: 0 | DX24: 0 | DY24: 0 | DZ24: 0 | EA24: 0 | EB24: 0 | EC24: 0 | ED24: 0 | EE24: 0 | EF24: 0 | EG24: 0 | EH24: =$F24 * EH3 -> 0 | EI24: 0 | EJ24: 0 | EK24: 0 | EL24: 0 | EM24: 0 | EN24: 0 | EO24: 0 | EP24: 0 | EQ24: 0 | ER24: 0 | ES24: 0 | ET24: 0 | EU24: 0 | EV24: 0 | EW24: 0 | EX24: 0 | EY24: 0 | EZ24: 0 | FA24: 0 | FB24: 0 | FC24: 0
D25: Capital Expenditues | E25: USD | H25: =SUM(J25:FC25) -> 80000000 | J25: =J23 * J24 -> 6666666.667 | K25: 6666666.667 | L25: 6666666.667 | M25: 6666666.667 | N25: 6666666.667 | O25: 6666666.667 | P25: 6666666.667 | Q25: 6666666.667 | R25: 6666666.667 | S25: 6666666.667 | T25: 6666666.667 | U25: 6666666.667 | V25: 0 | W25: 0 | X25: 0 | Y25: 0 | Z25: 0 | AA25: 0 | AB25: 0 | AC25: 0 | AD25: 0 | AE25: 0 | AF25: 0 | AG25: 0 | AH25: 0 | AI25: 0 | AJ25: 0 | AK25: 0 | AL25: 0 | AM25: 0 | AN25: 0 | AO25: 0 | AP25: 0 | AQ25: 0 | AR25: 0 | AS25: 0 | AT25: 0 | AU25: 0 | AV25: 0 | AW25: 0 | AX25: 0 | AY25: 0 | AZ25: 0 | BA25: 0 | BB25: 0 | BC25: 0 | BD25: 0 | BE25: 0 | BF25: 0 | BG25: 0 | BH25: 0 | BI25: 0 | BJ25: 0 | BK25: 0 | BL25: 0 | BM25: 0 | BN25: 0 | BO25: 0 | BP25: 0 | BQ25: 0 | BR25: 0 | BS25: 0 | BT25: 0 | BU25: 0 | BV25: =BV23 * BV24 -> 0 | BW25: 0 | BX25: 0 | BY25: 0 | BZ25: 0 | CA25: 0 | CB25: 0 | CC25: 0 | CD25: 0 | CE25: 0 | CF25: 0 | CG25: 0 | CH25: 0 | CI25: 0 | CJ25: 0 | CK25: 0 | CL25: 0 | CM25: 0 | CN25: 0 | CO25: 0 | CP25: 0 | CQ25: 0 | CR25: 0 | CS25: 0 | CT25: 0 | CU25: 0 | CV25: 0 | CW25: 0 | CX25: 0 | CY25: 0 | CZ25: 0 | DA25: 0 | DB25: 0 | DC25: 0 | DD25: 0 | DE25: 0 | DF25: 0 | DG25: 0 | DH25: 0 | DI25: 0 | DJ25: 0 | DK25: 0 | DL25: 0 | DM25: 0 | DN25: 0 | DO25: 0 | DP25: 0 | DQ25: 0 | DR25: 0 | DS25: 0 | DT25: 0 | DU25: 0 | DV25: 0 | DW25: 0 | DX25: 0 | DY25: 0 | DZ25: 0 | EA25: 0 | EB25: 0 | EC25: 0 | ED25: 0 | EE25: 0 | EF25: 0 | EG25: 0 | EH25: =EH23 * EH24 -> 0 | EI25: 0 | EJ25: 0 | EK25: 0 | EL25: 0 | EM25: 0 | EN25: 0 | EO25: 0 | EP25: 0 | EQ25: 0 | ER25: 0 | ES25: 0 | ET25: 0 | EU25: 0 | EV25: 0 | EW25: 0 | EX25: 0 | EY25: 0 | EZ25: 0 | FA25: 0 | FB25: 0 | FC25: 0
C27: Revenues
D28: Base PPA Price | E28: USD/kWh | F28: =Input!E21 -> 0.045 | J28: =$F$28 -> 0.045 | K28: 0.045 | L28: 0.045 | M28: 0.045 | N28: 0.045 | O28: 0.045 | P28: 0.045 | Q28: 0.045 | R28: 0.045 | S28: 0.045 | T28: 0.045 | U28: 0.045 | V28: 0.045 | W28: 0.045 | X28: 0.045 | Y28: 0.045 | Z28: 0.045 | AA28: 0.045 | AB28: 0.045 | AC28: 0.045 | AD28: 0.045 | AE28: 0.045 | AF28: 0.045 | AG28: 0.045 | AH28: 0.045 | AI28: 0.045 | AJ28: 0.045 | AK28: 0.045 | AL28: 0.045 | AM28: 0.045 | AN28: 0.045 | AO28: 0.045 | AP28: 0.045 | AQ28: 0.045 | AR28: 0.045 | AS28: 0.045 | AT28: 0.045 | AU28: 0.045 | AV28: 0.045 | AW28: 0.045 | AX28: 0.045 | AY28: 0.045 | AZ28: 0.045 | BA28: 0.045 | BB28: 0.045 | BC28: 0.045 | BD28: 0.045 | BE28: 0.045 | BF28: 0.045 | BG28: 0.045 | BH28: 0.045 | BI28: 0.045 | BJ28: 0.045 | BK28: 0.045 | BL28: 0.045 | BM28: 0.045 | BN28: 0.045 | BO28: 0.045 | BP28: 0.045 | BQ28: 0.045 | BR28: 0.045 | BS28: 0.045 | BT28: 0.045 | BU28: 0.045 | BV28: =$F$28 -> 0.045 | BW28: 0.045 | BX28: 0.045 | BY28: 0.045 | BZ28: 0.045 | CA28: 0.045 | CB28: 0.045 | CC28: 0.045 | CD28: 0.045 | CE28: 0.045 | CF28: 0.045 | CG28: 0.045 | CH28: 0.045 | CI28: 0.045 | CJ28: 0.045 | CK28: 0.045 | CL28: 0.045 | CM28: 0.045 | CN28: 0.045 | CO28: 0.045 | CP28: 0.045 | CQ28: 0.045 | CR28: 0.045 | CS28: 0.045 | CT28: 0.045 | CU28: 0.045 | CV28: 0.045 | CW28: 0.045 | CX28: 0.045 | CY28: 0.045 | CZ28: 0.045 | DA28: 0.045 | DB28: 0.045 | DC28: 0.045 | DD28: 0.045 | DE28: 0.045 | DF28: 0.045 | DG28: 0.045 | DH28: 0.045 | DI28: 0.045 | DJ28: 0.045 | DK28: 0.045 | DL28: 0.045 | DM28: 0.045 | DN28: 0.045 | DO28: 0.045 | DP28: 0.045 | DQ28: 0.045 | DR28: 0.045 | DS28: 0.045 | DT28: 0.045 | DU28: 0.045 | DV28: 0.045 | DW28: 0.045 | DX28: 0.045 | DY28: 0.045 | DZ28: 0.045 | EA28: 0.045 | EB28: 0.045 | EC28: 0.045 | ED28: 0.045 | EE28: 0.045 | EF28: 0.045 | EG28: 0.045 | EH28: =$F$28 -> 0.045 | EI28: 0.045 | EJ28: 0.045 | EK28: 0.045 | EL28: 0.045 | EM28: 0.045 | EN28: 0.045 | EO28: 0.045 | EP28: 0.045 | EQ28: 0.045 | ER28: 0.045 | ES28: 0.045 | ET28: 0.045 | EU28: 0.045 | EV28: 0.045 | EW28: 0.045 | EX28: 0.045 | EY28: 0.045 | EZ28: 0.045 | FA28: 0.045 | FB28: 0.045 | FC28: 0.045
D29: Annual Inflation Rate | E29: % p.a. | F29: =Input!E22 -> 0.025 | J29: =$F$29 -> 0.025 | K29: =$F$29 -> 0.025 | L29: 0.025 | M29: 0.025 | N29: 0.025 | O29: 0.025 | P29: 0.025 | Q29: 0.025 | R29: 0.025 | S29: 0.025 | T29: 0.025 | U29: 0.025 | V29: 0.025 | W29: 0.025 | X29: 0.025 | Y29: 0.025 | Z29: 0.025 | AA29: 0.025 | AB29: 0.025 | AC29: 0.025 | AD29: 0.025 | AE29: 0.025 | AF29: 0.025 | AG29: 0.025 | AH29: 0.025 | AI29: 0.025 | AJ29: 0.025 | AK29: 0.025 | AL29: 0.025 | AM29: 0.025 | AN29: 0.025 | AO29: 0.025 | AP29: 0.025 | AQ29: 0.025 | AR29: 0.025 | AS29: 0.025 | AT29: 0.025 | AU29: 0.025 | AV29: 0.025 | AW29: 0.025 | AX29: 0.025 | AY29: 0.025 | AZ29: 0.025 | BA29: 0.025 | BB29: 0.025 | BC29: 0.025 | BD29: 0.025 | BE29: 0.025 | BF29: 0.025 | BG29: 0.025 | BH29: 0.025 | BI29: 0.025 | BJ29: 0.025 | BK29: 0.025 | BL29: 0.025 | BM29: 0.025 | BN29: 0.025 | BO29: 0.025 | BP29: 0.025 | BQ29: 0.025 | BR29: 0.025 | BS29: 0.025 | BT29: 0.025 | BU29: 0.025 | BV29: 0.025 | BW29: =$F$29 -> 0.025 | BX29: 0.025 | BY29: 0.025 | BZ29: 0.025 | CA29: 0.025 | CB29: 0.025 | CC29: 0.025 | CD29: 0.025 | CE29: 0.025 | CF29: 0.025 | CG29: 0.025 | CH29: 0.025 | CI29: 0.025 | CJ29: 0.025 | CK29: 0.025 | CL29: 0.025 | CM29: 0.025 | CN29: 0.025 | CO29: 0.025 | CP29: 0.025 | CQ29: 0.025 | CR29: 0.025 | CS29: 0.025 | CT29: 0.025 | CU29: 0.025 | CV29: 0.025 | CW29: 0.025 | CX29: 0.025 | CY29: 0.025 | CZ29: 0.025 | DA29: 0.025 | DB29: 0.025 | DC29: 0.025 | DD29: 0.025 | DE29: 0.025 | DF29: 0.025 | DG29: 0.025 | DH29: 0.025 | DI29: 0.025 | DJ29: 0.025 | DK29: 0.025 | DL29: 0.025 | DM29: 0.025 | DN29: 0.025 | DO29: 0.025 | DP29: 0.025 | DQ29: 0.025 | DR29: 0.025 | DS29: 0.025 | DT29: 0.025 | DU29: 0.025 | DV29: 0.025 | DW29: 0.025 | DX29: 0.025 | DY29: 0.025 | DZ29: 0.025 | EA29: 0.025 | EB29: 0.025 | EC29: 0.025 | ED29: 0.025 | EE29: 0.025 | EF29: 0.025 | EG29: 0.025 | EH29: 0.025 | EI29: =$F$29 -> 0.025 | EJ29: 0.025 | EK29: 0.025 | EL29: 0.025 | EM29: 0.025 | EN29: 0.025 | EO29: 0.025 | EP29: 0.025 | EQ29: 0.025 | ER29: 0.025 | ES29: 0.025 | ET29: 0.025 | EU29: 0.025 | EV29: 0.025 | EW29: 0.025 | EX29: 0.025 | EY29: 0.025 | EZ29: 0.025 | FA29: 0.025 | FB29: 0.025 | FC29: 0.025
D30: Periodic Inflation Rate | E30: % p.p. | J30: =( 1 + J29) ^ ( J4 / 12 ) - 1 -> 0.00205983627 | K30: 0.00205983627 | L30: 0.00205983627 | M30: 0.00205983627 | N30: 0.00205983627 | O30: 0.00205983627 | P30: 0.00205983627 | Q30: 0.00205983627 | R30: 0.00205983627 | S30: 0.00205983627 | T30: 0.00205983627 | U30: 0.00205983627 | V30: 0.006192246326 | W30: 0.006192246326 | X30: 0.006192246326 | Y30: 0.006192246326 | Z30: 0.006192246326 | AA30: 0.006192246326 | AB30: 0.006192246326 | AC30: 0.006192246326 | AD30: 0.006192246326 | AE30: 0.006192246326 | AF30: 0.006192246326 | AG30: 0.006192246326 | AH30: 0.006192246326 | AI30: 0.006192246326 | AJ30: 0.006192246326 | AK30: 0.006192246326 | AL30: 0.006192246326 | AM30: 0.006192246326 | AN30: 0.006192246326 | AO30: 0.006192246326 | AP30: 0.006192246326 | AQ30: 0.006192246326 | AR30: 0.006192246326 | AS30: 0.006192246326 | AT30: 0.006192246326 | AU30: 0.006192246326 | AV30: 0.006192246326 | AW30: 0.006192246326 | AX30: 0.006192246326 | AY30: 0.006192246326 | AZ30: 0.006192246326 | BA30: 0.006192246326 | BB30: 0.006192246326 | BC30: 0.006192246326 | BD30: 0.006192246326 | BE30: 0.006192246326 | BF30: 0.006192246326 | BG30: 0.006192246326 | BH30: 0.006192246326 | BI30: 0.006192246326 | BJ30: 0.006192246326 | BK30: 0.006192246326 | BL30: 0.006192246326 | BM30: 0.006192246326 | BN30: 0.006192246326 | BO30: 0.006192246326 | BP30: 0.006192246326 | BQ30: 0.006192246326 | BR30: 0.006192246326 | BS30: 0.006192246326 | BT30: 0.006192246326 | BU30: 0.006192246326 | BV30: =( 1 + BV29) ^ ( BV4 / 12 ) - 1 -> 0.006192246326 | BW30: 0.006192246326 | BX30: 0.006192246326 | BY30: 0.006192246326 | BZ30: 0.006192246326 | CA30: 0.006192246326 | CB30: 0.006192246326 | CC30: 0.006192246326 | CD30: 0.006192246326 | CE30: 0.006192246326 | CF30: 0.006192246326 | CG30: 0.006192246326 | CH30: 0.006192246326 | CI30: 0.006192246326 | CJ30: 0.006192246326 | CK30: 0.006192246326 | CL30: 0.006192246326 | CM30: 0.006192246326 | CN30: 0.006192246326 | CO30: 0.006192246326 | CP30: 0.006192246326 | CQ30: 0.006192246326 | CR30: 0.006192246326 | CS30: 0.006192246326 | CT30: 0.006192246326 | CU30: 0.006192246326 | CV30: 0.006192246326 | CW30: 0.006192246326 | CX30: 0.006192246326 | CY30: 0.006192246326 | CZ30: 0.006192246326 | DA30: 0.006192246326 | DB30: 0.006192246326 | DC30: 0.006192246326 | DD30: 0.006192246326 | DE30: 0.006192246326 | DF30: 0.006192246326 | DG30: 0.006192246326 | DH30: 0.006192246326 | DI30: 0.006192246326 | DJ30: 0.006192246326 | DK30: 0.006192246326 | DL30: 0.006192246326 | DM30: 0.006192246326 | DN30: 0.006192246326 | DO30: 0.006192246326 | DP30: 0.006192246326 | DQ30: 0.006192246326 | DR30: 0.006192246326 | DS30: 0.006192246326 | DT30: 0.006192246326 | DU30: 0.006192246326 | DV30: 0.006192246326 | DW30: 0.006192246326 | DX30: 0.006192246326 | DY30: 0.006192246326 | DZ30: 0.006192246326 | EA30: 0.006192246326 | EB30: 0.006192246326 | EC30: 0.006192246326 | ED30: 0.006192246326 | EE30: 0.006192246326 | EF30: 0.006192246326 | EG30: 0.006192246326 | EH30: =( 1 + EH29) ^ ( EH4 / 12 ) - 1 -> 0.006192246326 | EI30: 0.006192246326 | EJ30: 0.006192246326 | EK30: 0.006192246326 | EL30: 0.006192246326 | EM30: 0.006192246326 | EN30: 0.006192246326 | EO30: 0.006192246326 | EP30: 0.006192246326 | EQ30: 0.006192246326 | ER30: 0.006192246326 | ES30: 0.006192246326 | ET30: 0.006192246326 | EU30: 0.006192246326 | EV30: 0.006192246326 | EW30: 0.006192246326 | EX30: 0.006192246326 | EY30: 0.006192246326 | EZ30: 0.006192246326 | FA30: 0.006192246326 | FB30: 0.006192246326 | FC30: 0.006192246326
D31: Inflation Index | E31: Index | I31: 1 | J31: =I31 * ( 1 + J30 * J7) -> 1 | K31: 1 | L31: 1 | M31: 1 | N31: 1 | O31: 1 | P31: 1 | Q31: 1 | R31: 1 | S31: 1 | T31: 1 | U31: 1 | V31: 1.006192246 | W31: 1.012422837 | X31: 1.018692008 | Y31: 1.025 | Z31: 1.031347052 | AA31: 1.037733407 | AB31: 1.044159308 | AC31: 1.050625 | AD31: 1.057130729 | AE31: 1.063676743 | AF31: 1.070263291 | AG31: 1.076890625 | AH31: 1.083558997 | AI31: 1.090268661 | AJ31: 1.097019873 | AK31: 1.103812891 | AL31: 1.110647972 | AM31: 1.117525378 | AN31: 1.12444537 | AO31: 1.131408213 | AP31: 1.138414171 | AQ31: 1.145463512 | AR31: 1.152556504 | AS31: 1.159693418 | AT31: 1.166874526 | AU31: 1.1741001 | AV31: 1.181370417 | AW31: 1.188685754 | AX31: 1.196046389 | AY31: 1.203452603 | AZ31: 1.210904677 | BA31: 1.218402898 | BB31: 1.225947548 | BC31: 1.233538918 | BD31: 1.241177294 | BE31: 1.24886297 | BF31: 1.256596237 | BG31: 1.264377391 | BH31: 1.272206727 | BI31: 1.280084544 | BJ31: 1.288011143 | BK31: 1.295986825 | BL31: 1.304011895 | BM31: 1.312086658 | BN31: 1.320211422 | BO31: 1.328386496 | BP31: 1.336612192 | BQ31: 1.344888824 | BR31: 1.353216707 | BS31: 1.361596158 | BT31: 1.370027497 | BU31: 1.378511045 | BV31: =BU31 * ( 1 + BV30 * BV7) -> 1.387047125 | BW31: 1.395636062 | BX31: 1.404278185 | BY31: 1.412973821 | BZ31: 1.421723303 | CA31: 1.430526964 | CB31: 1.439385139 | CC31: 1.448298166 | CD31: 1.457266385 | CE31: 1.466290138 | CF31: 1.475369768 | CG31: 1.484505621 | CH31: 1.493698045 | CI31: 1.502947391 | CJ31: 1.512254012 | CK31: 1.521618261 | CL31: 1.531040496 | CM31: 1.540521076 | CN31: 1.550060362 | CO31: 1.559658718 | CP31: 1.569316509 | CQ31: 1.579034103 | CR31: 1.588811871 | CS31: 1.598650186 | CT31: 1.608549421 | CU31: 1.618509956 | CV31: 1.628532168 | CW31: 1.63861644 | CX31: 1.648763157 | CY31: 1.658972705 | CZ31: 1.669245472 | DA31: 1.679581851 | DB31: 1.689982236 | DC31: 1.700447022 | DD31: 1.710976609 | DE31: 1.721571398 | DF31: 1.732231792 | DG31: 1.742958198 | DH31: 1.753751024 | DI31: 1.764610683 | DJ31: 1.775537587 | DK31: 1.786532153 | DL31: 1.7975948 | DM31: 1.80872595 | DN31: 1.819926026 | DO31: 1.831195456 | DP31: 1.84253467 | DQ31: 1.853944098 | DR31: 1.853944098 | DS31: 1.853944098 | DT31: 1.853944098 | DU31: 1.853944098 | DV31: 1.853944098 | DW31: 1.853944098 | DX31: 1.853944098 | DY31: 1.853944098 | DZ31: 1.853944098 | EA31: 1.853944098 | EB31: 1.853944098 | EC31: 1.853944098 | ED31: 1.853944098 | EE31: 1.853944098 | EF31: 1.853944098 | EG31: 1.853944098 | EH31: =EG31 * ( 1 + EH30 * EH7) -> 1.853944098 | EI31: 1.853944098 | EJ31: 1.853944098 | EK31: 1.853944098 | EL31: 1.853944098 | EM31: 1.853944098 | EN31: 1.853944098 | EO31: 1.853944098 | EP31: 1.853944098 | EQ31: 1.853944098 | ER31: 1.853944098 | ES31: 1.853944098 | ET31: 1.853944098 | EU31: 1.853944098 | EV31: 1.853944098 | EW31: 1.853944098 | EX31: 1.853944098 | EY31: 1.853944098 | EZ31: 1.853944098 | FA31: 1.853944098 | FB31: 1.853944098 | FC31: 1.853944098
D32: Inflated Price | E32: USD/kWh | J32: =J28 * J31 -> 0.045 | K32: =K28 * K31 -> 0.045 | L32: 0.045 | M32: 0.045 | N32: 0.045 | O32: 0.045 | P32: 0.045 | Q32: 0.045 | R32: 0.045 | S32: 0.045 | T32: 0.045 | U32: 0.045 | V32: 0.04527865108 | W32: 0.04555902765 | X32: 0.04584114037 | Y32: 0.046125 | Z32: 0.04641061736 | AA32: 0.04669800334 | AB32: 0.04698716888 | AC32: 0.047278125 | AD32: 0.0475708828 | AE32: 0.04786545342 | AF32: 0.0481618481 | AG32: 0.04846007813 | AH32: 0.04876015487 | AI32: 0.04906208976 | AJ32: 0.0493658943 | AK32: 0.04967158008 | AL32: 0.04997915874 | AM32: 0.050288642 | AN32: 0.05060004166 | AO32: 0.05091336958 | AP32: 0.05122863771 | AQ32: 0.05154585805 | AR32: 0.0518650427 | AS32: 0.05218620382 | AT32: 0.05250935365 | AU32: 0.0528345045 | AV32: 0.05316166877 | AW32: 0.05349085892 | AX32: 0.05382208749 | AY32: 0.05415536711 | AZ32: 0.05449071049 | BA32: 0.05482813039 | BB32: 0.05516763968 | BC32: 0.05550925129 | BD32: 0.05585297825 | BE32: 0.05619883365 | BF32: 0.05654683067 | BG32: 0.05689698257 | BH32: 0.0572493027 | BI32: 0.05760380449 | BJ32: 0.05796050144 | BK32: 0.05831940714 | BL32: 0.05868053527 | BM32: 0.0590438996 | BN32: 0.05940951397 | BO32: 0.05977739232 | BP32: 0.06014754865 | BQ32: 0.06051999709 | BR32: 0.06089475182 | BS32: 0.06127182712 | BT32: 0.06165123737 | BU32: 0.06203299702 | BV32: 0.06241712062 | BW32: =BW28 * BW31 -> 0.0628036228 | BX32: 0.0631925183 | BY32: 0.06358382194 | BZ32: 0.06397754863 | CA32: 0.06437371337 | CB32: 0.06477233126 | CC32: 0.06517341749 | CD32: 0.06557698735 | CE32: 0.06598305621 | CF32: 0.06639163954 | CG32: 0.06680275293 | CH32: 0.06721641203 | CI32: 0.06763263261 | CJ32: 0.06805143053 | CK32: 0.06847282175 | CL32: 0.06889682233 | CM32: 0.06932344843 | CN32: 0.0697527163 | CO32: 0.0701846423 | CP32: 0.07061924289 | CQ32: 0.07105653464 | CR32: 0.0714965342 | CS32: 0.07193925835 | CT32: 0.07238472396 | CU32: 0.072832948 | CV32: 0.07328394756 | CW32: 0.07373773981 | CX32: 0.07419434206 | CY32: 0.0746537717 | CZ32: 0.07511604625 | DA32: 0.07558118331 | DB32: 0.07604920061 | DC32: 0.076520116 | DD32: 0.0769939474 | DE32: 0.07747071289 | DF32: 0.07795043063 | DG32: 0.0784331189 | DH32: 0.07891879609 | DI32: 0.07940748071 | DJ32: 0.07989919139 | DK32: 0.08039394687 | DL32: 0.08089176599 | DM32: 0.08139266773 | DN32: 0.08189667118 | DO32: 0.08240379554 | DP32: 0.08291406014 | DQ32: 0.08342748442 | DR32: 0.08342748442 | DS32: 0.08342748442 | DT32: 0.08342748442 | DU32: 0.08342748442 | DV32: 0.08342748442 | DW32: 0.08342748442 | DX32: 0.08342748442 | DY32: 0.08342748442 | DZ32: 0.08342748442 | EA32: 0.08342748442 | EB32: 0.08342748442 | EC32: 0.08342748442 | ED32: 0.08342748442 | EE32: 0.08342748442 | EF32: 0.08342748442 | EG32: 0.08342748442 | EH32: 0.08342748442 | EI32: =EI28 * EI31 -> 0.08342748442 | EJ32: 0.08342748442 | EK32: 0.08342748442 | EL32: 0.08342748442 | EM32: 0.08342748442 | EN32: 0.08342748442 | EO32: 0.08342748442 | EP32: 0.08342748442 | EQ32: 0.08342748442 | ER32: 0.08342748442 | ES32: 0.08342748442 | ET32: 0.08342748442 | EU32: 0.08342748442 | EV32: 0.08342748442 | EW32: 0.08342748442 | EX32: 0.08342748442 | EY32: 0.08342748442 | EZ32: 0.08342748442 | FA32: 0.08342748442 | FB32: 0.08342748442 | FC32: 0.08342748442
D33: Revenues | E33: USD | H33: =SUM(J33:FC33) -> 269834333 | J33: =J32 * J20 -> 0 | K33: 0 | L33: 0 | M33: 0 | N33: 0 | O33: 0 | P33: 0 | Q33: 0 | R33: 0 | S33: 0 | T33: 0 | U33: 0 | V33: 1464164.42 | W33: 1473230.887 | X33: 2456417.562 | Y33: 2505835.758 | Z33: 1500768.531 | AA33: 1510061.659 | AB33: 2517828.001 | AC33: 2568481.652 | AD33: 1538287.744 | AE33: 1547813.201 | AF33: 2580773.701 | AG33: 2632693.693 | AH33: 1576744.938 | AI33: 1586508.531 | AJ33: 2645293.044 | AK33: 2698511.035 | AL33: 1616163.561 | AM33: 1626171.244 | AN33: 2711425.37 | AO33: 2765973.811 | AP33: 1656567.65 | AQ33: 1666825.525 | AR33: 2779211.004 | AS33: 2835123.157 | AT33: 1697981.842 | AU33: 1708496.163 | AV33: 2848691.279 | AW33: 2906001.235 | AX33: 1740431.388 | AY33: 1751208.567 | AZ33: 2919908.561 | BA33: 2978651.266 | BB33: 1783942.172 | BC33: 1794988.782 | BD33: 2992906.275 | BE33: 3053117.548 | BF33: 1828540.727 | BG33: 1839863.501 | BH33: 3067728.932 | BI33: 3129445.487 | BJ33: 1874254.245 | BK33: 1885860.089 | BL33: 3144422.155 | BM33: 3207681.624 | BN33: 1921110.601 | BO33: 1933006.591 | BP33: 3223032.709 | BQ33: 3287873.664 | BR33: 1969138.366 | BS33: 1981331.756 | BT33: 3303608.527 | BU33: 3370070.506 | BV33: =BV32 * BV20 -> 2018366.825 | BW33: 2030865.05 | BX33: 3386198.74 | BY33: 3454322.269 | BZ33: 2068825.996 | CA33: 2081636.676 | CB33: 3470853.709 | CC33: 3540680.325 | CD33: 2120546.646 | CE33: 2133677.593 | CF33: 3557625.051 | CG33: 3629197.334 | CH33: 2173560.312 | CI33: 2187019.533 | CJ33: 3646565.678 | CK33: 3719927.267 | CL33: 2227899.32 | CM33: 2241695.021 | CN33: 3737729.82 | CO33: 3812925.449 | CP33: 2283596.803 | CQ33: 2297737.396 | CR33: 3831173.065 | CS33: 3908248.585 | CT33: 2340686.723 | CU33: 2355180.831 | CV33: 3926952.392 | CW33: 4005954.799 | CX33: 2399203.891 | CY33: 2414060.352 | CZ33: 4025126.201 | DA33: 4106103.669 | DB33: 2459183.988 | DC33: 2474411.861 | DD33: 4125754.356 | DE33: 4208756.261 | DF33: 2520663.588 | DG33: 2536272.157 | DH33: 4228898.215 | DI33: 4313975.168 | DJ33: 2583680.177 | DK33: 2599678.961 | DL33: 4334620.671 | DM33: 4421824.547 | DN33: 2648272.182 | DO33: 2664670.935 | DP33: 4442986.188 | DQ33: 4532370.161 | DR33: 0 | DS33: 0 | DT33: 0 | DU33: 0 | DV33: 0 | DW33: 0 | DX33: 0 | DY33: 0 | DZ33: 0 | EA33: 0 | EB33: 0 | EC33: 0 | ED33: 0 | EE33: 0 | EF33: 0 | EG33: 0 | EH33: =EH32 * EH20 -> 0 | EI33: 0 | EJ33: 0 | EK33: 0 | EL33: 0 | EM33: 0 | EN33: 0 | EO33: 0 | EP33: 0 | EQ33: 0 | ER33: 0 | ES33: 0 | ET33: 0 | EU33: 0 | EV33: 0 | EW33: 0 | EX33: 0 | EY33: 0 | EZ33: 0 | FA33: 0 | FB33: 0 | FC33: 0
C35: O&M
D36: Base O&M Expense | E36: USD | F36: =Input!E23 -> 15 | G36: =F36 / 4 -> 3.75 | J36: =$G$36 * J14 -> 0 | K36: 0 | L36: 0 | M36: 0 | N36: 0 | O36: 0 | P36: 0 | Q36: 0 | R36: 0 | S36: 0 | T36: 0 | U36: 0 | V36: 375000 | W36: 375000 | X36: 375000 | Y36: 375000 | Z36: 375000 | AA36: 375000 | AB36: 375000 | AC36: 375000 | AD36: 375000 | AE36: 375000 | AF36: 375000 | AG36: 375000 | AH36: 375000 | AI36: 375000 | AJ36: 375000 | AK36: 375000 | AL36: 375000 | AM36: 375000 | AN36: 375000 | AO36: 375000 | AP36: 375000 | AQ36: 375000 | AR36: 375000 | AS36: 375000 | AT36: 375000 | AU36: 375000 | AV36: 375000 | AW36: 375000 | AX36: 375000 | AY36: 375000 | AZ36: 375000 | BA36: 375000 | BB36: 375000 | BC36: 375000 | BD36: 375000 | BE36: 375000 | BF36: 375000 | BG36: 375000 | BH36: 375000 | BI36: 375000 | BJ36: 375000 | BK36: 375000 | BL36: 375000 | BM36: 375000 | BN36: 375000 | BO36: 375000 | BP36: 375000 | BQ36: 375000 | BR36: 375000 | BS36: 375000 | BT36: 375000 | BU36: 375000 | BV36: =$G$36 * BV14 -> 375000 | BW36: 375000 | BX36: 375000 | BY36: 375000 | BZ36: 375000 | CA36: 375000 | CB36: 375000 | CC36: 375000 | CD36: 375000 | CE36: 375000 | CF36: 375000 | CG36: 375000 | CH36: 375000 | CI36: 375000 | CJ36: 375000 | CK36: 375000 | CL36: 375000 | CM36: 375000 | CN36: 375000 | CO36: 375000 | CP36: 375000 | CQ36: 375000 | CR36: 375000 | CS36: 375000 | CT36: 375000 | CU36: 375000 | CV36: 375000 | CW36: 375000 | CX36: 375000 | CY36: 375000 | CZ36: 375000 | DA36: 375000 | DB36: 375000 | DC36: 375000 | DD36: 375000 | DE36: 375000 | DF36: 375000 | DG36: 375000 | DH36: 375000 | DI36: 375000 | DJ36: 375000 | DK36: 375000 | DL36: 375000 | DM36: 375000 | DN36: 375000 | DO36: 375000 | DP36: 375000 | DQ36: 375000 | DR36: 0 | DS36: 0 | DT36: 0 | DU36: 0 | DV36: 0 | DW36: 0 | DX36: 0 | DY36: 0 | DZ36: 0 | EA36: 0 | EB36: 0 | EC36: 0 | ED36: 0 | EE36: 0 | EF36: 0 | EG36: 0 | EH36: =$G$36 * EH14 -> 0 | EI36: 0 | EJ36: 0 | EK36: 0 | EL36: 0 | EM36: 0 | EN36: 0 | EO36: 0 | EP36: 0 | EQ36: 0 | ER36: 0 | ES36: 0 | ET36: 0 | EU36: 0 | EV36: 0 | EW36: 0 | EX36: 0 | EY36: 0 | EZ36: 0 | FA36: 0 | FB36: 0 | FC36: 0
D37: Inflated O&M Expense | E37: USD | H37: =SUM(J37:FC37) -> 52034747.49 | J37: =J36 * J31 -> 0 | K37: 0 | L37: 0 | M37: 0 | N37: 0 | O37: 0 | P37: 0 | Q37: 0 | R37: 0 | S37: 0 | T37: 0 | U37: 0 | V37: 377322.0924 | W37: 379658.5637 | X37: 382009.5031 | Y37: 384375 | Z37: 386755.1447 | AA37: 389150.0278 | AB37: 391559.7406 | AC37: 393984.375 | AD37: 396424.0233 | AE37: 398878.7785 | AF37: 401348.7342 | AG37: 403833.9844 | AH37: 406334.6239 | AI37: 408850.748 | AJ37: 411382.4525 | AK37: 413929.834 | AL37: 416492.9895 | AM37: 419072.0167 | AN37: 421667.0138 | AO37: 424278.0798 | AP37: 426905.3142 | AQ37: 429548.8171 | AR37: 432208.6892 | AS37: 434885.0318 | AT37: 437577.9471 | AU37: 440287.5375 | AV37: 443013.9064 | AW37: 445757.1576 | AX37: 448517.3957 | AY37: 451294.7259 | AZ37: 454089.2541 | BA37: 456901.0866 | BB37: 459730.3306 | BC37: 462577.0941 | BD37: 465441.4854 | BE37: 468323.6137 | BF37: 471223.5889 | BG37: 474141.5214 | BH37: 477077.5225 | BI37: 480031.7041 | BJ37: 483004.1786 | BK37: 485995.0595 | BL37: 489004.4606 | BM37: 492032.4967 | BN37: 495079.2831 | BO37: 498144.936 | BP37: 501229.5721 | BQ37: 504333.3091 | BR37: 507456.2652 | BS37: 510598.5594 | BT37: 513760.3114 | BU37: 516941.6418 | BV37: =BV36 * BV31 -> 520142.6718 | BW37: 523363.5234 | BX37: 526604.3192 | BY37: 529865.1829 | BZ37: 533146.2386 | CA37: 536447.6114 | CB37: 539769.4272 | CC37: 543111.8124 | CD37: 546474.8946 | CE37: 549858.8017 | CF37: 553263.6629 | CG37: 556689.6077 | CH37: 560136.7669 | CI37: 563605.2718 | CJ37: 567095.2544 | CK37: 570606.8479 | CL37: 574140.1861 | CM37: 577695.4036 | CN37: 581272.6358 | CO37: 584872.0191 | CP37: 588493.6908 | CQ37: 592137.7886 | CR37: 595804.4517 | CS37: 599493.8196 | CT37: 603206.033 | CU37: 606941.2334 | CV37: 610699.563 | CW37: 614481.1651 | CX37: 618286.1838 | CY37: 622114.7642 | CZ37: 625967.0521 | DA37: 629843.1942 | DB37: 633743.3384 | DC37: 637667.6333 | DD37: 641616.2284 | DE37: 645589.2741 | DF37: 649586.9219 | DG37: 653609.3241 | DH37: 657656.6341 | DI37: 661729.0059 | DJ37: 665826.595 | DK37: 669949.5572 | DL37: 674098.0499 | DM37: 678272.2311 | DN37: 682472.2598 | DO37: 686698.2962 | DP37: 690950.5012 | DQ37: 695229.0369 | DR37: 0 | DS37: 0 | DT37: 0 | DU37: 0 | DV37: 0 | DW37: 0 | DX37: 0 | DY37: 0 | DZ37: 0 | EA37: 0 | EB37: 0 | EC37: 0 | ED37: 0 | EE37: 0 | EF37: 0 | EG37: 0 | EH37: =EH36 * EH31 -> 0 | EI37: 0 | EJ37: 0 | EK37: 0 | EL37: 0 | EM37: 0 | EN37: 0 | EO37: 0 | EP37: 0 | EQ37: 0 | ER37: 0 | ES37: 0 | ET37: 0 | EU37: 0 | EV37: 0 | EW37: 0 | EX37: 0 | EY37: 0 | EZ37: 0 | FA37: 0 | FB37: 0 | FC37: 0
D39: EBITDA | E39: USD | H39: =SUM(J39:FC39) -> 217799585.5 | J39: =J33 - J37 -> 0 | K39: 0 | L39: 0 | M39: 0 | N39: 0 | O39: 0 | P39: 0 | Q39: 0 | R39: 0 | S39: 0 | T39: 0 | U39: 0 | V39: 1086842.328 | W39: 1093572.324 | X39: 2074408.059 | Y39: 2121460.758 | Z39: 1114013.386 | AA39: 1120911.632 | AB39: 2126268.26 | AC39: 2174497.277 | AD39: 1141863.721 | AE39: 1148934.422 | AF39: 2179424.967 | AG39: 2228859.709 | AH39: 1170410.314 | AI39: 1177657.783 | AJ39: 2233910.591 | AK39: 2284581.201 | AL39: 1199670.572 | AM39: 1207099.228 | AN39: 2289758.356 | AO39: 2341695.731 | AP39: 1229662.336 | AQ39: 1237276.708 | AR39: 2347002.315 | AS39: 2400238.125 | AT39: 1260403.895 | AU39: 1268208.626 | AV39: 2405677.373 | AW39: 2460244.078 | AX39: 1291913.992 | AY39: 1299913.842 | AZ39: 2465819.307 | BA39: 2521750.18 | BB39: 1324211.842 | BC39: 1332411.688 | BD39: 2527464.79 | BE39: 2584793.934 | BF39: 1357317.138 | BG39: 1365721.98 | BH39: 2590651.409 | BI39: 2649413.783 | BJ39: 1391250.066 | BK39: 1399865.029 | BL39: 2655417.695 | BM39: 2715649.127 | BN39: 1426031.318 | BO39: 1434861.655 | BP39: 2721803.137 | BQ39: 2783540.355 | BR39: 1461682.101 | BS39: 1470733.196 | BT39: 2789848.215 | BU39: 2853128.864 | BV39: =BV33 - BV37 -> 1498224.153 | BW39: 1507501.526 | BX39: 2859594.421 | BY39: 2924457.086 | BZ39: 1535679.757 | CA39: 1545189.064 | CB39: 2931084.281 | CC39: 2997568.513 | CD39: 1574071.751 | CE39: 1583818.791 | CF39: 3004361.388 | CG39: 3072507.726 | CH39: 1613423.545 | CI39: 1623414.261 | CJ39: 3079470.423 | CK39: 3149320.419 | CL39: 1653759.133 | CM39: 1663999.617 | CN39: 3156457.184 | CO39: 3228053.429 | CP39: 1695103.112 | CQ39: 1705599.608 | CR39: 3235368.613 | CS39: 3308754.765 | CT39: 1737480.69 | CU39: 1748239.598 | CV39: 3316252.829 | CW39: 3391473.634 | CX39: 1780917.707 | CY39: 1791945.588 | CZ39: 3399159.149 | DA39: 3476260.475 | DB39: 1825440.649 | DC39: 1836744.228 | DD39: 3484138.128 | DE39: 3563166.987 | DF39: 1871076.666 | DG39: 1882662.833 | DH39: 3571241.581 | DI39: 3652246.162 | DJ39: 1917853.582 | DK39: 1929729.404 | DL39: 3660522.621 | DM39: 3743552.316 | DN39: 1965799.922 | DO39: 1977972.639 | DP39: 3752035.686 | DQ39: 3837141.124 | DR39: 0 | DS39: 0 | DT39: 0 | DU39: 0 | DV39: 0 | DW39: 0 | DX39: 0 | DY39: 0 | DZ39: 0 | EA39: 0 | EB39: 0 | EC39: 0 | ED39: 0 | EE39: 0 | EF39: 0 | EG39: 0 | EH39: =EH33 - EH37 -> 0 | EI39: 0 | EJ39: 0 | EK39: 0 | EL39: 0 | EM39: 0 | EN39: 0 | EO39: 0 | EP39: 0 | EQ39: 0 | ER39: 0 | ES39: 0 | ET39: 0 | EU39: 0 | EV39: 0 | EW39: 0 | EX39: 0 | EY39: 0 | EZ39: 0 | FA39: 0 | FB39: 0 | FC39: 0
D41: Free Cashflow | E41: USD | H41: =SUM(J41:FC41) -> 137799585.5 | J41: =J39 - J25 -> -6666666.667 | K41: -6666666.667 | L41: -6666666.667 | M41: -6666666.667 | N41: -6666666.667 | O41: -6666666.667 | P41: -6666666.667 | Q41: -6666666.667 | R41: -6666666.667 | S41: -6666666.667 | T41: -6666666.667 | U41: -6666666.667 | V41: 1086842.328 | W41: 1093572.324 | X41: 2074408.059 | Y41: 2121460.758 | Z41: 1114013.386 | AA41: 1120911.632 | AB41: 2126268.26 | AC41: 2174497.277 | AD41: 1141863.721 | AE41: 1148934.422 | AF41: 2179424.967 | AG41: 2228859.709 | AH41: 1170410.314 | AI41: 1177657.783 | AJ41: 2233910.591 | AK41: 2284581.201 | AL41: 1199670.572 | AM41: 1207099.228 | AN41: 2289758.356 | AO41: 2341695.731 | AP41: 1229662.336 | AQ41: 1237276.708 | AR41: 2347002.315 | AS41: 2400238.125 | AT41: 1260403.895 | AU41: 1268208.626 | AV41: 2405677.373 | AW41: 2460244.078 | AX41: 1291913.992 | AY41: 1299913.842 | AZ41: 2465819.307 | BA41: 2521750.18 | BB41: 1324211.842 | BC41: 1332411.688 | BD41: 2527464.79 | BE41: 2584793.934 | BF41: 1357317.138 | BG41: 1365721.98 | BH41: 2590651.409 | BI41: 2649413.783 | BJ41: 1391250.066 | BK41: 1399865.029 | BL41: 2655417.695 | BM41: 2715649.127 | BN41: 1426031.318 | BO41: 1434861.655 | BP41: 2721803.137 | BQ41: 2783540.355 | BR41: 1461682.101 | BS41: 1470733.196 | BT41: 2789848.215 | BU41: 2853128.864 | BV41: =BV39 - BV25 -> 1498224.153 | BW41: 1507501.526 | BX41: 2859594.421 | BY41: 2924457.086 | BZ41: 1535679.757 | CA41: 1545189.064 | CB41: 2931084.281 | CC41: 2997568.513 | CD41: 1574071.751 | CE41: 1583818.791 | CF41: 3004361.388 | CG41: 3072507.726 | CH41: 1613423.545 | CI41: 1623414.261 | CJ41: 3079470.423 | CK41: 3149320.419 | CL41: 1653759.133 | CM41: 1663999.617 | CN41: 3156457.184 | CO41: 3228053.429 | CP41: 1695103.112 | CQ41: 1705599.608 | CR41: 3235368.613 | CS41: 3308754.765 | CT41: 1737480.69 | CU41: 1748239.598 | CV41: 3316252.829 | CW41: 3391473.634 | CX41: 1780917.707 | CY41: 1791945.588 | CZ41: 3399159.149 | DA41: 3476260.475 | DB41: 1825440.649 | DC41: 1836744.228 | DD41: 3484138.128 | DE41: 3563166.987 | DF41: 1871076.666 | DG41: 1882662.833 | DH41: 3571241.581 | DI41: 3652246.162 | DJ41: 1917853.582 | DK41: 1929729.404 | DL41: 3660522.621 | DM41: 3743552.316 | DN41: 1965799.922 | DO41: 1977972.639 | DP41: 3752035.686 | DQ41: 3837141.124 | DR41: 0 | DS41: 0 | DT41: 0 | DU41: 0 | DV41: 0 | DW41: 0 | DX41: 0 | DY41: 0 | DZ41: 0 | EA41: 0 | EB41: 0 | EC41: 0 | ED41: 0 | EE41: 0 | EF41: 0 | EG41: 0 | EH41: =EH39 - EH25 -> 0 | EI41: 0 | EJ41: 0 | EK41: 0 | EL41: 0 | EM41: 0 | EN41: 0 | EO41: 0 | EP41: 0 | EQ41: 0 | ER41: 0 | ES41: 0 | ET41: 0 | EU41: 0 | EV41: 0 | EW41: 0 | EX41: 0 | EY41: 0 | EZ41: 0 | FA41: 0 | FB41: 0 | FC41: 0
D42: Pre-Tax Project IRR | E42: % p.a. | F42: =XIRR(J41:FC41, J6:FC6 ) -> 0.08436237872
C44: Debt Sizing
D45: EBITDA | E45: USD | H45: =SUM(I45:FC45) -> 217799585.5 | J45: =J39 -> 0 | K45: 0 | L45: 0 | M45: 0 | N45: 0 | O45: 0 | P45: 0 | Q45: 0 | R45: 0 | S45: 0 | T45: 0 | U45: 0 | V45: 1086842.328 | W45: 1093572.324 | X45: 2074408.059 | Y45: 2121460.758 | Z45: 1114013.386 | AA45: 1120911.632 | AB45: 2126268.26 | AC45: 2174497.277 | AD45: 1141863.721 | AE45: 1148934.422 | AF45: 2179424.967 | AG45: 2228859.709 | AH45: 1170410.314 | AI45: 1177657.783 | AJ45: 2233910.591 | AK45: 2284581.201 | AL45: 1199670.572 | AM45: 1207099.228 | AN45: 2289758.356 | AO45: 2341695.731 | AP45: 1229662.336 | AQ45: 1237276.708 | AR45: 2347002.315 | AS45: 2400238.125 | AT45: 1260403.895 | AU45: 1268208.626 | AV45: 2405677.373 | AW45: 2460244.078 | AX45: 1291913.992 | AY45: 1299913.842 | AZ45: 2465819.307 | BA45: 2521750.18 | BB45: 1324211.842 | BC45: 1332411.688 | BD45: 2527464.79 | BE45: 2584793.934 | BF45: 1357317.138 | BG45: 1365721.98 | BH45: 2590651.409 | BI45: 2649413.783 | BJ45: 1391250.066 | BK45: 1399865.029 | BL45: 2655417.695 | BM45: 2715649.127 | BN45: 1426031.318 | BO45: 1434861.655 | BP45: 2721803.137 | BQ45: 2783540.355 | BR45: 1461682.101 | BS45: 1470733.196 | BT45: 2789848.215 | BU45: 2853128.864 | BV45: =BV39 -> 1498224.153 | BW45: 1507501.526 | BX45: 2859594.421 | BY45: 2924457.086 | BZ45: 1535679.757 | CA45: 1545189.064 | CB45: 2931084.281 | CC45: 2997568.513 | CD45: 1574071.751 | CE45: 1583818.791 | CF45: 3004361.388 | CG45: 3072507.726 | CH45: 1613423.545 | CI45: 1623414.261 | CJ45: 3079470.423 | CK45: 3149320.419 | CL45: 1653759.133 | CM45: 1663999.617 | CN45: 3156457.184 | CO45: 3228053.429 | CP45: 1695103.112 | CQ45: 1705599.608 | CR45: 3235368.613 | CS45: 3308754.765 | CT45: 1737480.69 | CU45: 1748239.598 | CV45: 3316252.829 | CW45: 3391473.634 | CX45: 1780917.707 | CY45: 1791945.588 | CZ45: 3399159.149 | DA45: 3476260.475 | DB45: 1825440.649 | DC45: 1836744.228 | DD45: 3484138.128 | DE45: 3563166.987 | DF45: 1871076.666 | DG45: 1882662.833 | DH45: 3571241.581 | DI45: 3652246.162 | DJ45: 1917853.582 | DK45: 1929729.404 | DL45: 3660522.621 | DM45: 3743552.316 | DN45: 1965799.922 | DO45: 1977972.639 | DP45: 3752035.686 | DQ45: 3837141.124 | DR45: 0 | DS45: 0 | DT45: 0 | DU45: 0 | DV45: 0 | DW45: 0 | DX45: 0 | DY45: 0 | DZ45: 0 | EA45: 0 | EB45: 0 | EC45: 0 | ED45: 0 | EE45: 0 | EF45: 0 | EG45: 0 | EH45: =EH39 -> 0 | EI45: 0 | EJ45: 0 | EK45: 0 | EL45: 0 | EM45: 0 | EN45: 0 | EO45: 0 | EP45: 0 | EQ45: 0 | ER45: 0 | ES45: 0 | ET45: 0 | EU45: 0 | EV45: 0 | EW45: 0 | EX45: 0 | EY45: 0 | EZ45: 0 | FA45: 0 | FB45: 0 | FC45: 0
D46: LC Fees | E46: USD
D47: Add: Use of Revolver | E47: USD
D48: Less: Repayment of Revolver | E48: USD
D49: Revolver Commitment Fees | E49: USD
D50: Agency Fees | E50: USD
D51: Working Capital Changes | E51: USD
D52: CFADS | E52: USD | H52: =SUM(I52:FC52) -> 217799585.5 | J52: =SUM(J45:J51) -> 0 | K52: =SUM(K45:K51) -> 0 | L52: 0 | M52: 0 | N52: 0 | O52: 0 | P52: 0 | Q52: 0 | R52: 0 | S52: 0 | T52: 0 | U52: 0 | V52: 1086842.328 | W52: 1093572.324 | X52: 2074408.059 | Y52: 2121460.758 | Z52: 1114013.386 | AA52: 1120911.632 | AB52: 2126268.26 | AC52: 2174497.277 | AD52: 1141863.721 | AE52: 1148934.422 | AF52: 2179424.967 | AG52: 2228859.709 | AH52: 1170410.314 | AI52: 1177657.783 | AJ52: 2233910.591 | AK52: 2284581.201 | AL52: 1199670.572 | AM52: 1207099.228 | AN52: 2289758.356 | AO52: 2341695.731 | AP52: 1229662.336 | AQ52: 1237276.708 | AR52: 2347002.315 | AS52: 2400238.125 | AT52: 1260403.895 | AU52: 1268208.626 | AV52: 2405677.373 | AW52: 2460244.078 | AX52: 1291913.992 | AY52: 1299913.842 | AZ52: 2465819.307 | BA52: 2521750.18 | BB52: 1324211.842 | BC52: 1332411.688 | BD52: 2527464.79 | BE52: 2584793.934 | BF52: 1357317.138 | BG52: 1365721.98 | BH52: 2590651.409 | BI52: 2649413.783 | BJ52: 1391250.066 | BK52: 1399865.029 | BL52: 2655417.695 | BM52: 2715649.127 | BN52: 1426031.318 | BO52: 1434861.655 | BP52: 2721803.137 | BQ52: 2783540.355 | BR52: 1461682.101 | BS52: 1470733.196 | BT52: 2789848.215 | BU52: 2853128.864 | BV52: 1498224.153 | BW52: =SUM(BW45:BW51) -> 1507501.526 | BX52: 2859594.421 | BY52: 2924457.086 | BZ52: 1535679.757 | CA52: 1545189.064 | CB52: 2931084.281 | CC52: 2997568.513 | CD52: 1574071.751 | CE52: 1583818.791 | CF52: 3004361.388 | CG52: 3072507.726 | CH52: 1613423.545 | CI52: 1623414.261 | CJ52: 3079470.423 | CK52: 3149320.419 | CL52: 1653759.133 | CM52: 1663999.617 | CN52: 3156457.184 | CO52: 3228053.429 | CP52: 1695103.112 | CQ52: 1705599.608 | CR52: 3235368.613 | CS52: 3308754.765 | CT52: 1737480.69 | CU52: 1748239.598 | CV52: 3316252.829 | CW52: 3391473.634 | CX52: 1780917.707 | CY52: 1791945.588 | CZ52: 3399159.149 | DA52: 3476260.475 | DB52: 1825440.649 | DC52: 1836744.228 | DD52: 3484138.128 | DE52: 3563166.987 | DF52: 1871076.666 | DG52: 1882662.833 | DH52: 3571241.581 | DI52: 3652246.162 | DJ52: 1917853.582 | DK52: 1929729.404 | DL52: 3660522.621 | DM52: 3743552.316 | DN52: 1965799.922 | DO52: 1977972.639 | DP52: 3752035.686 | DQ52: 3837141.124 | DR52: 0 | DS52: 0 | DT52: 0 | DU52: 0 | DV52: 0 | DW52: 0 | DX52: 0 | DY52: 0 | DZ52: 0 | EA52: 0 | EB52: 0 | EC52: 0 | ED52: 0 | EE52: 0 | EF52: 0 | EG52: 0 | EH52: 0 | EI52: =SUM(EI45:EI51) -> 0 | EJ52: 0 | EK52: 0 | EL52: 0 | EM52: 0 | EN52: 0 | EO52: 0 | EP52: 0 | EQ52: 0 | ER52: 0 | ES52: 0 | ET52: 0 | EU52: 0 | EV52: 0 | EW52: 0 | EX52: 0 | EY52: 0 | EZ52: 0 | FA52: 0 | FB52: 0 | FC52: 0
D54: Debt Repayment Flag | F54: =Input!E5 -> 2024-01-01 | G54: =Input!E36 -> 2044-01-01 | H54: =SUM(I54:FC54) -> 80 | J54: =AND( J$5 >=$F54, J$5 <$G54) * 1 -> 0 | K54: 0 | L54: 0 | M54: 0 | N54: 0 | O54: 0 | P54: 0 | Q54: 0 | R54: 0 | S54: 0 | T54: 0 | U54: 0 | V54: 1 | W54: 1 | X54: 1 | Y54: 1 | Z54: 1 | AA54: 1 | AB54: 1 | AC54: 1 | AD54: 1 | AE54: 1 | AF54: 1 | AG54: 1 | AH54: 1 | AI54: 1 | AJ54: 1 | AK54: 1 | AL54: 1 | AM54: 1 | AN54: 1 | AO54: 1 | AP54: 1 | AQ54: 1 | AR54: 1 | AS54: 1 | AT54: 1 | AU54: 1 | AV54: 1 | AW54: 1 | AX54: 1 | AY54: 1 | AZ54: 1 | BA54: 1 | BB54: 1 | BC54: 1 | BD54: 1 | BE54: 1 | BF54: 1 | BG54: 1 | BH54: 1 | BI54: 1 | BJ54: 1 | BK54: 1 | BL54: 1 | BM54: 1 | BN54: 1 | BO54: 1 | BP54: 1 | BQ54: 1 | BR54: 1 | BS54: 1 | BT54: 1 | BU54: 1 | BV54: =AND( BV$5 >=$F54, BV$5 <$G54) * 1 -> 1 | BW54: 1 | BX54: 1 | BY54: 1 | BZ54: 1 | CA54: 1 | CB54: 1 | CC54: 1 | CD54: 1 | CE54: 1 | CF54: 1 | CG54: 1 | CH54: 1 | CI54: 1 | CJ54: 1 | CK54: 1 | CL54: 1 | CM54: 1 | CN54: 1 | CO54: 1 | CP54: 1 | CQ54: 1 | CR54: 1 | CS54: 1 | CT54: 1 | CU54: 1 | CV54: 1 | CW54: 1 | CX54: 0 | CY54: 0 | CZ54: 0 | DA54: 0 | DB54: 0 | DC54: 0 | DD54: 0 | DE54: 0 | DF54: 0 | DG54: 0 | DH54: 0 | DI54: 0 | DJ54: 0 | DK54: 0 | DL54: 0 | DM54: 0 | DN54: 0 | DO54: 0 | DP54: 0 | DQ54: 0 | DR54: 0 | DS54: 0 | DT54: 0 | DU54: 0 | DV54: 0 | DW54: 0 | DX54: 0 | DY54: 0 | DZ54: 0 | EA54: 0 | EB54: 0 | EC54: 0 | ED54: 0 | EE54: 0 | EF54: 0 | EG54: 0 | EH54: =AND( EH$5 >=$F54, EH$5 <$G54) * 1 -> 0 | EI54: 0 | EJ54: 0 | EK54: 0 | EL54: 0 | EM54: 0 | EN54: 0 | EO54: 0 | EP54: 0 | EQ54: 0 | ER54: 0 | ES54: 0 | ET54: 0 | EU54: 0 | EV54: 0 | EW54: 0 | EX54: 0 | EY54: 0 | EZ54: 0 | FA54: 0 | FB54: 0 | FC54: 0
